Workbook

Sheet 填写页面
B1: 复星保德信星盈家两全保险
B3: •请按照从上到下、从左到右的顺序在表中“浅黄色”区域依次填写信息，如出现"#N/A"显示，则该案例不可操作，请调整年龄、交费年期、保险期间等数值 •此Excel版计划书仅供内部交流使用
B4: 销售人员基本信息
B5: 公司名称 | D5: 复星保德信人寿保险有限公司 | H5: 销售人员姓名 | J5: 销售小能手
B6: 联系电话 | D6: 13900000000 | H6: 电子邮箱 | J6: fxbdx@126.com
B7: 被保险人基本信息
B8: 被保险人姓名 | D8: 复星星 | F8: 被保险人年龄 | H8: 40 | J8: 被保险人性别 | L8: 男
B9: 投保人姓名 | D9: 复星星妻子 | F9: 投保人年龄 | H9: 45 | J9: 投保人性别 | L9: 女
B10: 投保险种信息
B11: 险种名称 | E11: 是否投保 | F11: 交费年期 | H11: 保险期间 | J11: 年交保费（元） | L11: 基本保险金额（元）
B12: 主险 | C12: 复星保德信星盈家两全保险 | E12: 是 | F12: 3 | H12: 至99周岁 | J12: 670000 | L12: ='利益演示-加保'!C13 -> 1682765.3
B13: 附加险 | C13: 复星保德信附加减额定期寿险 | E13: 否 | F13: 1 | H13: =IF(AND(填写页面!E13="是",F12<>1,F12<>3),F12-1,"-") -> - | J13: =IF(E13="是",'利益演示-附加定寿'!C15,0) -> 0 | L13: =IF(AND(J12*F12>=500000,E13="是"),IF(AND(填写页面!E13="是",H9<=70,H9>=18,F12<>1,F12<>3),J12,0),0) -> 0
B14: 首期保费合计： | H14: =J12+J13 -> 670000
B16: 注：年龄计算小工具 | H16: =IF(AND(H8<18,E13="是"),"投保人年满18周岁方可投保附加减额定寿","") -> 
B17: 周岁测算后，填入年龄框
B18: 1979-01-01 | D18: =DATEDIF(B18,TODAY(),"y") -> 42 | H18: =IF(AND($F$12=1,$E$13="是"),"主险为趸交，此时不可投保附加减额定期寿险",IF(AND($F$12=3,$E$13="是"),"主险为3年交，此时不可投保附加减额定期寿险","")) -> 
H20: =IF(AND($E$13="是",$J$12*$F$12<500000),"主险保费低于50万，此时不可投保附加减额定期寿险","") -> 
H22: =IF(MOD(J12,1000)=0,"","年交保费以1000元为单位递增") -> 

Sheet Data Control (hidden)
B1: PPP | C1: 各领取年龄下最高投保年龄 | D1: 年交最低保费 | H1: 保险期间\PPP | I1: 1 | J1: 2 | K1: 4 | L1: 5 | M1: 9 | N1: 14 | O1: 19
B2: 1 | C2: 75 | D2: 30000 | H2: 2 | I2: 18-70 | J2: 18-70
B3: 3 | C3: 55 | D3: 20000 | H3: 4 | I3: 18-65 | K3: 18-65
B4: 6 | C4: 55 | D4: 15000 | H4: 5 | I4: 18-65 | L4: 18-65
B5: 10 | C5: 55 | D5: 10000 | H5: 9 | I5: 18-65 | M5: 18-65
B6: 15 | C6: 50 | D6: 10000 | H6: 14 | I6: 18-50 | N6: 18-50
B7: 20 | C7: 50 | D7: 10000 | H7: 19 | I7: 18-50 | O7: 18-50
H10: PPP | I10: 保险期间
B11: PPP | C11: 各领取年龄下最高投保年龄 | D11: 年交最低保费 | H11: 1 | I11: 2 | J11: 18 | K11: 70 | L11: 如果投保年龄大于65岁，小于等于70岁，PPP=1，保险期间可选2；PPP=2，保险期间可选2
B12: =IF(填写页面!H8<='Data Control'!C12,1,"不可选1") -> 1 | C12: 75 | D12: 30000 | H12: 1 | I12: 4 | J12: 18 | K12: 65 | L12: 如果投保年龄大于50岁，小于等于65岁，PPP=1，保险期间可选2,4,5,9；PPP=4，保险期间可选4；PPP=5，保险期间可选5；PPP=9，保险期间可选9；PPP=2，保险期间可选2
B13: =IF(填写页面!H8<='Data Control'!C13,3,"不可选3") -> 3 | C13: 55 | D13: 20000 | H13: 1 | I13: 5 | J13: 18 | K13: 65
B14: =IF(填写页面!H8<='Data Control'!C14,6,"不可选6") -> 6 | C14: 55 | D14: 15000 | H14: 1 | I14: 9 | J14: 18 | K14: 65
B15: =IF(填写页面!H8<='Data Control'!C15,10,"不可选10") -> 10 | C15: 55 | D15: 10000 | H15: 1 | I15: 14 | J15: 18 | K15: 50 | L15: 如果投保年龄大于18岁，小于等于50岁，PPP=1，保险期间可选2,4,5,9,14,19；PPP=14，保险期间可选14；PPP=19，保险期间可选19；PPP=4，保险期间可选4；PPP=5，保险期间可选5；PPP=9，保险期间可选9；PPP=2，保险期间可选2
B16: =IF(填写页面!H8<='Data Control'!C16,15,"不可选15") -> 15 | C16: 50 | D16: 10000 | H16: 1 | I16: 19 | J16: 18 | K16: 50
B17: =IF(填写页面!H8<='Data Control'!C17,20,"不可选20") -> 20 | C17: 50 | D17: 10000 | H17: 2 | I17: 2 | J17: 18 | K17: 70
H18: 4 | I18: 4 | J18: 18 | K18: 65
B19: PPP | C19: 各领取年龄下最低投保年龄 | D19: 各领取年龄下最高投保年龄 | H19: 5 | I19: 5 | J19: 18 | K19: 65
B20: =IF(AND(填写页面!H9>=C20,填写页面!H9<=D20),1,"不可选1") -> 1 | C20: 18 | D20: 70 | H20: 9 | I20: 9 | J20: 18 | K20: 65
B21: =IF(AND(填写页面!H9>=C21,填写页面!H9<=D21),2,"不可选2") -> 2 | C21: 18 | D21: 70 | H21: 14 | I21: 14 | J21: 18 | K21: 50
B22: =IF(AND(填写页面!H9>=C22,填写页面!H9<=D22),4,"不可选4") -> 4 | C22: 18 | D22: 65 | H22: 19 | I22: 19 | J22: 18 | K22: 50
B23: =IF(AND(填写页面!H9>=C23,填写页面!H9<=D23),5,"不可选5") -> 5 | C23: 18 | D23: 65
B24: =IF(AND(填写页面!H9>=C24,填写页面!H9<=D24),9,"不可选9") -> 9 | C24: 18 | D24: 65
B25: =IF(AND(填写页面!H9>=C25,填写页面!H9<=D25),14,"不可选14") -> 14 | C25: 18 | D25: 50
B26: =IF(AND(填写页面!H9>=C26,填写页面!H9<=D26),19,"不可选19") -> 19 | C26: 18 | D26: 50
B28: 保险期间 | D28: PPP
B29: =IF(AND(填写页面!H9>=18,填写页面!H9<=70,填写页面!F13=1),2,IF(AND(填写页面!H9>=18,填写页面!H9<=70,填写页面!F13=2),2,"不可选2")) -> 2 | D29: =IF(填写页面!E13="是",IF(OR(填写页面!F12=1,填写页面!F12=3),"不可选1",1),"不可选1") -> 不可选1
B30: =IF(AND(填写页面!H9>=18,填写页面!H9<=65,填写页面!F13=1),4,IF(AND(填写页面!H9>=18,填写页面!H9<=65,填写页面!F13=4),4,"不可选4")) -> 4 | D30: =IF(AND(填写页面!E13="是",填写页面!H13='Data Control'!E30),4,"不可选4") -> 不可选4 | E30: 4
B31: =IF(AND(填写页面!H9>=18,填写页面!H9<=65,填写页面!F13=1),5,IF(AND(填写页面!H9>=18,填写页面!H9<=65,填写页面!F13=5),5,"不可选5")) -> 5 | D31: =IF(AND(填写页面!E13="是",填写页面!H13='Data Control'!E31),9,"不可选9") -> 不可选9 | E31: 9
B32: =IF(AND(填写页面!H9>=18,填写页面!H9<=65,填写页面!F13=1),9,IF(AND(填写页面!H9>=18,填写页面!H9<=65,填写页面!F13=9),9,"不可选9")) -> 9 | D32: =IF(AND(填写页面!E13="是",填写页面!H13='Data Control'!E32),14,"不可选14") -> 不可选14 | E32: 14
B33: =IF(AND(填写页面!H9>=18,填写页面!H9<=50,填写页面!F13=1),14,IF(AND(填写页面!H9>=18,填写页面!H9<=50,填写页面!F13=14),14,"不可选14")) -> 14 | D33: =IF(AND(填写页面!E13="是",填写页面!H13='Data Control'!E33),19,"不可选19") -> 不可选19 | E33: 19
B34: =IF(AND(填写页面!H9>=18,填写页面!H9<=50,填写页面!F13=1),19,IF(AND(填写页面!H9>=18,填写页面!H9<=50,填写页面!F13=19),19,"不可选19")) -> 19
B39: 1 | C39: =IF(交费期间<>1,"是","不可以期交加保") -> 是 | D39: =IF(交费期间<>1,3,"不可选3") -> 3
B40: 3 | C40: 否 | D40: =IF(交费期间>=5,4,"不可选4") -> 不可选4
B41: 5 | D41: =IF(交费期间>=5,5,"不可选5") -> 不可选5
B42: 10 | D42: =IF(交费期间=10,6,"不可选6") -> 不可选6
D43: =IF(交费期间=10,7,"不可选7") -> 不可选7
D44: =IF(交费期间=10,8,"不可选8") -> 不可选8
D45: =IF(交费期间=10,9,"不可选9") -> 不可选9
D46: =IF(交费期间=10,10,"不可选10") -> 不可选10
D47: 11

Sheet 封面
A1: 图片
A28: 复星保德信人寿保险有限公司
A29: 投保人 | B29: =填写页面!D9 -> 复星星妻子 | D29: 投保人性别 | F29: =填写页面!L9 -> 女 | H29: 投保人年龄 | I29: =填写页面!H9 -> 45
A30: 被保险人 | B30: =填写页面!D8 -> 复星星 | D30: 被保险人性别 | F30: =填写页面!L8 -> 男 | H30: 被保险人年龄 | I30: =填写页面!H8 -> 40
A31: 投保信息 | B31: 险种名称 | E31: 保险期间 | F31: 交费期间 | G31: 基本保额 | I31: 年交保费
B32: 复星保德信星盈家终身寿险 | E32: =填写页面!H12 -> 至99周岁 | F32: =填写页面!F12 -> 3 | G32: =填写页面!L12 -> 1682765.3 | I32: =填写页面!J12 -> 670000
B33: 复星保德信附加减额定期寿险 | E33: =填写页面!H13 -> - | F33: =填写页面!F13 -> 1 | G33: =填写页面!L13 -> 0 | I33: =填写页面!J13 -> 0
B34: 首年保费合计 | H34: =填写页面!H14 -> 670000
A35: 业务员姓名 | B35: =填写页面!J5 -> 销售小能手 | D35: 电话号码 | E35: =填写页面!D6 -> 13900000000 | G35: 复保全国统一客户热线 | I35: 4008216808
A36: 我们提供的保障（详细请见条款）
A37: 星盈家两全保险
A38: 身故保险金 如被保险人在到达年龄为17周岁及以前身故，我们将按以下两项金额中的较大者给付身故保险金，本合同效力终止： (1) 被保险人身故时本合同实际交纳的保险费（不计息）； (2) 被保险人身故时本合同的现金价值 。
A39: 如被保险人在到达年龄为18周岁及以后身故，且本合同交费年期（交费年期将在保险单上载明）未满的，我们将按以下两项金额中的较大者给付身故保险金，本合同效力终止： (1) 被保险人身故时本合同实际交纳的保险费乘以下表所示对应比例： (2) 被保险人身故时本合同的现金价值。
A40: 如被保险人在到达年龄为18周岁及以后身故，且本合同交费年期已届满，我们将按以下三项金额中的较大者给付身故保险金，本合同效力终止： (1) 被保险人身故时本合同实际交纳的保险费乘以下表所示对应比例： (2) 被保险人身故时本合同的现金价值； (3) 基本保险金额×(1+3.5%)（保单年度数-1）。
A41: 满期保险金 如被保险人于本合同保险期间届满时仍生存，我们将按基本保险金额×120%×(1+3.5%)（保单年度数-1） 给付满期保险金，本合同效力终止。
A42: 附加减额定寿身故或全残保险金
A43: 在本附加合同有效期内，如被保险人于等待期后身故或全残，我们将按基本保险金额*剩余保单年度数（含当前保单年度）给付身故或全残保险金，本附加合同效力终止。
A44: 公司简介
A45: 复星保德信人寿保险有限公司是由复星与美国保德信金融集团联合发起组建的合资寿险公司，经原中国保险监督管理委员会批准，于2012年9月正式成立，总部位于上海。公司注册资本金为26.621亿元，股东双方各持有合资公司50%的股份。复星保德信以“守护你想要的未来”为使命，通过代理人、银行保险、健康保险、中介、互联网等多元化渠道，建立客户需求导向的销售模式；完善更加简单、安全、便捷的服务支持体系，运用新科技解决客户随时随地的服务需求；结合股东医疗、养老及其他资源，以健康、快乐、富足的创新产品体系为客户提供更多差异化的周全服务，打造全面服务平台，为客户创造幸福。 复星保德信通过不间断的专业培训，提升员工的工作技能，满足员工不同阶段的成长周期，帮助员工完成职业规划。以结果导向为准则，实现公平的考核评价，以不断完善的薪酬福利体系，让员工安心立业。 复星保德信始终将承担社会责任视为己任，通过服务更多客户、参与各项政府保险保障体系政策、践行公益责任，致力于成为社会的稳定器与经济的助推器，促社会和谐健康。 成功并与众不同是复星保德信的企业精神，相信通过全体复保人的坚持和努力，复星保德信一定会实现“价值成长最快的寿险公司，智造中国幸福家庭”这一企业愿景。

Sheet 减保取现
A1: 星盈家两全保险减保测算
A2: 在合同有效期内，投保人可以书面申请减保，减保部分按退保处理， 会造成一定损失，请提醒客户谨慎决策。
A3: ='利益演示-减保'!N1 -> 
A4: 保单 年度末 | B4: 保单 年度末年龄 | C4: 减保领取金额 | D4: 累计 减保金额 | E4: 减保后 现金价值 | F4: 减保后 满期金 | G4: 减保后 身故保险金
A5: ='利益演示-减保'!B21 -> 1 | B5: ='利益演示-减保'!D21 -> 41 | D5: =IF(B5>99,"",SUM($C$5:C5)) -> 0 | E5: ='利益演示-减保'!Q21 -> 245159.7 | F5: ='利益演示-减保'!R21 -> 0 | G5: ='利益演示-减保'!S21 -> 1072000
A6: ='利益演示-减保'!B22 -> 2 | B6: ='利益演示-减保'!D22 -> 42 | D6: =IF(B6>99,"",SUM($C$5:C6)) -> 0 | E6: ='利益演示-减保'!Q22 -> 591161.1 | F6: ='利益演示-减保'!R22 -> 0 | G6: ='利益演示-减保'!S22 -> 1876000
A7: ='利益演示-减保'!B23 -> 3 | B7: ='利益演示-减保'!D23 -> 43 | D7: =IF(B7>99,"",SUM($C$5:C7)) -> 0 | E7: ='利益演示-减保'!Q23 -> 990635.2 | F7: ='利益演示-减保'!R23 -> 0 | G7: ='利益演示-减保'!S23 -> 2814000
A8: ='利益演示-减保'!B24 -> 4 | B8: ='利益演示-减保'!D24 -> 44 | D8: =IF(B8>99,"",SUM($C$5:C8)) -> 0 | E8: ='利益演示-减保'!Q24 -> 1042948.8 | F8: ='利益演示-减保'!R24 -> 0 | G8: ='利益演示-减保'!S24 -> 2814000
A9: ='利益演示-减保'!B25 -> 5 | B9: ='利益演示-减保'!D25 -> 45 | D9: =IF(B9>99,"",SUM($C$5:C9)) -> 0 | E9: ='利益演示-减保'!Q25 -> 1098022.8 | F9: ='利益演示-减保'!R25 -> 0 | G9: ='利益演示-减保'!S25 -> 2814000
A10: ='利益演示-减保'!B26 -> 6 | B10: ='利益演示-减保'!D26 -> 46 | D10: =IF(B10>99,"",SUM($C$5:C10)) -> 0 | E10: ='利益演示-减保'!Q26 -> 1743118.9 | F10: ='利益演示-减保'!R26 -> 0 | G10: ='利益演示-减保'!S26 -> 2814000
A11: ='利益演示-减保'!B27 -> 7 | B11: ='利益演示-减保'!D27 -> 47 | D11: =IF(B11>99,"",SUM($C$5:C11)) -> 0 | E11: ='利益演示-减保'!Q27 -> 2411122.3 | F11: ='利益演示-减保'!R27 -> 0 | G11: ='利益演示-减保'!S27 -> 2814000
A12: ='利益演示-减保'!B28 -> 8 | B12: ='利益演示-减保'!D28 -> 48 | D12: =IF(B12>99,"",SUM($C$5:C12)) -> 0 | E12: ='利益演示-减保'!Q28 -> 2494899.1 | F12: ='利益演示-减保'!R28 -> 0 | G12: ='利益演示-减保'!S28 -> 2814000
A13: ='利益演示-减保'!B29 -> 9 | B13: ='利益演示-减保'!D29 -> 49 | D13: =IF(B13>99,"",SUM($C$5:C13)) -> 0 | E13: ='利益演示-减保'!Q29 -> 2581717.7 | F13: ='利益演示-减保'!R29 -> 0 | G13: ='利益演示-减保'!S29 -> 2814000
A14: ='利益演示-减保'!B30 -> 10 | B14: ='利益演示-减保'!D30 -> 50 | C14: 2000 | D14: =IF(B14>99,"",SUM($C$5:C14)) -> 2000 | E14: ='利益演示-减保'!Q30 -> 2669705.4 | F14: ='利益演示-减保'!R30 -> 0 | G14: ='利益演示-减保'!S30 -> 2811893.48
A15: ='利益演示-减保'!B31 -> 11 | B15: ='利益演示-减保'!D31 -> 51 | D15: =IF(B15>99,"",SUM($C$5:C15)) -> 2000 | E15: ='利益演示-减保'!Q31 -> 2762939.75 | F15: ='利益演示-减保'!R31 -> 0 | G15: ='利益演示-减保'!S31 -> 2811893.48
A16: ='利益演示-减保'!B32 -> 12 | B16: ='利益演示-减保'!D32 -> 52 | D16: =IF(B16>99,"",SUM($C$5:C16)) -> 2000 | E16: ='利益演示-减保'!Q32 -> 2859642.11 | F16: ='利益演示-减保'!R32 -> 0 | G16: ='利益演示-减保'!S32 -> 2859642.11
A17: ='利益演示-减保'!B33 -> 13 | B17: ='利益演示-减保'!D33 -> 53 | D17: =IF(B17>99,"",SUM($C$5:C17)) -> 2000 | E17: ='利益演示-减保'!Q33 -> 2959725.43 | F17: ='利益演示-减保'!R33 -> 0 | G17: ='利益演示-减保'!S33 -> 2959725.43
A18: ='利益演示-减保'!B34 -> 14 | B18: ='利益演示-减保'!D34 -> 54 | D18: =IF(B18>99,"",SUM($C$5:C18)) -> 2000 | E18: ='利益演示-减保'!Q34 -> 3063316.93 | F18: ='利益演示-减保'!R34 -> 0 | G18: ='利益演示-减保'!S34 -> 3063316.93
A19: ='利益演示-减保'!B35 -> 15 | B19: ='利益演示-减保'!D35 -> 55 | D19: =IF(B19>99,"",SUM($C$5:C19)) -> 2000 | E19: ='利益演示-减保'!Q35 -> 3170530.41 | F19: ='利益演示-减保'!R35 -> 0 | G19: ='利益演示-减保'!S35 -> 3170530.41
A20: ='利益演示-减保'!B36 -> 16 | B20: ='利益演示-减保'!D36 -> 56 | D20: =IF(B20>99,"",SUM($C$5:C20)) -> 2000 | E20: ='利益演示-减保'!Q36 -> 3281499.78 | F20: ='利益演示-减保'!R36 -> 0 | G20: ='利益演示-减保'!S36 -> 3281499.78
A21: ='利益演示-减保'!B37 -> 17 | B21: ='利益演示-减保'!D37 -> 57 | D21: =IF(B21>99,"",SUM($C$5:C21)) -> 2000 | E21: ='利益演示-减保'!Q37 -> 3396352.24 | F21: ='利益演示-减保'!R37 -> 0 | G21: ='利益演示-减保'!S37 -> 3396352.24
A22: ='利益演示-减保'!B38 -> 18 | B22: ='利益演示-减保'!D38 -> 58 | D22: =IF(B22>99,"",SUM($C$5:C22)) -> 2000 | E22: ='利益演示-减保'!Q38 -> 3515221.68 | F22: ='利益演示-减保'!R38 -> 0 | G22: ='利益演示-减保'!S38 -> 3515221.68
A23: ='利益演示-减保'!B39 -> 19 | B23: ='利益演示-减保'!D39 -> 59 | D23: =IF(B23>99,"",SUM($C$5:C23)) -> 2000 | E23: ='利益演示-减保'!Q39 -> 3638248.72 | F23: ='利益演示-减保'!R39 -> 0 | G23: ='利益演示-减保'!S39 -> 3638248.72
A24: ='利益演示-减保'!B40 -> 20 | B24: ='利益演示-减保'!D40 -> 60 | D24: =IF(B24>99,"",SUM($C$5:C24)) -> 2000 | E24: ='利益演示-减保'!Q40 -> 3765587.32 | F24: ='利益演示-减保'!R40 -> 0 | G24: ='利益演示-减保'!S40 -> 3765587.32
A25: ='利益演示-减保'!B41 -> 21 | B25: ='利益演示-减保'!D41 -> 61 | D25: =IF(B25>99,"",SUM($C$5:C25)) -> 2000 | E25: ='利益演示-减保'!Q41 -> 3897378.09 | F25: ='利益演示-减保'!R41 -> 0 | G25: ='利益演示-减保'!S41 -> 3897378.09
A26: ='利益演示-减保'!B42 -> 22 | B26: ='利益演示-减保'!D42 -> 62 | D26: =IF(B26>99,"",SUM($C$5:C26)) -> 2000 | E26: ='利益演示-减保'!Q42 -> 4033788.4 | F26: ='利益演示-减保'!R42 -> 0 | G26: ='利益演示-减保'!S42 -> 4033788.4
A27: ='利益演示-减保'!B43 -> 23 | B27: ='利益演示-减保'!D43 -> 63 | D27: =IF(B27>99,"",SUM($C$5:C27)) -> 2000 | E27: ='利益演示-减保'!Q43 -> 4041280.09 | F27: ='利益演示-减保'!R43 -> 0 | G27: ='利益演示-减保'!S43 -> 4041280.09
A28: ='利益演示-减保'!B44 -> 24 | B28: ='利益演示-减保'!D44 -> 64 | D28: =IF(B28>99,"",SUM($C$5:C28)) -> 2000 | E28: ='利益演示-减保'!Q44 -> 4183113.34 | F28: ='利益演示-减保'!R44 -> 0 | G28: ='利益演示-减保'!S44 -> 4183113.34
A29: ='利益演示-减保'!B45 -> 25 | B29: ='利益演示-减保'!D45 -> 65 | D29: =IF(B29>99,"",SUM($C$5:C29)) -> 2000 | E29: ='利益演示-减保'!Q45 -> 4330356.13 | F29: ='利益演示-减保'!R45 -> 0 | G29: ='利益演示-减保'!S45 -> 4330356.13
A30: ='利益演示-减保'!B46 -> 26 | B30: ='利益演示-减保'!D46 -> 66 | D30: =IF(B30>99,"",SUM($C$5:C30)) -> 2000 | E30: ='利益演示-减保'!Q46 -> 4482854.49 | F30: ='利益演示-减保'!R46 -> 0 | G30: ='利益演示-减保'!S46 -> 4482854.49
A31: ='利益演示-减保'!B47 -> 27 | B31: ='利益演示-减保'!D47 -> 67 | D31: =IF(B31>99,"",SUM($C$5:C31)) -> 2000 | E31: ='利益演示-减保'!Q47 -> 4640809.25 | F31: ='利益演示-减保'!R47 -> 0 | G31: ='利益演示-减保'!S47 -> 4640809.25
A32: ='利益演示-减保'!B48 -> 28 | B32: ='利益演示-减保'!D48 -> 68 | D32: =IF(B32>99,"",SUM($C$5:C32)) -> 2000 | E32: ='利益演示-减保'!Q48 -> 4804427.98 | F32: ='利益演示-减保'!R48 -> 0 | G32: ='利益演示-减保'!S48 -> 4804427.98
A33: ='利益演示-减保'!B49 -> 29 | B33: ='利益演示-减保'!D49 -> 69 | D33: =IF(B33>99,"",SUM($C$5:C33)) -> 2000 | E33: ='利益演示-减保'!Q49 -> 4973944.99 | F33: ='利益演示-减保'!R49 -> 0 | G33: ='利益演示-减保'!S49 -> 4973944.99
A34: ='利益演示-减保'!B50 -> 30 | B34: ='利益演示-减保'!D50 -> 70 | D34: =IF(B34>99,"",SUM($C$5:C34)) -> 2000 | E34: ='利益演示-减保'!Q50 -> 5149587.91 | F34: ='利益演示-减保'!R50 -> 0 | G34: ='利益演示-减保'!S50 -> 5149587.91
A35: ='利益演示-减保'!B51 -> 31 | B35: ='利益演示-减保'!D51 -> 71 | D35: =IF(B35>99,"",SUM($C$5:C35)) -> 2000 | E35: ='利益演示-减保'!Q51 -> 5331624.53 | F35: ='利益演示-减保'!R51 -> 0 | G35: ='利益演示-减保'!S51 -> 5331624.53
A36: ='利益演示-减保'!B52 -> 32 | B36: ='利益演示-减保'!D52 -> 72 | D36: =IF(B36>99,"",SUM($C$5:C36)) -> 2000 | E36: ='利益演示-减保'!Q52 -> 5520315.98 | F36: ='利益演示-减保'!R52 -> 0 | G36: ='利益演示-减保'!S52 -> 5520315.98
A37: ='利益演示-减保'!B53 -> 33 | B37: ='利益演示-减保'!D53 -> 73 | D37: =IF(B37>99,"",SUM($C$5:C37)) -> 2000 | E37: ='利益演示-减保'!Q53 -> 5715990.29 | F37: ='利益演示-减保'!R53 -> 0 | G37: ='利益演示-减保'!S53 -> 5715990.29
A38: ='利益演示-减保'!B54 -> 34 | B38: ='利益演示-减保'!D54 -> 74 | D38: =IF(B38>99,"",SUM($C$5:C38)) -> 2000 | E38: ='利益演示-减保'!Q54 -> 5918975.52 | F38: ='利益演示-减保'!R54 -> 0 | G38: ='利益演示-减保'!S54 -> 5918975.52
A39: ='利益演示-减保'!B55 -> 35 | B39: ='利益演示-减保'!D55 -> 75 | D39: =IF(B39>99,"",SUM($C$5:C39)) -> 2000 | E39: ='利益演示-减保'!Q55 -> 6129659.99 | F39: ='利益演示-减保'!R55 -> 0 | G39: ='利益演示-减保'!S55 -> 6129659.99
A40: ='利益演示-减保'!B56 -> 36 | B40: ='利益演示-减保'!D56 -> 76 | D40: =IF(B40>99,"",SUM($C$5:C40)) -> 2000 | E40: ='利益演示-减保'!Q56 -> 6348465.47 | F40: ='利益演示-减保'!R56 -> 0 | G40: ='利益演示-减保'!S56 -> 6348465.47
A41: ='利益演示-减保'!B57 -> 37 | B41: ='利益演示-减保'!D57 -> 77 | D41: =IF(B41>99,"",SUM($C$5:C41)) -> 2000 | E41: ='利益演示-减保'!Q57 -> 6575867.31 | F41: ='利益演示-减保'!R57 -> 0 | G41: ='利益演示-减保'!S57 -> 6575867.31
A42: ='利益演示-减保'!B58 -> 38 | B42: ='利益演示-减保'!D58 -> 78 | D42: =IF(B42>99,"",SUM($C$5:C42)) -> 2000 | E42: ='利益演示-减保'!Q58 -> 6812374.33 | F42: ='利益演示-减保'!R58 -> 0 | G42: ='利益演示-减保'!S58 -> 6812374.33
A43: ='利益演示-减保'!B59 -> 39 | B43: ='利益演示-减保'!D59 -> 79 | D43: =IF(B43>99,"",SUM($C$5:C43)) -> 2000 | E43: ='利益演示-减保'!Q59 -> 7058548.91 | F43: ='利益演示-减保'!R59 -> 0 | G43: ='利益演示-减保'!S59 -> 7058548.91
A44: ='利益演示-减保'!B60 -> 40 | B44: ='利益演示-减保'!D60 -> 80 | D44: =IF(B44>99,"",SUM($C$5:C44)) -> 2000 | E44: ='利益演示-减保'!Q60 -> 7314993.6 | F44: ='利益演示-减保'!R60 -> 0 | G44: ='利益演示-减保'!S60 -> 7314993.6
A45: ='利益演示-减保'!B61 -> 41 | B45: ='利益演示-减保'!D61 -> 81 | D45: =IF(B45>99,"",SUM($C$5:C45)) -> 2000 | E45: ='利益演示-减保'!Q61 -> 7582337.72 | F45: ='利益演示-减保'!R61 -> 0 | G45: ='利益演示-减保'!S61 -> 7582337.72
A46: ='利益演示-减保'!B62 -> 42 | B46: ='利益演示-减保'!D62 -> 82 | D46: =IF(B46>99,"",SUM($C$5:C46)) -> 2000 | E46: ='利益演示-减保'!Q62 -> 7861270.86 | F46: ='利益演示-减保'!R62 -> 0 | G46: ='利益演示-减保'!S62 -> 7861270.86
A47: ='利益演示-减保'!B63 -> 43 | B47: ='利益演示-减保'!D63 -> 83 | D47: =IF(B47>99,"",SUM($C$5:C47)) -> 2000 | E47: ='利益演示-减保'!Q63 -> 8152516.07 | F47: ='利益演示-减保'!R63 -> 0 | G47: ='利益演示-减保'!S63 -> 8152516.07
A48: ='利益演示-减保'!B64 -> 44 | B48: ='利益演示-减保'!D64 -> 84 | D48: =IF(B48>99,"",SUM($C$5:C48)) -> 2000 | E48: ='利益演示-减保'!Q64 -> 8456849.98 | F48: ='利益演示-减保'!R64 -> 0 | G48: ='利益演示-减保'!S64 -> 8456849.98
A49: ='利益演示-减保'!B65 -> 45 | B49: ='利益演示-减保'!D65 -> 85 | D49: =IF(B49>99,"",SUM($C$5:C49)) -> 2000 | E49: ='利益演示-减保'!Q65 -> 8789122.06 | F49: ='利益演示-减保'!R65 -> 0 | G49: ='利益演示-减保'!S65 -> 8789122.06
A50: ='利益演示-减保'!B66 -> 46 | B50: ='利益演示-减保'!D66 -> 86 | D50: =IF(B50>99,"",SUM($C$5:C50)) -> 2000 | E50: ='利益演示-减保'!Q66 -> 9148395.01 | F50: ='利益演示-减保'!R66 -> 0 | G50: ='利益演示-减保'!S66 -> 9148395.01
A51: ='利益演示-减保'!B67 -> 47 | B51: ='利益演示-减保'!D67 -> 87 | D51: =IF(B51>99,"",SUM($C$5:C51)) -> 2000 | E51: ='利益演示-减保'!Q67 -> 9544845.21 | F51: ='利益演示-减保'!R67 -> 0 | G51: ='利益演示-减保'!S67 -> 9544845.21
A52: ='利益演示-减保'!B68 -> 48 | B52: ='利益演示-减保'!D68 -> 88 | D52: =IF(B52>99,"",SUM($C$5:C52)) -> 2000 | E52: ='利益演示-减保'!Q68 -> 9995203.43 | F52: ='利益演示-减保'!R68 -> 0 | G52: ='利益演示-减保'!S68 -> 9995203.43
A53: ='利益演示-减保'!B69 -> 49 | B53: ='利益演示-减保'!D69 -> 89 | D53: =IF(B53>99,"",SUM($C$5:C53)) -> 2000 | E53: ='利益演示-减保'!Q69 -> 10523189.99 | F53: ='利益演示-减保'!R69 -> 0 | G53: ='利益演示-减保'!S69 -> 10523189.99
A54: ='利益演示-减保'!B70 -> 50 | B54: ='利益演示-减保'!D70 -> 90 | D54: =IF(B54>99,"",SUM($C$5:C54)) -> 2000 | E54: ='利益演示-减保'!Q70 -> 10891286.93 | F54: ='利益演示-减保'!R70 -> 0 | G54: ='利益演示-减保'!S70 -> 10891286.93
A55: ='利益演示-减保'!B71 -> 51 | B55: ='利益演示-减保'!D71 -> 91 | D55: =IF(B55>99,"",SUM($C$5:C55)) -> 2000 | E55: ='利益演示-减保'!Q71 -> 11272238.24 | F55: ='利益演示-减保'!R71 -> 0 | G55: ='利益演示-减保'!S71 -> 11272238.24
A56: ='利益演示-减保'!B72 -> 52 | B56: ='利益演示-减保'!D72 -> 92 | D56: =IF(B56>99,"",SUM($C$5:C56)) -> 2000 | E56: ='利益演示-减保'!Q72 -> 11666492.49 | F56: ='利益演示-减保'!R72 -> 0 | G56: ='利益演示-减保'!S72 -> 11666492.49
A57: ='利益演示-减保'!B73 -> 53 | B57: ='利益演示-减保'!D73 -> 93 | D57: =IF(B57>99,"",SUM($C$5:C57)) -> 2000 | E57: ='利益演示-减保'!Q73 -> 12074504.93 | F57: ='利益演示-减保'!R73 -> 0 | G57: ='利益演示-减保'!S73 -> 12074504.93
A58: ='利益演示-减保'!B74 -> 54 | B58: ='利益演示-减保'!D74 -> 94 | D58: =IF(B58>99,"",SUM($C$5:C58)) -> 2000 | E58: ='利益演示-减保'!Q74 -> 12496764.29 | F58: ='利益演示-减保'!R74 -> 0 | G58: ='利益演示-减保'!S74 -> 12496764.29
A59: ='利益演示-减保'!B75 -> 55 | B59: ='利益演示-减保'!D75 -> 95 | D59: =IF(B59>99,"",SUM($C$5:C59)) -> 2000 | E59: ='利益演示-减保'!Q75 -> 12933752.63 | F59: ='利益演示-减保'!R75 -> 0 | G59: ='利益演示-减保'!S75 -> 12933752.63
A60: ='利益演示-减保'!B76 -> 56 | B60: ='利益演示-减保'!D76 -> 96 | D60: =IF(B60>99,"",SUM($C$5:C60)) -> 2000 | E60: ='利益演示-减保'!Q76 -> 13385985.44 | F60: ='利益演示-减保'!R76 -> 0 | G60: ='利益演示-减保'!S76 -> 13385985.44
A61: ='利益演示-减保'!B77 -> 57 | B61: ='利益演示-减保'!D77 -> 97 | D61: =IF(B61>99,"",SUM($C$5:C61)) -> 2000 | E61: ='利益演示-减保'!Q77 -> 13853991.63 | F61: ='利益演示-减保'!R77 -> 0 | G61: ='利益演示-减保'!S77 -> 13853991.63
A62: ='利益演示-减保'!B78 -> 58 | B62: ='利益演示-减保'!D78 -> 98 | D62: =IF(B62>99,"",SUM($C$5:C62)) -> 2000 | E62: ='利益演示-减保'!Q78 -> 14338306.81 | F62: ='利益演示-减保'!R78 -> 0 | G62: ='利益演示-减保'!S78 -> 14338306.81
A63: ='利益演示-减保'!B79 -> 59 | B63: ='利益演示-减保'!D79 -> 99 | D63: =IF(B63>99,"",SUM($C$5:C63)) -> 2000 | E63: ='利益演示-减保'!Q79 -> 14839506.74 | F63: ='利益演示-减保'!R79 -> 14839520.01 | G63: ='利益演示-减保'!S79 -> 14839506.74
A64: ='利益演示-减保'!B80 ->  | B64: ='利益演示-减保'!D80 ->  | D64: =IF(B64>99,"",SUM($C$5:C64)) ->  | E64: ='利益演示-减保'!Q80 ->  | F64: ='利益演示-减保'!R80 ->  | G64: ='利益演示-减保'!S80 -> 
A65: ='利益演示-减保'!B81 ->  | B65: ='利益演示-减保'!D81 ->  | D65: =IF(B65>99,"",SUM($C$5:C65)) ->  | E65: ='利益演示-减保'!Q81 ->  | F65: ='利益演示-减保'!R81 ->  | G65: ='利益演示-减保'!S81 -> 
A66: ='利益演示-减保'!B82 ->  | B66: ='利益演示-减保'!D82 ->  | D66: =IF(B66>99,"",SUM($C$5:C66)) ->  | E66: ='利益演示-减保'!Q82 ->  | F66: ='利益演示-减保'!R82 ->  | G66: ='利益演示-减保'!S82 -> 
A67: ='利益演示-减保'!B83 ->  | B67: ='利益演示-减保'!D83 ->  | D67: =IF(B67>99,"",SUM($C$5:C67)) ->  | E67: ='利益演示-减保'!Q83 ->  | F67: ='利益演示-减保'!R83 ->  | G67: ='利益演示-减保'!S83 -> 
A68: ='利益演示-减保'!B84 ->  | B68: ='利益演示-减保'!D84 ->  | D68: =IF(B68>99,"",SUM($C$5:C68)) ->  | E68: ='利益演示-减保'!Q84 ->  | F68: ='利益演示-减保'!R84 ->  | G68: ='利益演示-减保'!S84 -> 
A69: ='利益演示-减保'!B85 ->  | B69: ='利益演示-减保'!D85 ->  | D69: =IF(B69>99,"",SUM($C$5:C69)) ->  | E69: ='利益演示-减保'!Q85 ->  | F69: ='利益演示-减保'!R85 ->  | G69: ='利益演示-减保'!S85 -> 
A70: ='利益演示-减保'!B86 ->  | B70: ='利益演示-减保'!D86 ->  | D70: =IF(B70>99,"",SUM($C$5:C70)) ->  | E70: ='利益演示-减保'!Q86 ->  | F70: ='利益演示-减保'!R86 ->  | G70: ='利益演示-减保'!S86 -> 
A71: ='利益演示-减保'!B87 ->  | B71: ='利益演示-减保'!D87 ->  | D71: =IF(B71>99,"",SUM($C$5:C71)) ->  | E71: ='利益演示-减保'!Q87 ->  | F71: ='利益演示-减保'!R87 ->  | G71: ='利益演示-减保'!S87 -> 
A72: ='利益演示-减保'!B88 ->  | B72: ='利益演示-减保'!D88 ->  | D72: =IF(B72>99,"",SUM($C$5:C72)) ->  | E72: ='利益演示-减保'!Q88 ->  | F72: ='利益演示-减保'!R88 ->  | G72: ='利益演示-减保'!S88 -> 
A73: ='利益演示-减保'!B89 ->  | B73: ='利益演示-减保'!D89 ->  | D73: =IF(B73>99,"",SUM($C$5:C73)) ->  | E73: ='利益演示-减保'!Q89 ->  | F73: ='利益演示-减保'!R89 ->  | G73: ='利益演示-减保'!S89 -> 
A74: ='利益演示-减保'!B90 ->  | B74: ='利益演示-减保'!D90 ->  | D74: =IF(B74>99,"",SUM($C$5:C74)) ->  | E74: ='利益演示-减保'!Q90 ->  | F74: ='利益演示-减保'!R90 ->  | G74: ='利益演示-减保'!S90 -> 
A75: ='利益演示-减保'!B91 ->  | B75: ='利益演示-减保'!D91 ->  | D75: =IF(B75>99,"",SUM($C$5:C75)) ->  | E75: ='利益演示-减保'!Q91 ->  | F75: ='利益演示-减保'!R91 ->  | G75: ='利益演示-减保'!S91 -> 
A76: ='利益演示-减保'!B92 ->  | B76: ='利益演示-减保'!D92 ->  | D76: =IF(B76>99,"",SUM($C$5:C76)) ->  | E76: ='利益演示-减保'!Q92 ->  | F76: ='利益演示-减保'!R92 ->  | G76: ='利益演示-减保'!S92 -> 
A77: ='利益演示-减保'!B93 ->  | B77: ='利益演示-减保'!D93 ->  | D77: =IF(B77>99,"",SUM($C$5:C77)) ->  | E77: ='利益演示-减保'!Q93 ->  | F77: ='利益演示-减保'!R93 ->  | G77: ='利益演示-减保'!S93 -> 
A78: ='利益演示-减保'!B94 ->  | B78: ='利益演示-减保'!D94 ->  | D78: =IF(B78>99,"",SUM($C$5:C78)) ->  | E78: ='利益演示-减保'!Q94 ->  | F78: ='利益演示-减保'!R94 ->  | G78: ='利益演示-减保'!S94 -> 
A79: ='利益演示-减保'!B95 ->  | B79: ='利益演示-减保'!D95 ->  | D79: =IF(B79>99,"",SUM($C$5:C79)) ->  | E79: ='利益演示-减保'!Q95 ->  | F79: ='利益演示-减保'!R95 ->  | G79: ='利益演示-减保'!S95 -> 
A80: ='利益演示-减保'!B96 ->  | B80: ='利益演示-减保'!D96 ->  | D80: =IF(B80>99,"",SUM($C$5:C80)) ->  | E80: ='利益演示-减保'!Q96 ->  | F80: ='利益演示-减保'!R96 ->  | G80: ='利益演示-减保'!S96 -> 
A81: ='利益演示-减保'!B97 ->  | B81: ='利益演示-减保'!D97 ->  | D81: =IF(B81>99,"",SUM($C$5:C81)) ->  | E81: ='利益演示-减保'!Q97 ->  | F81: ='利益演示-减保'!R97 ->  | G81: ='利益演示-减保'!S97 -> 
A82: ='利益演示-减保'!B98 ->  | B82: ='利益演示-减保'!D98 ->  | D82: =IF(B82>99,"",SUM($C$5:C82)) ->  | E82: ='利益演示-减保'!Q98 ->  | F82: ='利益演示-减保'!R98 ->  | G82: ='利益演示-减保'!S98 -> 
A83: ='利益演示-减保'!B99 ->  | B83: ='利益演示-减保'!D99 ->  | D83: =IF(B83>99,"",SUM($C$5:C83)) ->  | E83: ='利益演示-减保'!Q99 ->  | F83: ='利益演示-减保'!R99 ->  | G83: ='利益演示-减保'!S99 -> 
A84: ='利益演示-减保'!B100 ->  | B84: ='利益演示-减保'!D100 ->  | D84: =IF(B84>99,"",SUM($C$5:C84)) ->  | E84: ='利益演示-减保'!Q100 ->  | F84: ='利益演示-减保'!R100 ->  | G84: ='利益演示-减保'!S100 -> 
A85: ='利益演示-减保'!B101 ->  | B85: ='利益演示-减保'!D101 ->  | D85: =IF(B85>99,"",SUM($C$5:C85)) ->  | E85: ='利益演示-减保'!Q101 ->  | F85: ='利益演示-减保'!R101 ->  | G85: ='利益演示-减保'!S101 -> 
A86: ='利益演示-减保'!B102 ->  | B86: ='利益演示-减保'!D102 ->  | D86: =IF(B86>99,"",SUM($C$5:C86)) ->  | E86: ='利益演示-减保'!Q102 ->  | F86: ='利益演示-减保'!R102 ->  | G86: ='利益演示-减保'!S102 -> 
A87: ='利益演示-减保'!B103 ->  | B87: ='利益演示-减保'!D103 ->  | D87: =IF(B87>99,"",SUM($C$5:C87)) ->  | E87: ='利益演示-减保'!Q103 ->  | F87: ='利益演示-减保'!R103 ->  | G87: ='利益演示-减保'!S103 -> 
A88: ='利益演示-减保'!B104 ->  | B88: ='利益演示-减保'!D104 ->  | D88: =IF(B88>99,"",SUM($C$5:C88)) ->  | E88: ='利益演示-减保'!Q104 ->  | F88: ='利益演示-减保'!R104 ->  | G88: ='利益演示-减保'!S104 -> 
A89: ='利益演示-减保'!B105 ->  | B89: ='利益演示-减保'!D105 ->  | D89: =IF(B89>99,"",SUM($C$5:C89)) ->  | E89: ='利益演示-减保'!Q105 ->  | F89: ='利益演示-减保'!R105 ->  | G89: ='利益演示-减保'!S105 -> 
A90: ='利益演示-减保'!B106 ->  | B90: ='利益演示-减保'!D106 ->  | D90: =IF(B90>99,"",SUM($C$5:C90)) ->  | E90: ='利益演示-减保'!Q106 ->  | F90: ='利益演示-减保'!R106 ->  | G90: ='利益演示-减保'!S106 -> 
A91: ='利益演示-减保'!B107 ->  | B91: ='利益演示-减保'!D107 ->  | D91: =IF(B91>99,"",SUM($C$5:C91)) ->  | E91: ='利益演示-减保'!Q107 ->  | F91: ='利益演示-减保'!R107 ->  | G91: ='利益演示-减保'!S107 -> 
A92: ='利益演示-减保'!B108 ->  | B92: ='利益演示-减保'!D108 ->  | D92: =IF(B92>99,"",SUM($C$5:C92)) ->  | E92: ='利益演示-减保'!Q108 ->  | F92: ='利益演示-减保'!R108 ->  | G92: ='利益演示-减保'!S108 -> 
A93: ='利益演示-减保'!B109 ->  | B93: ='利益演示-减保'!D109 ->  | D93: =IF(B93>99,"",SUM($C$5:C93)) ->  | E93: ='利益演示-减保'!Q109 ->  | F93: ='利益演示-减保'!R109 ->  | G93: ='利益演示-减保'!S109 -> 
A94: ='利益演示-减保'!B110 ->  | B94: ='利益演示-减保'!D110 ->  | D94: =IF(B94>99,"",SUM($C$5:C94)) ->  | E94: ='利益演示-减保'!Q110 ->  | F94: ='利益演示-减保'!R110 ->  | G94: ='利益演示-减保'!S110 -> 
A95: ='利益演示-减保'!B111 ->  | B95: ='利益演示-减保'!D111 ->  | D95: =IF(B95>99,"",SUM($C$5:C95)) ->  | E95: ='利益演示-减保'!Q111 ->  | F95: ='利益演示-减保'!R111 ->  | G95: ='利益演示-减保'!S111 -> 
A96: ='利益演示-减保'!B112 ->  | B96: ='利益演示-减保'!D112 ->  | D96: =IF(B96>99,"",SUM($C$5:C96)) ->  | E96: ='利益演示-减保'!Q112 ->  | F96: ='利益演示-减保'!R112 ->  | G96: ='利益演示-减保'!S112 -> 
A97: ='利益演示-减保'!B113 ->  | B97: ='利益演示-减保'!D113 ->  | D97: =IF(B97>99,"",SUM($C$5:C97)) ->  | E97: ='利益演示-减保'!Q113 ->  | F97: ='利益演示-减保'!R113 ->  | G97: ='利益演示-减保'!S113 -> 
A98: ='利益演示-减保'!B114 ->  | B98: ='利益演示-减保'!D114 ->  | D98: =IF(B98>99,"",SUM($C$5:C98)) ->  | E98: ='利益演示-减保'!Q114 ->  | F98: ='利益演示-减保'!R114 ->  | G98: ='利益演示-减保'!S114 -> 
A99: ='利益演示-减保'!B115 ->  | B99: ='利益演示-减保'!D115 ->  | D99: =IF(B99>99,"",SUM($C$5:C99)) ->  | E99: ='利益演示-减保'!Q115 ->  | F99: ='利益演示-减保'!R115 ->  | G99: ='利益演示-减保'!S115 -> 
A100: ='利益演示-减保'!B116 ->  | B100: ='利益演示-减保'!D116 ->  | D100: =IF(B100>99,"",SUM($C$5:C100)) ->  | E100: ='利益演示-减保'!Q116 ->  | F100: ='利益演示-减保'!R116 ->  | G100: ='利益演示-减保'!S116 -> 
A101: ='利益演示-减保'!B117 ->  | B101: ='利益演示-减保'!D117 ->  | D101: =IF(B101>99,"",SUM($C$5:C101)) ->  | E101: ='利益演示-减保'!Q117 ->  | F101: ='利益演示-减保'!R117 ->  | G101: ='利益演示-减保'!S117 -> 
A102: ='利益演示-减保'!B118 ->  | B102: ='利益演示-减保'!D118 ->  | D102: =IF(B102>99,"",SUM($C$5:C102)) ->  | E102: ='利益演示-减保'!Q118 ->  | F102: ='利益演示-减保'!R118 ->  | G102: ='利益演示-减保'!S118 -> 
A103: ='利益演示-减保'!B119 ->  | B103: ='利益演示-减保'!D119 ->  | D103: =IF(B103>99,"",SUM($C$5:C103)) ->  | E103: ='利益演示-减保'!Q119 ->  | F103: ='利益演示-减保'!R119 ->  | G103: ='利益演示-减保'!S119 -> 
A104: ='利益演示-减保'!B120 ->  | B104: ='利益演示-减保'!D120 ->  | D104: =IF(B104>99,"",SUM($C$5:C104)) ->  | E104: ='利益演示-减保'!Q120 ->  | F104: ='利益演示-减保'!R120 ->  | G104: ='利益演示-减保'!S120 -> 
A105: ='利益演示-减保'!B121 ->  | B105: ='利益演示-减保'!D121 ->  | D105: =IF(B105>99,"",SUM($C$5:C105)) ->  | E105: ='利益演示-减保'!Q121 ->  | F105: ='利益演示-减保'!R121 ->  | G105: ='利益演示-减保'!S121 -> 
A106: ='利益演示-减保'!B122 ->  | B106: ='利益演示-减保'!D122 ->  | D106: =IF(B106>99,"",SUM($C$5:C106)) ->  | E106: ='利益演示-减保'!Q122 ->  | F106: ='利益演示-减保'!R122 ->  | G106: ='利益演示-减保'!S122 -> 
A107: ='利益演示-减保'!B123 ->  | B107: ='利益演示-减保'!D123 ->  | D107: =IF(B107>99,"",SUM($C$5:C107)) ->  | E107: ='利益演示-减保'!Q123 ->  | F107: ='利益演示-减保'!R123 ->  | G107: ='利益演示-减保'!S123 -> 
A108: ='利益演示-减保'!B124 ->  | B108: ='利益演示-减保'!D124 ->  | D108: =IF(B108>99,"",SUM($C$5:C108)) ->  | E108: ='利益演示-减保'!Q124 ->  | F108: ='利益演示-减保'!R124 ->  | G108: ='利益演示-减保'!S124 -> 
A109: ='利益演示-减保'!B125 ->  | B109: ='利益演示-减保'!D125 ->  | D109: =IF(B109>99,"",SUM($C$5:C109)) ->  | E109: ='利益演示-减保'!Q125 ->  | F109: ='利益演示-减保'!R125 ->  | G109: ='利益演示-减保'!S125 -> 
A110: 在本合同有效期内，且犹豫期过后，投保人可以申请减少基本保险金额，经公司审核同意后，可以减少基本保险金额，但需符合下列规定： 1. 保险合同生效满 5 年； 2. 每年减少的基本保险金额对应的现金价值不得超过累计已交保费的 20% ； 3. 减少后的基本保险金额不得低于减保当时我公司规定的最低基本保险金额的要求。 基本保险金额减少的部分视为退保，我们将给付基本保险金额减少部分对应的现金价值。

Sheet 现金价值展示页
A1: =C2 -> 复星星 | B1: =IF(I2="男","先生","女士") -> 先生 | C1: 星盈家利益演示
A2: 被保险人姓名： | C2: =填写页面!D8 -> 复星星 | H2: 性 别： | I2: =填写页面!L8 -> 男 | K2: 投保年龄： | L2: =填写页面!H8 -> 40
A3: 保单 年度末 | B3: 年度末 年龄 | C3: 当期 保险费 | D3: 累计 保险费 | E3: 基本保额按3.5%递增的数值 | F3: 满期金 | G3: 现金价值 | H3: 身故 保险金 | I3: 本年度末现金价值较上一年末增加额度 | J3: 减保 领取金额 | K3: 累计 减保金额 | L3: 减保后 现金价值 | M3: 减保后 满期金 | N3: 减保后 身故保险金
A4: ='利益演示-加保'!B20 -> 1 | B4: ='利益演示-加保'!D20 -> 41 | C4: ='利益演示-加保'!E20 -> 670000 | D4: ='利益演示-加保'!G20 -> 670000 | E4: ='利益演示-加保'!H20 -> 1682765.3 | F4: ='利益演示-加保'!J20 -> 0 | G4: ='利益演示-加保'!I20 -> 245159.7 | H4: ='利益演示-加保'!K20 -> 1072000 | I4: =G4 -> 245159.7 | J4: =IF(A4="","",'利益演示-减保'!N21) -> 0 | K4: =IF(A4="","",SUM($J$4:J4)) -> 0 | L4: ='利益演示-减保'!Q21 -> 245159.7 | M4: ='利益演示-减保'!R21 -> 0 | N4: ='利益演示-减保'!S21 -> 1072000
A5: ='利益演示-加保'!B21 -> 2 | B5: ='利益演示-加保'!D21 -> 42 | C5: ='利益演示-加保'!E21 -> 670000 | D5: ='利益演示-加保'!G21 -> 1340000 | E5: ='利益演示-加保'!H21 -> 1741662.09 | F5: ='利益演示-加保'!J21 -> 0 | G5: ='利益演示-加保'!I21 -> 591161.1 | H5: ='利益演示-加保'!K21 -> 1876000 | I5: =IF(B5<100,G5-G4,"") -> 346001.4 | J5: =IF(A5="","",'利益演示-减保'!N22) -> 0 | K5: =IF(A5="","",SUM($J$4:J5)) -> 0 | L5: ='利益演示-减保'!Q22 -> 591161.1 | M5: ='利益演示-减保'!R22 -> 0 | N5: ='利益演示-减保'!S22 -> 1876000
A6: ='利益演示-加保'!B22 -> 3 | B6: ='利益演示-加保'!D22 -> 43 | C6: ='利益演示-加保'!E22 -> 670000 | D6: ='利益演示-加保'!G22 -> 2010000 | E6: ='利益演示-加保'!H22 -> 1802620.26 | F6: ='利益演示-加保'!J22 -> 0 | G6: ='利益演示-加保'!I22 -> 990635.2 | H6: ='利益演示-加保'!K22 -> 2814000 | I6: =IF(B6<100,G6-G5,"") -> 399474.1 | J6: =IF(A6="","",'利益演示-减保'!N23) -> 0 | K6: =IF(A6="","",SUM($J$4:J6)) -> 0 | L6: ='利益演示-减保'!Q23 -> 990635.2 | M6: ='利益演示-减保'!R23 -> 0 | N6: ='利益演示-减保'!S23 -> 2814000
A7: ='利益演示-加保'!B23 -> 4 | B7: ='利益演示-加保'!D23 -> 44 | C7: ='利益演示-加保'!E23 -> 0 | D7: ='利益演示-加保'!G23 -> 2010000 | E7: ='利益演示-加保'!H23 -> 1865711.97 | F7: ='利益演示-加保'!J23 -> 0 | G7: ='利益演示-加保'!I23 -> 1042948.8 | H7: ='利益演示-加保'!K23 -> 2814000 | I7: 52313.6 | J7: =IF(A7="","",'利益演示-减保'!N24) -> 0 | K7: =IF(A7="","",SUM($J$4:J7)) -> 0 | L7: ='利益演示-减保'!Q24 -> 1042948.8 | M7: ='利益演示-减保'!R24 -> 0 | N7: ='利益演示-减保'!S24 -> 2814000
A8: ='利益演示-加保'!B24 -> 5 | B8: ='利益演示-加保'!D24 -> 45 | C8: ='利益演示-加保'!E24 -> 0 | D8: ='利益演示-加保'!G24 -> 2010000 | E8: ='利益演示-加保'!H24 -> 1931011.89 | F8: ='利益演示-加保'!J24 -> 0 | G8: ='利益演示-加保'!I24 -> 1098022.8 | H8: ='利益演示-加保'!K24 -> 2814000 | I8: 55074 | J8: =IF(A8="","",'利益演示-减保'!N25) -> 0 | K8: =IF(A8="","",SUM($J$4:J8)) -> 0 | L8: ='利益演示-减保'!Q25 -> 1098022.8 | M8: ='利益演示-减保'!R25 -> 0 | N8: ='利益演示-减保'!S25 -> 2814000
A9: ='利益演示-加保'!B25 -> 6 | B9: ='利益演示-加保'!D25 -> 46 | C9: ='利益演示-加保'!E25 -> 0 | D9: ='利益演示-加保'!G25 -> 2010000 | E9: ='利益演示-加保'!H25 -> 1998597.3 | F9: ='利益演示-加保'!J25 -> 0 | G9: ='利益演示-加保'!I25 -> 1743118.9 | H9: ='利益演示-加保'!K25 -> 2814000 | I9: 645096.1 | J9: =IF(A9="","",'利益演示-减保'!N26) -> 0 | K9: =IF(A9="","",SUM($J$4:J9)) -> 0 | L9: ='利益演示-减保'!Q26 -> 1743118.9 | M9: ='利益演示-减保'!R26 -> 0 | N9: ='利益演示-减保'!S26 -> 2814000
A10: ='利益演示-加保'!B26 -> 7 | B10: ='利益演示-加保'!D26 -> 47 | C10: ='利益演示-加保'!E26 -> 0 | D10: ='利益演示-加保'!G26 -> 2010000 | E10: ='利益演示-加保'!H26 -> 2068548.21 | F10: ='利益演示-加保'!J26 -> 0 | G10: ='利益演示-加保'!I26 -> 2411122.3 | H10: ='利益演示-加保'!K26 -> 2814000 | I10: 668003.4 | J10: =IF(A10="","",'利益演示-减保'!N27) -> 0 | K10: =IF(A10="","",SUM($J$4:J10)) -> 0 | L10: ='利益演示-减保'!Q27 -> 2411122.3 | M10: ='利益演示-减保'!R27 -> 0 | N10: ='利益演示-减保'!S27 -> 2814000
A11: ='利益演示-加保'!B27 -> 8 | B11: ='利益演示-加保'!D27 -> 48 | C11: ='利益演示-加保'!E27 -> 0 | D11: ='利益演示-加保'!G27 -> 2010000 | E11: ='利益演示-加保'!H27 -> 2140947.4 | F11: ='利益演示-加保'!J27 -> 0 | G11: ='利益演示-加保'!I27 -> 2494899.1 | H11: ='利益演示-加保'!K27 -> 2814000 | I11: 83776.8 | J11: =IF(A11="","",'利益演示-减保'!N28) -> 0 | K11: =IF(A11="","",SUM($J$4:J11)) -> 0 | L11: ='利益演示-减保'!Q28 -> 2494899.1 | M11: ='利益演示-减保'!R28 -> 0 | N11: ='利益演示-减保'!S28 -> 2814000
A12: ='利益演示-加保'!B28 -> 9 | B12: ='利益演示-加保'!D28 -> 49 | C12: ='利益演示-加保'!E28 -> 0 | D12: ='利益演示-加保'!G28 -> 2010000 | E12: ='利益演示-加保'!H28 -> 2215880.55 | F12: ='利益演示-加保'!J28 -> 0 | G12: ='利益演示-加保'!I28 -> 2581717.7 | H12: ='利益演示-加保'!K28 -> 2814000 | I12: 86818.6 | J12: =IF(A12="","",'利益演示-减保'!N29) -> 0 | K12: =IF(A12="","",SUM($J$4:J12)) -> 0 | L12: ='利益演示-减保'!Q29 -> 2581717.7 | M12: ='利益演示-减保'!R29 -> 0 | N12: ='利益演示-减保'!S29 -> 2814000
A13: ='利益演示-加保'!B29 -> 10 | B13: ='利益演示-加保'!D29 -> 50 | C13: ='利益演示-加保'!E29 -> 0 | D13: ='利益演示-加保'!G29 -> 2010000 | E13: ='利益演示-加保'!H29 -> 2293436.37 | F13: ='利益演示-加保'!J29 -> 0 | G13: ='利益演示-加保'!I29 -> 2671705.4 | H13: ='利益演示-加保'!K29 -> 2814000 | I13: 89987.7 | J13: =IF(A13="","",'利益演示-减保'!N30) -> 2000 | K13: =IF(A13="","",SUM($J$4:J13)) -> 2000 | L13: ='利益演示-减保'!Q30 -> 2669705.4 | M13: ='利益演示-减保'!R30 -> 0 | N13: ='利益演示-减保'!S30 -> 2811893.48
A14: ='利益演示-加保'!B30 -> 11 | B14: ='利益演示-加保'!D30 -> 51 | C14: ='利益演示-加保'!E30 -> 0 | D14: ='利益演示-加保'!G30 -> 2010000 | E14: ='利益演示-加保'!H30 -> 2373706.65 | F14: ='利益演示-加保'!J30 -> 0 | G14: ='利益演示-加保'!I30 -> 2765009.6 | H14: ='利益演示-加保'!K30 -> 2814000 | I14: 93304.2 | J14: =IF(A14="","",'利益演示-减保'!N31) -> 0 | K14: =IF(A14="","",SUM($J$4:J14)) -> 2000 | L14: ='利益演示-减保'!Q31 -> 2762939.75 | M14: ='利益演示-减保'!R31 -> 0 | N14: ='利益演示-减保'!S31 -> 2811893.48
A15: ='利益演示-加保'!B31 -> 12 | B15: ='利益演示-加保'!D31 -> 52 | C15: ='利益演示-加保'!E31 -> 0 | D15: ='利益演示-加保'!G31 -> 2010000 | E15: ='利益演示-加保'!H31 -> 2456786.38 | F15: ='利益演示-加保'!J31 -> 0 | G15: ='利益演示-加保'!I31 -> 2861784.4 | H15: ='利益演示-加保'!K31 -> 2861784.4 | I15: 96774.8 | J15: =IF(A15="","",'利益演示-减保'!N32) -> 0 | K15: =IF(A15="","",SUM($J$4:J15)) -> 2000 | L15: ='利益演示-减保'!Q32 -> 2859642.11 | M15: ='利益演示-减保'!R32 -> 0 | N15: ='利益演示-减保'!S32 -> 2859642.11
A16: ='利益演示-加保'!B32 -> 13 | B16: ='利益演示-加保'!D32 -> 53 | C16: ='利益演示-加保'!E32 -> 0 | D16: ='利益演示-加保'!G32 -> 2010000 | E16: ='利益演示-加保'!H32 -> 2542773.9 | F16: ='利益演示-加保'!J32 -> 0 | G16: ='利益演示-加保'!I32 -> 2961942.7 | H16: ='利益演示-加保'!K32 -> 2961942.7 | I16: 100158.3 | J16: =IF(A16="","",'利益演示-减保'!N33) -> 0 | K16: =IF(A16="","",SUM($J$4:J16)) -> 2000 | L16: ='利益演示-减保'!Q33 -> 2959725.43 | M16: ='利益演示-减保'!R33 -> 0 | N16: ='利益演示-减保'!S33 -> 2959725.43
A17: ='利益演示-加保'!B33 -> 14 | B17: ='利益演示-加保'!D33 -> 54 | C17: ='利益演示-加保'!E33 -> 0 | D17: ='利益演示-加保'!G33 -> 2010000 | E17: ='利益演示-加保'!H33 -> 2631770.99 | F17: ='利益演示-加保'!J33 -> 0 | G17: ='利益演示-加保'!I33 -> 3065611.8 | H17: ='利益演示-加保'!K33 -> 3065611.8 | I17: 103669.1 | J17: =IF(A17="","",'利益演示-减保'!N34) -> 0 | K17: =IF(A17="","",SUM($J$4:J17)) -> 2000 | L17: ='利益演示-减保'!Q34 -> 3063316.93 | M17: ='利益演示-减保'!R34 -> 0 | N17: ='利益演示-减保'!S34 -> 3063316.93
A18: ='利益演示-加保'!B34 -> 15 | B18: ='利益演示-加保'!D34 -> 55 | C18: ='利益演示-加保'!E34 -> 0 | D18: ='利益演示-加保'!G34 -> 2010000 | E18: ='利益演示-加保'!H34 -> 2723882.97 | F18: ='利益演示-加保'!J34 -> 0 | G18: ='利益演示-加保'!I34 -> 3172905.6 | H18: ='利益演示-加保'!K34 -> 3172905.6 | I18: 107293.8 | J18: =IF(A18="","",'利益演示-减保'!N35) -> 0 | K18: =IF(A18="","",SUM($J$4:J18)) -> 2000 | L18: ='利益演示-减保'!Q35 -> 3170530.41 | M18: ='利益演示-减保'!R35 -> 0 | N18: ='利益演示-减保'!S35 -> 3170530.41
A19: ='利益演示-加保'!B35 -> 16 | B19: ='利益演示-加保'!D35 -> 56 | C19: ='利益演示-加保'!E35 -> 0 | D19: ='利益演示-加保'!G35 -> 2010000 | E19: ='利益演示-加保'!H35 -> 2819218.88 | F19: ='利益演示-加保'!J35 -> 0 | G19: ='利益演示-加保'!I35 -> 3283958.1 | H19: ='利益演示-加保'!K35 -> 3283958.1 | I19: 111052.5 | J19: =IF(A19="","",'利益演示-减保'!N36) -> 0 | K19: =IF(A19="","",SUM($J$4:J19)) -> 2000 | L19: ='利益演示-减保'!Q36 -> 3281499.78 | M19: ='利益演示-减保'!R36 -> 0 | N19: ='利益演示-减保'!S36 -> 3281499.78
A20: ='利益演示-加保'!B36 -> 17 | B20: ='利益演示-加保'!D36 -> 57 | C20: ='利益演示-加保'!E36 -> 0 | D20: ='利益演示-加保'!G36 -> 2010000 | E20: ='利益演示-加保'!H36 -> 2917891.54 | F20: ='利益演示-加保'!J36 -> 0 | G20: ='利益演示-加保'!I36 -> 3398896.6 | H20: ='利益演示-加保'!K36 -> 3398896.6 | I20: 114938.5 | J20: =IF(A20="","",'利益演示-减保'!N37) -> 0 | K20: =IF(A20="","",SUM($J$4:J20)) -> 2000 | L20: ='利益演示-减保'!Q37 -> 3396352.24 | M20: ='利益演示-减保'!R37 -> 0 | N20: ='利益演示-减保'!S37 -> 3396352.24
A21: ='利益演示-加保'!B37 -> 18 | B21: ='利益演示-加保'!D37 -> 58 | C21: ='利益演示-加保'!E37 -> 0 | D21: ='利益演示-加保'!G37 -> 2010000 | E21: ='利益演示-加保'!H37 -> 3020017.74 | F21: ='利益演示-加保'!J37 -> 0 | G21: ='利益演示-加保'!I37 -> 3517855.1 | H21: ='利益演示-加保'!K37 -> 3517855.1 | I21: 118958.5 | J21: =IF(A21="","",'利益演示-减保'!N38) -> 0 | K21: =IF(A21="","",SUM($J$4:J21)) -> 2000 | L21: ='利益演示-减保'!Q38 -> 3515221.68 | M21: ='利益演示-减保'!R38 -> 0 | N21: ='利益演示-减保'!S38 -> 3515221.68
A22: ='利益演示-加保'!B38 -> 19 | B22: ='利益演示-加保'!D38 -> 59 | C22: ='利益演示-加保'!E38 -> 0 | D22: ='利益演示-加保'!G38 -> 2010000 | E22: ='利益演示-加保'!H38 -> 3125718.36 | F22: ='利益演示-加保'!J38 -> 0 | G22: ='利益演示-加保'!I38 -> 3640974.3 | H22: ='利益演示-加保'!K38 -> 3640974.3 | I22: 123119.2 | J22: =IF(A22="","",'利益演示-减保'!N39) -> 0 | K22: =IF(A22="","",SUM($J$4:J22)) -> 2000 | L22: ='利益演示-减保'!Q39 -> 3638248.72 | M22: ='利益演示-减保'!R39 -> 0 | N22: ='利益演示-减保'!S39 -> 3638248.72
A23: ='利益演示-加保'!B39 -> 20 | B23: ='利益演示-加保'!D39 -> 60 | C23: ='利益演示-加保'!E39 -> 0 | D23: ='利益演示-加保'!G39 -> 2010000 | E23: ='利益演示-加保'!H39 -> 3235118.51 | F23: ='利益演示-加保'!J39 -> 0 | G23: ='利益演示-加保'!I39 -> 3768408.3 | H23: ='利益演示-加保'!K39 -> 3768408.3 | I23: 127434 | J23: =IF(A23="","",'利益演示-减保'!N40) -> 0 | K23: =IF(A23="","",SUM($J$4:J23)) -> 2000 | L23: ='利益演示-减保'!Q40 -> 3765587.32 | M23: ='利益演示-减保'!R40 -> 0 | N23: ='利益演示-减保'!S40 -> 3765587.32
A24: ='利益演示-加保'!B40 -> 21 | B24: ='利益演示-加保'!D40 -> 61 | C24: ='利益演示-加保'!E40 -> 0 | D24: ='利益演示-加保'!G40 -> 2010000 | E24: ='利益演示-加保'!H40 -> 3348347.65 | F24: ='利益演示-加保'!J40 -> 0 | G24: ='利益演示-加保'!I40 -> 3900297.8 | H24: ='利益演示-加保'!K40 -> 3900297.8 | I24: 131889.5 | J24: =IF(A24="","",'利益演示-减保'!N41) -> 0 | K24: =IF(A24="","",SUM($J$4:J24)) -> 2000 | L24: ='利益演示-减保'!Q41 -> 3897378.09 | M24: ='利益演示-减保'!R41 -> 0 | N24: ='利益演示-减保'!S41 -> 3897378.09
A25: ='利益演示-加保'!B41 -> 22 | B25: ='利益演示-加保'!D41 -> 62 | C25: ='利益演示-加保'!E41 -> 0 | D25: ='利益演示-加保'!G41 -> 2010000 | E25: ='利益演示-加保'!H41 -> 3465539.82 | F25: ='利益演示-加保'!J41 -> 0 | G25: ='利益演示-加保'!I41 -> 4036810.3 | H25: ='利益演示-加保'!K41 -> 4036810.3 | I25: 136512.5 | J25: =IF(A25="","",'利益演示-减保'!N42) -> 0 | K25: =IF(A25="","",SUM($J$4:J25)) -> 2000 | L25: ='利益演示-减保'!Q42 -> 4033788.4 | M25: ='利益演示-减保'!R42 -> 0 | N25: ='利益演示-减保'!S42 -> 4033788.4
A26: ='利益演示-加保'!B42 -> 23 | B26: ='利益演示-加保'!D42 -> 63 | C26: ='利益演示-加保'!E42 -> 0 | D26: ='利益演示-加保'!G42 -> 2010000 | E26: ='利益演示-加保'!H42 -> 3586833.72 | F26: ='利益演示-加保'!J42 -> 0 | G26: ='利益演示-加保'!I42 -> 4044307.6 | H26: ='利益演示-加保'!K42 -> 4044307.6 | I26: 7497.3 | J26: =IF(A26="","",'利益演示-减保'!N43) -> 0 | K26: =IF(A26="","",SUM($J$4:J26)) -> 2000 | L26: ='利益演示-减保'!Q43 -> 4041280.09 | M26: ='利益演示-减保'!R43 -> 0 | N26: ='利益演示-减保'!S43 -> 4041280.09
A27: ='利益演示-加保'!B43 -> 24 | B27: ='利益演示-加保'!D43 -> 64 | C27: ='利益演示-加保'!E43 -> 0 | D27: ='利益演示-加保'!G43 -> 2010000 | E27: ='利益演示-加保'!H43 -> 3712372.9 | F27: ='利益演示-加保'!J43 -> 0 | G27: ='利益演示-加保'!I43 -> 4186247.1 | H27: ='利益演示-加保'!K43 -> 4186247.1 | I27: 141939.5 | J27: =IF(A27="","",'利益演示-减保'!N44) -> 0 | K27: =IF(A27="","",SUM($J$4:J27)) -> 2000 | L27: ='利益演示-减保'!Q44 -> 4183113.34 | M27: ='利益演示-减保'!R44 -> 0 | N27: ='利益演示-减保'!S44 -> 4183113.34
A28: ='利益演示-加保'!B44 -> 25 | B28: ='利益演示-加保'!D44 -> 65 | C28: ='利益演示-加保'!E44 -> 0 | D28: ='利益演示-加保'!G44 -> 2010000 | E28: ='利益演示-加保'!H44 -> 3842305.95 | F28: ='利益演示-加保'!J44 -> 0 | G28: ='利益演示-加保'!I44 -> 4333600.2 | H28: ='利益演示-加保'!K44 -> 4333600.2 | I28: 147353.1 | J28: =IF(A28="","",'利益演示-减保'!N45) -> 0 | K28: =IF(A28="","",SUM($J$4:J28)) -> 2000 | L28: ='利益演示-减保'!Q45 -> 4330356.13 | M28: ='利益演示-减保'!R45 -> 0 | N28: ='利益演示-减保'!S45 -> 4330356.13
A29: ='利益演示-加保'!B45 -> 26 | B29: ='利益演示-加保'!D45 -> 66 | C29: ='利益演示-加保'!E45 -> 0 | D29: ='利益演示-加保'!G45 -> 2010000 | E29: ='利益演示-加保'!H45 -> 3976786.65 | F29: ='利益演示-加保'!J45 -> 0 | G29: ='利益演示-加保'!I45 -> 4486212.8 | H29: ='利益演示-加保'!K45 -> 4486212.8 | I29: 152612.6 | J29: =IF(A29="","",'利益演示-减保'!N46) -> 0 | K29: =IF(A29="","",SUM($J$4:J29)) -> 2000 | L29: ='利益演示-减保'!Q46 -> 4482854.49 | M29: ='利益演示-减保'!R46 -> 0 | N29: ='利益演示-减保'!S46 -> 4482854.49
A30: ='利益演示-加保'!B46 -> 27 | B30: ='利益演示-加保'!D46 -> 67 | C30: ='利益演示-加保'!E46 -> 0 | D30: ='利益演示-加保'!G46 -> 2010000 | E30: ='利益演示-加保'!H46 -> 4115974.19 | F30: ='利益演示-加保'!J46 -> 0 | G30: ='利益演示-加保'!I46 -> 4644285.9 | H30: ='利益演示-加保'!K46 -> 4644285.9 | I30: 158073.1 | J30: =IF(A30="","",'利益演示-减保'!N47) -> 0 | K30: =IF(A30="","",SUM($J$4:J30)) -> 2000 | L30: ='利益演示-减保'!Q47 -> 4640809.25 | M30: ='利益演示-减保'!R47 -> 0 | N30: ='利益演示-减保'!S47 -> 4640809.25
A31: ='利益演示-加保'!B47 -> 28 | B31: ='利益演示-加保'!D47 -> 68 | C31: ='利益演示-加保'!E47 -> 0 | D31: ='利益演示-加保'!G47 -> 2010000 | E31: ='利益演示-加保'!H47 -> 4260033.28 | F31: ='利益演示-加保'!J47 -> 0 | G31: ='利益演示-加保'!I47 -> 4808027.2 | H31: ='利益演示-加保'!K47 -> 4808027.2 | I31: 163741.3 | J31: =IF(A31="","",'利益演示-减保'!N48) -> 0 | K31: =IF(A31="","",SUM($J$4:J31)) -> 2000 | L31: ='利益演示-减保'!Q48 -> 4804427.98 | M31: ='利益演示-减保'!R48 -> 0 | N31: ='利益演示-减保'!S48 -> 4804427.98
A32: ='利益演示-加保'!B48 -> 29 | B32: ='利益演示-加保'!D48 -> 69 | C32: ='利益演示-加保'!E48 -> 0 | D32: ='利益演示-加保'!G48 -> 2010000 | E32: ='利益演示-加保'!H48 -> 4409134.45 | F32: ='利益演示-加保'!J48 -> 0 | G32: ='利益演示-加保'!I48 -> 4977671.2 | H32: ='利益演示-加保'!K48 -> 4977671.2 | I32: 169644 | J32: =IF(A32="","",'利益演示-减保'!N49) -> 0 | K32: =IF(A32="","",SUM($J$4:J32)) -> 2000 | L32: ='利益演示-减保'!Q49 -> 4973944.99 | M32: ='利益演示-减保'!R49 -> 0 | N32: ='利益演示-减保'!S49 -> 4973944.99
A33: ='利益演示-加保'!B49 -> 30 | B33: ='利益演示-加保'!D49 -> 70 | C33: ='利益演示-加保'!E49 -> 0 | D33: ='利益演示-加保'!G49 -> 2010000 | E33: ='利益演示-加保'!H49 -> 4563454.16 | F33: ='利益演示-加保'!J49 -> 0 | G33: ='利益演示-加保'!I49 -> 5153445.7 | H33: ='利益演示-加保'!K49 -> 5153445.7 | I33: 175774.5 | J33: =IF(A33="","",'利益演示-减保'!N50) -> 0 | K33: =IF(A33="","",SUM($J$4:J33)) -> 2000 | L33: ='利益演示-减保'!Q50 -> 5149587.91 | M33: ='利益演示-减保'!R50 -> 0 | N33: ='利益演示-减保'!S50 -> 5149587.91
A34: ='利益演示-加保'!B50 -> 31 | B34: ='利益演示-加保'!D50 -> 71 | C34: ='利益演示-加保'!E50 -> 0 | D34: ='利益演示-加保'!G50 -> 2010000 | E34: ='利益演示-加保'!H50 -> 4723175.05 | F34: ='利益演示-加保'!J50 -> 0 | G34: ='利益演示-加保'!I50 -> 5335618.7 | H34: ='利益演示-加保'!K50 -> 5335618.7 | I34: 182173 | J34: =IF(A34="","",'利益演示-减保'!N51) -> 0 | K34: =IF(A34="","",SUM($J$4:J34)) -> 2000 | L34: ='利益演示-减保'!Q51 -> 5331624.53 | M34: ='利益演示-减保'!R51 -> 0 | N34: ='利益演示-减保'!S51 -> 5331624.53
A35: ='利益演示-加保'!B51 -> 32 | B35: ='利益演示-加保'!D51 -> 72 | C35: ='利益演示-加保'!E51 -> 0 | D35: ='利益演示-加保'!G51 -> 2010000 | E35: ='利益演示-加保'!H51 -> 4888486.18 | F35: ='利益演示-加保'!J51 -> 0 | G35: ='利益演示-加保'!I51 -> 5524451.5 | H35: ='利益演示-加保'!K51 -> 5524451.5 | I35: 188832.8 | J35: =IF(A35="","",'利益演示-减保'!N52) -> 0 | K35: =IF(A35="","",SUM($J$4:J35)) -> 2000 | L35: ='利益演示-减保'!Q52 -> 5520315.98 | M35: ='利益演示-减保'!R52 -> 0 | N35: ='利益演示-减保'!S52 -> 5520315.98
A36: ='利益演示-加保'!B52 -> 33 | B36: ='利益演示-加保'!D52 -> 73 | C36: ='利益演示-加保'!E52 -> 0 | D36: ='利益演示-加保'!G52 -> 2010000 | E36: ='利益演示-加保'!H52 -> 5059583.19 | F36: ='利益演示-加保'!J52 -> 0 | G36: ='利益演示-加保'!I52 -> 5720272.4 | H36: ='利益演示-加保'!K52 -> 5720272.4 | I36: 195820.9 | J36: =IF(A36="","",'利益演示-减保'!N53) -> 0 | K36: =IF(A36="","",SUM($J$4:J36)) -> 2000 | L36: ='利益演示-减保'!Q53 -> 5715990.29 | M36: ='利益演示-减保'!R53 -> 0 | N36: ='利益演示-减保'!S53 -> 5715990.29
A37: ='利益演示-加保'!B53 -> 34 | B37: ='利益演示-加保'!D53 -> 74 | C37: ='利益演示-加保'!E53 -> 0 | D37: ='利益演示-加保'!G53 -> 2010000 | E37: ='利益演示-加保'!H53 -> 5236668.61 | F37: ='利益演示-加保'!J53 -> 0 | G37: ='利益演示-加保'!I53 -> 5923409.7 | H37: ='利益演示-加保'!K53 -> 5923409.7 | I37: 203137.3 | J37: =IF(A37="","",'利益演示-减保'!N54) -> 0 | K37: =IF(A37="","",SUM($J$4:J37)) -> 2000 | L37: ='利益演示-减保'!Q54 -> 5918975.52 | M37: ='利益演示-减保'!R54 -> 0 | N37: ='利益演示-减保'!S54 -> 5918975.52
A38: ='利益演示-加保'!B54 -> 35 | B38: ='利益演示-加保'!D54 -> 75 | C38: ='利益演示-加保'!E54 -> 0 | D38: ='利益演示-加保'!G54 -> 2010000 | E38: ='利益演示-加保'!H54 -> 5419952.01 | F38: ='利益演示-加保'!J54 -> 0 | G38: ='利益演示-加保'!I54 -> 6134252 | H38: ='利益演示-加保'!K54 -> 6134252 | I38: 210842.3 | J38: =IF(A38="","",'利益演示-减保'!N55) -> 0 | K38: =IF(A38="","",SUM($J$4:J38)) -> 2000 | L38: ='利益演示-减保'!Q55 -> 6129659.99 | M38: ='利益演示-减保'!R55 -> 0 | N38: ='利益演示-减保'!S55 -> 6129659.99
A39: ='利益演示-加保'!B55 -> 36 | B39: ='利益演示-加保'!D55 -> 76 | C39: ='利益演示-加保'!E55 -> 0 | D39: ='利益演示-加保'!G55 -> 2010000 | E39: ='利益演示-加保'!H55 -> 5609650.33 | F39: ='利益演示-加保'!J55 -> 0 | G39: ='利益演示-加保'!I55 -> 6353221.4 | H39: ='利益演示-加保'!K55 -> 6353221.4 | I39: 218969.4 | J39: =IF(A39="","",'利益演示-减保'!N56) -> 0 | K39: =IF(A39="","",SUM($J$4:J39)) -> 2000 | L39: ='利益演示-减保'!Q56 -> 6348465.47 | M39: ='利益演示-减保'!R56 -> 0 | N39: ='利益演示-减保'!S56 -> 6348465.47
A40: ='利益演示-加保'!B56 -> 37 | B40: ='利益演示-加保'!D56 -> 77 | C40: ='利益演示-加保'!E56 -> 0 | D40: ='利益演示-加保'!G56 -> 2010000 | E40: ='利益演示-加保'!H56 -> 5805988.09 | F40: ='利益演示-加保'!J56 -> 0 | G40: ='利益演示-加保'!I56 -> 6580793.6 | H40: ='利益演示-加保'!K56 -> 6580793.6 | I40: 227572.2 | J40: =IF(A40="","",'利益演示-减保'!N57) -> 0 | K40: =IF(A40="","",SUM($J$4:J40)) -> 2000 | L40: ='利益演示-减保'!Q57 -> 6575867.31 | M40: ='利益演示-减保'!R57 -> 0 | N40: ='利益演示-减保'!S57 -> 6575867.31
A41: ='利益演示-加保'!B57 -> 38 | B41: ='利益演示-加保'!D57 -> 78 | C41: ='利益演示-加保'!E57 -> 0 | D41: ='利益演示-加保'!G57 -> 2010000 | E41: ='利益演示-加保'!H57 -> 6009197.67 | F41: ='利益演示-加保'!J57 -> 0 | G41: ='利益演示-加保'!I57 -> 6817477.8 | H41: ='利益演示-加保'!K57 -> 6817477.8 | I41: 236684.2 | J41: =IF(A41="","",'利益演示-减保'!N58) -> 0 | K41: =IF(A41="","",SUM($J$4:J41)) -> 2000 | L41: ='利益演示-减保'!Q58 -> 6812374.33 | M41: ='利益演示-减保'!R58 -> 0 | N41: ='利益演示-减保'!S58 -> 6812374.33
A42: ='利益演示-加保'!B58 -> 39 | B42: ='利益演示-加保'!D58 -> 79 | C42: ='利益演示-加保'!E58 -> 0 | D42: ='利益演示-加保'!G58 -> 2010000 | E42: ='利益演示-加保'!H58 -> 6219519.59 | F42: ='利益演示-加保'!J58 -> 0 | G42: ='利益演示-加保'!I58 -> 7063836.8 | H42: ='利益演示-加保'!K58 -> 7063836.8 | I42: 246359 | J42: =IF(A42="","",'利益演示-减保'!N59) -> 0 | K42: =IF(A42="","",SUM($J$4:J42)) -> 2000 | L42: ='利益演示-减保'!Q59 -> 7058548.91 | M42: ='利益演示-减保'!R59 -> 0 | N42: ='利益演示-减保'!S59 -> 7058548.91
A43: ='利益演示-加保'!B59 -> 40 | B43: ='利益演示-加保'!D59 -> 80 | C43: ='利益演示-加保'!E59 -> 0 | D43: ='利益演示-加保'!G59 -> 2010000 | E43: ='利益演示-加保'!H59 -> 6437202.78 | F43: ='利益演示-加保'!J59 -> 0 | G43: ='利益演示-加保'!I59 -> 7320473.6 | H43: ='利益演示-加保'!K59 -> 7320473.6 | I43: 256636.8 | J43: =IF(A43="","",'利益演示-减保'!N60) -> 0 | K43: =IF(A43="","",SUM($J$4:J43)) -> 2000 | L43: ='利益演示-减保'!Q60 -> 7314993.6 | M43: ='利益演示-减保'!R60 -> 0 | N43: ='利益演示-减保'!S60 -> 7314993.6
A44: ='利益演示-加保'!B60 -> 41 | B44: ='利益演示-加保'!D60 -> 81 | C44: ='利益演示-加保'!E60 -> 0 | D44: ='利益演示-加保'!G60 -> 2010000 | E44: ='利益演示-加保'!H60 -> 6662504.87 | F44: ='利益演示-加保'!J60 -> 0 | G44: ='利益演示-加保'!I60 -> 7588018 | H44: ='利益演示-加保'!K60 -> 7588018 | I44: 267544.4 | J44: =IF(A44="","",'利益演示-减保'!N61) -> 0 | K44: =IF(A44="","",SUM($J$4:J44)) -> 2000 | L44: ='利益演示-减保'!Q61 -> 7582337.72 | M44: ='利益演示-减保'!R61 -> 0 | N44: ='利益演示-减保'!S61 -> 7582337.72
A45: ='利益演示-加保'!B61 -> 42 | B45: ='利益演示-加保'!D61 -> 82 | C45: ='利益演示-加保'!E61 -> 0 | D45: ='利益演示-加保'!G61 -> 2010000 | E45: ='利益演示-加保'!H61 -> 6895692.54 | F45: ='利益演示-加保'!J61 -> 0 | G45: ='利益演示-加保'!I61 -> 7867160.1 | H45: ='利益演示-加保'!K61 -> 7867160.1 | I45: 279142.1 | J45: =IF(A45="","",'利益演示-减保'!N62) -> 0 | K45: =IF(A45="","",SUM($J$4:J45)) -> 2000 | L45: ='利益演示-减保'!Q62 -> 7861270.86 | M45: ='利益演示-减保'!R62 -> 0 | N45: ='利益演示-减保'!S62 -> 7861270.86
A46: ='利益演示-加保'!B62 -> 43 | B46: ='利益演示-加保'!D62 -> 83 | C46: ='利益演示-加保'!E62 -> 0 | D46: ='利益演示-加保'!G62 -> 2010000 | E46: ='利益演示-加保'!H62 -> 7137041.78 | F46: ='利益演示-加保'!J62 -> 0 | G46: ='利益演示-加保'!I62 -> 8158623.5 | H46: ='利益演示-加保'!K62 -> 8158623.5 | I46: 291463.4 | J46: =IF(A46="","",'利益演示-减保'!N63) -> 0 | K46: =IF(A46="","",SUM($J$4:J46)) -> 2000 | L46: ='利益演示-减保'!Q63 -> 8152516.07 | M46: ='利益演示-减保'!R63 -> 0 | N46: ='利益演示-减保'!S63 -> 8152516.07
A47: ='利益演示-加保'!B63 -> 44 | B47: ='利益演示-加保'!D63 -> 84 | C47: ='利益演示-加保'!E63 -> 0 | D47: ='利益演示-加保'!G63 -> 2010000 | E47: ='利益演示-加保'!H63 -> 7386838.24 | F47: ='利益演示-加保'!J63 -> 0 | G47: ='利益演示-加保'!I63 -> 8463185.4 | H47: ='利益演示-加保'!K63 -> 8463185.4 | I47: 304561.9 | J47: =IF(A47="","",'利益演示-减保'!N64) -> 0 | K47: =IF(A47="","",SUM($J$4:J47)) -> 2000 | L47: ='利益演示-减保'!Q64 -> 8456849.98 | M47: ='利益演示-减保'!R64 -> 0 | N47: ='利益演示-减保'!S64 -> 8456849.98
A48: ='利益演示-加保'!B64 -> 45 | B48: ='利益演示-加保'!D64 -> 85 | C48: ='利益演示-加保'!E64 -> 0 | D48: ='利益演示-加保'!G64 -> 2010000 | E48: ='利益演示-加保'!H64 -> 7645377.58 | F48: ='利益演示-加保'!J64 -> 0 | G48: ='利益演示-加保'!I64 -> 8795706.4 | H48: ='利益演示-加保'!K64 -> 8795706.4 | I48: 332521 | J48: =IF(A48="","",'利益演示-减保'!N65) -> 0 | K48: =IF(A48="","",SUM($J$4:J48)) -> 2000 | L48: ='利益演示-减保'!Q65 -> 8789122.06 | M48: ='利益演示-减保'!R65 -> 0 | N48: ='利益演示-减保'!S65 -> 8789122.06
A49: ='利益演示-加保'!B65 -> 46 | B49: ='利益演示-加保'!D65 -> 86 | C49: ='利益演示-加保'!E65 -> 0 | D49: ='利益演示-加保'!G65 -> 2010000 | E49: ='利益演示-加保'!H65 -> 7912965.8 | F49: ='利益演示-加保'!J65 -> 0 | G49: ='利益演示-加保'!I65 -> 9155248.5 | H49: ='利益演示-加保'!K65 -> 9155248.5 | I49: 359542.1 | J49: =IF(A49="","",'利益演示-减保'!N66) -> 0 | K49: =IF(A49="","",SUM($J$4:J49)) -> 2000 | L49: ='利益演示-减保'!Q66 -> 9148395.01 | M49: ='利益演示-减保'!R66 -> 0 | N49: ='利益演示-减保'!S66 -> 9148395.01
A50: ='利益演示-加保'!B66 -> 47 | B50: ='利益演示-加保'!D66 -> 87 | C50: ='利益演示-加保'!E66 -> 0 | D50: ='利益演示-加保'!G66 -> 2010000 | E50: ='利益演示-加保'!H66 -> 8189919.6 | F50: ='利益演示-加保'!J66 -> 0 | G50: ='利益演示-加保'!I66 -> 9551995.7 | H50: ='利益演示-加保'!K66 -> 9551995.7 | I50: 396747.2 | J50: =IF(A50="","",'利益演示-减保'!N67) -> 0 | K50: =IF(A50="","",SUM($J$4:J50)) -> 2000 | L50: ='利益演示-减保'!Q67 -> 9544845.21 | M50: ='利益演示-减保'!R67 -> 0 | N50: ='利益演示-减保'!S67 -> 9544845.21
A51: ='利益演示-加保'!B67 -> 48 | B51: ='利益演示-加保'!D67 -> 88 | C51: ='利益演示-加保'!E67 -> 0 | D51: ='利益演示-加保'!G67 -> 2010000 | E51: ='利益演示-加保'!H67 -> 8476566.79 | F51: ='利益演示-加保'!J67 -> 0 | G51: ='利益演示-加保'!I67 -> 10002691.3 | H51: ='利益演示-加保'!K67 -> 10002691.3 | I51: 450695.6 | J51: =IF(A51="","",'利益演示-减保'!N68) -> 0 | K51: =IF(A51="","",SUM($J$4:J51)) -> 2000 | L51: ='利益演示-减保'!Q68 -> 9995203.43 | M51: ='利益演示-减保'!R68 -> 0 | N51: ='利益演示-减保'!S68 -> 9995203.43
A52: ='利益演示-加保'!B68 -> 49 | B52: ='利益演示-加保'!D68 -> 89 | C52: ='利益演示-加保'!E68 -> 0 | D52: ='利益演示-加保'!G68 -> 2010000 | E52: ='利益演示-加保'!H68 -> 8773246.62 | F52: ='利益演示-加保'!J68 -> 0 | G52: ='利益演示-加保'!I68 -> 10531073.4 | H52: ='利益演示-加保'!K68 -> 10531073.4 | I52: 528382.1 | J52: =IF(A52="","",'利益演示-减保'!N69) -> 0 | K52: =IF(A52="","",SUM($J$4:J52)) -> 2000 | L52: ='利益演示-减保'!Q69 -> 10523189.99 | M52: ='利益演示-减保'!R69 -> 0 | N52: ='利益演示-减保'!S69 -> 10523189.99
A53: ='利益演示-加保'!B69 -> 50 | B53: ='利益演示-加保'!D69 -> 90 | C53: ='利益演示-加保'!E69 -> 0 | D53: ='利益演示-加保'!G69 -> 2010000 | E53: ='利益演示-加保'!H69 -> 9080310.26 | F53: ='利益演示-加保'!J69 -> 0 | G53: ='利益演示-加保'!I69 -> 10899446.1 | H53: ='利益演示-加保'!K69 -> 10899446.1 | I53: 368372.7 | J53: =IF(A53="","",'利益演示-减保'!N70) -> 0 | K53: =IF(A53="","",SUM($J$4:J53)) -> 2000 | L53: ='利益演示-减保'!Q70 -> 10891286.93 | M53: ='利益演示-减保'!R70 -> 0 | N53: ='利益演示-减保'!S70 -> 10891286.93
A54: ='利益演示-加保'!B70 -> 51 | B54: ='利益演示-加保'!D70 -> 91 | C54: ='利益演示-加保'!E70 -> 0 | D54: ='利益演示-加保'!G70 -> 2010000 | E54: ='利益演示-加保'!H70 -> 9398121.12 | F54: ='利益演示-加保'!J70 -> 0 | G54: ='利益演示-加保'!I70 -> 11280682.8 | H54: ='利益演示-加保'!K70 -> 11280682.8 | I54: 381236.7 | J54: =IF(A54="","",'利益演示-减保'!N71) -> 0 | K54: =IF(A54="","",SUM($J$4:J54)) -> 2000 | L54: ='利益演示-减保'!Q71 -> 11272238.24 | M54: ='利益演示-减保'!R71 -> 0 | N54: ='利益演示-减保'!S71 -> 11272238.24
A55: ='利益演示-加保'!B71 -> 52 | B55: ='利益演示-加保'!D71 -> 92 | C55: ='利益演示-加保'!E71 -> 0 | D55: ='利益演示-加保'!G71 -> 2010000 | E55: ='利益演示-加保'!H71 -> 9727055.35 | F55: ='利益演示-加保'!J71 -> 0 | G55: ='利益演示-加保'!I71 -> 11675232.4 | H55: ='利益演示-加保'!K71 -> 11675232.4 | I55: 394549.6 | J55: =IF(A55="","",'利益演示-减保'!N72) -> 0 | K55: =IF(A55="","",SUM($J$4:J55)) -> 2000 | L55: ='利益演示-减保'!Q72 -> 11666492.49 | M55: ='利益演示-减保'!R72 -> 0 | N55: ='利益演示-减保'!S72 -> 11666492.49
A56: ='利益演示-加保'!B72 -> 53 | B56: ='利益演示-加保'!D72 -> 93 | C56: ='利益演示-加保'!E72 -> 0 | D56: ='利益演示-加保'!G72 -> 2010000 | E56: ='利益演示-加保'!H72 -> 10067502.29 | F56: ='利益演示-加保'!J72 -> 0 | G56: ='利益演示-加保'!I72 -> 12083550.5 | H56: ='利益演示-加保'!K72 -> 12083550.5 | I56: 408318.1 | J56: =IF(A56="","",'利益演示-减保'!N73) -> 0 | K56: =IF(A56="","",SUM($J$4:J56)) -> 2000 | L56: ='利益演示-减保'!Q73 -> 12074504.93 | M56: ='利益演示-减保'!R73 -> 0 | N56: ='利益演示-减保'!S73 -> 12074504.93
A57: ='利益演示-加保'!B73 -> 54 | B57: ='利益演示-加保'!D73 -> 94 | C57: ='利益演示-加保'!E73 -> 0 | D57: ='利益演示-加保'!G73 -> 2010000 | E57: ='利益演示-加保'!H73 -> 10419864.87 | F57: ='利益演示-加保'!J73 -> 0 | G57: ='利益演示-加保'!I73 -> 12506126.2 | H57: ='利益演示-加保'!K73 -> 12506126.2 | I57: 422575.7 | J57: =IF(A57="","",'利益演示-减保'!N74) -> 0 | K57: =IF(A57="","",SUM($J$4:J57)) -> 2000 | L57: ='利益演示-减保'!Q74 -> 12496764.29 | M57: ='利益演示-减保'!R74 -> 0 | N57: ='利益演示-减保'!S74 -> 12496764.29
A58: ='利益演示-加保'!B74 -> 55 | B58: ='利益演示-加保'!D74 -> 95 | C58: ='利益演示-加保'!E74 -> 0 | D58: ='利益演示-加保'!G74 -> 2010000 | E58: ='利益演示-加保'!H74 -> 10784560.14 | F58: ='利益演示-加保'!J74 -> 0 | G58: ='利益演示-加保'!I74 -> 12943441.9 | H58: ='利益演示-加保'!K74 -> 12943441.9 | I58: 437315.7 | J58: =IF(A58="","",'利益演示-减保'!N75) -> 0 | K58: =IF(A58="","",SUM($J$4:J58)) -> 2000 | L58: ='利益演示-减保'!Q75 -> 12933752.63 | M58: ='利益演示-减保'!R75 -> 0 | N58: ='利益演示-减保'!S75 -> 12933752.63
A59: ='利益演示-加保'!B75 -> 56 | B59: ='利益演示-加保'!D75 -> 96 | C59: ='利益演示-加保'!E75 -> 0 | D59: ='利益演示-加保'!G75 -> 2010000 | E59: ='利益演示-加保'!H75 -> 11162019.75 | F59: ='利益演示-加保'!J75 -> 0 | G59: ='利益演示-加保'!I75 -> 13396013.5 | H59: ='利益演示-加保'!K75 -> 13396013.5 | I59: 452571.6 | J59: =IF(A59="","",'利益演示-减保'!N76) -> 0 | K59: =IF(A59="","",SUM($J$4:J59)) -> 2000 | L59: ='利益演示-减保'!Q76 -> 13385985.44 | M59: ='利益演示-减保'!R76 -> 0 | N59: ='利益演示-减保'!S76 -> 13385985.44
A60: ='利益演示-加保'!B76 -> 57 | B60: ='利益演示-加保'!D76 -> 97 | C60: ='利益演示-加保'!E76 -> 0 | D60: ='利益演示-加保'!G76 -> 2010000 | E60: ='利益演示-加保'!H76 -> 11552690.44 | F60: ='利益演示-加保'!J76 -> 0 | G60: ='利益演示-加保'!I76 -> 13864370.3 | H60: ='利益演示-加保'!K76 -> 13864370.3 | I60: 468356.8 | J60: =IF(A60="","",'利益演示-减保'!N77) -> 0 | K60: =IF(A60="","",SUM($J$4:J60)) -> 2000 | L60: ='利益演示-减保'!Q77 -> 13853991.63 | M60: ='利益演示-减保'!R77 -> 0 | N60: ='利益演示-减保'!S77 -> 13853991.63
A61: ='利益演示-加保'!B77 -> 58 | B61: ='利益演示-加保'!D77 -> 98 | C61: ='利益演示-加保'!E77 -> 0 | D61: ='利益演示-加保'!G77 -> 2010000 | E61: ='利益演示-加保'!H77 -> 11957034.6 | F61: ='利益演示-加保'!J77 -> 0 | G61: ='利益演示-加保'!I77 -> 14349048.3 | H61: ='利益演示-加保'!K77 -> 14349048.3 | I61: 484678 | J61: =IF(A61="","",'利益演示-减保'!N78) -> 0 | K61: =IF(A61="","",SUM($J$4:J61)) -> 2000 | L61: ='利益演示-减保'!Q78 -> 14338306.81 | M61: ='利益演示-减保'!R78 -> 0 | N61: ='利益演示-减保'!S78 -> 14338306.81
A62: ='利益演示-加保'!B78 -> 59 | B62: ='利益演示-加保'!D78 -> 99 | C62: ='利益演示-加保'!E78 -> 0 | D62: ='利益演示-加保'!G78 -> 2010000 | E62: ='利益演示-加保'!H78 -> 12375530.82 | F62: ='利益演示-加保'!J78 -> 14850636.98 | G62: ='利益演示-加保'!I78 -> 14850623.7 | H62: ='利益演示-加保'!K78 -> 14850623.7 | I62: 501575.4 | J62: =IF(A62="","",'利益演示-减保'!N79) -> 0 | K62: =IF(A62="","",SUM($J$4:J62)) -> 2000 | L62: ='利益演示-减保'!Q79 -> 14839506.74 | M62: ='利益演示-减保'!R79 -> 14839520.01 | N62: ='利益演示-减保'!S79 -> 14839506.74
A63: ='利益演示-加保'!B79 ->  | B63: ='利益演示-加保'!D79 ->  | C63: ='利益演示-加保'!E79 ->  | D63: ='利益演示-加保'!G79 ->  | E63: ='利益演示-加保'!H79 ->  | F63: ='利益演示-加保'!J79 ->  | G63: ='利益演示-加保'!I79 ->  | H63: ='利益演示-加保'!K79 ->  | J63: =IF(A63="","",'利益演示-减保'!N80) ->  | K63: =IF(A63="","",SUM($J$4:J63)) ->  | L63: ='利益演示-减保'!Q80 ->  | M63: ='利益演示-减保'!R80 ->  | N63: ='利益演示-减保'!S80 -> 
A64: ='利益演示-加保'!B80 ->  | B64: ='利益演示-加保'!D80 ->  | C64: ='利益演示-加保'!E80 ->  | D64: ='利益演示-加保'!G80 ->  | E64: ='利益演示-加保'!H80 ->  | F64: ='利益演示-加保'!J80 ->  | G64: ='利益演示-加保'!I80 ->  | H64: ='利益演示-加保'!K80 ->  | J64: =IF(A64="","",'利益演示-减保'!N81) ->  | K64: =IF(A64="","",SUM($J$4:J64)) ->  | L64: ='利益演示-减保'!Q81 ->  | M64: ='利益演示-减保'!R81 ->  | N64: ='利益演示-减保'!S81 -> 
A65: ='利益演示-加保'!B81 ->  | B65: ='利益演示-加保'!D81 ->  | C65: ='利益演示-加保'!E81 ->  | D65: ='利益演示-加保'!G81 ->  | E65: ='利益演示-加保'!H81 ->  | F65: ='利益演示-加保'!J81 ->  | G65: ='利益演示-加保'!I81 ->  | H65: ='利益演示-加保'!K81 ->  | J65: =IF(A65="","",'利益演示-减保'!N82) ->  | K65: =IF(A65="","",SUM($J$4:J65)) ->  | L65: ='利益演示-减保'!Q82 ->  | M65: ='利益演示-减保'!R82 ->  | N65: ='利益演示-减保'!S82 -> 
A66: ='利益演示-加保'!B82 ->  | B66: ='利益演示-加保'!D82 ->  | C66: ='利益演示-加保'!E82 ->  | D66: ='利益演示-加保'!G82 ->  | E66: ='利益演示-加保'!H82 ->  | F66: ='利益演示-加保'!J82 ->  | G66: ='利益演示-加保'!I82 ->  | H66: ='利益演示-加保'!K82 ->  | J66: =IF(A66="","",'利益演示-减保'!N83) ->  | K66: =IF(A66="","",SUM($J$4:J66)) ->  | L66: ='利益演示-减保'!Q83 ->  | M66: ='利益演示-减保'!R83 ->  | N66: ='利益演示-减保'!S83 -> 
A67: ='利益演示-加保'!B83 ->  | B67: ='利益演示-加保'!D83 ->  | C67: ='利益演示-加保'!E83 ->  | D67: ='利益演示-加保'!G83 ->  | E67: ='利益演示-加保'!H83 ->  | F67: ='利益演示-加保'!J83 ->  | G67: ='利益演示-加保'!I83 ->  | H67: ='利益演示-加保'!K83 ->  | J67: =IF(A67="","",'利益演示-减保'!N84) ->  | K67: =IF(A67="","",SUM($J$4:J67)) ->  | L67: ='利益演示-减保'!Q84 ->  | M67: ='利益演示-减保'!R84 ->  | N67: ='利益演示-减保'!S84 -> 
A68: ='利益演示-加保'!B84 ->  | B68: ='利益演示-加保'!D84 ->  | C68: ='利益演示-加保'!E84 ->  | D68: ='利益演示-加保'!G84 ->  | E68: ='利益演示-加保'!H84 ->  | F68: ='利益演示-加保'!J84 ->  | G68: ='利益演示-加保'!I84 ->  | H68: ='利益演示-加保'!K84 ->  | J68: =IF(A68="","",'利益演示-减保'!N85) ->  | K68: =IF(A68="","",SUM($J$4:J68)) ->  | L68: ='利益演示-减保'!Q85 ->  | M68: ='利益演示-减保'!R85 ->  | N68: ='利益演示-减保'!S85 -> 
A69: ='利益演示-加保'!B85 ->  | B69: ='利益演示-加保'!D85 ->  | C69: ='利益演示-加保'!E85 ->  | D69: ='利益演示-加保'!G85 ->  | E69: ='利益演示-加保'!H85 ->  | F69: ='利益演示-加保'!J85 ->  | G69: ='利益演示-加保'!I85 ->  | H69: ='利益演示-加保'!K85 ->  | J69: =IF(A69="","",'利益演示-减保'!N86) ->  | K69: =IF(A69="","",SUM($J$4:J69)) ->  | L69: ='利益演示-减保'!Q86 ->  | M69: ='利益演示-减保'!R86 ->  | N69: ='利益演示-减保'!S86 -> 
A70: ='利益演示-加保'!B86 ->  | B70: ='利益演示-加保'!D86 ->  | C70: ='利益演示-加保'!E86 ->  | D70: ='利益演示-加保'!G86 ->  | E70: ='利益演示-加保'!H86 ->  | F70: ='利益演示-加保'!J86 ->  | G70: ='利益演示-加保'!I86 ->  | H70: ='利益演示-加保'!K86 ->  | I70: =IF(B70<100,G70-G69,"") ->  | J70: =IF(A70="","",'利益演示-减保'!N87) ->  | K70: =IF(A70="","",SUM($J$4:J70)) ->  | L70: ='利益演示-减保'!Q87 ->  | M70: ='利益演示-减保'!R87 ->  | N70: ='利益演示-减保'!S87 -> 
A71: ='利益演示-加保'!B87 ->  | B71: ='利益演示-加保'!D87 ->  | C71: ='利益演示-加保'!E87 ->  | D71: ='利益演示-加保'!G87 ->  | E71: ='利益演示-加保'!H87 ->  | F71: ='利益演示-加保'!J87 ->  | G71: ='利益演示-加保'!I87 ->  | H71: ='利益演示-加保'!K87 ->  | J71: =IF(A71="","",'利益演示-减保'!N88) ->  | K71: =IF(A71="","",SUM($J$4:J71)) ->  | L71: ='利益演示-减保'!Q88 ->  | M71: ='利益演示-减保'!R88 ->  | N71: ='利益演示-减保'!S88 -> 
A72: ='利益演示-加保'!B88 ->  | B72: ='利益演示-加保'!D88 ->  | C72: ='利益演示-加保'!E88 ->  | D72: ='利益演示-加保'!G88 ->  | E72: ='利益演示-加保'!H88 ->  | F72: ='利益演示-加保'!J88 ->  | G72: ='利益演示-加保'!I88 ->  | H72: ='利益演示-加保'!K88 ->  | J72: =IF(A72="","",'利益演示-减保'!N89) ->  | K72: =IF(A72="","",SUM($J$4:J72)) ->  | L72: ='利益演示-减保'!Q89 ->  | M72: ='利益演示-减保'!R89 ->  | N72: ='利益演示-减保'!S89 -> 
A73: ='利益演示-加保'!B89 ->  | B73: ='利益演示-加保'!D89 ->  | C73: ='利益演示-加保'!E89 ->  | D73: ='利益演示-加保'!G89 ->  | E73: ='利益演示-加保'!H89 ->  | F73: ='利益演示-加保'!J89 ->  | G73: ='利益演示-加保'!I89 ->  | H73: ='利益演示-加保'!K89 ->  | J73: =IF(A73="","",'利益演示-减保'!N90) ->  | K73: =IF(A73="","",SUM($J$4:J73)) ->  | L73: ='利益演示-减保'!Q90 ->  | M73: ='利益演示-减保'!R90 ->  | N73: ='利益演示-减保'!S90 -> 
A74: ='利益演示-加保'!B90 ->  | B74: ='利益演示-加保'!D90 ->  | C74: ='利益演示-加保'!E90 ->  | D74: ='利益演示-加保'!G90 ->  | E74: ='利益演示-加保'!H90 ->  | F74: ='利益演示-加保'!J90 ->  | G74: ='利益演示-加保'!I90 ->  | H74: ='利益演示-加保'!K90 ->  | J74: =IF(A74="","",'利益演示-减保'!N91) ->  | K74: =IF(A74="","",SUM($J$4:J74)) ->  | L74: ='利益演示-减保'!Q91 ->  | M74: ='利益演示-减保'!R91 ->  | N74: ='利益演示-减保'!S91 -> 
A75: ='利益演示-加保'!B91 ->  | B75: ='利益演示-加保'!D91 ->  | C75: ='利益演示-加保'!E91 ->  | D75: ='利益演示-加保'!G91 ->  | E75: ='利益演示-加保'!H91 ->  | F75: ='利益演示-加保'!J91 ->  | G75: ='利益演示-加保'!I91 ->  | H75: ='利益演示-加保'!K91 ->  | J75: =IF(A75="","",'利益演示-减保'!N92) ->  | K75: =IF(A75="","",SUM($J$4:J75)) ->  | L75: ='利益演示-减保'!Q92 ->  | M75: ='利益演示-减保'!R92 ->  | N75: ='利益演示-减保'!S92 -> 
A76: ='利益演示-加保'!B92 ->  | B76: ='利益演示-加保'!D92 ->  | C76: ='利益演示-加保'!E92 ->  | D76: ='利益演示-加保'!G92 ->  | E76: ='利益演示-加保'!H92 ->  | F76: ='利益演示-加保'!J92 ->  | G76: ='利益演示-加保'!I92 ->  | H76: ='利益演示-加保'!K92 ->  | J76: =IF(A76="","",'利益演示-减保'!N93) ->  | K76: =IF(A76="","",SUM($J$4:J76)) ->  | L76: ='利益演示-减保'!Q93 ->  | M76: ='利益演示-减保'!R93 ->  | N76: ='利益演示-减保'!S93 -> 
A77: ='利益演示-加保'!B93 ->  | B77: ='利益演示-加保'!D93 ->  | C77: ='利益演示-加保'!E93 ->  | D77: ='利益演示-加保'!G93 ->  | E77: ='利益演示-加保'!H93 ->  | F77: ='利益演示-加保'!J93 ->  | G77: ='利益演示-加保'!I93 ->  | H77: ='利益演示-加保'!K93 ->  | J77: =IF(A77="","",'利益演示-减保'!N94) ->  | K77: =IF(A77="","",SUM($J$4:J77)) ->  | L77: ='利益演示-减保'!Q94 ->  | M77: ='利益演示-减保'!R94 ->  | N77: ='利益演示-减保'!S94 -> 
A78: ='利益演示-加保'!B94 ->  | B78: ='利益演示-加保'!D94 ->  | C78: ='利益演示-加保'!E94 ->  | D78: ='利益演示-加保'!G94 ->  | E78: ='利益演示-加保'!H94 ->  | F78: ='利益演示-加保'!J94 ->  | G78: ='利益演示-加保'!I94 ->  | H78: ='利益演示-加保'!K94 ->  | J78: =IF(A78="","",'利益演示-减保'!N95) ->  | K78: =IF(A78="","",SUM($J$4:J78)) ->  | L78: ='利益演示-减保'!Q95 ->  | M78: ='利益演示-减保'!R95 ->  | N78: ='利益演示-减保'!S95 -> 
A79: ='利益演示-加保'!B95 ->  | B79: ='利益演示-加保'!D95 ->  | C79: ='利益演示-加保'!E95 ->  | D79: ='利益演示-加保'!G95 ->  | E79: ='利益演示-加保'!H95 ->  | F79: ='利益演示-加保'!J95 ->  | G79: ='利益演示-加保'!I95 ->  | H79: ='利益演示-加保'!K95 ->  | J79: =IF(A79="","",'利益演示-减保'!N96) ->  | K79: =IF(A79="","",SUM($J$4:J79)) ->  | L79: ='利益演示-减保'!Q96 ->  | M79: ='利益演示-减保'!R96 ->  | N79: ='利益演示-减保'!S96 -> 
A80: ='利益演示-加保'!B96 ->  | B80: ='利益演示-加保'!D96 ->  | C80: ='利益演示-加保'!E96 ->  | D80: ='利益演示-加保'!G96 ->  | E80: ='利益演示-加保'!H96 ->  | F80: ='利益演示-加保'!J96 ->  | G80: ='利益演示-加保'!I96 ->  | H80: ='利益演示-加保'!K96 ->  | J80: =IF(A80="","",'利益演示-减保'!N97) ->  | K80: =IF(A80="","",SUM($J$4:J80)) ->  | L80: ='利益演示-减保'!Q97 ->  | M80: ='利益演示-减保'!R97 ->  | N80: ='利益演示-减保'!S97 -> 
A81: ='利益演示-加保'!B97 ->  | B81: ='利益演示-加保'!D97 ->  | C81: ='利益演示-加保'!E97 ->  | D81: ='利益演示-加保'!G97 ->  | E81: ='利益演示-加保'!H97 ->  | F81: ='利益演示-加保'!J97 ->  | G81: ='利益演示-加保'!I97 ->  | H81: ='利益演示-加保'!K97 ->  | J81: =IF(A81="","",'利益演示-减保'!N98) ->  | K81: =IF(A81="","",SUM($J$4:J81)) ->  | L81: ='利益演示-减保'!Q98 ->  | M81: ='利益演示-减保'!R98 ->  | N81: ='利益演示-减保'!S98 -> 
A82: ='利益演示-加保'!B98 ->  | B82: ='利益演示-加保'!D98 ->  | C82: ='利益演示-加保'!E98 ->  | D82: ='利益演示-加保'!G98 ->  | E82: ='利益演示-加保'!H98 ->  | F82: ='利益演示-加保'!J98 ->  | G82: ='利益演示-加保'!I98 ->  | H82: ='利益演示-加保'!K98 ->  | J82: =IF(A82="","",'利益演示-减保'!N99) ->  | K82: =IF(A82="","",SUM($J$4:J82)) ->  | L82: ='利益演示-减保'!Q99 ->  | M82: ='利益演示-减保'!R99 ->  | N82: ='利益演示-减保'!S99 -> 
A83: ='利益演示-加保'!B99 ->  | B83: ='利益演示-加保'!D99 ->  | C83: ='利益演示-加保'!E99 ->  | D83: ='利益演示-加保'!G99 ->  | E83: ='利益演示-加保'!H99 ->  | F83: ='利益演示-加保'!J99 ->  | G83: ='利益演示-加保'!I99 ->  | H83: ='利益演示-加保'!K99 ->  | J83: =IF(A83="","",'利益演示-减保'!N100) ->  | K83: =IF(A83="","",SUM($J$4:J83)) ->  | L83: ='利益演示-减保'!Q100 ->  | M83: ='利益演示-减保'!R100 ->  | N83: ='利益演示-减保'!S100 -> 
A84: ='利益演示-加保'!B100 ->  | B84: ='利益演示-加保'!D100 ->  | C84: ='利益演示-加保'!E100 ->  | D84: ='利益演示-加保'!G100 ->  | E84: ='利益演示-加保'!H100 ->  | F84: ='利益演示-加保'!J100 ->  | G84: ='利益演示-加保'!I100 ->  | H84: ='利益演示-加保'!K100 ->  | J84: =IF(A84="","",'利益演示-减保'!N101) ->  | K84: =IF(A84="","",SUM($J$4:J84)) ->  | L84: ='利益演示-减保'!Q101 ->  | M84: ='利益演示-减保'!R101 ->  | N84: ='利益演示-减保'!S101 -> 
A85: ='利益演示-加保'!B101 ->  | B85: ='利益演示-加保'!D101 ->  | C85: ='利益演示-加保'!E101 ->  | D85: ='利益演示-加保'!G101 ->  | E85: ='利益演示-加保'!H101 ->  | F85: ='利益演示-加保'!J101 ->  | G85: ='利益演示-加保'!I101 ->  | H85: ='利益演示-加保'!K101 ->  | J85: =IF(A85="","",'利益演示-减保'!N102) ->  | K85: =IF(A85="","",SUM($J$4:J85)) ->  | L85: ='利益演示-减保'!Q102 ->  | M85: ='利益演示-减保'!R102 ->  | N85: ='利益演示-减保'!S102 -> 
A86: ='利益演示-加保'!B102 ->  | B86: ='利益演示-加保'!D102 ->  | C86: ='利益演示-加保'!E102 ->  | D86: ='利益演示-加保'!G102 ->  | E86: ='利益演示-加保'!H102 ->  | F86: ='利益演示-加保'!J102 ->  | G86: ='利益演示-加保'!I102 ->  | H86: ='利益演示-加保'!K102 ->  | J86: =IF(A86="","",'利益演示-减保'!N103) ->  | K86: =IF(A86="","",SUM($J$4:J86)) ->  | L86: ='利益演示-减保'!Q103 ->  | M86: ='利益演示-减保'!R103 ->  | N86: ='利益演示-减保'!S103 -> 
A87: ='利益演示-加保'!B103 ->  | B87: ='利益演示-加保'!D103 ->  | C87: ='利益演示-加保'!E103 ->  | D87: ='利益演示-加保'!G103 ->  | E87: ='利益演示-加保'!H103 ->  | F87: ='利益演示-加保'!J103 ->  | G87: ='利益演示-加保'!I103 ->  | H87: ='利益演示-加保'!K103 ->  | J87: =IF(A87="","",'利益演示-减保'!N104) ->  | K87: =IF(A87="","",SUM($J$4:J87)) ->  | L87: ='利益演示-减保'!Q104 ->  | M87: ='利益演示-减保'!R104 ->  | N87: ='利益演示-减保'!S104 -> 
A88: ='利益演示-加保'!B104 ->  | B88: ='利益演示-加保'!D104 ->  | C88: ='利益演示-加保'!E104 ->  | D88: ='利益演示-加保'!G104 ->  | E88: ='利益演示-加保'!H104 ->  | F88: ='利益演示-加保'!J104 ->  | G88: ='利益演示-加保'!I104 ->  | H88: ='利益演示-加保'!K104 ->  | J88: =IF(A88="","",'利益演示-减保'!N105) ->  | K88: =IF(A88="","",SUM($J$4:J88)) ->  | L88: ='利益演示-减保'!Q105 ->  | M88: ='利益演示-减保'!R105 ->  | N88: ='利益演示-减保'!S105 -> 
A89: ='利益演示-加保'!B105 ->  | B89: ='利益演示-加保'!D105 ->  | C89: ='利益演示-加保'!E105 ->  | D89: ='利益演示-加保'!G105 ->  | E89: ='利益演示-加保'!H105 ->  | F89: ='利益演示-加保'!J105 ->  | G89: ='利益演示-加保'!I105 ->  | H89: ='利益演示-加保'!K105 ->  | J89: =IF(A89="","",'利益演示-减保'!N106) ->  | K89: =IF(A89="","",SUM($J$4:J89)) ->  | L89: ='利益演示-减保'!Q106 ->  | M89: ='利益演示-减保'!R106 ->  | N89: ='利益演示-减保'!S106 -> 
A90: ='利益演示-加保'!B106 ->  | B90: ='利益演示-加保'!D106 ->  | C90: ='利益演示-加保'!E106 ->  | D90: ='利益演示-加保'!G106 ->  | E90: ='利益演示-加保'!H106 ->  | F90: ='利益演示-加保'!J106 ->  | G90: ='利益演示-加保'!I106 ->  | H90: ='利益演示-加保'!K106 ->  | J90: =IF(A90="","",'利益演示-减保'!N107) ->  | K90: =IF(A90="","",SUM($J$4:J90)) ->  | L90: ='利益演示-减保'!Q107 ->  | M90: ='利益演示-减保'!R107 ->  | N90: ='利益演示-减保'!S107 -> 
A91: ='利益演示-加保'!B107 ->  | B91: ='利益演示-加保'!D107 ->  | C91: ='利益演示-加保'!E107 ->  | D91: ='利益演示-加保'!G107 ->  | E91: ='利益演示-加保'!H107 ->  | F91: ='利益演示-加保'!J107 ->  | G91: ='利益演示-加保'!I107 ->  | H91: ='利益演示-加保'!K107 ->  | J91: =IF(A91="","",'利益演示-减保'!N108) ->  | K91: =IF(A91="","",SUM($J$4:J91)) ->  | L91: ='利益演示-减保'!Q108 ->  | M91: ='利益演示-减保'!R108 ->  | N91: ='利益演示-减保'!S108 -> 
A92: ='利益演示-加保'!B108 ->  | B92: ='利益演示-加保'!D108 ->  | C92: ='利益演示-加保'!E108 ->  | D92: ='利益演示-加保'!G108 ->  | E92: ='利益演示-加保'!H108 ->  | F92: ='利益演示-加保'!J108 ->  | G92: ='利益演示-加保'!I108 ->  | H92: ='利益演示-加保'!K108 ->  | J92: =IF(A92="","",'利益演示-减保'!N109) ->  | K92: =IF(A92="","",SUM($J$4:J92)) ->  | L92: ='利益演示-减保'!Q109 ->  | M92: ='利益演示-减保'!R109 ->  | N92: ='利益演示-减保'!S109 -> 
A93: ='利益演示-加保'!B109 ->  | B93: ='利益演示-加保'!D109 ->  | C93: ='利益演示-加保'!E109 ->  | D93: ='利益演示-加保'!G109 ->  | E93: ='利益演示-加保'!H109 ->  | F93: ='利益演示-加保'!J109 ->  | G93: ='利益演示-加保'!I109 ->  | H93: ='利益演示-加保'!K109 ->  | J93: =IF(A93="","",'利益演示-减保'!N110) ->  | K93: =IF(A93="","",SUM($J$4:J93)) ->  | L93: ='利益演示-减保'!Q110 ->  | M93: ='利益演示-减保'!R110 ->  | N93: ='利益演示-减保'!S110 -> 
A94: ='利益演示-加保'!B110 ->  | B94: ='利益演示-加保'!D110 ->  | C94: ='利益演示-加保'!E110 ->  | D94: ='利益演示-加保'!G110 ->  | E94: ='利益演示-加保'!H110 ->  | F94: ='利益演示-加保'!J110 ->  | G94: ='利益演示-加保'!I110 ->  | H94: ='利益演示-加保'!K110 ->  | J94: =IF(A94="","",'利益演示-减保'!N111) ->  | K94: =IF(A94="","",SUM($J$4:J94)) ->  | L94: ='利益演示-减保'!Q111 ->  | M94: ='利益演示-减保'!R111 ->  | N94: ='利益演示-减保'!S111 -> 
A95: ='利益演示-加保'!B111 ->  | B95: ='利益演示-加保'!D111 ->  | C95: ='利益演示-加保'!E111 ->  | D95: ='利益演示-加保'!G111 ->  | E95: ='利益演示-加保'!H111 ->  | F95: ='利益演示-加保'!J111 ->  | G95: ='利益演示-加保'!I111 ->  | H95: ='利益演示-加保'!K111 ->  | J95: =IF(A95="","",'利益演示-减保'!N112) ->  | K95: =IF(A95="","",SUM($J$4:J95)) ->  | L95: ='利益演示-减保'!Q112 ->  | M95: ='利益演示-减保'!R112 ->  | N95: ='利益演示-减保'!S112 -> 
A96: ='利益演示-加保'!B112 ->  | B96: ='利益演示-加保'!D112 ->  | C96: ='利益演示-加保'!E112 ->  | D96: ='利益演示-加保'!G112 ->  | E96: ='利益演示-加保'!H112 ->  | F96: ='利益演示-加保'!J112 ->  | G96: ='利益演示-加保'!I112 ->  | H96: ='利益演示-加保'!K112 ->  | J96: =IF(A96="","",'利益演示-减保'!N113) ->  | K96: =IF(A96="","",SUM($J$4:J96)) ->  | L96: ='利益演示-减保'!Q113 ->  | M96: ='利益演示-减保'!R113 ->  | N96: ='利益演示-减保'!S113 -> 
A97: ='利益演示-加保'!B113 ->  | B97: ='利益演示-加保'!D113 ->  | C97: ='利益演示-加保'!E113 ->  | D97: ='利益演示-加保'!G113 ->  | E97: ='利益演示-加保'!H113 ->  | F97: ='利益演示-加保'!J113 ->  | G97: ='利益演示-加保'!I113 ->  | H97: ='利益演示-加保'!K113 ->  | J97: =IF(A97="","",'利益演示-减保'!N114) ->  | K97: =IF(A97="","",SUM($J$4:J97)) ->  | L97: ='利益演示-减保'!Q114 ->  | M97: ='利益演示-减保'!R114 ->  | N97: ='利益演示-减保'!S114 -> 
A98: ='利益演示-加保'!B114 ->  | B98: ='利益演示-加保'!D114 ->  | C98: ='利益演示-加保'!E114 ->  | D98: ='利益演示-加保'!G114 ->  | E98: ='利益演示-加保'!H114 ->  | F98: ='利益演示-加保'!J114 ->  | G98: ='利益演示-加保'!I114 ->  | H98: ='利益演示-加保'!K114 ->  | J98: =IF(A98="","",'利益演示-减保'!N115) ->  | K98: =IF(A98="","",SUM($J$4:J98)) ->  | L98: ='利益演示-减保'!Q115 ->  | M98: ='利益演示-减保'!R115 ->  | N98: ='利益演示-减保'!S115 -> 
A99: ='利益演示-加保'!B115 ->  | B99: ='利益演示-加保'!D115 ->  | C99: ='利益演示-加保'!E115 ->  | D99: ='利益演示-加保'!G115 ->  | E99: ='利益演示-加保'!H115 ->  | F99: ='利益演示-加保'!J115 ->  | G99: ='利益演示-加保'!I115 ->  | H99: ='利益演示-加保'!K115 ->  | J99: =IF(A99="","",'利益演示-减保'!N116) ->  | K99: =IF(A99="","",SUM($J$4:J99)) ->  | L99: ='利益演示-减保'!Q116 ->  | M99: ='利益演示-减保'!R116 ->  | N99: ='利益演示-减保'!S116 -> 
A100: ='利益演示-加保'!B116 ->  | B100: ='利益演示-加保'!D116 ->  | C100: ='利益演示-加保'!E116 ->  | D100: ='利益演示-加保'!G116 ->  | E100: ='利益演示-加保'!H116 ->  | F100: ='利益演示-加保'!J116 ->  | G100: ='利益演示-加保'!I116 ->  | H100: ='利益演示-加保'!K116 ->  | J100: =IF(A100="","",'利益演示-减保'!N117) ->  | K100: =IF(A100="","",SUM($J$4:J100)) ->  | L100: ='利益演示-减保'!Q117 ->  | M100: ='利益演示-减保'!R117 ->  | N100: ='利益演示-减保'!S117 -> 
A101: ='利益演示-加保'!B117 ->  | B101: ='利益演示-加保'!D117 ->  | C101: ='利益演示-加保'!E117 ->  | D101: ='利益演示-加保'!G117 ->  | E101: ='利益演示-加保'!H117 ->  | F101: ='利益演示-加保'!J117 ->  | G101: ='利益演示-加保'!I117 ->  | H101: ='利益演示-加保'!K117 ->  | J101: =IF(A101="","",'利益演示-减保'!N118) ->  | K101: =IF(A101="","",SUM($J$4:J101)) ->  | L101: ='利益演示-减保'!Q118 ->  | M101: ='利益演示-减保'!R118 ->  | N101: ='利益演示-减保'!S118 -> 
A102: ='利益演示-加保'!B118 ->  | B102: ='利益演示-加保'!D118 ->  | C102: ='利益演示-加保'!E118 ->  | D102: ='利益演示-加保'!G118 ->  | E102: ='利益演示-加保'!H118 ->  | F102: ='利益演示-加保'!J118 ->  | G102: ='利益演示-加保'!I118 ->  | H102: ='利益演示-加保'!K118 ->  | J102: =IF(A102="","",'利益演示-减保'!N119) ->  | K102: =IF(A102="","",SUM($J$4:J102)) ->  | L102: ='利益演示-减保'!Q119 ->  | M102: ='利益演示-减保'!R119 ->  | N102: ='利益演示-减保'!S119 -> 
A103: ='利益演示-加保'!B119 ->  | B103: ='利益演示-加保'!D119 ->  | C103: ='利益演示-加保'!E119 ->  | D103: ='利益演示-加保'!G119 ->  | E103: ='利益演示-加保'!H119 ->  | F103: ='利益演示-加保'!J119 ->  | G103: ='利益演示-加保'!I119 ->  | H103: ='利益演示-加保'!K119 ->  | J103: =IF(A103="","",'利益演示-减保'!N120) ->  | K103: =IF(A103="","",SUM($J$4:J103)) ->  | L103: ='利益演示-减保'!Q120 ->  | M103: ='利益演示-减保'!R120 ->  | N103: ='利益演示-减保'!S120 -> 
A104: ='利益演示-加保'!B120 ->  | B104: ='利益演示-加保'!D120 ->  | C104: ='利益演示-加保'!E120 ->  | D104: ='利益演示-加保'!G120 ->  | E104: ='利益演示-加保'!H120 ->  | F104: ='利益演示-加保'!J120 ->  | G104: ='利益演示-加保'!I120 ->  | H104: ='利益演示-加保'!K120 ->  | J104: =IF(A104="","",'利益演示-减保'!N121) ->  | K104: =IF(A104="","",SUM($J$4:J104)) ->  | L104: ='利益演示-减保'!Q121 ->  | M104: ='利益演示-减保'!R121 ->  | N104: ='利益演示-减保'!S121 -> 
A105: ='利益演示-加保'!B121 ->  | B105: ='利益演示-加保'!D121 ->  | C105: ='利益演示-加保'!E121 ->  | D105: ='利益演示-加保'!G121 ->  | E105: ='利益演示-加保'!H121 ->  | F105: ='利益演示-加保'!J121 ->  | G105: ='利益演示-加保'!I121 ->  | H105: ='利益演示-加保'!K121 ->  | J105: =IF(A105="","",'利益演示-减保'!N122) ->  | K105: =IF(A105="","",SUM($J$4:J105)) ->  | L105: ='利益演示-减保'!Q122 ->  | M105: ='利益演示-减保'!R122 ->  | N105: ='利益演示-减保'!S122 -> 
A106: ='利益演示-加保'!B122 ->  | B106: ='利益演示-加保'!D122 ->  | C106: ='利益演示-加保'!E122 ->  | D106: ='利益演示-加保'!G122 ->  | E106: ='利益演示-加保'!H122 ->  | F106: ='利益演示-加保'!J122 ->  | G106: ='利益演示-加保'!I122 ->  | H106: ='利益演示-加保'!K122 ->  | J106: =IF(A106="","",'利益演示-减保'!N123) ->  | K106: =IF(A106="","",SUM($J$4:J106)) ->  | L106: ='利益演示-减保'!Q123 ->  | M106: ='利益演示-减保'!R123 ->  | N106: ='利益演示-减保'!S123 -> 
A107: ='利益演示-加保'!B123 ->  | B107: ='利益演示-加保'!D123 ->  | C107: ='利益演示-加保'!E123 ->  | D107: ='利益演示-加保'!G123 ->  | E107: ='利益演示-加保'!H123 ->  | F107: ='利益演示-加保'!J123 ->  | G107: ='利益演示-加保'!I123 ->  | H107: ='利益演示-加保'!K123 ->  | J107: =IF(A107="","",'利益演示-减保'!N124) ->  | K107: =IF(A107="","",SUM($J$4:J107)) ->  | L107: ='利益演示-减保'!Q124 ->  | M107: ='利益演示-减保'!R124 ->  | N107: ='利益演示-减保'!S124 -> 
A108: ='利益演示-加保'!B124 ->  | B108: ='利益演示-加保'!D124 ->  | C108: ='利益演示-加保'!E124 ->  | D108: ='利益演示-加保'!G124 ->  | F108: ='利益演示-减保'!K125 ->  | H108: ='利益演示-加保'!K124 ->  | J108: =IF(A108="","",'利益演示-减保'!N125) ->  | K108: =IF(A108="","",SUM($J$4:J108)) ->  | M108: ='利益演示-减保'!R125 ->  | N108: ='利益演示-减保'!S125 -> 
A109: 重要提示： 1.上述利益演示仅演示复星保德信星盈家两全保险产品的相关利益与保障。 2.上述利益演示表中所列各项数值均以被保险人的周岁年龄计算所得，若设定的被保险人年龄与实际年龄不同，对应的各项数据会有所不同。 3.上述利益演示中数值为保单年度末的数值（且为取整后的数值），具体以保单条款为准。

Sheet 利益演示-加保
B2: Step1 --> | G2: Step2-->在此处可选择需要演示的年龄点 | Q2: Step3-->在此处可选择需要演示的年龄点
B3: 被保险人信息： | G3: 简单利益演示（年末年龄）： | Q3: 加保后利益演示（年末年龄）：
B5: 性别 | C5: =填写页面!L8 -> 男 | G5: 77 | H5: 现金价值 | I5: =VLOOKUP($G5-1,$C$20:$K$129,7,0) -> 6580793.6 | Q5: 77 | R5: 现金价值 | S5: =VLOOKUP($Q5-1,$C$20:$U$129,17,0) -> 9822080
B7: 交费期间 | C7: =填写页面!F12 -> 3 | G7: 98 | H7: 现金价值 | I7: =VLOOKUP($G7-1,$C$20:$K$129,7,0) -> 14349048.3 | Q7: 98 | R7: 现金价值 | S7: =VLOOKUP($Q7-1,$C$20:$U$129,17,0) -> 21416490
B9: 年龄 | C9: =填写页面!H8 -> 40 | G9: 86 | H9: 岁，身故的IRR | I9: =IRR(W20:W129,5%) -> 0.0342585206 | Q9: 86 | R9: 岁，身故的IRR | S9: =IRR(Y20:Y129,5%) -> 0.0342585206
B11: 年交保费 | C11: =填写页面!J12 -> 670000 | G11: 75 | H11: 岁,解除合同的IRR | I11: =IRR(X20:X129,5%) -> 0.03334976781 | Q11: 75 | R11: 岁,解除合同的IRR | S11: =IRR(Z20:Z129,5%) -> 0.03334976781
B13: 基本保险金额 | C13: ='Temp-加保'!C5 -> 1682765.3
N14: =IF(交费期间=1,"不可以期交加保",IF($O$17<=年交保费*50%,"可以期交加保，保费符合期交加保规定","可以期交加保，保费不符合期交加保规定，请修改！")) -> 可以期交加保，保费符合期交加保规定
N15: 是否选择期交加保 | O15: 是
N16: 加保申请保单年度 | O16: 3 | P16: 每笔趸交加保的保险费最低为30,000元
B17: 年度利益演示 | E17: 加保前责任 | N17: 期交加保保费 | O17: 330000 | Q17: 加保后责任
B18: 保单年度 | C18: 年初年龄 | D18: 年末年龄 | E18: 当期保费 （年初） | F18: 附加险当期保费 （年初） | G18: 累计已交保费 （年初） | H18: 有效保额 | I18: 现金价值 （年末） | J18: 满期金 （年末） | K18: 身故保险金 （年末） | L18: 附加险身故保险金 （年末） | M18: 产品组合身故保险金（年末） | N18: 期交加保保险费 （年初） | P18: 趸交加保保险费 （年初） | Q18: 加保后累计保费 （年初） | R18: 加保后有效保额 | S18: 加保后现金价值 （年末） | T18: 加保后满期金 （年末） | U18: 加保后身故保险金 （年末）
V19: 期交加保保费 | W19: Cash In-1 | X19: Cash In-2 | Y19: Cash In-3 | Z19: Cash In-4
A20: 1 | B20: =IF(C20="","",A20) -> 1 | C20: =IF(年龄+A20-1>=99,"",年龄+A20-1) -> 40 | D20: =IF(C20="","",C20+1) -> 41 | E20: =IF($C20>98,"",'Temp-加保'!D9) -> 670000 | F20: =IF($C20>98,"",'Temp-定寿'!D10) -> 0 | G20: =IF($C20>98,"",'Temp-加保'!E9) -> 670000 | H20: =IF(C20<=98,ROUND('Temp-加保'!I9,2),"") -> 1682765.3 | I20: =IF($C20>98,"",'Temp-加保'!F9) -> 245159.7 | J20: =IF(C20<=98,IF($C20=98,ROUND(120%*'Temp-加保'!I9,2),0),"") -> 0 | K20: =IF($C20>98,"",'Temp-加保'!H9) -> 1072000 | L20: =IF($C20>98,"",'Temp-定寿'!G10) -> 0 | M20: =IF($C20>98,"",'Temp-加保'!H9+'Temp-定寿'!G10) -> 1072000 | N20: =IF($O$15="是",IF(B20=$O$16,($O$16-1)*$O$17+$O$17,IF(B20<$O$16,"",IF(AND(B20>$O$16,B20<=$C$7),$O$17,""))),"") ->  | Q20: =IF($C20>98,"",'Temp-加保'!L9) -> 1000000 | R20: =IF(C20<=98,ROUND('Temp-加保'!AA9,2),"") -> 2511590 | S20: =IF($C20>98,"",'Temp-加保'!M9) -> 365910 | T20: =IF(C20<=98,IF($C20=98,ROUND(120%*'Temp-加保'!AA9,2),0),"") -> 0 | U20: =IF($C20>98,"",'Temp-加保'!N9) -> 1600000 | V20: =IF(AND($O$15="是",B20<=交费期间),$O$17,0) -> 330000 | W20: =IF($C20=$G$9,K19,IF($C20<$G$9,-E20,0)) -> -670000 | X20: =IF($C20=$G$11,I19,IF($C20<$G$11,-E20,0)) -> -670000 | Y20: =IF($C20=$Q$9,U19,IF($C20<$Q$9,-P20-E20-V20,0)) -> -1000000 | Z20: =IF($C20=$Q$11,S19,IF($C20<$Q$11,-P20-E20-V20,0)) -> -1000000 | AA20: 0
A21: 2 | B21: 2 | C21: 41 | D21: =IF(C21="","",C21+1) -> 42 | E21: =IF($C21>98,"",'Temp-加保'!D10) -> 670000 | F21: =IF($C21>98,"",'Temp-定寿'!D11) -> 0 | G21: =IF($C21>98,"",'Temp-加保'!E10) -> 1340000 | H21: =IF(C21<=98,ROUND('Temp-加保'!I10,2),"") -> 1741662.09 | I21: =IF($C21>98,"",'Temp-加保'!F10) -> 591161.1 | J21: =IF(C21<=98,IF($C21=98,ROUND(120%*'Temp-加保'!I10,2),0),"") -> 0 | K21: =IF($C21>98,"",'Temp-加保'!H10) -> 1876000 | L21: =IF($C21>98,"",'Temp-定寿'!G11) -> 0 | M21: =IF($C21>98,"",'Temp-加保'!H10+'Temp-定寿'!G11) -> 1876000 | N21: =IF($O$15="是",IF(B21=$O$16,($O$16-1)*$O$17+$O$17,IF(B21<$O$16,"",IF(AND(B21>$O$16,B21<=$C$7),$O$17,""))),"") ->  | Q21: =IF($C21>98,"",'Temp-加保'!L10) -> 2000000 | R21: =IF(C21<=98,ROUND('Temp-加保'!AA10,2),"") -> 2599495.65 | S21: =IF($C21>98,"",'Temp-加保'!M10) -> 882330 | T21: =IF(C21<=98,IF($C21=98,ROUND(120%*'Temp-加保'!AA10,2),0),"") -> 0 | U21: =IF($C21>98,"",'Temp-加保'!N10) -> 2800000 | V21: 330000 | W21: =IF($C21=$G$9,K20,IF($C21<$G$9,-E21,0)) -> -670000 | X21: =IF($C21=$G$11,I20,IF($C21<$G$11,-E21,0)) -> -670000 | Y21: -1000000 | Z21: =IF($C21=$Q$11,S20,IF($C21<$Q$11,-P21-E21-V21,0)) -> -1000000 | AA21: 0
A22: 3 | B22: 3 | C22: 42 | D22: 43 | E22: =IF($C22>98,"",'Temp-加保'!D11) -> 670000 | F22: =IF($C22>98,"",'Temp-定寿'!D12) -> 0 | G22: =IF($C22>98,"",'Temp-加保'!E11) -> 2010000 | H22: =IF(C22<=98,ROUND('Temp-加保'!I11,2),"") -> 1802620.26 | I22: =IF($C22>98,"",'Temp-加保'!F11) -> 990635.2 | J22: =IF(C22<=98,IF($C22=98,ROUND(120%*'Temp-加保'!I11,2),0),"") -> 0 | K22: =IF($C22>98,"",'Temp-加保'!H11) -> 2814000 | L22: =IF($C22>98,"",'Temp-定寿'!G12) -> 0 | M22: =IF($C22>98,"",'Temp-加保'!H11+'Temp-定寿'!G12) -> 2814000 | N22: =IF($O$15="是",IF(B22=$O$16,($O$16-1)*$O$17+$O$17,IF(B22<$O$16,"",IF(AND(B22>$O$16,B22<=$C$7),$O$17,""))),"") -> 990000 | Q22: =IF($C22>98,"",'Temp-加保'!L11) -> 3000000 | R22: =IF(C22<=98,ROUND('Temp-加保'!AA11,2),"") -> 2690478 | S22: =IF($C22>98,"",'Temp-加保'!M11) -> 1478560 | T22: =IF(C22<=98,IF($C22=98,ROUND(120%*'Temp-加保'!AA11,2),0),"") -> 0 | U22: =IF($C22>98,"",'Temp-加保'!N11) -> 4200000 | V22: 330000 | W22: -670000 | X22: -670000 | Y22: -1000000 | Z22: -1000000 | AA22: 0
A23: 4 | B23: =IF(C23="","",A23) -> 4 | C23: 43 | D23: 44 | E23: =IF($C23>98,"",'Temp-加保'!D12) -> 0 | F23: =IF($C23>98,"",'Temp-定寿'!D13) -> 0 | G23: =IF($C23>98,"",'Temp-加保'!E12) -> 2010000 | H23: =IF(C23<=98,ROUND('Temp-加保'!I12,2),"") -> 1865711.97 | I23: =IF($C23>98,"",'Temp-加保'!F12) -> 1042948.8 | J23: =IF(C23<=98,IF($C23=98,ROUND(120%*'Temp-加保'!I12,2),0),"") -> 0 | K23: =IF($C23>98,"",'Temp-加保'!H12) -> 2814000 | L23: =IF($C23>98,"",'Temp-定寿'!G13) -> 0 | M23: =IF($C23>98,"",'Temp-加保'!H12+'Temp-定寿'!G13) -> 2814000 | Q23: =IF($C23>98,"",'Temp-加保'!L12) -> 3000000 | R23: =IF(C23<=98,ROUND('Temp-加保'!AA12,2),"") -> 2784644.73 | S23: =IF($C23>98,"",'Temp-加保'!M12) -> 1556640 | T23: =IF(C23<=98,IF($C23=98,ROUND(120%*'Temp-加保'!AA12,2),0),"") -> 0 | U23: =IF($C23>98,"",'Temp-加保'!N12) -> 4200000 | V23: 0 | W23: 0 | X23: 0 | Y23: 0 | Z23: 0 | AA23: 0
A24: 5 | B24: 5 | C24: 44 | D24: 45 | E24: =IF($C24>98,"",'Temp-加保'!D13) -> 0 | F24: =IF($C24>98,"",'Temp-定寿'!D14) -> 0 | G24: =IF($C24>98,"",'Temp-加保'!E13) -> 2010000 | H24: =IF(C24<=98,ROUND('Temp-加保'!I13,2),"") -> 1931011.89 | I24: =IF($C24>98,"",'Temp-加保'!F13) -> 1098022.8 | J24: =IF(C24<=98,IF($C24=98,ROUND(120%*'Temp-加保'!I13,2),0),"") -> 0 | K24: =IF($C24>98,"",'Temp-加保'!H13) -> 2814000 | L24: =IF($C24>98,"",'Temp-定寿'!G14) -> 0 | M24: =IF($C24>98,"",'Temp-加保'!H13+'Temp-定寿'!G14) -> 2814000 | Q24: =IF($C24>98,"",'Temp-加保'!L13) -> 3000000 | R24: =IF(C24<=98,ROUND('Temp-加保'!AA13,2),"") -> 2882107.29 | S24: =IF($C24>98,"",'Temp-加保'!M13) -> 1638840 | T24: =IF(C24<=98,IF($C24=98,ROUND(120%*'Temp-加保'!AA13,2),0),"") -> 0 | U24: =IF($C24>98,"",'Temp-加保'!N13) -> 4200000 | V24: 0 | W24: 0 | X24: 0 | Y24: 0 | Z24: 0 | AA24: 0
A25: 6 | B25: 6 | C25: 45 | D25: 46 | E25: =IF($C25>98,"",'Temp-加保'!D14) -> 0 | F25: =IF($C25>98,"",'Temp-定寿'!D15) -> 0 | G25: =IF($C25>98,"",'Temp-加保'!E14) -> 2010000 | H25: =IF(C25<=98,ROUND('Temp-加保'!I14,2),"") -> 1998597.3 | I25: =IF($C25>98,"",'Temp-加保'!F14) -> 1743118.9 | J25: =IF(C25<=98,IF($C25=98,ROUND(120%*'Temp-加保'!I14,2),0),"") -> 0 | K25: =IF($C25>98,"",'Temp-加保'!H14) -> 2814000 | L25: =IF($C25>98,"",'Temp-定寿'!G15) -> 0 | M25: =IF($C25>98,"",'Temp-加保'!H14+'Temp-定寿'!G15) -> 2814000 | Q25: =IF($C25>98,"",'Temp-加保'!L14) -> 3000000 | R25: =IF(C25<=98,ROUND('Temp-加保'!AA14,2),"") -> 2982981.05 | S25: =IF($C25>98,"",'Temp-加保'!M14) -> 2601670 | T25: =IF(C25<=98,IF($C25=98,ROUND(120%*'Temp-加保'!AA14,2),0),"") -> 0 | U25: =IF($C25>98,"",'Temp-加保'!N14) -> 4200000 | V25: 0 | W25: 0 | X25: 0 | Y25: 0 | Z25: 0 | AA25: 0
A26: 7 | B26: 7 | C26: 46 | D26: 47 | E26: =IF($C26>98,"",'Temp-加保'!D15) -> 0 | F26: =IF($C26>98,"",'Temp-定寿'!D16) -> 0 | G26: =IF($C26>98,"",'Temp-加保'!E15) -> 2010000 | H26: =IF(C26<=98,ROUND('Temp-加保'!I15,2),"") -> 2068548.21 | I26: =IF($C26>98,"",'Temp-加保'!F15) -> 2411122.3 | J26: =IF(C26<=98,IF($C26=98,ROUND(120%*'Temp-加保'!I15,2),0),"") -> 0 | K26: =IF($C26>98,"",'Temp-加保'!H15) -> 2814000 | L26: =IF($C26>98,"",'Temp-定寿'!G16) -> 0 | M26: =IF($C26>98,"",'Temp-加保'!H15+'Temp-定寿'!G16) -> 2814000 | Q26: =IF($C26>98,"",'Temp-加保'!L15) -> 3000000 | R26: =IF(C26<=98,ROUND('Temp-加保'!AA15,2),"") -> 3087385.39 | S26: =IF($C26>98,"",'Temp-加保'!M15) -> 3598690 | T26: =IF(C26<=98,IF($C26=98,ROUND(120%*'Temp-加保'!AA15,2),0),"") -> 0 | U26: =IF($C26>98,"",'Temp-加保'!N15) -> 4200000 | V26: 0 | W26: 0 | X26: 0 | Y26: 0 | Z26: 0 | AA26: 0
A27: 8 | B27: 8 | C27: 47 | D27: 48 | E27: =IF($C27>98,"",'Temp-加保'!D16) -> 0 | F27: =IF($C27>98,"",'Temp-定寿'!D17) -> 0 | G27: =IF($C27>98,"",'Temp-加保'!E16) -> 2010000 | H27: =IF(C27<=98,ROUND('Temp-加保'!I16,2),"") -> 2140947.4 | I27: =IF($C27>98,"",'Temp-加保'!F16) -> 2494899.1 | J27: =IF(C27<=98,IF($C27=98,ROUND(120%*'Temp-加保'!I16,2),0),"") -> 0 | K27: =IF($C27>98,"",'Temp-加保'!H16) -> 2814000 | L27: =IF($C27>98,"",'Temp-定寿'!G17) -> 0 | M27: =IF($C27>98,"",'Temp-加保'!H16+'Temp-定寿'!G17) -> 2814000 | Q27: =IF($C27>98,"",'Temp-加保'!L16) -> 3000000 | R27: =IF(C27<=98,ROUND('Temp-加保'!AA16,2),"") -> 3195443.87 | S27: =IF($C27>98,"",'Temp-加保'!M16) -> 3723730 | T27: =IF(C27<=98,IF($C27=98,ROUND(120%*'Temp-加保'!AA16,2),0),"") -> 0 | U27: =IF($C27>98,"",'Temp-加保'!N16) -> 4200000 | V27: 0 | W27: 0 | X27: 0 | Y27: 0 | Z27: 0 | AA27: 0
A28: 9 | B28: 9 | C28: 48 | D28: 49 | E28: =IF($C28>98,"",'Temp-加保'!D17) -> 0 | F28: =IF($C28>98,"",'Temp-定寿'!D18) -> 0 | G28: =IF($C28>98,"",'Temp-加保'!E17) -> 2010000 | H28: =IF(C28<=98,ROUND('Temp-加保'!I17,2),"") -> 2215880.55 | I28: =IF($C28>98,"",'Temp-加保'!F17) -> 2581717.7 | J28: =IF(C28<=98,IF($C28=98,ROUND(120%*'Temp-加保'!I17,2),0),"") -> 0 | K28: =IF($C28>98,"",'Temp-加保'!H17) -> 2814000 | L28: =IF($C28>98,"",'Temp-定寿'!G18) -> 0 | M28: =IF($C28>98,"",'Temp-加保'!H17+'Temp-定寿'!G18) -> 2814000 | Q28: =IF($C28>98,"",'Temp-加保'!L17) -> 3000000 | R28: =IF(C28<=98,ROUND('Temp-加保'!AA17,2),"") -> 3307284.41 | S28: =IF($C28>98,"",'Temp-加保'!M17) -> 3853310 | T28: =IF(C28<=98,IF($C28=98,ROUND(120%*'Temp-加保'!AA17,2),0),"") -> 0 | U28: =IF($C28>98,"",'Temp-加保'!N17) -> 4200000 | V28: 0 | W28: 0 | X28: 0 | Y28: 0 | Z28: 0 | AA28: 0
A29: 10 | B29: 10 | C29: 49 | D29: 50 | E29: =IF($C29>98,"",'Temp-加保'!D18) -> 0 | F29: =IF($C29>98,"",'Temp-定寿'!D19) -> 0 | G29: =IF($C29>98,"",'Temp-加保'!E18) -> 2010000 | H29: =IF(C29<=98,ROUND('Temp-加保'!I18,2),"") -> 2293436.37 | I29: =IF($C29>98,"",'Temp-加保'!F18) -> 2671705.4 | J29: =IF(C29<=98,IF($C29=98,ROUND(120%*'Temp-加保'!I18,2),0),"") -> 0 | K29: =IF($C29>98,"",'Temp-加保'!H18) -> 2814000 | L29: =IF($C29>98,"",'Temp-定寿'!G19) -> 0 | M29: =IF($C29>98,"",'Temp-加保'!H18+'Temp-定寿'!G19) -> 2814000 | Q29: =IF($C29>98,"",'Temp-加保'!L18) -> 3000000 | R29: =IF(C29<=98,ROUND('Temp-加保'!AA18,2),"") -> 3423039.36 | S29: =IF($C29>98,"",'Temp-加保'!M18) -> 3987620 | T29: =IF(C29<=98,IF($C29=98,ROUND(120%*'Temp-加保'!AA18,2),0),"") -> 0 | U29: =IF($C29>98,"",'Temp-加保'!N18) -> 4200000 | V29: 0 | W29: 0 | X29: 0 | Y29: 0 | Z29: 0 | AA29: 0
A30: 11 | B30: 11 | C30: 50 | D30: 51 | E30: =IF($C30>98,"",'Temp-加保'!D19) -> 0 | F30: =IF($C30>98,"",'Temp-定寿'!D20) -> 0 | G30: =IF($C30>98,"",'Temp-加保'!E19) -> 2010000 | H30: =IF(C30<=98,ROUND('Temp-加保'!I19,2),"") -> 2373706.65 | I30: =IF($C30>98,"",'Temp-加保'!F19) -> 2765009.6 | J30: =IF(C30<=98,IF($C30=98,ROUND(120%*'Temp-加保'!I19,2),0),"") -> 0 | K30: =IF($C30>98,"",'Temp-加保'!H19) -> 2814000 | L30: =IF($C30>98,"",'Temp-定寿'!G20) -> 0 | M30: =IF($C30>98,"",'Temp-加保'!H19+'Temp-定寿'!G20) -> 2814000 | Q30: =IF($C30>98,"",'Temp-加保'!L19) -> 3000000 | R30: =IF(C30<=98,ROUND('Temp-加保'!AA19,2),"") -> 3542845.74 | S30: =IF($C30>98,"",'Temp-加保'!M19) -> 4126880 | T30: =IF(C30<=98,IF($C30=98,ROUND(120%*'Temp-加保'!AA19,2),0),"") -> 0 | U30: =IF($C30>98,"",'Temp-加保'!N19) -> 4200000 | V30: 0 | W30: 0 | X30: 0 | Y30: 0 | Z30: 0 | AA30: 0
A31: 12 | B31: 12 | C31: 51 | D31: 52 | E31: =IF($C31>98,"",'Temp-加保'!D20) -> 0 | F31: =IF($C31>98,"",'Temp-定寿'!D21) -> 0 | G31: =IF($C31>98,"",'Temp-加保'!E20) -> 2010000 | H31: =IF(C31<=98,ROUND('Temp-加保'!I20,2),"") -> 2456786.38 | I31: =IF($C31>98,"",'Temp-加保'!F20) -> 2861784.4 | J31: =IF(C31<=98,IF($C31=98,ROUND(120%*'Temp-加保'!I20,2),0),"") -> 0 | K31: =IF($C31>98,"",'Temp-加保'!H20) -> 2861784.4 | L31: =IF($C31>98,"",'Temp-定寿'!G21) -> 0 | M31: =IF($C31>98,"",'Temp-加保'!H20+'Temp-定寿'!G21) -> 2861784.4 | Q31: =IF($C31>98,"",'Temp-加保'!L20) -> 3000000 | R31: =IF(C31<=98,ROUND('Temp-加保'!AA20,2),"") -> 3666845.34 | S31: =IF($C31>98,"",'Temp-加保'!M20) -> 4271320 | T31: =IF(C31<=98,IF($C31=98,ROUND(120%*'Temp-加保'!AA20,2),0),"") -> 0 | U31: =IF($C31>98,"",'Temp-加保'!N20) -> 4271320 | V31: 0 | W31: 0 | X31: 0 | Y31: 0 | Z31: 0 | AA31: 0
A32: 13 | B32: 13 | C32: 52 | D32: 53 | E32: =IF($C32>98,"",'Temp-加保'!D21) -> 0 | F32: =IF($C32>98,"",'Temp-定寿'!D22) -> 0 | G32: =IF($C32>98,"",'Temp-加保'!E21) -> 2010000 | H32: =IF(C32<=98,ROUND('Temp-加保'!I21,2),"") -> 2542773.9 | I32: =IF($C32>98,"",'Temp-加保'!F21) -> 2961942.7 | J32: =IF(C32<=98,IF($C32=98,ROUND(120%*'Temp-加保'!I21,2),0),"") -> 0 | K32: =IF($C32>98,"",'Temp-加保'!H21) -> 2961942.7 | L32: =IF($C32>98,"",'Temp-定寿'!G22) -> 0 | M32: =IF($C32>98,"",'Temp-加保'!H21+'Temp-定寿'!G22) -> 2961942.7 | Q32: =IF($C32>98,"",'Temp-加保'!L21) -> 3000000 | R32: =IF(C32<=98,ROUND('Temp-加保'!AA21,2),"") -> 3795184.93 | S32: =IF($C32>98,"",'Temp-加保'!M21) -> 4420810 | T32: =IF(C32<=98,IF($C32=98,ROUND(120%*'Temp-加保'!AA21,2),0),"") -> 0 | U32: =IF($C32>98,"",'Temp-加保'!N21) -> 4420810 | V32: 0 | W32: 0 | X32: 0 | Y32: 0 | Z32: 0 | AA32: 0
A33: 14 | B33: 14 | C33: 53 | D33: 54 | E33: =IF($C33>98,"",'Temp-加保'!D22) -> 0 | F33: =IF($C33>98,"",'Temp-定寿'!D23) -> 0 | G33: =IF($C33>98,"",'Temp-加保'!E22) -> 2010000 | H33: =IF(C33<=98,ROUND('Temp-加保'!I22,2),"") -> 2631770.99 | I33: =IF($C33>98,"",'Temp-加保'!F22) -> 3065611.8 | J33: =IF(C33<=98,IF($C33=98,ROUND(120%*'Temp-加保'!I22,2),0),"") -> 0 | K33: =IF($C33>98,"",'Temp-加保'!H22) -> 3065611.8 | L33: =IF($C33>98,"",'Temp-定寿'!G23) -> 0 | M33: =IF($C33>98,"",'Temp-加保'!H22+'Temp-定寿'!G23) -> 3065611.8 | Q33: =IF($C33>98,"",'Temp-加保'!L22) -> 3000000 | R33: =IF(C33<=98,ROUND('Temp-加保'!AA22,2),"") -> 3928016.4 | S33: =IF($C33>98,"",'Temp-加保'!M22) -> 4575540 | T33: =IF(C33<=98,IF($C33=98,ROUND(120%*'Temp-加保'!AA22,2),0),"") -> 0 | U33: =IF($C33>98,"",'Temp-加保'!N22) -> 4575540 | V33: 0 | W33: 0 | X33: 0 | Y33: 0 | Z33: 0 | AA33: 0
A34: 15 | B34: 15 | C34: 54 | D34: 55 | E34: =IF($C34>98,"",'Temp-加保'!D23) -> 0 | F34: =IF($C34>98,"",'Temp-定寿'!D24) -> 0 | G34: =IF($C34>98,"",'Temp-加保'!E23) -> 2010000 | H34: =IF(C34<=98,ROUND('Temp-加保'!I23,2),"") -> 2723882.97 | I34: =IF($C34>98,"",'Temp-加保'!F23) -> 3172905.6 | J34: =IF(C34<=98,IF($C34=98,ROUND(120%*'Temp-加保'!I23,2),0),"") -> 0 | K34: =IF($C34>98,"",'Temp-加保'!H23) -> 3172905.6 | L34: =IF($C34>98,"",'Temp-定寿'!G24) -> 0 | M34: =IF($C34>98,"",'Temp-加保'!H23+'Temp-定寿'!G24) -> 3172905.6 | Q34: =IF($C34>98,"",'Temp-加保'!L23) -> 3000000 | R34: =IF(C34<=98,ROUND('Temp-加保'!AA23,2),"") -> 4065496.98 | S34: =IF($C34>98,"",'Temp-加保'!M23) -> 4735680 | T34: =IF(C34<=98,IF($C34=98,ROUND(120%*'Temp-加保'!AA23,2),0),"") -> 0 | U34: =IF($C34>98,"",'Temp-加保'!N23) -> 4735680 | V34: 0 | W34: 0 | X34: 0 | Y34: 0 | Z34: 0 | AA34: 0
A35: 16 | B35: 16 | C35: 55 | D35: 56 | E35: =IF($C35>98,"",'Temp-加保'!D24) -> 0 | F35: =IF($C35>98,"",'Temp-定寿'!D25) -> 0 | G35: =IF($C35>98,"",'Temp-加保'!E24) -> 2010000 | H35: =IF(C35<=98,ROUND('Temp-加保'!I24,2),"") -> 2819218.88 | I35: =IF($C35>98,"",'Temp-加保'!F24) -> 3283958.1 | J35: =IF(C35<=98,IF($C35=98,ROUND(120%*'Temp-加保'!I24,2),0),"") -> 0 | K35: =IF($C35>98,"",'Temp-加保'!H24) -> 3283958.1 | L35: =IF($C35>98,"",'Temp-定寿'!G25) -> 0 | M35: =IF($C35>98,"",'Temp-加保'!H24+'Temp-定寿'!G25) -> 3283958.1 | Q35: =IF($C35>98,"",'Temp-加保'!L24) -> 3000000 | R35: =IF(C35<=98,ROUND('Temp-加保'!AA24,2),"") -> 4207789.37 | S35: =IF($C35>98,"",'Temp-加保'!M24) -> 4901430 | T35: =IF(C35<=98,IF($C35=98,ROUND(120%*'Temp-加保'!AA24,2),0),"") -> 0 | U35: =IF($C35>98,"",'Temp-加保'!N24) -> 4901430 | V35: 0 | W35: 0 | X35: 0 | Y35: 0 | Z35: 0 | AA35: 0
A36: 17 | B36: 17 | C36: 56 | D36: 57 | E36: =IF($C36>98,"",'Temp-加保'!D25) -> 0 | F36: =IF($C36>98,"",'Temp-定寿'!D26) -> 0 | G36: =IF($C36>98,"",'Temp-加保'!E25) -> 2010000 | H36: =IF(C36<=98,ROUND('Temp-加保'!I25,2),"") -> 2917891.54 | I36: =IF($C36>98,"",'Temp-加保'!F25) -> 3398896.6 | J36: =IF(C36<=98,IF($C36=98,ROUND(120%*'Temp-加保'!I25,2),0),"") -> 0 | K36: =IF($C36>98,"",'Temp-加保'!H25) -> 3398896.6 | L36: =IF($C36>98,"",'Temp-定寿'!G26) -> 0 | M36: =IF($C36>98,"",'Temp-加保'!H25+'Temp-定寿'!G26) -> 3398896.6 | Q36: =IF($C36>98,"",'Temp-加保'!L25) -> 3000000 | R36: =IF(C36<=98,ROUND('Temp-加保'!AA25,2),"") -> 4355062 | S36: =IF($C36>98,"",'Temp-加保'!M25) -> 5072980 | T36: =IF(C36<=98,IF($C36=98,ROUND(120%*'Temp-加保'!AA25,2),0),"") -> 0 | U36: =IF($C36>98,"",'Temp-加保'!N25) -> 5072980 | V36: 0 | W36: 0 | X36: 0 | Y36: 0 | Z36: 0 | AA36: 0
A37: 18 | B37: 18 | C37: 57 | D37: 58 | E37: =IF($C37>98,"",'Temp-加保'!D26) -> 0 | F37: =IF($C37>98,"",'Temp-定寿'!D27) -> 0 | G37: =IF($C37>98,"",'Temp-加保'!E26) -> 2010000 | H37: =IF(C37<=98,ROUND('Temp-加保'!I26,2),"") -> 3020017.74 | I37: =IF($C37>98,"",'Temp-加保'!F26) -> 3517855.1 | J37: =IF(C37<=98,IF($C37=98,ROUND(120%*'Temp-加保'!I26,2),0),"") -> 0 | K37: =IF($C37>98,"",'Temp-加保'!H26) -> 3517855.1 | L37: =IF($C37>98,"",'Temp-定寿'!G27) -> 0 | M37: =IF($C37>98,"",'Temp-加保'!H26+'Temp-定寿'!G27) -> 3517855.1 | Q37: =IF($C37>98,"",'Temp-加保'!L26) -> 3000000 | R37: =IF(C37<=98,ROUND('Temp-加保'!AA26,2),"") -> 4507489.17 | S37: =IF($C37>98,"",'Temp-加保'!M26) -> 5250530 | T37: =IF(C37<=98,IF($C37=98,ROUND(120%*'Temp-加保'!AA26,2),0),"") -> 0 | U37: =IF($C37>98,"",'Temp-加保'!N26) -> 5250530 | V37: 0 | W37: 0 | X37: 0 | Y37: 0 | Z37: 0 | AA37: 0
A38: 19 | B38: 19 | C38: 58 | D38: 59 | E38: =IF($C38>98,"",'Temp-加保'!D27) -> 0 | F38: =IF($C38>98,"",'Temp-定寿'!D28) -> 0 | G38: =IF($C38>98,"",'Temp-加保'!E27) -> 2010000 | H38: =IF(C38<=98,ROUND('Temp-加保'!I27,2),"") -> 3125718.36 | I38: =IF($C38>98,"",'Temp-加保'!F27) -> 3640974.3 | J38: =IF(C38<=98,IF($C38=98,ROUND(120%*'Temp-加保'!I27,2),0),"") -> 0 | K38: =IF($C38>98,"",'Temp-加保'!H27) -> 3640974.3 | L38: =IF($C38>98,"",'Temp-定寿'!G28) -> 0 | M38: =IF($C38>98,"",'Temp-加保'!H27+'Temp-定寿'!G28) -> 3640974.3 | Q38: =IF($C38>98,"",'Temp-加保'!L27) -> 3000000 | R38: =IF(C38<=98,ROUND('Temp-加保'!AA27,2),"") -> 4665251.29 | S38: =IF($C38>98,"",'Temp-加保'!M27) -> 5434290 | T38: =IF(C38<=98,IF($C38=98,ROUND(120%*'Temp-加保'!AA27,2),0),"") -> 0 | U38: =IF($C38>98,"",'Temp-加保'!N27) -> 5434290 | V38: 0 | W38: 0 | X38: 0 | Y38: 0 | Z38: 0 | AA38: 0
A39: 20 | B39: 20 | C39: 59 | D39: 60 | E39: =IF($C39>98,"",'Temp-加保'!D28) -> 0 | F39: =IF($C39>98,"",'Temp-定寿'!D29) -> 0 | G39: =IF($C39>98,"",'Temp-加保'!E28) -> 2010000 | H39: =IF(C39<=98,ROUND('Temp-加保'!I28,2),"") -> 3235118.51 | I39: =IF($C39>98,"",'Temp-加保'!F28) -> 3768408.3 | J39: =IF(C39<=98,IF($C39=98,ROUND(120%*'Temp-加保'!I28,2),0),"") -> 0 | K39: =IF($C39>98,"",'Temp-加保'!H28) -> 3768408.3 | L39: =IF($C39>98,"",'Temp-定寿'!G29) -> 0 | M39: =IF($C39>98,"",'Temp-加保'!H28+'Temp-定寿'!G29) -> 3768408.3 | Q39: =IF($C39>98,"",'Temp-加保'!L28) -> 3000000 | R39: =IF(C39<=98,ROUND('Temp-加保'!AA28,2),"") -> 4828535.08 | S39: =IF($C39>98,"",'Temp-加保'!M28) -> 5624490 | T39: =IF(C39<=98,IF($C39=98,ROUND(120%*'Temp-加保'!AA28,2),0),"") -> 0 | U39: =IF($C39>98,"",'Temp-加保'!N28) -> 5624490 | V39: 0 | W39: 0 | X39: 0 | Y39: 0 | Z39: 0 | AA39: 0
A40: 21 | B40: 21 | C40: 60 | D40: 61 | E40: =IF($C40>98,"",'Temp-加保'!D29) -> 0 | F40: =IF($C40>98,"",'Temp-定寿'!D30) -> 0 | G40: =IF($C40>98,"",'Temp-加保'!E29) -> 2010000 | H40: =IF(C40<=98,ROUND('Temp-加保'!I29,2),"") -> 3348347.65 | I40: =IF($C40>98,"",'Temp-加保'!F29) -> 3900297.8 | J40: =IF(C40<=98,IF($C40=98,ROUND(120%*'Temp-加保'!I29,2),0),"") -> 0 | K40: =IF($C40>98,"",'Temp-加保'!H29) -> 3900297.8 | L40: =IF($C40>98,"",'Temp-定寿'!G30) -> 0 | M40: =IF($C40>98,"",'Temp-加保'!H29+'Temp-定寿'!G30) -> 3900297.8 | Q40: =IF($C40>98,"",'Temp-加保'!L29) -> 3000000 | R40: =IF(C40<=98,ROUND('Temp-加保'!AA29,2),"") -> 4997533.81 | S40: =IF($C40>98,"",'Temp-加保'!M29) -> 5821340 | T40: =IF(C40<=98,IF($C40=98,ROUND(120%*'Temp-加保'!AA29,2),0),"") -> 0 | U40: =IF($C40>98,"",'Temp-加保'!N29) -> 5821340 | V40: 0 | W40: 0 | X40: 0 | Y40: 0 | Z40: 0 | AA40: 0
A41: 22 | B41: 22 | C41: 61 | D41: 62 | E41: =IF($C41>98,"",'Temp-加保'!D30) -> 0 | F41: =IF($C41>98,"",'Temp-定寿'!D31) -> 0 | G41: =IF($C41>98,"",'Temp-加保'!E30) -> 2010000 | H41: =IF(C41<=98,ROUND('Temp-加保'!I30,2),"") -> 3465539.82 | I41: =IF($C41>98,"",'Temp-加保'!F30) -> 4036810.3 | J41: =IF(C41<=98,IF($C41=98,ROUND(120%*'Temp-加保'!I30,2),0),"") -> 0 | K41: =IF($C41>98,"",'Temp-加保'!H30) -> 4036810.3 | L41: =IF($C41>98,"",'Temp-定寿'!G31) -> 0 | M41: =IF($C41>98,"",'Temp-加保'!H30+'Temp-定寿'!G31) -> 4036810.3 | Q41: =IF($C41>98,"",'Temp-加保'!L30) -> 3000000 | R41: =IF(C41<=98,ROUND('Temp-加保'!AA30,2),"") -> 5172447.49 | S41: =IF($C41>98,"",'Temp-加保'!M30) -> 6025090 | T41: =IF(C41<=98,IF($C41=98,ROUND(120%*'Temp-加保'!AA30,2),0),"") -> 0 | U41: =IF($C41>98,"",'Temp-加保'!N30) -> 6025090 | V41: 0 | W41: 0 | X41: 0 | Y41: 0 | Z41: 0 | AA41: 0
A42: 23 | B42: 23 | C42: 62 | D42: 63 | E42: =IF($C42>98,"",'Temp-加保'!D31) -> 0 | F42: =IF($C42>98,"",'Temp-定寿'!D32) -> 0 | G42: =IF($C42>98,"",'Temp-加保'!E31) -> 2010000 | H42: =IF(C42<=98,ROUND('Temp-加保'!I31,2),"") -> 3586833.72 | I42: =IF($C42>98,"",'Temp-加保'!F31) -> 4044307.6 | J42: =IF(C42<=98,IF($C42=98,ROUND(120%*'Temp-加保'!I31,2),0),"") -> 0 | K42: =IF($C42>98,"",'Temp-加保'!H31) -> 4044307.6 | L42: =IF($C42>98,"",'Temp-定寿'!G32) -> 0 | M42: =IF($C42>98,"",'Temp-加保'!H31+'Temp-定寿'!G32) -> 4044307.6 | Q42: =IF($C42>98,"",'Temp-加保'!L31) -> 3000000 | R42: =IF(C42<=98,ROUND('Temp-加保'!AA31,2),"") -> 5353483.16 | S42: =IF($C42>98,"",'Temp-加保'!M31) -> 6036280 | T42: =IF(C42<=98,IF($C42=98,ROUND(120%*'Temp-加保'!AA31,2),0),"") -> 0 | U42: =IF($C42>98,"",'Temp-加保'!N31) -> 6036280 | V42: 0 | W42: 0 | X42: 0 | Y42: 0 | Z42: 0 | AA42: 0
A43: 24 | B43: 24 | C43: 63 | D43: 64 | E43: =IF($C43>98,"",'Temp-加保'!D32) -> 0 | F43: =IF($C43>98,"",'Temp-定寿'!D33) -> 0 | G43: =IF($C43>98,"",'Temp-加保'!E32) -> 2010000 | H43: =IF(C43<=98,ROUND('Temp-加保'!I32,2),"") -> 3712372.9 | I43: =IF($C43>98,"",'Temp-加保'!F32) -> 4186247.1 | J43: =IF(C43<=98,IF($C43=98,ROUND(120%*'Temp-加保'!I32,2),0),"") -> 0 | K43: =IF($C43>98,"",'Temp-加保'!H32) -> 4186247.1 | L43: =IF($C43>98,"",'Temp-定寿'!G33) -> 0 | M43: =IF($C43>98,"",'Temp-加保'!H32+'Temp-定寿'!G33) -> 4186247.1 | Q43: =IF($C43>98,"",'Temp-加保'!L32) -> 3000000 | R43: =IF(C43<=98,ROUND('Temp-加保'!AA32,2),"") -> 5540855.07 | S43: =IF($C43>98,"",'Temp-加保'!M32) -> 6248130 | T43: =IF(C43<=98,IF($C43=98,ROUND(120%*'Temp-加保'!AA32,2),0),"") -> 0 | U43: =IF($C43>98,"",'Temp-加保'!N32) -> 6248130 | V43: 0 | W43: 0 | X43: 0 | Y43: 0 | Z43: 0 | AA43: 0
A44: 25 | B44: 25 | C44: 64 | D44: 65 | E44: =IF($C44>98,"",'Temp-加保'!D33) -> 0 | F44: =IF($C44>98,"",'Temp-定寿'!D34) -> 0 | G44: =IF($C44>98,"",'Temp-加保'!E33) -> 2010000 | H44: =IF(C44<=98,ROUND('Temp-加保'!I33,2),"") -> 3842305.95 | I44: =IF($C44>98,"",'Temp-加保'!F33) -> 4333600.2 | J44: =IF(C44<=98,IF($C44=98,ROUND(120%*'Temp-加保'!I33,2),0),"") -> 0 | K44: =IF($C44>98,"",'Temp-加保'!H33) -> 4333600.2 | L44: =IF($C44>98,"",'Temp-定寿'!G34) -> 0 | M44: =IF($C44>98,"",'Temp-加保'!H33+'Temp-定寿'!G34) -> 4333600.2 | Q44: =IF($C44>98,"",'Temp-加保'!L33) -> 3000000 | R44: =IF(C44<=98,ROUND('Temp-加保'!AA33,2),"") -> 5734785 | S44: =IF($C44>98,"",'Temp-加保'!M33) -> 6468060 | T44: =IF(C44<=98,IF($C44=98,ROUND(120%*'Temp-加保'!AA33,2),0),"") -> 0 | U44: =IF($C44>98,"",'Temp-加保'!N33) -> 6468060 | V44: 0 | W44: 0 | X44: 0 | Y44: 0 | Z44: 0 | AA44: 0
A45: 26 | B45: 26 | C45: 65 | D45: 66 | E45: =IF($C45>98,"",'Temp-加保'!D34) -> 0 | F45: =IF($C45>98,"",'Temp-定寿'!D35) -> 0 | G45: =IF($C45>98,"",'Temp-加保'!E34) -> 2010000 | H45: =IF(C45<=98,ROUND('Temp-加保'!I34,2),"") -> 3976786.65 | I45: =IF($C45>98,"",'Temp-加保'!F34) -> 4486212.8 | J45: =IF(C45<=98,IF($C45=98,ROUND(120%*'Temp-加保'!I34,2),0),"") -> 0 | K45: =IF($C45>98,"",'Temp-加保'!H34) -> 4486212.8 | L45: =IF($C45>98,"",'Temp-定寿'!G35) -> 0 | M45: =IF($C45>98,"",'Temp-加保'!H34+'Temp-定寿'!G35) -> 4486212.8 | Q45: =IF($C45>98,"",'Temp-加保'!L34) -> 3000000 | R45: =IF(C45<=98,ROUND('Temp-加保'!AA34,2),"") -> 5935502.47 | S45: =IF($C45>98,"",'Temp-加保'!M34) -> 6695840 | T45: =IF(C45<=98,IF($C45=98,ROUND(120%*'Temp-加保'!AA34,2),0),"") -> 0 | U45: =IF($C45>98,"",'Temp-加保'!N34) -> 6695840 | V45: 0 | W45: 0 | X45: 0 | Y45: 0 | Z45: 0 | AA45: 0
A46: 27 | B46: 27 | C46: 66 | D46: 67 | E46: =IF($C46>98,"",'Temp-加保'!D35) -> 0 | F46: =IF($C46>98,"",'Temp-定寿'!D36) -> 0 | G46: =IF($C46>98,"",'Temp-加保'!E35) -> 2010000 | H46: =IF(C46<=98,ROUND('Temp-加保'!I35,2),"") -> 4115974.19 | I46: =IF($C46>98,"",'Temp-加保'!F35) -> 4644285.9 | J46: =IF(C46<=98,IF($C46=98,ROUND(120%*'Temp-加保'!I35,2),0),"") -> 0 | K46: =IF($C46>98,"",'Temp-加保'!H35) -> 4644285.9 | L46: =IF($C46>98,"",'Temp-定寿'!G36) -> 0 | M46: =IF($C46>98,"",'Temp-加保'!H35+'Temp-定寿'!G36) -> 4644285.9 | Q46: =IF($C46>98,"",'Temp-加保'!L35) -> 3000000 | R46: =IF(C46<=98,ROUND('Temp-加保'!AA35,2),"") -> 6143245.06 | S46: =IF($C46>98,"",'Temp-加保'!M35) -> 6931770 | T46: =IF(C46<=98,IF($C46=98,ROUND(120%*'Temp-加保'!AA35,2),0),"") -> 0 | U46: =IF($C46>98,"",'Temp-加保'!N35) -> 6931770 | V46: 0 | W46: 0 | X46: 0 | Y46: 0 | Z46: 0 | AA46: 0
A47: 28 | B47: 28 | C47: 67 | D47: 68 | E47: =IF($C47>98,"",'Temp-加保'!D36) -> 0 | F47: =IF($C47>98,"",'Temp-定寿'!D37) -> 0 | G47: =IF($C47>98,"",'Temp-加保'!E36) -> 2010000 | H47: =IF(C47<=98,ROUND('Temp-加保'!I36,2),"") -> 4260033.28 | I47: =IF($C47>98,"",'Temp-加保'!F36) -> 4808027.2 | J47: =IF(C47<=98,IF($C47=98,ROUND(120%*'Temp-加保'!I36,2),0),"") -> 0 | K47: =IF($C47>98,"",'Temp-加保'!H36) -> 4808027.2 | L47: =IF($C47>98,"",'Temp-定寿'!G37) -> 0 | M47: =IF($C47>98,"",'Temp-加保'!H36+'Temp-定寿'!G37) -> 4808027.2 | Q47: =IF($C47>98,"",'Temp-加保'!L36) -> 3000000 | R47: =IF(C47<=98,ROUND('Temp-加保'!AA36,2),"") -> 6358258.63 | S47: =IF($C47>98,"",'Temp-加保'!M36) -> 7176160 | T47: =IF(C47<=98,IF($C47=98,ROUND(120%*'Temp-加保'!AA36,2),0),"") -> 0 | U47: =IF($C47>98,"",'Temp-加保'!N36) -> 7176160 | V47: 0 | W47: 0 | X47: 0 | Y47: 0 | Z47: 0 | AA47: 0
A48: 29 | B48: 29 | C48: 68 | D48: 69 | E48: =IF($C48>98,"",'Temp-加保'!D37) -> 0 | F48: =IF($C48>98,"",'Temp-定寿'!D38) -> 0 | G48: =IF($C48>98,"",'Temp-加保'!E37) -> 2010000 | H48: =IF(C48<=98,ROUND('Temp-加保'!I37,2),"") -> 4409134.45 | I48: =IF($C48>98,"",'Temp-加保'!F37) -> 4977671.2 | J48: =IF(C48<=98,IF($C48=98,ROUND(120%*'Temp-加保'!I37,2),0),"") -> 0 | K48: =IF($C48>98,"",'Temp-加保'!H37) -> 4977671.2 | L48: =IF($C48>98,"",'Temp-定寿'!G38) -> 0 | M48: =IF($C48>98,"",'Temp-加保'!H37+'Temp-定寿'!G38) -> 4977671.2 | Q48: =IF($C48>98,"",'Temp-加保'!L37) -> 3000000 | R48: =IF(C48<=98,ROUND('Temp-加保'!AA37,2),"") -> 6580797.69 | S48: =IF($C48>98,"",'Temp-加保'!M37) -> 7429360 | T48: =IF(C48<=98,IF($C48=98,ROUND(120%*'Temp-加保'!AA37,2),0),"") -> 0 | U48: =IF($C48>98,"",'Temp-加保'!N37) -> 7429360 | V48: 0 | W48: 0 | X48: 0 | Y48: 0 | Z48: 0 | AA48: 0
A49: 30 | B49: 30 | C49: 69 | D49: 70 | E49: =IF($C49>98,"",'Temp-加保'!D38) -> 0 | F49: =IF($C49>98,"",'Temp-定寿'!D39) -> 0 | G49: =IF($C49>98,"",'Temp-加保'!E38) -> 2010000 | H49: =IF(C49<=98,ROUND('Temp-加保'!I38,2),"") -> 4563454.16 | I49: =IF($C49>98,"",'Temp-加保'!F38) -> 5153445.7 | J49: =IF(C49<=98,IF($C49=98,ROUND(120%*'Temp-加保'!I38,2),0),"") -> 0 | K49: =IF($C49>98,"",'Temp-加保'!H38) -> 5153445.7 | L49: =IF($C49>98,"",'Temp-定寿'!G39) -> 0 | M49: =IF($C49>98,"",'Temp-加保'!H38+'Temp-定寿'!G39) -> 5153445.7 | Q49: =IF($C49>98,"",'Temp-加保'!L38) -> 3000000 | R49: =IF(C49<=98,ROUND('Temp-加保'!AA38,2),"") -> 6811125.6 | S49: =IF($C49>98,"",'Temp-加保'!M38) -> 7691710 | T49: =IF(C49<=98,IF($C49=98,ROUND(120%*'Temp-加保'!AA38,2),0),"") -> 0 | U49: =IF($C49>98,"",'Temp-加保'!N38) -> 7691710 | V49: 0 | W49: 0 | X49: 0 | Y49: 0 | Z49: 0 | AA49: 0
A50: 31 | B50: 31 | C50: 70 | D50: 71 | E50: =IF($C50>98,"",'Temp-加保'!D39) -> 0 | F50: =IF($C50>98,"",'Temp-定寿'!D40) -> 0 | G50: =IF($C50>98,"",'Temp-加保'!E39) -> 2010000 | H50: =IF(C50<=98,ROUND('Temp-加保'!I39,2),"") -> 4723175.05 | I50: =IF($C50>98,"",'Temp-加保'!F39) -> 5335618.7 | J50: =IF(C50<=98,IF($C50=98,ROUND(120%*'Temp-加保'!I39,2),0),"") -> 0 | K50: =IF($C50>98,"",'Temp-加保'!H39) -> 5335618.7 | L50: =IF($C50>98,"",'Temp-定寿'!G40) -> 0 | M50: =IF($C50>98,"",'Temp-加保'!H39+'Temp-定寿'!G40) -> 5335618.7 | Q50: =IF($C50>98,"",'Temp-加保'!L39) -> 3000000 | R50: =IF(C50<=98,ROUND('Temp-加保'!AA39,2),"") -> 7049515 | S50: =IF($C50>98,"",'Temp-加保'!M39) -> 7963610 | T50: =IF(C50<=98,IF($C50=98,ROUND(120%*'Temp-加保'!AA39,2),0),"") -> 0 | U50: =IF($C50>98,"",'Temp-加保'!N39) -> 7963610 | V50: 0 | W50: 0 | X50: 0 | Y50: 0 | Z50: 0 | AA50: 0
A51: 32 | B51: 32 | C51: 71 | D51: 72 | E51: =IF($C51>98,"",'Temp-加保'!D40) -> 0 | F51: =IF($C51>98,"",'Temp-定寿'!D41) -> 0 | G51: =IF($C51>98,"",'Temp-加保'!E40) -> 2010000 | H51: =IF(C51<=98,ROUND('Temp-加保'!I40,2),"") -> 4888486.18 | I51: =IF($C51>98,"",'Temp-加保'!F40) -> 5524451.5 | J51: =IF(C51<=98,IF($C51=98,ROUND(120%*'Temp-加保'!I40,2),0),"") -> 0 | K51: =IF($C51>98,"",'Temp-加保'!H40) -> 5524451.5 | L51: =IF($C51>98,"",'Temp-定寿'!G41) -> 0 | M51: =IF($C51>98,"",'Temp-加保'!H40+'Temp-定寿'!G41) -> 5524451.5 | Q51: =IF($C51>98,"",'Temp-加保'!L40) -> 3000000 | R51: =IF(C51<=98,ROUND('Temp-加保'!AA40,2),"") -> 7296248.03 | S51: =IF($C51>98,"",'Temp-加保'!M40) -> 8245450 | T51: =IF(C51<=98,IF($C51=98,ROUND(120%*'Temp-加保'!AA40,2),0),"") -> 0 | U51: =IF($C51>98,"",'Temp-加保'!N40) -> 8245450 | V51: 0 | W51: 0 | X51: 0 | Y51: 0 | Z51: 0 | AA51: 0
A52: 33 | B52: 33 | C52: =IF(年龄+A52-1>=99,"",年龄+A52-1) -> 72 | D52: 73 | E52: =IF($C52>98,"",'Temp-加保'!D41) -> 0 | F52: =IF($C52>98,"",'Temp-定寿'!D42) -> 0 | G52: =IF($C52>98,"",'Temp-加保'!E41) -> 2010000 | H52: =IF(C52<=98,ROUND('Temp-加保'!I41,2),"") -> 5059583.19 | I52: =IF($C52>98,"",'Temp-加保'!F41) -> 5720272.4 | J52: =IF(C52<=98,IF($C52=98,ROUND(120%*'Temp-加保'!I41,2),0),"") -> 0 | K52: =IF($C52>98,"",'Temp-加保'!H41) -> 5720272.4 | L52: =IF($C52>98,"",'Temp-定寿'!G42) -> 0 | M52: =IF($C52>98,"",'Temp-加保'!H41+'Temp-定寿'!G42) -> 5720272.4 | Q52: =IF($C52>98,"",'Temp-加保'!L41) -> 3000000 | R52: =IF(C52<=98,ROUND('Temp-加保'!AA41,2),"") -> 7551616.71 | S52: =IF($C52>98,"",'Temp-加保'!M41) -> 8537720 | T52: =IF(C52<=98,IF($C52=98,ROUND(120%*'Temp-加保'!AA41,2),0),"") -> 0 | U52: =IF($C52>98,"",'Temp-加保'!N41) -> 8537720 | V52: =IF(AND($O$15="是",B52<=交费期间),$O$17,0) -> 0 | W52: =IF($C52=$G$9,K51,IF($C52<$G$9,-E52,0)) -> 0 | X52: =IF($C52=$G$11,I51,IF($C52<$G$11,-E52,0)) -> 0 | Y52: 0 | Z52: 0 | AA52: 0
A53: 34 | B53: 34 | C53: 73 | D53: 74 | E53: =IF($C53>98,"",'Temp-加保'!D42) -> 0 | F53: =IF($C53>98,"",'Temp-定寿'!D43) -> 0 | G53: =IF($C53>98,"",'Temp-加保'!E42) -> 2010000 | H53: =IF(C53<=98,ROUND('Temp-加保'!I42,2),"") -> 5236668.61 | I53: =IF($C53>98,"",'Temp-加保'!F42) -> 5923409.7 | J53: =IF(C53<=98,IF($C53=98,ROUND(120%*'Temp-加保'!I42,2),0),"") -> 0 | K53: =IF($C53>98,"",'Temp-加保'!H42) -> 5923409.7 | L53: =IF($C53>98,"",'Temp-定寿'!G43) -> 0 | M53: =IF($C53>98,"",'Temp-加保'!H42+'Temp-定寿'!G43) -> 5923409.7 | Q53: =IF($C53>98,"",'Temp-加保'!L42) -> 3000000 | R53: =IF(C53<=98,ROUND('Temp-加保'!AA42,2),"") -> 7815923.29 | S53: =IF($C53>98,"",'Temp-加保'!M42) -> 8840910 | T53: =IF(C53<=98,IF($C53=98,ROUND(120%*'Temp-加保'!AA42,2),0),"") -> 0 | U53: =IF($C53>98,"",'Temp-加保'!N42) -> 8840910 | V53: 0 | W53: 0 | X53: 0 | Y53: 0 | Z53: 0 | AA53: 0
A54: 35 | B54: 35 | C54: 74 | D54: 75 | E54: =IF($C54>98,"",'Temp-加保'!D43) -> 0 | F54: =IF($C54>98,"",'Temp-定寿'!D44) -> 0 | G54: =IF($C54>98,"",'Temp-加保'!E43) -> 2010000 | H54: =IF(C54<=98,ROUND('Temp-加保'!I43,2),"") -> 5419952.01 | I54: =IF($C54>98,"",'Temp-加保'!F43) -> 6134252 | J54: =IF(C54<=98,IF($C54=98,ROUND(120%*'Temp-加保'!I43,2),0),"") -> 0 | K54: =IF($C54>98,"",'Temp-加保'!H43) -> 6134252 | L54: =IF($C54>98,"",'Temp-定寿'!G44) -> 0 | M54: =IF($C54>98,"",'Temp-加保'!H43+'Temp-定寿'!G44) -> 6134252 | Q54: =IF($C54>98,"",'Temp-加保'!L43) -> 3000000 | R54: =IF(C54<=98,ROUND('Temp-加保'!AA43,2),"") -> 8089480.61 | S54: =IF($C54>98,"",'Temp-加保'!M43) -> 9155600 | T54: =IF(C54<=98,IF($C54=98,ROUND(120%*'Temp-加保'!AA43,2),0),"") -> 0 | U54: =IF($C54>98,"",'Temp-加保'!N43) -> 9155600 | V54: 0 | W54: 0 | X54: 0 | Y54: 0 | Z54: 0 | AA54: 0
A55: 36 | B55: 36 | C55: 75 | D55: 76 | E55: =IF($C55>98,"",'Temp-加保'!D44) -> 0 | F55: =IF($C55>98,"",'Temp-定寿'!D45) -> 0 | G55: =IF($C55>98,"",'Temp-加保'!E44) -> 2010000 | H55: =IF(C55<=98,ROUND('Temp-加保'!I44,2),"") -> 5609650.33 | I55: =IF($C55>98,"",'Temp-加保'!F44) -> 6353221.4 | J55: =IF(C55<=98,IF($C55=98,ROUND(120%*'Temp-加保'!I44,2),0),"") -> 0 | K55: =IF($C55>98,"",'Temp-加保'!H44) -> 6353221.4 | L55: =IF($C55>98,"",'Temp-定寿'!G45) -> 0 | M55: =IF($C55>98,"",'Temp-加保'!H44+'Temp-定寿'!G45) -> 6353221.4 | Q55: =IF($C55>98,"",'Temp-加保'!L44) -> 3000000 | R55: =IF(C55<=98,ROUND('Temp-加保'!AA44,2),"") -> 8372612.43 | S55: =IF($C55>98,"",'Temp-加保'!M44) -> 9482420 | T55: =IF(C55<=98,IF($C55=98,ROUND(120%*'Temp-加保'!AA44,2),0),"") -> 0 | U55: =IF($C55>98,"",'Temp-加保'!N44) -> 9482420 | V55: 0 | W55: 0 | X55: 6134252 | Y55: 0 | Z55: 9155600 | AA55: 0
A56: 37 | B56: 37 | C56: 76 | D56: 77 | E56: =IF($C56>98,"",'Temp-加保'!D45) -> 0 | F56: =IF($C56>98,"",'Temp-定寿'!D46) -> 0 | G56: =IF($C56>98,"",'Temp-加保'!E45) -> 2010000 | H56: =IF(C56<=98,ROUND('Temp-加保'!I45,2),"") -> 5805988.09 | I56: =IF($C56>98,"",'Temp-加保'!F45) -> 6580793.6 | J56: =IF(C56<=98,IF($C56=98,ROUND(120%*'Temp-加保'!I45,2),0),"") -> 0 | K56: =IF($C56>98,"",'Temp-加保'!H45) -> 6580793.6 | L56: =IF($C56>98,"",'Temp-定寿'!G46) -> 0 | M56: =IF($C56>98,"",'Temp-加保'!H45+'Temp-定寿'!G46) -> 6580793.6 | Q56: =IF($C56>98,"",'Temp-加保'!L45) -> 3000000 | R56: =IF(C56<=98,ROUND('Temp-加保'!AA45,2),"") -> 8665653.86 | S56: =IF($C56>98,"",'Temp-加保'!M45) -> 9822080 | T56: =IF(C56<=98,IF($C56=98,ROUND(120%*'Temp-加保'!AA45,2),0),"") -> 0 | U56: =IF($C56>98,"",'Temp-加保'!N45) -> 9822080 | V56: 0 | W56: 0 | X56: 0 | Y56: 0 | Z56: 0 | AA56: 0
A57: 38 | B57: 38 | C57: 77 | D57: 78 | E57: =IF($C57>98,"",'Temp-加保'!D46) -> 0 | F57: =IF($C57>98,"",'Temp-定寿'!D47) -> 0 | G57: =IF($C57>98,"",'Temp-加保'!E46) -> 2010000 | H57: =IF(C57<=98,ROUND('Temp-加保'!I46,2),"") -> 6009197.67 | I57: =IF($C57>98,"",'Temp-加保'!F46) -> 6817477.8 | J57: =IF(C57<=98,IF($C57=98,ROUND(120%*'Temp-加保'!I46,2),0),"") -> 0 | K57: =IF($C57>98,"",'Temp-加保'!H46) -> 6817477.8 | L57: =IF($C57>98,"",'Temp-定寿'!G47) -> 0 | M57: =IF($C57>98,"",'Temp-加保'!H46+'Temp-定寿'!G47) -> 6817477.8 | Q57: =IF($C57>98,"",'Temp-加保'!L46) -> 3000000 | R57: =IF(C57<=98,ROUND('Temp-加保'!AA46,2),"") -> 8968951.75 | S57: =IF($C57>98,"",'Temp-加保'!M46) -> 10175340 | T57: =IF(C57<=98,IF($C57=98,ROUND(120%*'Temp-加保'!AA46,2),0),"") -> 0 | U57: =IF($C57>98,"",'Temp-加保'!N46) -> 10175340 | V57: 0 | W57: 0 | X57: 0 | Y57: 0 | Z57: 0 | AA57: 0
A58: 39 | B58: 39 | C58: 78 | D58: 79 | E58: =IF($C58>98,"",'Temp-加保'!D47) -> 0 | F58: =IF($C58>98,"",'Temp-定寿'!D48) -> 0 | G58: =IF($C58>98,"",'Temp-加保'!E47) -> 2010000 | H58: =IF(C58<=98,ROUND('Temp-加保'!I47,2),"") -> 6219519.59 | I58: =IF($C58>98,"",'Temp-加保'!F47) -> 7063836.8 | J58: =IF(C58<=98,IF($C58=98,ROUND(120%*'Temp-加保'!I47,2),0),"") -> 0 | K58: =IF($C58>98,"",'Temp-加保'!H47) -> 7063836.8 | L58: =IF($C58>98,"",'Temp-定寿'!G48) -> 0 | M58: =IF($C58>98,"",'Temp-加保'!H47+'Temp-定寿'!G48) -> 7063836.8 | Q58: =IF($C58>98,"",'Temp-加保'!L47) -> 3000000 | R58: =IF(C58<=98,ROUND('Temp-加保'!AA47,2),"") -> 9282865.06 | S58: =IF($C58>98,"",'Temp-加保'!M47) -> 10543040 | T58: =IF(C58<=98,IF($C58=98,ROUND(120%*'Temp-加保'!AA47,2),0),"") -> 0 | U58: =IF($C58>98,"",'Temp-加保'!N47) -> 10543040 | V58: 0 | W58: 0 | X58: 0 | Y58: 0 | Z58: 0 | AA58: 0
A59: 40 | B59: 40 | C59: 79 | D59: 80 | E59: =IF($C59>98,"",'Temp-加保'!D48) -> 0 | F59: =IF($C59>98,"",'Temp-定寿'!D49) -> 0 | G59: =IF($C59>98,"",'Temp-加保'!E48) -> 2010000 | H59: =IF(C59<=98,ROUND('Temp-加保'!I48,2),"") -> 6437202.78 | I59: =IF($C59>98,"",'Temp-加保'!F48) -> 7320473.6 | J59: =IF(C59<=98,IF($C59=98,ROUND(120%*'Temp-加保'!I48,2),0),"") -> 0 | K59: =IF($C59>98,"",'Temp-加保'!H48) -> 7320473.6 | L59: =IF($C59>98,"",'Temp-定寿'!G49) -> 0 | M59: =IF($C59>98,"",'Temp-加保'!H48+'Temp-定寿'!G49) -> 7320473.6 | Q59: =IF($C59>98,"",'Temp-加保'!L48) -> 3000000 | R59: =IF(C59<=98,ROUND('Temp-加保'!AA48,2),"") -> 9607765.34 | S59: =IF($C59>98,"",'Temp-加保'!M48) -> 10926080 | T59: =IF(C59<=98,IF($C59=98,ROUND(120%*'Temp-加保'!AA48,2),0),"") -> 0 | U59: =IF($C59>98,"",'Temp-加保'!N48) -> 10926080 | V59: 0 | W59: 0 | X59: 0 | Y59: 0 | Z59: 0 | AA59: 0
A60: 41 | B60: 41 | C60: 80 | D60: 81 | E60: =IF($C60>98,"",'Temp-加保'!D49) -> 0 | F60: =IF($C60>98,"",'Temp-定寿'!D50) -> 0 | G60: =IF($C60>98,"",'Temp-加保'!E49) -> 2010000 | H60: =IF(C60<=98,ROUND('Temp-加保'!I49,2),"") -> 6662504.87 | I60: =IF($C60>98,"",'Temp-加保'!F49) -> 7588018 | J60: =IF(C60<=98,IF($C60=98,ROUND(120%*'Temp-加保'!I49,2),0),"") -> 0 | K60: =IF($C60>98,"",'Temp-加保'!H49) -> 7588018 | L60: =IF($C60>98,"",'Temp-定寿'!G50) -> 0 | M60: =IF($C60>98,"",'Temp-加保'!H49+'Temp-定寿'!G50) -> 7588018 | Q60: =IF($C60>98,"",'Temp-加保'!L49) -> 3000000 | R60: =IF(C60<=98,ROUND('Temp-加保'!AA49,2),"") -> 9944037.12 | S60: =IF($C60>98,"",'Temp-加保'!M49) -> 11325400 | T60: =IF(C60<=98,IF($C60=98,ROUND(120%*'Temp-加保'!AA49,2),0),"") -> 0 | U60: =IF($C60>98,"",'Temp-加保'!N49) -> 11325400 | V60: 0 | W60: 0 | X60: 0 | Y60: 0 | Z60: 0 | AA60: 0
A61: 42 | B61: 42 | C61: 81 | D61: 82 | E61: =IF($C61>98,"",'Temp-加保'!D50) -> 0 | F61: =IF($C61>98,"",'Temp-定寿'!D51) -> 0 | G61: =IF($C61>98,"",'Temp-加保'!E50) -> 2010000 | H61: =IF(C61<=98,ROUND('Temp-加保'!I50,2),"") -> 6895692.54 | I61: =IF($C61>98,"",'Temp-加保'!F50) -> 7867160.1 | J61: =IF(C61<=98,IF($C61=98,ROUND(120%*'Temp-加保'!I50,2),0),"") -> 0 | K61: =IF($C61>98,"",'Temp-加保'!H50) -> 7867160.1 | L61: =IF($C61>98,"",'Temp-定寿'!G51) -> 0 | M61: =IF($C61>98,"",'Temp-加保'!H50+'Temp-定寿'!G51) -> 7867160.1 | Q61: =IF($C61>98,"",'Temp-加保'!L50) -> 3000000 | R61: =IF(C61<=98,ROUND('Temp-加保'!AA50,2),"") -> 10292078.42 | S61: =IF($C61>98,"",'Temp-加保'!M50) -> 11742030 | T61: =IF(C61<=98,IF($C61=98,ROUND(120%*'Temp-加保'!AA50,2),0),"") -> 0 | U61: =IF($C61>98,"",'Temp-加保'!N50) -> 11742030 | V61: 0 | W61: 0 | X61: 0 | Y61: 0 | Z61: 0 | AA61: 0
A62: 43 | B62: 43 | C62: 82 | D62: 83 | E62: =IF($C62>98,"",'Temp-加保'!D51) -> 0 | F62: =IF($C62>98,"",'Temp-定寿'!D52) -> 0 | G62: =IF($C62>98,"",'Temp-加保'!E51) -> 2010000 | H62: =IF(C62<=98,ROUND('Temp-加保'!I51,2),"") -> 7137041.78 | I62: =IF($C62>98,"",'Temp-加保'!F51) -> 8158623.5 | J62: =IF(C62<=98,IF($C62=98,ROUND(120%*'Temp-加保'!I51,2),0),"") -> 0 | K62: =IF($C62>98,"",'Temp-加保'!H51) -> 8158623.5 | L62: =IF($C62>98,"",'Temp-定寿'!G52) -> 0 | M62: =IF($C62>98,"",'Temp-加保'!H51+'Temp-定寿'!G52) -> 8158623.5 | Q62: =IF($C62>98,"",'Temp-加保'!L51) -> 3000000 | R62: =IF(C62<=98,ROUND('Temp-加保'!AA51,2),"") -> 10652301.17 | S62: =IF($C62>98,"",'Temp-加保'!M51) -> 12177050 | T62: =IF(C62<=98,IF($C62=98,ROUND(120%*'Temp-加保'!AA51,2),0),"") -> 0 | U62: =IF($C62>98,"",'Temp-加保'!N51) -> 12177050 | V62: 0 | W62: 0 | X62: 0 | Y62: 0 | Z62: 0 | AA62: 0
A63: 44 | B63: 44 | C63: 83 | D63: 84 | E63: =IF($C63>98,"",'Temp-加保'!D52) -> 0 | F63: =IF($C63>98,"",'Temp-定寿'!D53) -> 0 | G63: =IF($C63>98,"",'Temp-加保'!E52) -> 2010000 | H63: =IF(C63<=98,ROUND('Temp-加保'!I52,2),"") -> 7386838.24 | I63: =IF($C63>98,"",'Temp-加保'!F52) -> 8463185.4 | J63: =IF(C63<=98,IF($C63=98,ROUND(120%*'Temp-加保'!I52,2),0),"") -> 0 | K63: =IF($C63>98,"",'Temp-加保'!H52) -> 8463185.4 | L63: =IF($C63>98,"",'Temp-定寿'!G53) -> 0 | M63: =IF($C63>98,"",'Temp-加保'!H52+'Temp-定寿'!G53) -> 8463185.4 | Q63: =IF($C63>98,"",'Temp-加保'!L52) -> 3000000 | R63: =IF(C63<=98,ROUND('Temp-加保'!AA52,2),"") -> 11025131.71 | S63: =IF($C63>98,"",'Temp-加保'!M52) -> 12631620 | T63: =IF(C63<=98,IF($C63=98,ROUND(120%*'Temp-加保'!AA52,2),0),"") -> 0 | U63: =IF($C63>98,"",'Temp-加保'!N52) -> 12631620 | V63: 0 | W63: 0 | X63: 0 | Y63: 0 | Z63: 0 | AA63: 0
A64: 45 | B64: 45 | C64: 84 | D64: 85 | E64: =IF($C64>98,"",'Temp-加保'!D53) -> 0 | F64: =IF($C64>98,"",'Temp-定寿'!D54) -> 0 | G64: =IF($C64>98,"",'Temp-加保'!E53) -> 2010000 | H64: =IF(C64<=98,ROUND('Temp-加保'!I53,2),"") -> 7645377.58 | I64: =IF($C64>98,"",'Temp-加保'!F53) -> 8795706.4 | J64: =IF(C64<=98,IF($C64=98,ROUND(120%*'Temp-加保'!I53,2),0),"") -> 0 | K64: =IF($C64>98,"",'Temp-加保'!H53) -> 8795706.4 | L64: =IF($C64>98,"",'Temp-定寿'!G54) -> 0 | M64: =IF($C64>98,"",'Temp-加保'!H53+'Temp-定寿'!G54) -> 8795706.4 | Q64: =IF($C64>98,"",'Temp-加保'!L53) -> 3000000 | R64: =IF(C64<=98,ROUND('Temp-加保'!AA53,2),"") -> 11411011.32 | S64: =IF($C64>98,"",'Temp-加保'!M53) -> 13127920 | T64: =IF(C64<=98,IF($C64=98,ROUND(120%*'Temp-加保'!AA53,2),0),"") -> 0 | U64: =IF($C64>98,"",'Temp-加保'!N53) -> 13127920 | V64: 0 | W64: 0 | X64: 0 | Y64: 0 | Z64: 0 | AA64: 0
A65: 46 | B65: 46 | C65: 85 | D65: 86 | E65: =IF($C65>98,"",'Temp-加保'!D54) -> 0 | F65: =IF($C65>98,"",'Temp-定寿'!D55) -> 0 | G65: =IF($C65>98,"",'Temp-加保'!E54) -> 2010000 | H65: =IF(C65<=98,ROUND('Temp-加保'!I54,2),"") -> 7912965.8 | I65: =IF($C65>98,"",'Temp-加保'!F54) -> 9155248.5 | J65: =IF(C65<=98,IF($C65=98,ROUND(120%*'Temp-加保'!I54,2),0),"") -> 0 | K65: =IF($C65>98,"",'Temp-加保'!H54) -> 9155248.5 | L65: =IF($C65>98,"",'Temp-定寿'!G55) -> 0 | M65: =IF($C65>98,"",'Temp-加保'!H54+'Temp-定寿'!G55) -> 9155248.5 | Q65: =IF($C65>98,"",'Temp-加保'!L54) -> 3000000 | R65: =IF(C65<=98,ROUND('Temp-加保'!AA54,2),"") -> 11810396.71 | S65: =IF($C65>98,"",'Temp-加保'!M54) -> 13664550 | T65: =IF(C65<=98,IF($C65=98,ROUND(120%*'Temp-加保'!AA54,2),0),"") -> 0 | U65: =IF($C65>98,"",'Temp-加保'!N54) -> 13664550 | V65: 0 | W65: 0 | X65: 0 | Y65: 0 | Z65: 0 | AA65: 0
A66: 47 | B66: 47 | C66: 86 | D66: 87 | E66: =IF($C66>98,"",'Temp-加保'!D55) -> 0 | F66: =IF($C66>98,"",'Temp-定寿'!D56) -> 0 | G66: =IF($C66>98,"",'Temp-加保'!E55) -> 2010000 | H66: =IF(C66<=98,ROUND('Temp-加保'!I55,2),"") -> 8189919.6 | I66: =IF($C66>98,"",'Temp-加保'!F55) -> 9551995.7 | J66: =IF(C66<=98,IF($C66=98,ROUND(120%*'Temp-加保'!I55,2),0),"") -> 0 | K66: =IF($C66>98,"",'Temp-加保'!H55) -> 9551995.7 | L66: =IF($C66>98,"",'Temp-定寿'!G56) -> 0 | M66: =IF($C66>98,"",'Temp-加保'!H55+'Temp-定寿'!G56) -> 9551995.7 | Q66: =IF($C66>98,"",'Temp-加保'!L55) -> 3000000 | R66: =IF(C66<=98,ROUND('Temp-加保'!AA55,2),"") -> 12223760.6 | S66: =IF($C66>98,"",'Temp-加保'!M55) -> 14256710 | T66: =IF(C66<=98,IF($C66=98,ROUND(120%*'Temp-加保'!AA55,2),0),"") -> 0 | U66: =IF($C66>98,"",'Temp-加保'!N55) -> 14256710 | V66: 0 | W66: 9155248.5 | X66: 0 | Y66: 13664550 | Z66: 0 | AA66: 0
A67: 48 | B67: 48 | C67: 87 | D67: 88 | E67: =IF($C67>98,"",'Temp-加保'!D56) -> 0 | F67: =IF($C67>98,"",'Temp-定寿'!D57) -> 0 | G67: =IF($C67>98,"",'Temp-加保'!E56) -> 2010000 | H67: =IF(C67<=98,ROUND('Temp-加保'!I56,2),"") -> 8476566.79 | I67: =IF($C67>98,"",'Temp-加保'!F56) -> 10002691.3 | J67: =IF(C67<=98,IF($C67=98,ROUND(120%*'Temp-加保'!I56,2),0),"") -> 0 | K67: =IF($C67>98,"",'Temp-加保'!H56) -> 10002691.3 | L67: =IF($C67>98,"",'Temp-定寿'!G57) -> 0 | M67: =IF($C67>98,"",'Temp-加保'!H56+'Temp-定寿'!G57) -> 10002691.3 | Q67: =IF($C67>98,"",'Temp-加保'!L56) -> 3000000 | R67: =IF(C67<=98,ROUND('Temp-加保'!AA56,2),"") -> 12651592.22 | S67: =IF($C67>98,"",'Temp-加保'!M56) -> 14929390 | T67: =IF(C67<=98,IF($C67=98,ROUND(120%*'Temp-加保'!AA56,2),0),"") -> 0 | U67: =IF($C67>98,"",'Temp-加保'!N56) -> 14929390 | V67: 0 | W67: 0 | X67: 0 | Y67: 0 | Z67: 0 | AA67: 0
A68: 49 | B68: 49 | C68: 88 | D68: 89 | E68: =IF($C68>98,"",'Temp-加保'!D57) -> 0 | F68: =IF($C68>98,"",'Temp-定寿'!D58) -> 0 | G68: =IF($C68>98,"",'Temp-加保'!E57) -> 2010000 | H68: =IF(C68<=98,ROUND('Temp-加保'!I57,2),"") -> 8773246.62 | I68: =IF($C68>98,"",'Temp-加保'!F57) -> 10531073.4 | J68: =IF(C68<=98,IF($C68=98,ROUND(120%*'Temp-加保'!I57,2),0),"") -> 0 | K68: =IF($C68>98,"",'Temp-加保'!H57) -> 10531073.4 | L68: =IF($C68>98,"",'Temp-定寿'!G58) -> 0 | M68: =IF($C68>98,"",'Temp-加保'!H57+'Temp-定寿'!G58) -> 10531073.4 | Q68: =IF($C68>98,"",'Temp-加保'!L57) -> 3000000 | R68: =IF(C68<=98,ROUND('Temp-加保'!AA57,2),"") -> 13094397.95 | S68: =IF($C68>98,"",'Temp-加保'!M57) -> 15718020 | T68: =IF(C68<=98,IF($C68=98,ROUND(120%*'Temp-加保'!AA57,2),0),"") -> 0 | U68: =IF($C68>98,"",'Temp-加保'!N57) -> 15718020 | V68: 0 | W68: 0 | X68: 0 | Y68: 0 | Z68: 0 | AA68: 0
A69: 50 | B69: 50 | C69: 89 | D69: 90 | E69: =IF($C69>98,"",'Temp-加保'!D58) -> 0 | F69: =IF($C69>98,"",'Temp-定寿'!D59) -> 0 | G69: =IF($C69>98,"",'Temp-加保'!E58) -> 2010000 | H69: =IF(C69<=98,ROUND('Temp-加保'!I58,2),"") -> 9080310.26 | I69: =IF($C69>98,"",'Temp-加保'!F58) -> 10899446.1 | J69: =IF(C69<=98,IF($C69=98,ROUND(120%*'Temp-加保'!I58,2),0),"") -> 0 | K69: =IF($C69>98,"",'Temp-加保'!H58) -> 10899446.1 | L69: =IF($C69>98,"",'Temp-定寿'!G59) -> 0 | M69: =IF($C69>98,"",'Temp-加保'!H58+'Temp-定寿'!G59) -> 10899446.1 | Q69: =IF($C69>98,"",'Temp-加保'!L58) -> 3000000 | R69: =IF(C69<=98,ROUND('Temp-加保'!AA58,2),"") -> 13552701.88 | S69: =IF($C69>98,"",'Temp-加保'!M58) -> 16267830 | T69: =IF(C69<=98,IF($C69=98,ROUND(120%*'Temp-加保'!AA58,2),0),"") -> 0 | U69: =IF($C69>98,"",'Temp-加保'!N58) -> 16267830 | V69: 0 | W69: 0 | X69: 0 | Y69: 0 | Z69: 0 | AA69: 0
A70: 51 | B70: 51 | C70: 90 | D70: 91 | E70: =IF($C70>98,"",'Temp-加保'!D59) -> 0 | F70: =IF($C70>98,"",'Temp-定寿'!D60) -> 0 | G70: =IF($C70>98,"",'Temp-加保'!E59) -> 2010000 | H70: =IF(C70<=98,ROUND('Temp-加保'!I59,2),"") -> 9398121.12 | I70: =IF($C70>98,"",'Temp-加保'!F59) -> 11280682.8 | J70: =IF(C70<=98,IF($C70=98,ROUND(120%*'Temp-加保'!I59,2),0),"") -> 0 | K70: =IF($C70>98,"",'Temp-加保'!H59) -> 11280682.8 | L70: =IF($C70>98,"",'Temp-定寿'!G60) -> 0 | M70: =IF($C70>98,"",'Temp-加保'!H59+'Temp-定寿'!G60) -> 11280682.8 | Q70: =IF($C70>98,"",'Temp-加保'!L59) -> 3000000 | R70: =IF(C70<=98,ROUND('Temp-加保'!AA59,2),"") -> 14027046.44 | S70: =IF($C70>98,"",'Temp-加保'!M59) -> 16836840 | T70: =IF(C70<=98,IF($C70=98,ROUND(120%*'Temp-加保'!AA59,2),0),"") -> 0 | U70: =IF($C70>98,"",'Temp-加保'!N59) -> 16836840 | V70: 0 | W70: 0 | X70: 0 | Y70: 0 | Z70: 0 | AA70: 0
A71: 52 | B71: 52 | C71: 91 | D71: 92 | E71: =IF($C71>98,"",'Temp-加保'!D60) -> 0 | F71: =IF($C71>98,"",'Temp-定寿'!D61) -> 0 | G71: =IF($C71>98,"",'Temp-加保'!E60) -> 2010000 | H71: =IF(C71<=98,ROUND('Temp-加保'!I60,2),"") -> 9727055.35 | I71: =IF($C71>98,"",'Temp-加保'!F60) -> 11675232.4 | J71: =IF(C71<=98,IF($C71=98,ROUND(120%*'Temp-加保'!I60,2),0),"") -> 0 | K71: =IF($C71>98,"",'Temp-加保'!H60) -> 11675232.4 | L71: =IF($C71>98,"",'Temp-定寿'!G61) -> 0 | M71: =IF($C71>98,"",'Temp-加保'!H60+'Temp-定寿'!G61) -> 11675232.4 | Q71: =IF($C71>98,"",'Temp-加保'!L60) -> 3000000 | R71: =IF(C71<=98,ROUND('Temp-加保'!AA60,2),"") -> 14517993.07 | S71: =IF($C71>98,"",'Temp-加保'!M60) -> 17425720 | T71: =IF(C71<=98,IF($C71=98,ROUND(120%*'Temp-加保'!AA60,2),0),"") -> 0 | U71: =IF($C71>98,"",'Temp-加保'!N60) -> 17425720 | V71: 0 | W71: 0 | X71: 0 | Y71: 0 | Z71: 0 | AA71: 0
A72: 53 | B72: 53 | C72: 92 | D72: 93 | E72: =IF($C72>98,"",'Temp-加保'!D61) -> 0 | F72: =IF($C72>98,"",'Temp-定寿'!D62) -> 0 | G72: =IF($C72>98,"",'Temp-加保'!E61) -> 2010000 | H72: =IF(C72<=98,ROUND('Temp-加保'!I61,2),"") -> 10067502.29 | I72: =IF($C72>98,"",'Temp-加保'!F61) -> 12083550.5 | J72: =IF(C72<=98,IF($C72=98,ROUND(120%*'Temp-加保'!I61,2),0),"") -> 0 | K72: =IF($C72>98,"",'Temp-加保'!H61) -> 12083550.5 | L72: =IF($C72>98,"",'Temp-定寿'!G62) -> 0 | M72: =IF($C72>98,"",'Temp-加保'!H61+'Temp-定寿'!G62) -> 12083550.5 | Q72: =IF($C72>98,"",'Temp-加保'!L61) -> 3000000 | R72: =IF(C72<=98,ROUND('Temp-加保'!AA61,2),"") -> 15026122.82 | S72: =IF($C72>98,"",'Temp-加保'!M61) -> 18035150 | T72: =IF(C72<=98,IF($C72=98,ROUND(120%*'Temp-加保'!AA61,2),0),"") -> 0 | U72: =IF($C72>98,"",'Temp-加保'!N61) -> 18035150 | V72: 0 | W72: 0 | X72: 0 | Y72: 0 | Z72: 0 | AA72: 0
A73: 54 | B73: 54 | C73: 93 | D73: 94 | E73: =IF($C73>98,"",'Temp-加保'!D62) -> 0 | F73: =IF($C73>98,"",'Temp-定寿'!D63) -> 0 | G73: =IF($C73>98,"",'Temp-加保'!E62) -> 2010000 | H73: =IF(C73<=98,ROUND('Temp-加保'!I62,2),"") -> 10419864.87 | I73: =IF($C73>98,"",'Temp-加保'!F62) -> 12506126.2 | J73: =IF(C73<=98,IF($C73=98,ROUND(120%*'Temp-加保'!I62,2),0),"") -> 0 | K73: =IF($C73>98,"",'Temp-加保'!H62) -> 12506126.2 | L73: =IF($C73>98,"",'Temp-定寿'!G63) -> 0 | M73: =IF($C73>98,"",'Temp-加保'!H62+'Temp-定寿'!G63) -> 12506126.2 | Q73: =IF($C73>98,"",'Temp-加保'!L62) -> 3000000 | R73: =IF(C73<=98,ROUND('Temp-加保'!AA62,2),"") -> 15552037.12 | S73: =IF($C73>98,"",'Temp-加保'!M62) -> 18665860 | T73: =IF(C73<=98,IF($C73=98,ROUND(120%*'Temp-加保'!AA62,2),0),"") -> 0 | U73: =IF($C73>98,"",'Temp-加保'!N62) -> 18665860 | V73: 0 | W73: 0 | X73: 0 | Y73: 0 | Z73: 0 | AA73: 0
A74: 55 | B74: 55 | C74: 94 | D74: 95 | E74: =IF($C74>98,"",'Temp-加保'!D63) -> 0 | F74: =IF($C74>98,"",'Temp-定寿'!D64) -> 0 | G74: =IF($C74>98,"",'Temp-加保'!E63) -> 2010000 | H74: =IF(C74<=98,ROUND('Temp-加保'!I63,2),"") -> 10784560.14 | I74: =IF($C74>98,"",'Temp-加保'!F63) -> 12943441.9 | J74: =IF(C74<=98,IF($C74=98,ROUND(120%*'Temp-加保'!I63,2),0),"") -> 0 | K74: =IF($C74>98,"",'Temp-加保'!H63) -> 12943441.9 | L74: =IF($C74>98,"",'Temp-定寿'!G64) -> 0 | M74: =IF($C74>98,"",'Temp-加保'!H63+'Temp-定寿'!G64) -> 12943441.9 | Q74: =IF($C74>98,"",'Temp-加保'!L63) -> 3000000 | R74: =IF(C74<=98,ROUND('Temp-加保'!AA63,2),"") -> 16096358.42 | S74: =IF($C74>98,"",'Temp-加保'!M63) -> 19318570 | T74: =IF(C74<=98,IF($C74=98,ROUND(120%*'Temp-加保'!AA63,2),0),"") -> 0 | U74: =IF($C74>98,"",'Temp-加保'!N63) -> 19318570 | V74: 0 | W74: 0 | X74: 0 | Y74: 0 | Z74: 0 | AA74: 0
A75: 56 | B75: 56 | C75: 95 | D75: 96 | E75: =IF($C75>98,"",'Temp-加保'!D64) -> 0 | F75: =IF($C75>98,"",'Temp-定寿'!D65) -> 0 | G75: =IF($C75>98,"",'Temp-加保'!E64) -> 2010000 | H75: =IF(C75<=98,ROUND('Temp-加保'!I64,2),"") -> 11162019.75 | I75: =IF($C75>98,"",'Temp-加保'!F64) -> 13396013.5 | J75: =IF(C75<=98,IF($C75=98,ROUND(120%*'Temp-加保'!I64,2),0),"") -> 0 | K75: =IF($C75>98,"",'Temp-加保'!H64) -> 13396013.5 | L75: =IF($C75>98,"",'Temp-定寿'!G65) -> 0 | M75: =IF($C75>98,"",'Temp-加保'!H64+'Temp-定寿'!G65) -> 13396013.5 | Q75: =IF($C75>98,"",'Temp-加保'!L64) -> 3000000 | R75: =IF(C75<=98,ROUND('Temp-加保'!AA64,2),"") -> 16659730.97 | S75: =IF($C75>98,"",'Temp-加保'!M64) -> 19994050 | T75: =IF(C75<=98,IF($C75=98,ROUND(120%*'Temp-加保'!AA64,2),0),"") -> 0 | U75: =IF($C75>98,"",'Temp-加保'!N64) -> 19994050 | V75: 0 | W75: 0 | X75: 0 | Y75: 0 | Z75: 0 | AA75: 0
A76: 57 | B76: 57 | C76: 96 | D76: 97 | E76: =IF($C76>98,"",'Temp-加保'!D65) -> 0 | F76: =IF($C76>98,"",'Temp-定寿'!D66) -> 0 | G76: =IF($C76>98,"",'Temp-加保'!E65) -> 2010000 | H76: =IF(C76<=98,ROUND('Temp-加保'!I65,2),"") -> 11552690.44 | I76: =IF($C76>98,"",'Temp-加保'!F65) -> 13864370.3 | J76: =IF(C76<=98,IF($C76=98,ROUND(120%*'Temp-加保'!I65,2),0),"") -> 0 | K76: =IF($C76>98,"",'Temp-加保'!H65) -> 13864370.3 | L76: =IF($C76>98,"",'Temp-定寿'!G66) -> 0 | M76: =IF($C76>98,"",'Temp-加保'!H65+'Temp-定寿'!G66) -> 13864370.3 | Q76: =IF($C76>98,"",'Temp-加保'!L65) -> 3000000 | R76: =IF(C76<=98,ROUND('Temp-加保'!AA65,2),"") -> 17242821.55 | S76: =IF($C76>98,"",'Temp-加保'!M65) -> 20693090 | T76: =IF(C76<=98,IF($C76=98,ROUND(120%*'Temp-加保'!AA65,2),0),"") -> 0 | U76: =IF($C76>98,"",'Temp-加保'!N65) -> 20693090 | V76: 0 | W76: 0 | X76: 0 | Y76: 0 | Z76: 0 | AA76: 0
A77: 58 | B77: 58 | C77: 97 | D77: 98 | E77: =IF($C77>98,"",'Temp-加保'!D66) -> 0 | F77: =IF($C77>98,"",'Temp-定寿'!D67) -> 0 | G77: =IF($C77>98,"",'Temp-加保'!E66) -> 2010000 | H77: =IF(C77<=98,ROUND('Temp-加保'!I66,2),"") -> 11957034.6 | I77: =IF($C77>98,"",'Temp-加保'!F66) -> 14349048.3 | J77: =IF(C77<=98,IF($C77=98,ROUND(120%*'Temp-加保'!I66,2),0),"") -> 0 | K77: =IF($C77>98,"",'Temp-加保'!H66) -> 14349048.3 | L77: =IF($C77>98,"",'Temp-定寿'!G67) -> 0 | M77: =IF($C77>98,"",'Temp-加保'!H66+'Temp-定寿'!G67) -> 14349048.3 | Q77: =IF($C77>98,"",'Temp-加保'!L66) -> 3000000 | R77: =IF(C77<=98,ROUND('Temp-加保'!AA66,2),"") -> 17846320.31 | S77: =IF($C77>98,"",'Temp-加保'!M66) -> 21416490 | T77: =IF(C77<=98,IF($C77=98,ROUND(120%*'Temp-加保'!AA66,2),0),"") -> 0 | U77: =IF($C77>98,"",'Temp-加保'!N66) -> 21416490 | V77: 0 | W77: 0 | X77: 0 | Y77: 0 | Z77: 0 | AA77: 0
A78: 59 | B78: 59 | C78: 98 | D78: 99 | E78: =IF($C78>98,"",'Temp-加保'!D67) -> 0 | F78: =IF($C78>98,"",'Temp-定寿'!D68) -> 0 | G78: =IF($C78>98,"",'Temp-加保'!E67) -> 2010000 | H78: =IF(C78<=98,ROUND('Temp-加保'!I67,2),"") -> 12375530.82 | I78: =IF($C78>98,"",'Temp-加保'!F67) -> 14850623.7 | J78: =IF(C78<=98,IF($C78=98,ROUND(120%*'Temp-加保'!I67,2),0),"") -> 14850636.98 | K78: =IF($C78>98,"",'Temp-加保'!H67) -> 14850623.7 | L78: =IF($C78>98,"",'Temp-定寿'!G68) -> 0 | M78: =IF($C78>98,"",'Temp-加保'!H67+'Temp-定寿'!G68) -> 14850623.7 | Q78: =IF($C78>98,"",'Temp-加保'!L67) -> 3000000 | R78: =IF(C78<=98,ROUND('Temp-加保'!AA67,2),"") -> 18470941.52 | S78: =IF($C78>98,"",'Temp-加保'!M67) -> 22165110 | T78: =IF(C78<=98,IF($C78=98,ROUND(120%*'Temp-加保'!AA67,2),0),"") -> 22165129.82 | U78: =IF($C78>98,"",'Temp-加保'!N67) -> 22165110 | V78: 0 | W78: 0 | X78: =IF($C78=$G$11,I77,IF($C78<$G$11,-E78,0)) -> 0 | Y78: 0 | Z78: 0 | AA78: 0
A79: 60 | E79: =IF($C79>98,"",'Temp-加保'!D68) ->  | F79: =IF($C79>98,"",'Temp-定寿'!D69) ->  | G79: =IF($C79>98,"",'Temp-加保'!E68) ->  | H79: =IF(C79<=98,ROUND('Temp-加保'!I68,2),"") ->  | I79: =IF($C79>98,"",'Temp-加保'!F68) ->  | J79: =IF(C79<=98,IF($C79=98,ROUND(120%*'Temp-加保'!I68,2),0),"") ->  | K79: =IF($C79>98,"",'Temp-加保'!H68) ->  | L79: =IF($C79>98,"",'Temp-定寿'!G69) ->  | M79: =IF($C79>98,"",'Temp-加保'!H68+'Temp-定寿'!G69) ->  | Q79: =IF($C79>98,"",'Temp-加保'!L68) ->  | R79: =IF(C79<=98,ROUND('Temp-加保'!AA68,2),"") ->  | S79: =IF($C79>98,"",'Temp-加保'!M68) ->  | T79: =IF(C79<=98,IF($C79=98,ROUND(120%*'Temp-加保'!AA68,2),0),"") ->  | U79: =IF($C79>98,"",'Temp-加保'!N68) ->  | V79: 0 | W79: 0 | X79: 0 | Y79: 0 | Z79: 0 | AA79: 0
A80: 61 | E80: =IF($C80>98,"",'Temp-加保'!D69) ->  | F80: =IF($C80>98,"",'Temp-定寿'!D70) ->  | G80: =IF($C80>98,"",'Temp-加保'!E69) ->  | H80: =IF(C80<=98,ROUND('Temp-加保'!I69,2),"") ->  | I80: =IF($C80>98,"",'Temp-加保'!F69) ->  | J80: =IF(C80<=98,IF($C80=98,ROUND(120%*'Temp-加保'!I69,2),0),"") ->  | K80: =IF($C80>98,"",'Temp-加保'!H69) ->  | L80: =IF($C80>98,"",'Temp-定寿'!G70) ->  | M80: =IF($C80>98,"",'Temp-加保'!H69+'Temp-定寿'!G70) ->  | Q80: =IF($C80>98,"",'Temp-加保'!L69) ->  | R80: =IF(C80<=98,ROUND('Temp-加保'!AA69,2),"") ->  | S80: =IF($C80>98,"",'Temp-加保'!M69) ->  | T80: =IF(C80<=98,IF($C80=98,ROUND(120%*'Temp-加保'!AA69,2),0),"") ->  | U80: =IF($C80>98,"",'Temp-加保'!N69) ->  | V80: 0 | W80: 0 | X80: 0 | Y80: 0 | Z80: 0 | AA80: 0
A81: 62 | E81: =IF($C81>98,"",'Temp-加保'!D70) ->  | F81: =IF($C81>98,"",'Temp-定寿'!D71) ->  | G81: =IF($C81>98,"",'Temp-加保'!E70) ->  | H81: =IF(C81<=98,ROUND('Temp-加保'!I70,2),"") ->  | I81: =IF($C81>98,"",'Temp-加保'!F70) ->  | J81: =IF(C81<=98,IF($C81=98,ROUND(120%*'Temp-加保'!I70,2),0),"") ->  | K81: =IF($C81>98,"",'Temp-加保'!H70) ->  | L81: =IF($C81>98,"",'Temp-定寿'!G71) ->  | M81: =IF($C81>98,"",'Temp-加保'!H70+'Temp-定寿'!G71) ->  | Q81: =IF($C81>98,"",'Temp-加保'!L70) ->  | R81: =IF(C81<=98,ROUND('Temp-加保'!AA70,2),"") ->  | S81: =IF($C81>98,"",'Temp-加保'!M70) ->  | T81: =IF(C81<=98,IF($C81=98,ROUND(120%*'Temp-加保'!AA70,2),0),"") ->  | U81: =IF($C81>98,"",'Temp-加保'!N70) ->  | V81: 0 | W81: 0 | X81: 0 | Y81: 0 | Z81: 0 | AA81: 0
A82: 63 | E82: =IF($C82>98,"",'Temp-加保'!D71) ->  | F82: =IF($C82>98,"",'Temp-定寿'!D72) ->  | G82: =IF($C82>98,"",'Temp-加保'!E71) ->  | H82: =IF(C82<=98,ROUND('Temp-加保'!I71,2),"") ->  | I82: =IF($C82>98,"",'Temp-加保'!F71) ->  | J82: =IF(C82<=98,IF($C82=98,ROUND(120%*'Temp-加保'!I71,2),0),"") ->  | K82: =IF($C82>98,"",'Temp-加保'!H71) ->  | L82: =IF($C82>98,"",'Temp-定寿'!G72) ->  | M82: =IF($C82>98,"",'Temp-加保'!H71+'Temp-定寿'!G72) ->  | Q82: =IF($C82>98,"",'Temp-加保'!L71) ->  | R82: =IF(C82<=98,ROUND('Temp-加保'!AA71,2),"") ->  | S82: =IF($C82>98,"",'Temp-加保'!M71) ->  | T82: =IF(C82<=98,IF($C82=98,ROUND(120%*'Temp-加保'!AA71,2),0),"") ->  | U82: =IF($C82>98,"",'Temp-加保'!N71) ->  | V82: 0 | W82: 0 | X82: 0 | Y82: 0 | Z82: 0 | AA82: 0
A83: 64 | E83: =IF($C83>98,"",'Temp-加保'!D72) ->  | F83: =IF($C83>98,"",'Temp-定寿'!D73) ->  | G83: =IF($C83>98,"",'Temp-加保'!E72) ->  | H83: =IF(C83<=98,ROUND('Temp-加保'!I72,2),"") ->  | I83: =IF($C83>98,"",'Temp-加保'!F72) ->  | J83: =IF(C83<=98,IF($C83=98,ROUND(120%*'Temp-加保'!I72,2),0),"") ->  | K83: =IF($C83>98,"",'Temp-加保'!H72) ->  | L83: =IF($C83>98,"",'Temp-定寿'!G73) ->  | M83: =IF($C83>98,"",'Temp-加保'!H72+'Temp-定寿'!G73) ->  | Q83: =IF($C83>98,"",'Temp-加保'!L72) ->  | R83: =IF(C83<=98,ROUND('Temp-加保'!AA72,2),"") ->  | S83: =IF($C83>98,"",'Temp-加保'!M72) ->  | T83: =IF(C83<=98,IF($C83=98,ROUND(120%*'Temp-加保'!AA72,2),0),"") ->  | U83: =IF($C83>98,"",'Temp-加保'!N72) ->  | V83: 0 | W83: 0 | X83: 0 | Y83: 0 | Z83: 0 | AA83: 0
A84: 65 | C84: =IF(年龄+A84-1>=99,"",年龄+A84-1) ->  | E84: =IF($C84>98,"",'Temp-加保'!D73) ->  | F84: =IF($C84>98,"",'Temp-定寿'!D74) ->  | G84: =IF($C84>98,"",'Temp-加保'!E73) ->  | H84: =IF(C84<=98,ROUND('Temp-加保'!I73,2),"") ->  | I84: =IF($C84>98,"",'Temp-加保'!F73) ->  | J84: =IF(C84<=98,IF($C84=98,ROUND(120%*'Temp-加保'!I73,2),0),"") ->  | K84: =IF($C84>98,"",'Temp-加保'!H73) ->  | L84: =IF($C84>98,"",'Temp-定寿'!G74) ->  | M84: =IF($C84>98,"",'Temp-加保'!H73+'Temp-定寿'!G74) ->  | Q84: =IF($C84>98,"",'Temp-加保'!L73) ->  | R84: =IF(C84<=98,ROUND('Temp-加保'!AA73,2),"") ->  | S84: =IF($C84>98,"",'Temp-加保'!M73) ->  | T84: =IF(C84<=98,IF($C84=98,ROUND(120%*'Temp-加保'!AA73,2),0),"") ->  | U84: =IF($C84>98,"",'Temp-加保'!N73) ->  | V84: =IF(AND($O$15="是",B84<=交费期间),$O$17,0) -> 0 | W84: =IF($C84=$G$9,K83,IF($C84<$G$9,-E84,0)) -> 0 | X84: =IF($C84=$G$11,I83,IF($C84<$G$11,-E84,0)) -> 0 | Y84: 0 | Z84: 0 | AA84: 0
A85: 66 | D85: =IF(C85="","",C85+1) ->  | E85: =IF($C85>98,"",'Temp-加保'!D74) ->  | F85: =IF($C85>98,"",'Temp-定寿'!D75) ->  | G85: =IF($C85>98,"",'Temp-加保'!E74) ->  | H85: =IF(C85<=98,ROUND('Temp-加保'!I74,2),"") ->  | I85: =IF($C85>98,"",'Temp-加保'!F74) ->  | J85: =IF(C85<=98,IF($C85=98,ROUND(120%*'Temp-加保'!I74,2),0),"") ->  | K85: =IF($C85>98,"",'Temp-加保'!H74) ->  | L85: =IF($C85>98,"",'Temp-定寿'!G75) ->  | M85: =IF($C85>98,"",'Temp-加保'!H74+'Temp-定寿'!G75) ->  | N85: =IF($O$15="是",IF(B85=$O$16,($O$16-1)*$O$17+$O$17,IF(B85<$O$16,"",IF(AND(B85>$O$16,B85<=$C$7),$O$17,""))),"") ->  | Q85: =IF($C85>98,"",'Temp-加保'!L74) ->  | R85: =IF(C85<=98,ROUND('Temp-加保'!AA74,2),"") ->  | S85: =IF($C85>98,"",'Temp-加保'!M74) ->  | T85: =IF(C85<=98,IF($C85=98,ROUND(120%*'Temp-加保'!AA74,2),0),"") ->  | U85: =IF($C85>98,"",'Temp-加保'!N74) ->  | V85: 0 | W85: 0 | X85: 0 | Y85: =IF($C85=$Q$9,U84,IF($C85<$Q$9,-P85-E85-V85,0)) -> 0 | Z85: =IF($C85=$Q$11,S84,IF($C85<$Q$11,-P85-E85-V85,0)) -> 0 | AA85: 0
A86: 67 | E86: =IF($C86>98,"",'Temp-加保'!D75) ->  | F86: =IF($C86>98,"",'Temp-定寿'!D76) ->  | G86: =IF($C86>98,"",'Temp-加保'!E75) ->  | H86: =IF(C86<=98,ROUND('Temp-加保'!I75,2),"") ->  | I86: =IF($C86>98,"",'Temp-加保'!F75) ->  | J86: =IF(C86<=98,IF($C86=98,ROUND(120%*'Temp-加保'!I75,2),0),"") ->  | K86: =IF($C86>98,"",'Temp-加保'!H75) ->  | L86: =IF($C86>98,"",'Temp-定寿'!G76) ->  | M86: =IF($C86>98,"",'Temp-加保'!H75+'Temp-定寿'!G76) ->  | Q86: =IF($C86>98,"",'Temp-加保'!L75) ->  | R86: =IF(C86<=98,ROUND('Temp-加保'!AA75,2),"") ->  | S86: =IF($C86>98,"",'Temp-加保'!M75) ->  | T86: =IF(C86<=98,IF($C86=98,ROUND(120%*'Temp-加保'!AA75,2),0),"") ->  | U86: =IF($C86>98,"",'Temp-加保'!N75) ->  | V86: 0 | W86: 0 | X86: 0 | Y86: 0 | Z86: 0 | AA86: 0
A87: 68 | B87: =IF(C87="","",A87) ->  | E87: =IF($C87>98,"",'Temp-加保'!D76) ->  | F87: =IF($C87>98,"",'Temp-定寿'!D77) ->  | G87: =IF($C87>98,"",'Temp-加保'!E76) ->  | H87: =IF(C87<=98,ROUND('Temp-加保'!I76,2),"") ->  | I87: =IF($C87>98,"",'Temp-加保'!F76) ->  | J87: =IF(C87<=98,IF($C87=98,ROUND(120%*'Temp-加保'!I76,2),0),"") ->  | K87: =IF($C87>98,"",'Temp-加保'!H76) ->  | L87: =IF($C87>98,"",'Temp-定寿'!G77) ->  | M87: =IF($C87>98,"",'Temp-加保'!H76+'Temp-定寿'!G77) ->  | Q87: =IF($C87>98,"",'Temp-加保'!L76) ->  | R87: =IF(C87<=98,ROUND('Temp-加保'!AA76,2),"") ->  | S87: =IF($C87>98,"",'Temp-加保'!M76) ->  | T87: =IF(C87<=98,IF($C87=98,ROUND(120%*'Temp-加保'!AA76,2),0),"") ->  | U87: =IF($C87>98,"",'Temp-加保'!N76) ->  | V87: 0 | W87: 0 | X87: 0 | Y87: 0 | Z87: 0 | AA87: 0
A88: 69 | E88: =IF($C88>98,"",'Temp-加保'!D77) ->  | F88: =IF($C88>98,"",'Temp-定寿'!D78) ->  | G88: =IF($C88>98,"",'Temp-加保'!E77) ->  | H88: =IF(C88<=98,ROUND('Temp-加保'!I77,2),"") ->  | I88: =IF($C88>98,"",'Temp-加保'!F77) ->  | J88: =IF(C88<=98,IF($C88=98,ROUND(120%*'Temp-加保'!I77,2),0),"") ->  | K88: =IF($C88>98,"",'Temp-加保'!H77) ->  | L88: =IF($C88>98,"",'Temp-定寿'!G78) ->  | M88: =IF($C88>98,"",'Temp-加保'!H77+'Temp-定寿'!G78) ->  | Q88: =IF($C88>98,"",'Temp-加保'!L77) ->  | R88: =IF(C88<=98,ROUND('Temp-加保'!AA77,2),"") ->  | S88: =IF($C88>98,"",'Temp-加保'!M77) ->  | T88: =IF(C88<=98,IF($C88=98,ROUND(120%*'Temp-加保'!AA77,2),0),"") ->  | U88: =IF($C88>98,"",'Temp-加保'!N77) ->  | V88: 0 | W88: 0 | X88: 0 | Y88: 0 | Z88: 0 | AA88: =R88*1.2 -> 
A89: 70 | E89: =IF($C89>98,"",'Temp-加保'!D78) ->  | F89: =IF($C89>98,"",'Temp-定寿'!D79) ->  | G89: =IF($C89>98,"",'Temp-加保'!E78) ->  | H89: =IF(C89<=98,ROUND('Temp-加保'!I78,2),"") ->  | I89: =IF($C89>98,"",'Temp-加保'!F78) ->  | J89: =IF(C89<=98,IF($C89=98,ROUND(120%*'Temp-加保'!I78,2),0),"") ->  | K89: =IF($C89>98,"",'Temp-加保'!H78) ->  | L89: =IF($C89>98,"",'Temp-定寿'!G79) ->  | M89: =IF($C89>98,"",'Temp-加保'!H78+'Temp-定寿'!G79) ->  | Q89: =IF($C89>98,"",'Temp-加保'!L78) ->  | R89: =IF(C89<=98,ROUND('Temp-加保'!AA78,2),"") ->  | S89: =IF($C89>98,"",'Temp-加保'!M78) ->  | T89: =IF(C89<=98,IF($C89=98,ROUND(120%*'Temp-加保'!AA78,2),0),"") ->  | U89: =IF($C89>98,"",'Temp-加保'!N78) ->  | V89: 0 | W89: 0 | X89: 0 | Y89: 0 | Z89: 0
A90: 71 | E90: =IF($C90>98,"",'Temp-加保'!D79) ->  | F90: =IF($C90>98,"",'Temp-定寿'!D80) ->  | G90: =IF($C90>98,"",'Temp-加保'!E79) ->  | H90: =IF(C90<=98,ROUND('Temp-加保'!I79,2),"") ->  | I90: =IF($C90>98,"",'Temp-加保'!F79) ->  | J90: =IF(C90<=98,IF($C90=98,ROUND(120%*'Temp-加保'!I79,2),0),"") ->  | K90: =IF($C90>98,"",'Temp-加保'!H79) ->  | L90: =IF($C90>98,"",'Temp-定寿'!G80) ->  | M90: =IF($C90>98,"",'Temp-加保'!H79+'Temp-定寿'!G80) ->  | Q90: =IF($C90>98,"",'Temp-加保'!L79) ->  | R90: =IF(C90<=98,ROUND('Temp-加保'!AA79,2),"") ->  | S90: =IF($C90>98,"",'Temp-加保'!M79) ->  | T90: =IF(C90<=98,IF($C90=98,ROUND(120%*'Temp-加保'!AA79,2),0),"") ->  | U90: =IF($C90>98,"",'Temp-加保'!N79) ->  | V90: 0 | W90: 0 | X90: 0 | Y90: 0 | Z90: 0
A91: 72 | E91: =IF($C91>98,"",'Temp-加保'!D80) ->  | F91: =IF($C91>98,"",'Temp-定寿'!D81) ->  | G91: =IF($C91>98,"",'Temp-加保'!E80) ->  | H91: =IF(C91<=98,ROUND('Temp-加保'!I80,2),"") ->  | I91: =IF($C91>98,"",'Temp-加保'!F80) ->  | J91: =IF(C91<=98,IF($C91=98,ROUND(120%*'Temp-加保'!I80,2),0),"") ->  | K91: =IF($C91>98,"",'Temp-加保'!H80) ->  | L91: =IF($C91>98,"",'Temp-定寿'!G81) ->  | M91: =IF($C91>98,"",'Temp-加保'!H80+'Temp-定寿'!G81) ->  | Q91: =IF($C91>98,"",'Temp-加保'!L80) ->  | R91: =IF(C91<=98,ROUND('Temp-加保'!AA80,2),"") ->  | S91: =IF($C91>98,"",'Temp-加保'!M80) ->  | T91: =IF(C91<=98,IF($C91=98,ROUND(120%*'Temp-加保'!AA80,2),0),"") ->  | U91: =IF($C91>98,"",'Temp-加保'!N80) ->  | V91: 0 | W91: 0 | X91: 0 | Y91: 0 | Z91: 0
A92: 73 | E92: =IF($C92>98,"",'Temp-加保'!D81) ->  | F92: =IF($C92>98,"",'Temp-定寿'!D82) ->  | G92: =IF($C92>98,"",'Temp-加保'!E81) ->  | H92: =IF(C92<=98,ROUND('Temp-加保'!I81,2),"") ->  | I92: =IF($C92>98,"",'Temp-加保'!F81) ->  | J92: =IF(C92<=98,IF($C92=98,ROUND(120%*'Temp-加保'!I81,2),0),"") ->  | K92: =IF($C92>98,"",'Temp-加保'!H81) ->  | L92: =IF($C92>98,"",'Temp-定寿'!G82) ->  | M92: =IF($C92>98,"",'Temp-加保'!H81+'Temp-定寿'!G82) ->  | Q92: =IF($C92>98,"",'Temp-加保'!L81) ->  | R92: =IF(C92<=98,ROUND('Temp-加保'!AA81,2),"") ->  | S92: =IF($C92>98,"",'Temp-加保'!M81) ->  | T92: =IF(C92<=98,IF($C92=98,ROUND(120%*'Temp-加保'!AA81,2),0),"") ->  | U92: =IF($C92>98,"",'Temp-加保'!N81) ->  | V92: 0 | W92: 0 | X92: 0 | Y92: 0 | Z92: 0
A93: 74 | E93: =IF($C93>98,"",'Temp-加保'!D82) ->  | F93: =IF($C93>98,"",'Temp-定寿'!D83) ->  | G93: =IF($C93>98,"",'Temp-加保'!E82) ->  | H93: =IF(C93<=98,ROUND('Temp-加保'!I82,2),"") ->  | I93: =IF($C93>98,"",'Temp-加保'!F82) ->  | J93: =IF(C93<=98,IF($C93=98,ROUND(120%*'Temp-加保'!I82,2),0),"") ->  | K93: =IF($C93>98,"",'Temp-加保'!H82) ->  | L93: =IF($C93>98,"",'Temp-定寿'!G83) ->  | M93: =IF($C93>98,"",'Temp-加保'!H82+'Temp-定寿'!G83) ->  | Q93: =IF($C93>98,"",'Temp-加保'!L82) ->  | R93: =IF(C93<=98,ROUND('Temp-加保'!AA82,2),"") ->  | S93: =IF($C93>98,"",'Temp-加保'!M82) ->  | T93: =IF(C93<=98,IF($C93=98,ROUND(120%*'Temp-加保'!AA82,2),0),"") ->  | U93: =IF($C93>98,"",'Temp-加保'!N82) ->  | V93: 0 | W93: 0 | X93: 0 | Y93: 0 | Z93: 0
A94: 75 | E94: =IF($C94>98,"",'Temp-加保'!D83) ->  | F94: =IF($C94>98,"",'Temp-定寿'!D84) ->  | G94: =IF($C94>98,"",'Temp-加保'!E83) ->  | H94: =IF(C94<=98,ROUND('Temp-加保'!I83,2),"") ->  | I94: =IF($C94>98,"",'Temp-加保'!F83) ->  | J94: =IF(C94<=98,IF($C94=98,ROUND(120%*'Temp-加保'!I83,2),0),"") ->  | K94: =IF($C94>98,"",'Temp-加保'!H83) ->  | L94: =IF($C94>98,"",'Temp-定寿'!G84) ->  | M94: =IF($C94>98,"",'Temp-加保'!H83+'Temp-定寿'!G84) ->  | Q94: =IF($C94>98,"",'Temp-加保'!L83) ->  | R94: =IF(C94<=98,ROUND('Temp-加保'!AA83,2),"") ->  | S94: =IF($C94>98,"",'Temp-加保'!M83) ->  | T94: =IF(C94<=98,IF($C94=98,ROUND(120%*'Temp-加保'!AA83,2),0),"") ->  | U94: =IF($C94>98,"",'Temp-加保'!N83) ->  | V94: 0 | W94: 0 | X94: 0 | Y94: 0 | Z94: 0
A95: 76 | E95: =IF($C95>98,"",'Temp-加保'!D84) ->  | F95: =IF($C95>98,"",'Temp-定寿'!D85) ->  | G95: =IF($C95>98,"",'Temp-加保'!E84) ->  | H95: =IF(C95<=98,ROUND('Temp-加保'!I84,2),"") ->  | I95: =IF($C95>98,"",'Temp-加保'!F84) ->  | J95: =IF(C95<=98,IF($C95=98,ROUND(120%*'Temp-加保'!I84,2),0),"") ->  | K95: =IF($C95>98,"",'Temp-加保'!H84) ->  | L95: =IF($C95>98,"",'Temp-定寿'!G85) ->  | M95: =IF($C95>98,"",'Temp-加保'!H84+'Temp-定寿'!G85) ->  | Q95: =IF($C95>98,"",'Temp-加保'!L84) ->  | R95: =IF(C95<=98,ROUND('Temp-加保'!AA84,2),"") ->  | S95: =IF($C95>98,"",'Temp-加保'!M84) ->  | T95: =IF(C95<=98,IF($C95=98,ROUND(120%*'Temp-加保'!AA84,2),0),"") ->  | U95: =IF($C95>98,"",'Temp-加保'!N84) ->  | V95: 0 | W95: 0 | X95: 0 | Y95: 0 | Z95: 0
A96: 77 | E96: =IF($C96>98,"",'Temp-加保'!D85) ->  | F96: =IF($C96>98,"",'Temp-定寿'!D86) ->  | G96: =IF($C96>98,"",'Temp-加保'!E85) ->  | H96: =IF(C96<=98,ROUND('Temp-加保'!I85,2),"") ->  | I96: =IF($C96>98,"",'Temp-加保'!F85) ->  | J96: =IF(C96<=98,IF($C96=98,ROUND(120%*'Temp-加保'!I85,2),0),"") ->  | K96: =IF($C96>98,"",'Temp-加保'!H85) ->  | L96: =IF($C96>98,"",'Temp-定寿'!G86) ->  | M96: =IF($C96>98,"",'Temp-加保'!H85+'Temp-定寿'!G86) ->  | Q96: =IF($C96>98,"",'Temp-加保'!L85) ->  | R96: =IF(C96<=98,ROUND('Temp-加保'!AA85,2),"") ->  | S96: =IF($C96>98,"",'Temp-加保'!M85) ->  | T96: =IF(C96<=98,IF($C96=98,ROUND(120%*'Temp-加保'!AA85,2),0),"") ->  | U96: =IF($C96>98,"",'Temp-加保'!N85) ->  | V96: 0 | W96: 0 | X96: 0 | Y96: 0 | Z96: 0
A97: 78 | E97: =IF($C97>98,"",'Temp-加保'!D86) ->  | F97: =IF($C97>98,"",'Temp-定寿'!D87) ->  | G97: =IF($C97>98,"",'Temp-加保'!E86) ->  | H97: =IF(C97<=98,ROUND('Temp-加保'!I86,2),"") ->  | I97: =IF($C97>98,"",'Temp-加保'!F86) ->  | J97: =IF(C97<=98,IF($C97=98,ROUND(120%*'Temp-加保'!I86,2),0),"") ->  | K97: =IF($C97>98,"",'Temp-加保'!H86) ->  | L97: =IF($C97>98,"",'Temp-定寿'!G87) ->  | M97: =IF($C97>98,"",'Temp-加保'!H86+'Temp-定寿'!G87) ->  | Q97: =IF($C97>98,"",'Temp-加保'!L86) ->  | R97: =IF(C97<=98,ROUND('Temp-加保'!AA86,2),"") ->  | S97: =IF($C97>98,"",'Temp-加保'!M86) ->  | T97: =IF(C97<=98,IF($C97=98,ROUND(120%*'Temp-加保'!AA86,2),0),"") ->  | U97: =IF($C97>98,"",'Temp-加保'!N86) ->  | V97: 0 | W97: 0 | X97: 0 | Y97: 0 | Z97: 0
A98: 79 | E98: =IF($C98>98,"",'Temp-加保'!D87) ->  | F98: =IF($C98>98,"",'Temp-定寿'!D88) ->  | G98: =IF($C98>98,"",'Temp-加保'!E87) ->  | H98: =IF(C98<=98,ROUND('Temp-加保'!I87,2),"") ->  | I98: =IF($C98>98,"",'Temp-加保'!F87) ->  | J98: =IF(C98<=98,IF($C98=98,ROUND(120%*'Temp-加保'!I87,2),0),"") ->  | K98: =IF($C98>98,"",'Temp-加保'!H87) ->  | L98: =IF($C98>98,"",'Temp-定寿'!G88) ->  | M98: =IF($C98>98,"",'Temp-加保'!H87+'Temp-定寿'!G88) ->  | Q98: =IF($C98>98,"",'Temp-加保'!L87) ->  | R98: =IF(C98<=98,ROUND('Temp-加保'!AA87,2),"") ->  | S98: =IF($C98>98,"",'Temp-加保'!M87) ->  | T98: =IF(C98<=98,IF($C98=98,ROUND(120%*'Temp-加保'!AA87,2),0),"") ->  | U98: =IF($C98>98,"",'Temp-加保'!N87) ->  | V98: 0 | W98: 0 | X98: 0 | Y98: 0 | Z98: 0
A99: 80 | E99: =IF($C99>98,"",'Temp-加保'!D88) ->  | F99: =IF($C99>98,"",'Temp-定寿'!D89) ->  | G99: =IF($C99>98,"",'Temp-加保'!E88) ->  | H99: =IF(C99<=98,ROUND('Temp-加保'!I88,2),"") ->  | I99: =IF($C99>98,"",'Temp-加保'!F88) ->  | J99: =IF(C99<=98,IF($C99=98,ROUND(120%*'Temp-加保'!I88,2),0),"") ->  | K99: =IF($C99>98,"",'Temp-加保'!H88) ->  | L99: =IF($C99>98,"",'Temp-定寿'!G89) ->  | M99: =IF($C99>98,"",'Temp-加保'!H88+'Temp-定寿'!G89) ->  | Q99: =IF($C99>98,"",'Temp-加保'!L88) ->  | R99: =IF(C99<=98,ROUND('Temp-加保'!AA88,2),"") ->  | S99: =IF($C99>98,"",'Temp-加保'!M88) ->  | T99: =IF(C99<=98,IF($C99=98,ROUND(120%*'Temp-加保'!AA88,2),0),"") ->  | U99: =IF($C99>98,"",'Temp-加保'!N88) ->  | V99: 0 | W99: 0 | X99: 0 | Y99: 0 | Z99: 0
A100: 81 | E100: =IF($C100>98,"",'Temp-加保'!D89) ->  | F100: =IF($C100>98,"",'Temp-定寿'!D90) ->  | G100: =IF($C100>98,"",'Temp-加保'!E89) ->  | H100: =IF(C100<=98,ROUND('Temp-加保'!I89,2),"") ->  | I100: =IF($C100>98,"",'Temp-加保'!F89) ->  | J100: =IF(C100<=98,IF($C100=98,ROUND(120%*'Temp-加保'!I89,2),0),"") ->  | K100: =IF($C100>98,"",'Temp-加保'!H89) ->  | L100: =IF($C100>98,"",'Temp-定寿'!G90) ->  | M100: =IF($C100>98,"",'Temp-加保'!H89+'Temp-定寿'!G90) ->  | Q100: =IF($C100>98,"",'Temp-加保'!L89) ->  | R100: =IF(C100<=98,ROUND('Temp-加保'!AA89,2),"") ->  | S100: =IF($C100>98,"",'Temp-加保'!M89) ->  | T100: =IF(C100<=98,IF($C100=98,ROUND(120%*'Temp-加保'!AA89,2),0),"") ->  | U100: =IF($C100>98,"",'Temp-加保'!N89) ->  | V100: 0 | W100: 0 | X100: 0 | Y100: 0 | Z100: 0
A101: 82 | E101: =IF($C101>98,"",'Temp-加保'!D90) ->  | F101: =IF($C101>98,"",'Temp-定寿'!D91) ->  | G101: =IF($C101>98,"",'Temp-加保'!E90) ->  | H101: =IF(C101<=98,ROUND('Temp-加保'!I90,2),"") ->  | I101: =IF($C101>98,"",'Temp-加保'!F90) ->  | J101: =IF(C101<=98,IF($C101=98,ROUND(120%*'Temp-加保'!I90,2),0),"") ->  | K101: =IF($C101>98,"",'Temp-加保'!H90) ->  | L101: =IF($C101>98,"",'Temp-定寿'!G91) ->  | M101: =IF($C101>98,"",'Temp-加保'!H90+'Temp-定寿'!G91) ->  | Q101: =IF($C101>98,"",'Temp-加保'!L90) ->  | R101: =IF(C101<=98,ROUND('Temp-加保'!AA90,2),"") ->  | S101: =IF($C101>98,"",'Temp-加保'!M90) ->  | T101: =IF(C101<=98,IF($C101=98,ROUND(120%*'Temp-加保'!AA90,2),0),"") ->  | U101: =IF($C101>98,"",'Temp-加保'!N90) ->  | V101: 0 | W101: 0 | X101: 0 | Y101: 0 | Z101: 0
A102: 83 | E102: =IF($C102>98,"",'Temp-加保'!D91) ->  | F102: =IF($C102>98,"",'Temp-定寿'!D92) ->  | G102: =IF($C102>98,"",'Temp-加保'!E91) ->  | H102: =IF(C102<=98,ROUND('Temp-加保'!I91,2),"") ->  | I102: =IF($C102>98,"",'Temp-加保'!F91) ->  | J102: =IF(C102<=98,IF($C102=98,ROUND(120%*'Temp-加保'!I91,2),0),"") ->  | K102: =IF($C102>98,"",'Temp-加保'!H91) ->  | L102: =IF($C102>98,"",'Temp-定寿'!G92) ->  | M102: =IF($C102>98,"",'Temp-加保'!H91+'Temp-定寿'!G92) ->  | Q102: =IF($C102>98,"",'Temp-加保'!L91) ->  | R102: =IF(C102<=98,ROUND('Temp-加保'!AA91,2),"") ->  | S102: =IF($C102>98,"",'Temp-加保'!M91) ->  | T102: =IF(C102<=98,IF($C102=98,ROUND(120%*'Temp-加保'!AA91,2),0),"") ->  | U102: =IF($C102>98,"",'Temp-加保'!N91) ->  | V102: 0 | W102: 0 | X102: 0 | Y102: 0 | Z102: 0
A103: 84 | E103: =IF($C103>98,"",'Temp-加保'!D92) ->  | F103: =IF($C103>98,"",'Temp-定寿'!D93) ->  | G103: =IF($C103>98,"",'Temp-加保'!E92) ->  | H103: =IF(C103<=98,ROUND('Temp-加保'!I92,2),"") ->  | I103: =IF($C103>98,"",'Temp-加保'!F92) ->  | J103: =IF(C103<=98,IF($C103=98,ROUND(120%*'Temp-加保'!I92,2),0),"") ->  | K103: =IF($C103>98,"",'Temp-加保'!H92) ->  | L103: =IF($C103>98,"",'Temp-定寿'!G93) ->  | M103: =IF($C103>98,"",'Temp-加保'!H92+'Temp-定寿'!G93) ->  | Q103: =IF($C103>98,"",'Temp-加保'!L92) ->  | R103: =IF(C103<=98,ROUND('Temp-加保'!AA92,2),"") ->  | S103: =IF($C103>98,"",'Temp-加保'!M92) ->  | T103: =IF(C103<=98,IF($C103=98,ROUND(120%*'Temp-加保'!AA92,2),0),"") ->  | U103: =IF($C103>98,"",'Temp-加保'!N92) ->  | V103: 0 | W103: 0 | X103: 0 | Y103: 0 | Z103: 0
A104: 85 | E104: =IF($C104>98,"",'Temp-加保'!D93) ->  | F104: =IF($C104>98,"",'Temp-定寿'!D94) ->  | G104: =IF($C104>98,"",'Temp-加保'!E93) ->  | H104: =IF(C104<=98,ROUND('Temp-加保'!I93,2),"") ->  | I104: =IF($C104>98,"",'Temp-加保'!F93) ->  | J104: =IF(C104<=98,IF($C104=98,ROUND(120%*'Temp-加保'!I93,2),0),"") ->  | K104: =IF($C104>98,"",'Temp-加保'!H93) ->  | L104: =IF($C104>98,"",'Temp-定寿'!G94) ->  | M104: =IF($C104>98,"",'Temp-加保'!H93+'Temp-定寿'!G94) ->  | Q104: =IF($C104>98,"",'Temp-加保'!L93) ->  | R104: =IF(C104<=98,ROUND('Temp-加保'!AA93,2),"") ->  | S104: =IF($C104>98,"",'Temp-加保'!M93) ->  | T104: =IF(C104<=98,IF($C104=98,ROUND(120%*'Temp-加保'!AA93,2),0),"") ->  | U104: =IF($C104>98,"",'Temp-加保'!N93) ->  | V104: 0 | W104: 0 | X104: 0 | Y104: 0 | Z104: 0
A105: 86 | E105: =IF($C105>98,"",'Temp-加保'!D94) ->  | F105: =IF($C105>98,"",'Temp-定寿'!D95) ->  | G105: =IF($C105>98,"",'Temp-加保'!E94) ->  | H105: =IF(C105<=98,ROUND('Temp-加保'!I94,2),"") ->  | I105: =IF($C105>98,"",'Temp-加保'!F94) ->  | J105: =IF(C105<=98,IF($C105=98,ROUND(120%*'Temp-加保'!I94,2),0),"") ->  | K105: =IF($C105>98,"",'Temp-加保'!H94) ->  | L105: =IF($C105>98,"",'Temp-定寿'!G95) ->  | M105: =IF($C105>98,"",'Temp-加保'!H94+'Temp-定寿'!G95) ->  | Q105: =IF($C105>98,"",'Temp-加保'!L94) ->  | R105: =IF(C105<=98,ROUND('Temp-加保'!AA94,2),"") ->  | S105: =IF($C105>98,"",'Temp-加保'!M94) ->  | T105: =IF(C105<=98,IF($C105=98,ROUND(120%*'Temp-加保'!AA94,2),0),"") ->  | U105: =IF($C105>98,"",'Temp-加保'!N94) ->  | V105: 0 | W105: 0 | X105: 0 | Y105: 0 | Z105: 0
A106: 87 | E106: =IF($C106>98,"",'Temp-加保'!D95) ->  | F106: =IF($C106>98,"",'Temp-定寿'!D96) ->  | G106: =IF($C106>98,"",'Temp-加保'!E95) ->  | H106: =IF(C106<=98,ROUND('Temp-加保'!I95,2),"") ->  | I106: =IF($C106>98,"",'Temp-加保'!F95) ->  | J106: =IF(C106<=98,IF($C106=98,ROUND(120%*'Temp-加保'!I95,2),0),"") ->  | K106: =IF($C106>98,"",'Temp-加保'!H95) ->  | L106: =IF($C106>98,"",'Temp-定寿'!G96) ->  | M106: =IF($C106>98,"",'Temp-加保'!H95+'Temp-定寿'!G96) ->  | Q106: =IF($C106>98,"",'Temp-加保'!L95) ->  | R106: =IF(C106<=98,ROUND('Temp-加保'!AA95,2),"") ->  | S106: =IF($C106>98,"",'Temp-加保'!M95) ->  | T106: =IF(C106<=98,IF($C106=98,ROUND(120%*'Temp-加保'!AA95,2),0),"") ->  | U106: =IF($C106>98,"",'Temp-加保'!N95) ->  | V106: 0 | W106: 0 | X106: 0 | Y106: 0 | Z106: 0
A107: 88 | E107: =IF($C107>98,"",'Temp-加保'!D96) ->  | F107: =IF($C107>98,"",'Temp-定寿'!D97) ->  | G107: =IF($C107>98,"",'Temp-加保'!E96) ->  | H107: =IF(C107<=98,ROUND('Temp-加保'!I96,2),"") ->  | I107: =IF($C107>98,"",'Temp-加保'!F96) ->  | J107: =IF(C107<=98,IF($C107=98,ROUND(120%*'Temp-加保'!I96,2),0),"") ->  | K107: =IF($C107>98,"",'Temp-加保'!H96) ->  | L107: =IF($C107>98,"",'Temp-定寿'!G97) ->  | M107: =IF($C107>98,"",'Temp-加保'!H96+'Temp-定寿'!G97) ->  | Q107: =IF($C107>98,"",'Temp-加保'!L96) ->  | R107: =IF(C107<=98,ROUND('Temp-加保'!AA96,2),"") ->  | S107: =IF($C107>98,"",'Temp-加保'!M96) ->  | T107: =IF(C107<=98,IF($C107=98,ROUND(120%*'Temp-加保'!AA96,2),0),"") ->  | U107: =IF($C107>98,"",'Temp-加保'!N96) ->  | V107: 0 | W107: 0 | X107: 0 | Y107: 0 | Z107: 0
A108: 89 | E108: =IF($C108>98,"",'Temp-加保'!D97) ->  | F108: =IF($C108>98,"",'Temp-定寿'!D98) ->  | G108: =IF($C108>98,"",'Temp-加保'!E97) ->  | H108: =IF(C108<=98,ROUND('Temp-加保'!I97,2),"") ->  | I108: =IF($C108>98,"",'Temp-加保'!F97) ->  | J108: =IF(C108<=98,IF($C108=98,ROUND(120%*'Temp-加保'!I97,2),0),"") ->  | K108: =IF($C108>98,"",'Temp-加保'!H97) ->  | L108: =IF($C108>98,"",'Temp-定寿'!G98) ->  | M108: =IF($C108>98,"",'Temp-加保'!H97+'Temp-定寿'!G98) ->  | Q108: =IF($C108>98,"",'Temp-加保'!L97) ->  | R108: =IF(C108<=98,ROUND('Temp-加保'!AA97,2),"") ->  | S108: =IF($C108>98,"",'Temp-加保'!M97) ->  | T108: =IF(C108<=98,IF($C108=98,ROUND(120%*'Temp-加保'!AA97,2),0),"") ->  | U108: =IF($C108>98,"",'Temp-加保'!N97) ->  | V108: 0 | W108: 0 | X108: 0 | Y108: 0 | Z108: 0
A109: 90 | E109: =IF($C109>98,"",'Temp-加保'!D98) ->  | F109: =IF($C109>98,"",'Temp-定寿'!D99) ->  | G109: =IF($C109>98,"",'Temp-加保'!E98) ->  | H109: =IF(C109<=98,ROUND('Temp-加保'!I98,2),"") ->  | I109: =IF($C109>98,"",'Temp-加保'!F98) ->  | J109: =IF(C109<=98,IF($C109=98,ROUND(120%*'Temp-加保'!I98,2),0),"") ->  | K109: =IF($C109>98,"",'Temp-加保'!H98) ->  | L109: =IF($C109>98,"",'Temp-定寿'!G99) ->  | M109: =IF($C109>98,"",'Temp-加保'!H98+'Temp-定寿'!G99) ->  | Q109: =IF($C109>98,"",'Temp-加保'!L98) ->  | R109: =IF(C109<=98,ROUND('Temp-加保'!AA98,2),"") ->  | S109: =IF($C109>98,"",'Temp-加保'!M98) ->  | T109: =IF(C109<=98,IF($C109=98,ROUND(120%*'Temp-加保'!AA98,2),0),"") ->  | U109: =IF($C109>98,"",'Temp-加保'!N98) ->  | V109: 0 | W109: 0 | X109: 0 | Y109: 0 | Z109: 0
A110: 91 | E110: =IF($C110>98,"",'Temp-加保'!D99) ->  | F110: =IF($C110>98,"",'Temp-定寿'!D100) ->  | G110: =IF($C110>98,"",'Temp-加保'!E99) ->  | H110: =IF(C110<=98,ROUND('Temp-加保'!I99,2),"") ->  | I110: =IF($C110>98,"",'Temp-加保'!F99) ->  | J110: =IF(C110<=98,IF($C110=98,ROUND(120%*'Temp-加保'!I99,2),0),"") ->  | K110: =IF($C110>98,"",'Temp-加保'!H99) ->  | L110: =IF($C110>98,"",'Temp-定寿'!G100) ->  | M110: =IF($C110>98,"",'Temp-加保'!H99+'Temp-定寿'!G100) ->  | Q110: =IF($C110>98,"",'Temp-加保'!L99) ->  | R110: =IF(C110<=98,ROUND('Temp-加保'!AA99,2),"") ->  | S110: =IF($C110>98,"",'Temp-加保'!M99) ->  | T110: =IF(C110<=98,IF($C110=98,ROUND(120%*'Temp-加保'!AA99,2),0),"") ->  | U110: =IF($C110>98,"",'Temp-加保'!N99) ->  | V110: 0 | W110: 0 | X110: 0 | Y110: 0 | Z110: 0
A111: 92 | E111: =IF($C111>98,"",'Temp-加保'!D100) ->  | F111: =IF($C111>98,"",'Temp-定寿'!D101) ->  | G111: =IF($C111>98,"",'Temp-加保'!E100) ->  | H111: =IF(C111<=98,ROUND('Temp-加保'!I100,2),"") ->  | I111: =IF($C111>98,"",'Temp-加保'!F100) ->  | J111: =IF(C111<=98,IF($C111=98,ROUND(120%*'Temp-加保'!I100,2),0),"") ->  | K111: =IF($C111>98,"",'Temp-加保'!H100) ->  | L111: =IF($C111>98,"",'Temp-定寿'!G101) ->  | M111: =IF($C111>98,"",'Temp-加保'!H100+'Temp-定寿'!G101) ->  | Q111: =IF($C111>98,"",'Temp-加保'!L100) ->  | R111: =IF(C111<=98,ROUND('Temp-加保'!AA100,2),"") ->  | S111: =IF($C111>98,"",'Temp-加保'!M100) ->  | T111: =IF(C111<=98,IF($C111=98,ROUND(120%*'Temp-加保'!AA100,2),0),"") ->  | U111: =IF($C111>98,"",'Temp-加保'!N100) ->  | V111: 0 | W111: 0 | X111: 0 | Y111: 0 | Z111: 0
A112: 93 | E112: =IF($C112>98,"",'Temp-加保'!D101) ->  | F112: =IF($C112>98,"",'Temp-定寿'!D102) ->  | G112: =IF($C112>98,"",'Temp-加保'!E101) ->  | H112: =IF(C112<=98,ROUND('Temp-加保'!I101,2),"") ->  | I112: =IF($C112>98,"",'Temp-加保'!F101) ->  | J112: =IF(C112<=98,IF($C112=98,ROUND(120%*'Temp-加保'!I101,2),0),"") ->  | K112: =IF($C112>98,"",'Temp-加保'!H101) ->  | L112: =IF($C112>98,"",'Temp-定寿'!G102) ->  | M112: =IF($C112>98,"",'Temp-加保'!H101+'Temp-定寿'!G102) ->  | Q112: =IF($C112>98,"",'Temp-加保'!L101) ->  | R112: =IF(C112<=98,ROUND('Temp-加保'!AA101,2),"") ->  | S112: =IF($C112>98,"",'Temp-加保'!M101) ->  | T112: =IF(C112<=98,IF($C112=98,ROUND(120%*'Temp-加保'!AA101,2),0),"") ->  | U112: =IF($C112>98,"",'Temp-加保'!N101) ->  | V112: 0 | W112: 0 | X112: 0 | Y112: 0 | Z112: 0
A113: 94 | E113: =IF($C113>98,"",'Temp-加保'!D102) ->  | F113: =IF($C113>98,"",'Temp-定寿'!D103) ->  | G113: =IF($C113>98,"",'Temp-加保'!E102) ->  | H113: =IF(C113<=98,ROUND('Temp-加保'!I102,2),"") ->  | I113: =IF($C113>98,"",'Temp-加保'!F102) ->  | J113: =IF(C113<=98,IF($C113=98,ROUND(120%*'Temp-加保'!I102,2),0),"") ->  | K113: =IF($C113>98,"",'Temp-加保'!H102) ->  | L113: =IF($C113>98,"",'Temp-定寿'!G103) ->  | M113: =IF($C113>98,"",'Temp-加保'!H102+'Temp-定寿'!G103) ->  | Q113: =IF($C113>98,"",'Temp-加保'!L102) ->  | R113: =IF(C113<=98,ROUND('Temp-加保'!AA102,2),"") ->  | S113: =IF($C113>98,"",'Temp-加保'!M102) ->  | T113: =IF(C113<=98,IF($C113=98,ROUND(120%*'Temp-加保'!AA102,2),0),"") ->  | U113: =IF($C113>98,"",'Temp-加保'!N102) ->  | V113: 0 | W113: =IF($C113=$G$9,K112,IF($C113<$G$9,-E113,0)) -> 0 | X113: 0 | Y113: 0 | Z113: 0
A114: 95 | E114: =IF($C114>98,"",'Temp-加保'!D103) ->  | F114: =IF($C114>98,"",'Temp-定寿'!D104) ->  | G114: =IF($C114>98,"",'Temp-加保'!E103) ->  | H114: =IF(C114<=98,ROUND('Temp-加保'!I103,2),"") ->  | I114: =IF($C114>98,"",'Temp-加保'!F103) ->  | J114: =IF(C114<=98,IF($C114=98,ROUND(120%*'Temp-加保'!I103,2),0),"") ->  | K114: =IF($C114>98,"",'Temp-加保'!H103) ->  | L114: =IF($C114>98,"",'Temp-定寿'!G104) ->  | M114: =IF($C114>98,"",'Temp-加保'!H103+'Temp-定寿'!G104) ->  | Q114: =IF($C114>98,"",'Temp-加保'!L103) ->  | R114: =IF(C114<=98,ROUND('Temp-加保'!AA103,2),"") ->  | S114: =IF($C114>98,"",'Temp-加保'!M103) ->  | T114: =IF(C114<=98,IF($C114=98,ROUND(120%*'Temp-加保'!AA103,2),0),"") ->  | U114: =IF($C114>98,"",'Temp-加保'!N103) ->  | V114: 0 | W114: 0 | X114: 0 | Y114: 0 | Z114: 0
A115: 96 | E115: =IF($C115>98,"",'Temp-加保'!D104) ->  | F115: =IF($C115>98,"",'Temp-定寿'!D105) ->  | G115: =IF($C115>98,"",'Temp-加保'!E104) ->  | H115: =IF(C115<=98,ROUND('Temp-加保'!I104,2),"") ->  | I115: =IF($C115>98,"",'Temp-加保'!F104) ->  | J115: =IF(C115<=98,IF($C115=98,ROUND(120%*'Temp-加保'!I104,2),0),"") ->  | K115: =IF($C115>98,"",'Temp-加保'!H104) ->  | L115: =IF($C115>98,"",'Temp-定寿'!G105) ->  | M115: =IF($C115>98,"",'Temp-加保'!H104+'Temp-定寿'!G105) ->  | Q115: =IF($C115>98,"",'Temp-加保'!L104) ->  | R115: =IF(C115<=98,ROUND('Temp-加保'!AA104,2),"") ->  | S115: =IF($C115>98,"",'Temp-加保'!M104) ->  | T115: =IF(C115<=98,IF($C115=98,ROUND(120%*'Temp-加保'!AA104,2),0),"") ->  | U115: =IF($C115>98,"",'Temp-加保'!N104) ->  | V115: 0 | W115: 0 | X115: 0 | Y115: 0 | Z115: 0
A116: 97 | C116: =IF(年龄+A116-1>=99,"",年龄+A116-1) ->  | E116: =IF($C116>98,"",'Temp-加保'!D105) ->  | F116: =IF($C116>98,"",'Temp-定寿'!D106) ->  | G116: =IF($C116>98,"",'Temp-加保'!E105) ->  | H116: =IF(C116<=98,ROUND('Temp-加保'!I105,2),"") ->  | I116: =IF($C116>98,"",'Temp-加保'!F105) ->  | J116: =IF(C116<=98,IF($C116=98,ROUND(120%*'Temp-加保'!I105,2),0),"") ->  | K116: =IF($C116>98,"",'Temp-加保'!H105) ->  | L116: =IF($C116>98,"",'Temp-定寿'!G106) ->  | M116: =IF($C116>98,"",'Temp-加保'!H105+'Temp-定寿'!G106) ->  | Q116: =IF($C116>98,"",'Temp-加保'!L105) ->  | R116: =IF(C116<=98,ROUND('Temp-加保'!AA105,2),"") ->  | S116: =IF($C116>98,"",'Temp-加保'!M105) ->  | T116: =IF(C116<=98,IF($C116=98,ROUND(120%*'Temp-加保'!AA105,2),0),"") ->  | U116: =IF($C116>98,"",'Temp-加保'!N105) ->  | V116: =IF(AND($O$15="是",B116<=交费期间),$O$17,0) -> 0 | W116: =IF($C116=$G$9,K115,IF($C116<$G$9,-E116,0)) -> 0 | X116: =IF($C116=$G$11,I115,IF($C116<$G$11,-E116,0)) -> 0 | Y116: 0 | Z116: 0
A117: 98 | E117: =IF($C117>98,"",'Temp-加保'!D106) ->  | F117: =IF($C117>98,"",'Temp-定寿'!D107) ->  | G117: =IF($C117>98,"",'Temp-加保'!E106) ->  | H117: =IF(C117<=98,ROUND('Temp-加保'!I106,2),"") ->  | I117: =IF($C117>98,"",'Temp-加保'!F106) ->  | J117: =IF(C117<=98,IF($C117=98,ROUND(120%*'Temp-加保'!I106,2),0),"") ->  | K117: =IF($C117>98,"",'Temp-加保'!H106) ->  | L117: =IF($C117>98,"",'Temp-定寿'!G107) ->  | M117: =IF($C117>98,"",'Temp-加保'!H106+'Temp-定寿'!G107) ->  | Q117: =IF($C117>98,"",'Temp-加保'!L106) ->  | R117: =IF(C117<=98,ROUND('Temp-加保'!AA106,2),"") ->  | S117: =IF($C117>98,"",'Temp-加保'!M106) ->  | T117: =IF(C117<=98,IF($C117=98,ROUND(120%*'Temp-加保'!AA106,2),0),"") ->  | U117: =IF($C117>98,"",'Temp-加保'!N106) ->  | V117: 0 | W117: 0 | X117: 0 | Y117: 0 | Z117: 0
A118: 99 | E118: =IF($C118>98,"",'Temp-加保'!D107) ->  | F118: =IF($C118>98,"",'Temp-定寿'!D108) ->  | G118: =IF($C118>98,"",'Temp-加保'!E107) ->  | H118: =IF(C118<=98,ROUND('Temp-加保'!I107,2),"") ->  | I118: =IF($C118>98,"",'Temp-加保'!F107) ->  | J118: =IF(C118<=98,IF($C118=98,ROUND(120%*'Temp-加保'!I107,2),0),"") ->  | K118: =IF($C118>98,"",'Temp-加保'!H107) ->  | L118: =IF($C118>98,"",'Temp-定寿'!G108) ->  | M118: =IF($C118>98,"",'Temp-加保'!H107+'Temp-定寿'!G108) ->  | Q118: =IF($C118>98,"",'Temp-加保'!L107) ->  | R118: =IF(C118<=98,ROUND('Temp-加保'!AA107,2),"") ->  | S118: =IF($C118>98,"",'Temp-加保'!M107) ->  | T118: =IF(C118<=98,IF($C118=98,ROUND(120%*'Temp-加保'!AA107,2),0),"") ->  | U118: =IF($C118>98,"",'Temp-加保'!N107) ->  | V118: 0 | W118: 0 | X118: 0 | Y118: 0 | Z118: 0
A119: 100 | E119: =IF($C119>98,"",'Temp-加保'!D108) ->  | F119: =IF($C119>98,"",'Temp-定寿'!D109) ->  | G119: =IF($C119>98,"",'Temp-加保'!E108) ->  | H119: =IF(C119<=98,ROUND('Temp-加保'!I108,2),"") ->  | I119: =IF($C119>98,"",'Temp-加保'!F108) ->  | J119: =IF(C119<=98,IF($C119=98,ROUND(120%*'Temp-加保'!I108,2),0),"") ->  | K119: =IF($C119>98,"",'Temp-加保'!H108) ->  | L119: =IF($C119>98,"",'Temp-定寿'!G109) ->  | M119: =IF($C119>98,"",'Temp-加保'!H108+'Temp-定寿'!G109) ->  | Q119: =IF($C119>98,"",'Temp-加保'!L108) ->  | R119: =IF(C119<=98,ROUND('Temp-加保'!AA108,2),"") ->  | S119: =IF($C119>98,"",'Temp-加保'!M108) ->  | T119: =IF(C119<=98,IF($C119=98,ROUND(120%*'Temp-加保'!AA108,2),0),"") ->  | U119: =IF($C119>98,"",'Temp-加保'!N108) ->  | V119: 0 | W119: 0 | X119: 0 | Y119: 0 | Z119: 0
A120: 101 | E120: =IF($C120>98,"",'Temp-加保'!D109) ->  | F120: =IF($C120>98,"",'Temp-定寿'!D110) ->  | G120: =IF($C120>98,"",'Temp-加保'!E109) ->  | H120: =IF(C120<=98,ROUND('Temp-加保'!I109,2),"") ->  | I120: =IF($C120>98,"",'Temp-加保'!F109) ->  | J120: =IF(C120<=98,IF($C120=98,ROUND(120%*'Temp-加保'!I109,2),0),"") ->  | K120: =IF($C120>98,"",'Temp-加保'!H109) ->  | L120: =IF($C120>98,"",'Temp-定寿'!G110) ->  | M120: =IF($C120>98,"",'Temp-加保'!H109+'Temp-定寿'!G110) ->  | Q120: =IF($C120>98,"",'Temp-加保'!L109) ->  | R120: =IF(C120<=98,ROUND('Temp-加保'!AA109,2),"") ->  | S120: =IF($C120>98,"",'Temp-加保'!M109) ->  | T120: =IF(C120<=98,IF($C120=98,ROUND(120%*'Temp-加保'!AA109,2),0),"") ->  | U120: =IF($C120>98,"",'Temp-加保'!N109) ->  | V120: 0 | W120: 0 | X120: 0 | Y120: 0 | Z120: 0
A121: 102 | E121: =IF($C121>98,"",'Temp-加保'!D110) ->  | F121: =IF($C121>98,"",'Temp-定寿'!D111) ->  | G121: =IF($C121>98,"",'Temp-加保'!E110) ->  | H121: =IF(C121<=98,ROUND('Temp-加保'!I110,2),"") ->  | I121: =IF($C121>98,"",'Temp-加保'!F110) ->  | J121: =IF(C121<=98,IF($C121=98,ROUND(120%*'Temp-加保'!I110,2),0),"") ->  | K121: =IF($C121>98,"",'Temp-加保'!H110) ->  | L121: =IF($C121>98,"",'Temp-定寿'!G111) ->  | M121: =IF($C121>98,"",'Temp-加保'!H110+'Temp-定寿'!G111) ->  | Q121: =IF($C121>98,"",'Temp-加保'!L110) ->  | R121: =IF(C121<=98,ROUND('Temp-加保'!AA110,2),"") ->  | S121: =IF($C121>98,"",'Temp-加保'!M110) ->  | T121: =IF(C121<=98,IF($C121=98,ROUND(120%*'Temp-加保'!AA110,2),0),"") ->  | U121: =IF($C121>98,"",'Temp-加保'!N110) ->  | V121: 0 | W121: 0 | X121: 0 | Y121: 0 | Z121: 0
A122: 103 | E122: =IF($C122>98,"",'Temp-加保'!D111) ->  | F122: =IF($C122>98,"",'Temp-定寿'!D112) ->  | G122: =IF($C122>98,"",'Temp-加保'!E111) ->  | H122: =IF(C122<=98,ROUND('Temp-加保'!I111,2),"") ->  | I122: =IF($C122>98,"",'Temp-加保'!F111) ->  | J122: =IF(C122<=98,IF($C122=98,ROUND(120%*'Temp-加保'!I111,2),0),"") ->  | K122: =IF($C122>98,"",'Temp-加保'!H111) ->  | L122: =IF($C122>98,"",'Temp-定寿'!G112) ->  | M122: =IF($C122>98,"",'Temp-加保'!H111+'Temp-定寿'!G112) ->  | Q122: =IF($C122>98,"",'Temp-加保'!L111) ->  | R122: =IF(C122<=98,ROUND('Temp-加保'!AA111,2),"") ->  | S122: =IF($C122>98,"",'Temp-加保'!M111) ->  | T122: =IF(C122<=98,IF($C122=98,ROUND(120%*'Temp-加保'!AA111,2),0),"") ->  | U122: =IF($C122>98,"",'Temp-加保'!N111) ->  | V122: 0 | W122: 0 | X122: 0 | Y122: 0 | Z122: 0
A123: 104 | E123: =IF($C123>98,"",'Temp-加保'!D112) ->  | F123: =IF($C123>98,"",'Temp-定寿'!D113) ->  | G123: =IF($C123>98,"",'Temp-加保'!E112) ->  | H123: =IF(C123<=98,ROUND('Temp-加保'!I112,2),"") ->  | I123: =IF($C123>98,"",'Temp-加保'!F112) ->  | J123: =IF(C123<=98,IF($C123=98,ROUND(120%*'Temp-加保'!I112,2),0),"") ->  | K123: =IF($C123>98,"",'Temp-加保'!H112) ->  | L123: =IF($C123>98,"",'Temp-定寿'!G113) ->  | M123: =IF($C123>98,"",'Temp-加保'!H112+'Temp-定寿'!G113) ->  | Q123: =IF($C123>98,"",'Temp-加保'!L112) ->  | R123: =IF(C123<=98,ROUND('Temp-加保'!AA112,2),"") ->  | S123: =IF($C123>98,"",'Temp-加保'!M112) ->  | T123: =IF(C123<=98,IF($C123=98,ROUND(120%*'Temp-加保'!AA112,2),0),"") ->  | U123: =IF($C123>98,"",'Temp-加保'!N112) ->  | V123: 0 | W123: 0 | X123: 0 | Y123: 0 | Z123: 0
A124: 105 | E124: =IF($C124>98,"",'Temp-加保'!D113) ->  | F124: =IF($C124>98,"",'Temp-定寿'!D114) ->  | G124: =IF($C124>98,"",'Temp-加保'!E113) ->  | H124: =IF(C124<=98,ROUND('Temp-加保'!I113,2),"") ->  | I124: =IF($C124>98,"",'Temp-加保'!F113) ->  | J124: =IF(C124<=98,IF($C124=98,ROUND(120%*'Temp-加保'!I113,2),0),"") ->  | K124: =IF($C124>98,"",'Temp-加保'!H113) ->  | L124: =IF($C124>98,"",'Temp-定寿'!G114) ->  | M124: =IF($C124>98,"",'Temp-加保'!H113+'Temp-定寿'!G114) ->  | Q124: =IF($C124>98,"",'Temp-加保'!L113) ->  | R124: =IF(C124<=98,ROUND('Temp-加保'!AA113,2),"") ->  | S124: =IF($C124>98,"",'Temp-加保'!M113) ->  | T124: =IF(C124<=98,IF($C124=98,ROUND(120%*'Temp-加保'!AA113,2),0),"") ->  | U124: =IF($C124>98,"",'Temp-加保'!N113) ->  | V124: 0 | W124: 0 | X124: 0 | Y124: 0 | Z124: 0
A125: 106 | E125: =IF($C125>98,"",'Temp-加保'!D114) ->  | F125: =IF($C125>98,"",'Temp-定寿'!D115) ->  | G125: =IF($C125>98,"",'Temp-加保'!E114) ->  | H125: =IF(C125<=98,ROUND('Temp-加保'!I114,2),"") ->  | I125: =IF($C125>98,"",'Temp-加保'!F114) ->  | J125: =IF(C125<=98,IF($C125=98,ROUND(120%*'Temp-加保'!I114,2),0),"") ->  | K125: =IF($C125>98,"",'Temp-加保'!H114) ->  | L125: =IF($C125>98,"",'Temp-定寿'!G115) ->  | M125: =IF($C125>98,"",'Temp-加保'!H114+'Temp-定寿'!G115) ->  | Q125: =IF($C125>98,"",'Temp-加保'!L114) ->  | R125: =IF(C125<=98,ROUND('Temp-加保'!AA114,2),"") ->  | S125: =IF($C125>98,"",'Temp-加保'!M114) ->  | T125: =IF(C125<=98,IF($C125=98,ROUND(120%*'Temp-加保'!AA114,2),0),"") ->  | U125: =IF($C125>98,"",'Temp-加保'!N114) ->  | V125: 0 | W125: 0 | X125: 0 | Y125: 0 | Z125: 0
A126: 107 | E126: =IF($C126>98,"",'Temp-加保'!D115) ->  | F126: =IF($C126>98,"",'Temp-定寿'!D116) ->  | G126: =IF($C126>98,"",'Temp-加保'!E115) ->  | H126: =IF(C126<=98,ROUND('Temp-加保'!I115,2),"") ->  | I126: =IF($C126>98,"",'Temp-加保'!F115) ->  | J126: =IF(C126<=98,IF($C126=98,ROUND(120%*'Temp-加保'!I115,2),0),"") ->  | K126: =IF($C126>98,"",'Temp-加保'!H115) ->  | L126: =IF($C126>98,"",'Temp-定寿'!G116) ->  | M126: =IF($C126>98,"",'Temp-加保'!H115+'Temp-定寿'!G116) ->  | Q126: =IF($C126>98,"",'Temp-加保'!L115) ->  | R126: =IF(C126<=98,ROUND('Temp-加保'!AA115,2),"") ->  | S126: =IF($C126>98,"",'Temp-加保'!M115) ->  | T126: =IF(C126<=98,IF($C126=98,ROUND(120%*'Temp-加保'!AA115,2),0),"") ->  | U126: =IF($C126>98,"",'Temp-加保'!N115) ->  | V126: 0 | W126: 0 | X126: 0 | Y126: 0 | Z126: 0
A127: 108 | E127: =IF($C127>98,"",'Temp-加保'!D116) ->  | F127: =IF($C127>98,"",'Temp-定寿'!D117) ->  | G127: =IF($C127>98,"",'Temp-加保'!E116) ->  | H127: =IF(C127<=98,ROUND('Temp-加保'!I116,2),"") ->  | I127: =IF($C127>98,"",'Temp-加保'!F116) ->  | J127: =IF(C127<=98,IF($C127=98,ROUND(120%*'Temp-加保'!I116,2),0),"") ->  | K127: =IF($C127>98,"",'Temp-加保'!H116) ->  | L127: =IF($C127>98,"",'Temp-定寿'!G117) ->  | M127: =IF($C127>98,"",'Temp-加保'!H116+'Temp-定寿'!G117) ->  | Q127: =IF($C127>98,"",'Temp-加保'!L116) ->  | R127: =IF(C127<=98,ROUND('Temp-加保'!AA116,2),"") ->  | S127: =IF($C127>98,"",'Temp-加保'!M116) ->  | T127: =IF(C127<=98,IF($C127=98,ROUND(120%*'Temp-加保'!AA116,2),0),"") ->  | U127: =IF($C127>98,"",'Temp-加保'!N116) ->  | V127: 0 | W127: 0 | X127: 0 | Y127: 0 | Z127: 0
A128: 109 | E128: =IF($C128>98,"",'Temp-加保'!D117) ->  | F128: =IF($C128>98,"",'Temp-定寿'!D118) ->  | G128: =IF($C128>98,"",'Temp-加保'!E117) ->  | H128: =IF(C128<=98,ROUND('Temp-加保'!I117,2),"") ->  | I128: =IF($C128>98,"",'Temp-加保'!F117) ->  | J128: =IF(C128<=98,IF($C128=98,ROUND(120%*'Temp-加保'!I117,2),0),"") ->  | K128: =IF($C128>98,"",'Temp-加保'!H117) ->  | L128: =IF($C128>98,"",'Temp-定寿'!G118) ->  | M128: =IF($C128>98,"",'Temp-加保'!H117+'Temp-定寿'!G118) ->  | Q128: =IF($C128>98,"",'Temp-加保'!L117) ->  | R128: =IF(C128<=98,ROUND('Temp-加保'!AA117,2),"") ->  | S128: =IF($C128>98,"",'Temp-加保'!M117) ->  | T128: =IF(C128<=98,IF($C128=98,ROUND(120%*'Temp-加保'!AA117,2),0),"") ->  | U128: =IF($C128>98,"",'Temp-加保'!N117) ->  | V128: 0 | W128: 0 | X128: 0 | Y128: 0 | Z128: 0
A129: 110 | E129: =IF($C129>98,"",'Temp-加保'!D118) ->  | F129: =IF($C129>98,"",'Temp-定寿'!D119) ->  | G129: =IF($C129>98,"",'Temp-加保'!E118) ->  | H129: =IF(C129<=98,ROUND('Temp-加保'!I118,2),"") ->  | I129: =IF($C129>98,"",'Temp-加保'!F118) ->  | J129: =IF(C129<=98,IF($C129=98,ROUND(120%*'Temp-加保'!I118,2),0),"") ->  | K129: =IF($C129>98,"",'Temp-加保'!H118) ->  | L129: =IF($C129>98,"",'Temp-定寿'!G119) ->  | M129: =IF($C129>98,"",'Temp-加保'!H118+'Temp-定寿'!G119) ->  | Q129: =IF($C129>98,"",'Temp-加保'!L118) ->  | R129: =IF(C129<=98,ROUND('Temp-加保'!AA118,2),"") ->  | S129: =IF($C129>98,"",'Temp-加保'!M118) ->  | T129: =IF(C129<=98,IF($C129=98,ROUND(120%*'Temp-加保'!AA118,2),0),"") ->  | U129: =IF($C129>98,"",'Temp-加保'!N118) ->  | V129: 0 | W129: 0 | X129: 0 | Y129: 0 | Z129: 0

Sheet 利益演示-减保
A1: 在合同有效期内，投保人可以书面申请减保，减保部分按退保处理，会造成一定损失，请提醒客户谨慎决策。 | N1: =IF(U20=0,"减保金额不符合现行减保规则，请调整！",IF(T20=0,"减保后累计保费情况低于最低保费要求，请调整！","")) -> 
B3: Step1 --> | G3: Step2-->在此处可选择需要演示的年龄点 | O3: Step3-->在此处可选择需要演示的年龄点
B4: 被保险人信息： | G4: 简单利益演示（年末年龄）： | O4: 减保后利益演示（年末年龄）：
B6: 性别 | C6: =填写页面!L8 -> 男 | G6: 77 | H6: 现金价值 | I6: =VLOOKUP(G6-1,$C$21:$S$130,7,0) -> 6580793.6 | O6: 77 | P6: 现价价值 | Q6: =VLOOKUP(O6-1,$C$21:$S$130,15,0) -> 6575867.31
B8: 交费期间 | C8: =填写页面!F12 -> 3 | G8: 98 | H8: 现金价值 | I8: =VLOOKUP(G8-1,$C$21:$S$130,7,0) -> 14349048.3 | O8: 98 | P8: 现价价值 | Q8: =VLOOKUP(O8-1,$C$21:$S$130,15,0) -> 14338306.81
B10: 年龄 | C10: =填写页面!H8 -> 40 | G10: 86 | H10: 岁，身故的IRR | I10: =IRR(V21:V130) -> 0.0342585206 | O10: 86 | P10: 岁，身故的IRR | Q10: =IRR(X21:X130) -> 0.03425819744
B12: 年交保费 | C12: =填写页面!J12 -> 670000 | G12: 75 | H12: 岁,解除合同的IRR | I12: =IRR(W21:W130) -> 0.03334976781 | O12: 75 | P12: 岁,解除合同的IRR | Q12: =IRR(Y21:Y130) -> 0.03334951832
B14: 基本保险金额 | C14: ='Temp-减保'!C5 -> 1682765.3
B18: 年度利益演示 | E18: 减保前责任 | O18: 减保后责任
B19: 保单年度 | C19: 年初年龄 | D19: 年末年龄 | E19: 当期保费 （年初） | F19: 附加险当期保费 （年初） | G19: 累计已交保费 （年初） | H19: 有效保额 | I19: 现金价值 （年末） | J19: 满期金 （年末） | K19: 身故保险金 （年末） | L19: 附加险身故保险金 （年末） | M19: 产品组合身故保险金（年末） | N19: 减保金额 （年末） | O19: 减保后累计保费 （年末） | P19: 减保后有效保额 | Q19: 减保后现金价值 （年末） | R19: 减保后满期金 （年末） | S19: 减保后身故保险金 （年末）
T20: =PRODUCT(T21:T130) -> 1 | U20: =PRODUCT(U21:OFFSET(U21,98-填写页面!H8,0)) -> 1 | V20: Cash In-1 | W20: Cash In-2 | X20: Cash In-3 | Y20: Cash In-4
A21: 1 | B21: =IF(C21="","",A21) -> 1 | C21: =IF(年龄1+A21-1>=99,"",年龄1+A21-1) -> 40 | D21: =IF(C21="","",C21+1) -> 41 | E21: =IF($C21>98,"",'Temp-减保'!D9) -> 670000 | F21: =IF($C21>98,"",'Temp-定寿'!D10) -> 0 | G21: =IF($C21>98,"",'Temp-减保'!E9) -> 670000 | H21: =IF(C21<=98,ROUND('Temp-加保'!I9,2),"") -> 1682765.3 | I21: =IF($C21>98,"",'Temp-减保'!F9) -> 245159.7 | J21: =IF(C21<=98,IF($C21=98,ROUND(120%*'Temp-加保'!I9,2),0),"") -> 0 | K21: =IF($C21>98,"",'Temp-减保'!I9) -> 1072000 | L21: =IF($C21>98,"",'Temp-定寿'!G10) -> 0 | M21: =IF($C21>98,"",'Temp-定寿'!G10+'Temp-减保'!I9) -> 1072000 | N21: =IF(C21>98,"",减保取现!C5) -> 0 | O21: =IF($C21>98,"",'Temp-减保'!S9) -> 670000 | P21: =IF($C21>98,"",ROUND('Temp-减保'!U9,2)) -> 1682765.3 | Q21: =IF($C21>98,"",'Temp-减保'!X9) -> 245159.7 | R21: =IF(C21<=98,IF($C21=98,ROUND(120%*'Temp-减保'!U9,2),0),"") -> 0 | S21: =IF($C21>98,"",'Temp-减保'!V9) -> 1072000 | T21: =IF(IFERROR(O21-'Temp-减保'!W9,1)>=0,1,0) -> 1 | U21: =IFERROR(IF(AND(B21<=5,N21>0),0,IF(AND(B21>5,N21>'Temp-减保'!P9*20%,B21<106-年龄1),0,1)),1) -> 1 | V21: =IF($C21=$G$10,K20,IF($C21<$G$10,-E21,0)) -> -670000 | W21: =IF($C21=$G$12,I20,IF($C21<$G$12,-E21,0)) -> -670000 | X21: =IF($C21=$O$10,S19,IF($C21<$G$12,-E21+N20,0)) -> -670000 | Y21: =IF($C21=$O$12,Q19,IF($C21<$G$12,-E21+N20,0)) -> -670000 | Z21: 0
A22: 2 | B22: 2 | C22: 41 | D22: =IF(C22="","",C22+1) -> 42 | E22: =IF($C22>98,"",'Temp-减保'!D10) -> 670000 | F22: =IF($C22>98,"",'Temp-定寿'!D11) -> 0 | G22: =IF($C22>98,"",'Temp-减保'!E10) -> 1340000 | H22: =IF(C22<=98,ROUND('Temp-加保'!I10,2),"") -> 1741662.09 | I22: =IF($C22>98,"",'Temp-减保'!F10) -> 591161.1 | J22: =IF(C22<=98,IF($C22=98,ROUND(120%*'Temp-加保'!I10,2),0),"") -> 0 | K22: =IF($C22>98,"",'Temp-减保'!I10) -> 1876000 | L22: =IF($C22>98,"",'Temp-定寿'!G11) -> 0 | M22: =IF($C22>98,"",'Temp-定寿'!G11+'Temp-减保'!I10) -> 1876000 | N22: =IF(C22>98,"",减保取现!C6) -> 0 | O22: =IF($C22>98,"",'Temp-减保'!S10) -> 1340000 | P22: =IF($C22>98,"",ROUND('Temp-减保'!U10,2)) -> 1741662.09 | Q22: =IF($C22>98,"",'Temp-减保'!X10) -> 591161.1 | R22: =IF(C22<=98,IF($C22=98,ROUND(120%*'Temp-减保'!U10,2),0),"") -> 0 | S22: =IF($C22>98,"",'Temp-减保'!V10) -> 1876000 | T22: =IF(IFERROR(O22-'Temp-减保'!W10,1)>=0,1,0) -> 1 | U22: =IFERROR(IF(AND(B22<=5,N22>0),0,IF(AND(B22>5,N22>'Temp-减保'!P10*20%,B22<106-年龄1),0,1)),1) -> 1 | V22: =IF($C22=$G$10,K21,IF($C22<$G$10,-E22,0)) -> -670000 | W22: =IF($C22=$G$12,I21,IF($C22<$G$12,-E22,0)) -> -670000 | X22: =IF($C22=$O$10,S21,IF($C22<$G$12,-E22+N21,0)) -> -670000 | Y22: =IF($C22=$O$12,Q21,IF($C22<$G$12,-E22+N21,0)) -> -670000 | Z22: 0
A23: 3 | B23: 3 | C23: 42 | D23: 43 | E23: =IF($C23>98,"",'Temp-减保'!D11) -> 670000 | F23: =IF($C23>98,"",'Temp-定寿'!D12) -> 0 | G23: =IF($C23>98,"",'Temp-减保'!E11) -> 2010000 | H23: =IF(C23<=98,ROUND('Temp-加保'!I11,2),"") -> 1802620.26 | I23: =IF($C23>98,"",'Temp-减保'!F11) -> 990635.2 | J23: =IF(C23<=98,IF($C23=98,ROUND(120%*'Temp-加保'!I11,2),0),"") -> 0 | K23: =IF($C23>98,"",'Temp-减保'!I11) -> 2814000 | L23: =IF($C23>98,"",'Temp-定寿'!G12) -> 0 | M23: =IF($C23>98,"",'Temp-定寿'!G12+'Temp-减保'!I11) -> 2814000 | N23: =IF(C23>98,"",减保取现!C7) -> 0 | O23: =IF($C23>98,"",'Temp-减保'!S11) -> 2010000 | P23: =IF($C23>98,"",ROUND('Temp-减保'!U11,2)) -> 1802620.26 | Q23: =IF($C23>98,"",'Temp-减保'!X11) -> 990635.2 | R23: =IF(C23<=98,IF($C23=98,ROUND(120%*'Temp-减保'!U11,2),0),"") -> 0 | S23: =IF($C23>98,"",'Temp-减保'!V11) -> 2814000 | T23: =IF(IFERROR(O23-'Temp-减保'!W11,1)>=0,1,0) -> 1 | U23: =IFERROR(IF(AND(B23<=5,N23>0),0,IF(AND(B23>5,N23>'Temp-减保'!P11*20%,B23<106-年龄1),0,1)),1) -> 1 | V23: -670000 | W23: -670000 | X23: =IF($C23=$O$10,S22,IF($C23<$G$12,-E23+N22,0)) -> -670000 | Y23: =IF($C23=$O$12,Q22,IF($C23<$G$12,-E23+N22,0)) -> -670000 | Z23: 0
A24: 4 | B24: =IF(C24="","",A24) -> 4 | C24: 43 | D24: 44 | E24: =IF($C24>98,"",'Temp-减保'!D12) -> 0 | F24: =IF($C24>98,"",'Temp-定寿'!D13) -> 0 | G24: =IF($C24>98,"",'Temp-减保'!E12) -> 2010000 | H24: =IF(C24<=98,ROUND('Temp-加保'!I12,2),"") -> 1865711.97 | I24: =IF($C24>98,"",'Temp-减保'!F12) -> 1042948.8 | J24: =IF(C24<=98,IF($C24=98,ROUND(120%*'Temp-加保'!I12,2),0),"") -> 0 | K24: =IF($C24>98,"",'Temp-减保'!I12) -> 2814000 | L24: =IF($C24>98,"",'Temp-定寿'!G13) -> 0 | M24: =IF($C24>98,"",'Temp-定寿'!G13+'Temp-减保'!I12) -> 2814000 | N24: =IF(C24>98,"",减保取现!C8) -> 0 | O24: =IF($C24>98,"",'Temp-减保'!S12) -> 2010000 | P24: =IF($C24>98,"",ROUND('Temp-减保'!U12,2)) -> 1865711.97 | Q24: =IF($C24>98,"",'Temp-减保'!X12) -> 1042948.8 | R24: =IF(C24<=98,IF($C24=98,ROUND(120%*'Temp-减保'!U12,2),0),"") -> 0 | S24: =IF($C24>98,"",'Temp-减保'!V12) -> 2814000 | T24: =IF(IFERROR(O24-'Temp-减保'!W12,1)>=0,1,0) -> 1 | U24: =IFERROR(IF(AND(B24<=5,N24>0),0,IF(AND(B24>5,N24>'Temp-减保'!P12*20%,B24<106-年龄1),0,1)),1) -> 1 | V24: 0 | W24: 0 | X24: 0 | Y24: 0 | Z24: 0
A25: 5 | B25: 5 | C25: 44 | D25: 45 | E25: =IF($C25>98,"",'Temp-减保'!D13) -> 0 | F25: =IF($C25>98,"",'Temp-定寿'!D14) -> 0 | G25: =IF($C25>98,"",'Temp-减保'!E13) -> 2010000 | H25: =IF(C25<=98,ROUND('Temp-加保'!I13,2),"") -> 1931011.89 | I25: =IF($C25>98,"",'Temp-减保'!F13) -> 1098022.8 | J25: =IF(C25<=98,IF($C25=98,ROUND(120%*'Temp-加保'!I13,2),0),"") -> 0 | K25: =IF($C25>98,"",'Temp-减保'!I13) -> 2814000 | L25: =IF($C25>98,"",'Temp-定寿'!G14) -> 0 | M25: =IF($C25>98,"",'Temp-定寿'!G14+'Temp-减保'!I13) -> 2814000 | N25: =IF(C25>98,"",减保取现!C9) -> 0 | O25: =IF($C25>98,"",'Temp-减保'!S13) -> 2010000 | P25: =IF($C25>98,"",ROUND('Temp-减保'!U13,2)) -> 1931011.89 | Q25: =IF($C25>98,"",'Temp-减保'!X13) -> 1098022.8 | R25: =IF(C25<=98,IF($C25=98,ROUND(120%*'Temp-减保'!U13,2),0),"") -> 0 | S25: =IF($C25>98,"",'Temp-减保'!V13) -> 2814000 | T25: =IF(IFERROR(O25-'Temp-减保'!W13,1)>=0,1,0) -> 1 | U25: =IFERROR(IF(AND(B25<=5,N25>0),0,IF(AND(B25>5,N25>'Temp-减保'!P13*20%,B25<106-年龄1),0,1)),1) -> 1 | V25: 0 | W25: 0 | X25: 0 | Y25: 0 | Z25: 0
A26: 6 | B26: 6 | C26: 45 | D26: 46 | E26: =IF($C26>98,"",'Temp-减保'!D14) -> 0 | F26: =IF($C26>98,"",'Temp-定寿'!D15) -> 0 | G26: =IF($C26>98,"",'Temp-减保'!E14) -> 2010000 | H26: =IF(C26<=98,ROUND('Temp-加保'!I14,2),"") -> 1998597.3 | I26: =IF($C26>98,"",'Temp-减保'!F14) -> 1743118.9 | J26: =IF(C26<=98,IF($C26=98,ROUND(120%*'Temp-加保'!I14,2),0),"") -> 0 | K26: =IF($C26>98,"",'Temp-减保'!I14) -> 2814000 | L26: =IF($C26>98,"",'Temp-定寿'!G15) -> 0 | M26: =IF($C26>98,"",'Temp-定寿'!G15+'Temp-减保'!I14) -> 2814000 | N26: =IF(C26>98,"",减保取现!C10) -> 0 | O26: =IF($C26>98,"",'Temp-减保'!S14) -> 2010000 | P26: =IF($C26>98,"",ROUND('Temp-减保'!U14,2)) -> 1998597.3 | Q26: =IF($C26>98,"",'Temp-减保'!X14) -> 1743118.9 | R26: =IF(C26<=98,IF($C26=98,ROUND(120%*'Temp-减保'!U14,2),0),"") -> 0 | S26: =IF($C26>98,"",'Temp-减保'!V14) -> 2814000 | T26: =IF(IFERROR(O26-'Temp-减保'!W14,1)>=0,1,0) -> 1 | U26: =IFERROR(IF(AND(B26<=5,N26>0),0,IF(AND(B26>5,N26>'Temp-减保'!P14*20%,B26<106-年龄1),0,1)),1) -> 1 | V26: 0 | W26: 0 | X26: 0 | Y26: 0 | Z26: 0
A27: 7 | B27: 7 | C27: 46 | D27: 47 | E27: =IF($C27>98,"",'Temp-减保'!D15) -> 0 | F27: =IF($C27>98,"",'Temp-定寿'!D16) -> 0 | G27: =IF($C27>98,"",'Temp-减保'!E15) -> 2010000 | H27: =IF(C27<=98,ROUND('Temp-加保'!I15,2),"") -> 2068548.21 | I27: =IF($C27>98,"",'Temp-减保'!F15) -> 2411122.3 | J27: =IF(C27<=98,IF($C27=98,ROUND(120%*'Temp-加保'!I15,2),0),"") -> 0 | K27: =IF($C27>98,"",'Temp-减保'!I15) -> 2814000 | L27: =IF($C27>98,"",'Temp-定寿'!G16) -> 0 | M27: =IF($C27>98,"",'Temp-定寿'!G16+'Temp-减保'!I15) -> 2814000 | N27: =IF(C27>98,"",减保取现!C11) -> 0 | O27: =IF($C27>98,"",'Temp-减保'!S15) -> 2010000 | P27: =IF($C27>98,"",ROUND('Temp-减保'!U15,2)) -> 2068548.21 | Q27: =IF($C27>98,"",'Temp-减保'!X15) -> 2411122.3 | R27: =IF(C27<=98,IF($C27=98,ROUND(120%*'Temp-减保'!U15,2),0),"") -> 0 | S27: =IF($C27>98,"",'Temp-减保'!V15) -> 2814000 | T27: =IF(IFERROR(O27-'Temp-减保'!W15,1)>=0,1,0) -> 1 | U27: =IFERROR(IF(AND(B27<=5,N27>0),0,IF(AND(B27>5,N27>'Temp-减保'!P15*20%,B27<106-年龄1),0,1)),1) -> 1 | V27: 0 | W27: 0 | X27: 0 | Y27: 0 | Z27: 0
A28: 8 | B28: 8 | C28: 47 | D28: 48 | E28: =IF($C28>98,"",'Temp-减保'!D16) -> 0 | F28: =IF($C28>98,"",'Temp-定寿'!D17) -> 0 | G28: =IF($C28>98,"",'Temp-减保'!E16) -> 2010000 | H28: =IF(C28<=98,ROUND('Temp-加保'!I16,2),"") -> 2140947.4 | I28: =IF($C28>98,"",'Temp-减保'!F16) -> 2494899.1 | J28: =IF(C28<=98,IF($C28=98,ROUND(120%*'Temp-加保'!I16,2),0),"") -> 0 | K28: =IF($C28>98,"",'Temp-减保'!I16) -> 2814000 | L28: =IF($C28>98,"",'Temp-定寿'!G17) -> 0 | M28: =IF($C28>98,"",'Temp-定寿'!G17+'Temp-减保'!I16) -> 2814000 | N28: =IF(C28>98,"",减保取现!C12) -> 0 | O28: =IF($C28>98,"",'Temp-减保'!S16) -> 2010000 | P28: =IF($C28>98,"",ROUND('Temp-减保'!U16,2)) -> 2140947.4 | Q28: =IF($C28>98,"",'Temp-减保'!X16) -> 2494899.1 | R28: =IF(C28<=98,IF($C28=98,ROUND(120%*'Temp-减保'!U16,2),0),"") -> 0 | S28: =IF($C28>98,"",'Temp-减保'!V16) -> 2814000 | T28: =IF(IFERROR(O28-'Temp-减保'!W16,1)>=0,1,0) -> 1 | U28: =IFERROR(IF(AND(B28<=5,N28>0),0,IF(AND(B28>5,N28>'Temp-减保'!P16*20%,B28<106-年龄1),0,1)),1) -> 1 | V28: 0 | W28: 0 | X28: 0 | Y28: 0 | Z28: 0
A29: 9 | B29: 9 | C29: 48 | D29: 49 | E29: =IF($C29>98,"",'Temp-减保'!D17) -> 0 | F29: =IF($C29>98,"",'Temp-定寿'!D18) -> 0 | G29: =IF($C29>98,"",'Temp-减保'!E17) -> 2010000 | H29: =IF(C29<=98,ROUND('Temp-加保'!I17,2),"") -> 2215880.55 | I29: =IF($C29>98,"",'Temp-减保'!F17) -> 2581717.7 | J29: =IF(C29<=98,IF($C29=98,ROUND(120%*'Temp-加保'!I17,2),0),"") -> 0 | K29: =IF($C29>98,"",'Temp-减保'!I17) -> 2814000 | L29: =IF($C29>98,"",'Temp-定寿'!G18) -> 0 | M29: =IF($C29>98,"",'Temp-定寿'!G18+'Temp-减保'!I17) -> 2814000 | N29: =IF(C29>98,"",减保取现!C13) -> 0 | O29: =IF($C29>98,"",'Temp-减保'!S17) -> 2010000 | P29: =IF($C29>98,"",ROUND('Temp-减保'!U17,2)) -> 2215880.55 | Q29: =IF($C29>98,"",'Temp-减保'!X17) -> 2581717.7 | R29: =IF(C29<=98,IF($C29=98,ROUND(120%*'Temp-减保'!U17,2),0),"") -> 0 | S29: =IF($C29>98,"",'Temp-减保'!V17) -> 2814000 | T29: =IF(IFERROR(O29-'Temp-减保'!W17,1)>=0,1,0) -> 1 | U29: =IFERROR(IF(AND(B29<=5,N29>0),0,IF(AND(B29>5,N29>'Temp-减保'!P17*20%,B29<106-年龄1),0,1)),1) -> 1 | V29: 0 | W29: 0 | X29: =IF($C29=$O$10,S28,IF($C29<$G$12,-E29+N28,0)) -> 0 | Y29: 0 | Z29: 0
A30: 10 | B30: 10 | C30: 49 | D30: 50 | E30: =IF($C30>98,"",'Temp-减保'!D18) -> 0 | F30: =IF($C30>98,"",'Temp-定寿'!D19) -> 0 | G30: =IF($C30>98,"",'Temp-减保'!E18) -> 2010000 | H30: =IF(C30<=98,ROUND('Temp-加保'!I18,2),"") -> 2293436.37 | I30: =IF($C30>98,"",'Temp-减保'!F18) -> 2671705.4 | J30: =IF(C30<=98,IF($C30=98,ROUND(120%*'Temp-加保'!I18,2),0),"") -> 0 | K30: =IF($C30>98,"",'Temp-减保'!I18) -> 2814000 | L30: =IF($C30>98,"",'Temp-定寿'!G19) -> 0 | M30: =IF($C30>98,"",'Temp-定寿'!G19+'Temp-减保'!I18) -> 2814000 | N30: =IF(C30>98,"",减保取现!C14) -> 2000 | O30: =IF($C30>98,"",'Temp-减保'!S18) -> 2008495.34 | P30: =IF($C30>98,"",ROUND('Temp-减保'!U18,2)) -> 2291719.54 | Q30: =IF($C30>98,"",'Temp-减保'!X18) -> 2669705.4 | R30: =IF(C30<=98,IF($C30=98,ROUND(120%*'Temp-减保'!U18,2),0),"") -> 0 | S30: =IF($C30>98,"",'Temp-减保'!V18) -> 2811893.48 | T30: =IF(IFERROR(O30-'Temp-减保'!W18,1)>=0,1,0) -> 1 | U30: =IFERROR(IF(AND(B30<=5,N30>0),0,IF(AND(B30>5,N30>'Temp-减保'!P18*20%,B30<106-年龄1),0,1)),1) -> 1 | V30: 0 | W30: 0 | X30: 0 | Y30: 0 | Z30: 0
A31: 11 | B31: 11 | C31: 50 | D31: 51 | E31: =IF($C31>98,"",'Temp-减保'!D19) -> 0 | F31: =IF($C31>98,"",'Temp-定寿'!D20) -> 0 | G31: =IF($C31>98,"",'Temp-减保'!E19) -> 2010000 | H31: =IF(C31<=98,ROUND('Temp-加保'!I19,2),"") -> 2373706.65 | I31: =IF($C31>98,"",'Temp-减保'!F19) -> 2765009.6 | J31: =IF(C31<=98,IF($C31=98,ROUND(120%*'Temp-加保'!I19,2),0),"") -> 0 | K31: =IF($C31>98,"",'Temp-减保'!I19) -> 2814000 | L31: =IF($C31>98,"",'Temp-定寿'!G20) -> 0 | M31: =IF($C31>98,"",'Temp-定寿'!G20+'Temp-减保'!I19) -> 2814000 | N31: =IF(C31>98,"",减保取现!C15) -> 0 | O31: =IF($C31>98,"",'Temp-减保'!S19) -> 2008495.34 | P31: =IF($C31>98,"",ROUND('Temp-减保'!U19,2)) -> 2371929.72 | Q31: =IF($C31>98,"",'Temp-减保'!X19) -> 2762939.75 | R31: =IF(C31<=98,IF($C31=98,ROUND(120%*'Temp-减保'!U19,2),0),"") -> 0 | S31: =IF($C31>98,"",'Temp-减保'!V19) -> 2811893.48 | T31: =IF(IFERROR(O31-'Temp-减保'!W19,1)>=0,1,0) -> 1 | U31: =IFERROR(IF(AND(B31<=5,N31>0),0,IF(AND(B31>5,N31>'Temp-减保'!P19*20%,B31<106-年龄1),0,1)),1) -> 1 | V31: 0 | W31: 0 | X31: 2000 | Y31: 2000 | Z31: 0
A32: 12 | B32: 12 | C32: 51 | D32: 52 | E32: =IF($C32>98,"",'Temp-减保'!D20) -> 0 | F32: =IF($C32>98,"",'Temp-定寿'!D21) -> 0 | G32: =IF($C32>98,"",'Temp-减保'!E20) -> 2010000 | H32: =IF(C32<=98,ROUND('Temp-加保'!I20,2),"") -> 2456786.38 | I32: =IF($C32>98,"",'Temp-减保'!F20) -> 2861784.4 | J32: =IF(C32<=98,IF($C32=98,ROUND(120%*'Temp-加保'!I20,2),0),"") -> 0 | K32: =IF($C32>98,"",'Temp-减保'!I20) -> 2861784.4 | L32: =IF($C32>98,"",'Temp-定寿'!G21) -> 0 | M32: =IF($C32>98,"",'Temp-定寿'!G21+'Temp-减保'!I20) -> 2861784.4 | N32: =IF(C32>98,"",减保取现!C16) -> 0 | O32: =IF($C32>98,"",'Temp-减保'!S20) -> 2008495.34 | P32: =IF($C32>98,"",ROUND('Temp-减保'!U20,2)) -> 2454947.26 | Q32: =IF($C32>98,"",'Temp-减保'!X20) -> 2859642.11 | R32: =IF(C32<=98,IF($C32=98,ROUND(120%*'Temp-减保'!U20,2),0),"") -> 0 | S32: =IF($C32>98,"",'Temp-减保'!V20) -> 2859642.11 | T32: =IF(IFERROR(O32-'Temp-减保'!W20,1)>=0,1,0) -> 1 | U32: =IFERROR(IF(AND(B32<=5,N32>0),0,IF(AND(B32>5,N32>'Temp-减保'!P20*20%,B32<106-年龄1),0,1)),1) -> 1 | V32: 0 | W32: 0 | X32: 0 | Y32: 0 | Z32: 0
A33: 13 | B33: 13 | C33: 52 | D33: 53 | E33: =IF($C33>98,"",'Temp-减保'!D21) -> 0 | F33: =IF($C33>98,"",'Temp-定寿'!D22) -> 0 | G33: =IF($C33>98,"",'Temp-减保'!E21) -> 2010000 | H33: =IF(C33<=98,ROUND('Temp-加保'!I21,2),"") -> 2542773.9 | I33: =IF($C33>98,"",'Temp-减保'!F21) -> 2961942.7 | J33: =IF(C33<=98,IF($C33=98,ROUND(120%*'Temp-加保'!I21,2),0),"") -> 0 | K33: =IF($C33>98,"",'Temp-减保'!I21) -> 2961942.7 | L33: =IF($C33>98,"",'Temp-定寿'!G22) -> 0 | M33: =IF($C33>98,"",'Temp-定寿'!G22+'Temp-减保'!I21) -> 2961942.7 | N33: =IF(C33>98,"",减保取现!C17) -> 0 | O33: =IF($C33>98,"",'Temp-减保'!S21) -> 2008495.34 | P33: =IF($C33>98,"",ROUND('Temp-减保'!U21,2)) -> 2540870.42 | Q33: =IF($C33>98,"",'Temp-减保'!X21) -> 2959725.43 | R33: =IF(C33<=98,IF($C33=98,ROUND(120%*'Temp-减保'!U21,2),0),"") -> 0 | S33: =IF($C33>98,"",'Temp-减保'!V21) -> 2959725.43 | T33: =IF(IFERROR(O33-'Temp-减保'!W21,1)>=0,1,0) -> 1 | U33: =IFERROR(IF(AND(B33<=5,N33>0),0,IF(AND(B33>5,N33>'Temp-减保'!P21*20%,B33<106-年龄1),0,1)),1) -> 1 | V33: 0 | W33: 0 | X33: 0 | Y33: 0 | Z33: 0
A34: 14 | B34: 14 | C34: 53 | D34: 54 | E34: =IF($C34>98,"",'Temp-减保'!D22) -> 0 | F34: =IF($C34>98,"",'Temp-定寿'!D23) -> 0 | G34: =IF($C34>98,"",'Temp-减保'!E22) -> 2010000 | H34: =IF(C34<=98,ROUND('Temp-加保'!I22,2),"") -> 2631770.99 | I34: =IF($C34>98,"",'Temp-减保'!F22) -> 3065611.8 | J34: =IF(C34<=98,IF($C34=98,ROUND(120%*'Temp-加保'!I22,2),0),"") -> 0 | K34: =IF($C34>98,"",'Temp-减保'!I22) -> 3065611.8 | L34: =IF($C34>98,"",'Temp-定寿'!G23) -> 0 | M34: =IF($C34>98,"",'Temp-定寿'!G23+'Temp-减保'!I22) -> 3065611.8 | N34: =IF(C34>98,"",减保取现!C18) -> 0 | O34: =IF($C34>98,"",'Temp-减保'!S22) -> 2008495.34 | P34: =IF($C34>98,"",ROUND('Temp-减保'!U22,2)) -> 2629800.88 | Q34: =IF($C34>98,"",'Temp-减保'!X22) -> 3063316.93 | R34: =IF(C34<=98,IF($C34=98,ROUND(120%*'Temp-减保'!U22,2),0),"") -> 0 | S34: =IF($C34>98,"",'Temp-减保'!V22) -> 3063316.93 | T34: =IF(IFERROR(O34-'Temp-减保'!W22,1)>=0,1,0) -> 1 | U34: =IFERROR(IF(AND(B34<=5,N34>0),0,IF(AND(B34>5,N34>'Temp-减保'!P22*20%,B34<106-年龄1),0,1)),1) -> 1 | V34: 0 | W34: 0 | X34: 0 | Y34: 0 | Z34: 0
A35: 15 | B35: 15 | C35: 54 | D35: 55 | E35: =IF($C35>98,"",'Temp-减保'!D23) -> 0 | F35: =IF($C35>98,"",'Temp-定寿'!D24) -> 0 | G35: =IF($C35>98,"",'Temp-减保'!E23) -> 2010000 | H35: =IF(C35<=98,ROUND('Temp-加保'!I23,2),"") -> 2723882.97 | I35: =IF($C35>98,"",'Temp-减保'!F23) -> 3172905.6 | J35: =IF(C35<=98,IF($C35=98,ROUND(120%*'Temp-加保'!I23,2),0),"") -> 0 | K35: =IF($C35>98,"",'Temp-减保'!I23) -> 3172905.6 | L35: =IF($C35>98,"",'Temp-定寿'!G24) -> 0 | M35: =IF($C35>98,"",'Temp-定寿'!G24+'Temp-减保'!I23) -> 3172905.6 | N35: =IF(C35>98,"",减保取现!C19) -> 0 | O35: =IF($C35>98,"",'Temp-减保'!S23) -> 2008495.34 | P35: =IF($C35>98,"",ROUND('Temp-减保'!U23,2)) -> 2721843.91 | Q35: =IF($C35>98,"",'Temp-减保'!X23) -> 3170530.41 | R35: =IF(C35<=98,IF($C35=98,ROUND(120%*'Temp-减保'!U23,2),0),"") -> 0 | S35: =IF($C35>98,"",'Temp-减保'!V23) -> 3170530.41 | T35: =IF(IFERROR(O35-'Temp-减保'!W23,1)>=0,1,0) -> 1 | U35: =IFERROR(IF(AND(B35<=5,N35>0),0,IF(AND(B35>5,N35>'Temp-减保'!P23*20%,B35<106-年龄1),0,1)),1) -> 1 | V35: 0 | W35: 0 | X35: 0 | Y35: 0 | Z35: 0
A36: 16 | B36: 16 | C36: 55 | D36: 56 | E36: =IF($C36>98,"",'Temp-减保'!D24) -> 0 | F36: =IF($C36>98,"",'Temp-定寿'!D25) -> 0 | G36: =IF($C36>98,"",'Temp-减保'!E24) -> 2010000 | H36: =IF(C36<=98,ROUND('Temp-加保'!I24,2),"") -> 2819218.88 | I36: =IF($C36>98,"",'Temp-减保'!F24) -> 3283958.1 | J36: =IF(C36<=98,IF($C36=98,ROUND(120%*'Temp-加保'!I24,2),0),"") -> 0 | K36: =IF($C36>98,"",'Temp-减保'!I24) -> 3283958.1 | L36: =IF($C36>98,"",'Temp-定寿'!G25) -> 0 | M36: =IF($C36>98,"",'Temp-定寿'!G25+'Temp-减保'!I24) -> 3283958.1 | N36: =IF(C36>98,"",减保取现!C20) -> 0 | O36: =IF($C36>98,"",'Temp-减保'!S24) -> 2008495.34 | P36: =IF($C36>98,"",ROUND('Temp-减保'!U24,2)) -> 2817108.45 | Q36: =IF($C36>98,"",'Temp-减保'!X24) -> 3281499.78 | R36: =IF(C36<=98,IF($C36=98,ROUND(120%*'Temp-减保'!U24,2),0),"") -> 0 | S36: =IF($C36>98,"",'Temp-减保'!V24) -> 3281499.78 | T36: =IF(IFERROR(O36-'Temp-减保'!W24,1)>=0,1,0) -> 1 | U36: =IFERROR(IF(AND(B36<=5,N36>0),0,IF(AND(B36>5,N36>'Temp-减保'!P24*20%,B36<106-年龄1),0,1)),1) -> 1 | V36: 0 | W36: 0 | X36: 0 | Y36: 0 | Z36: 0
A37: 17 | B37: 17 | C37: 56 | D37: 57 | E37: =IF($C37>98,"",'Temp-减保'!D25) -> 0 | F37: =IF($C37>98,"",'Temp-定寿'!D26) -> 0 | G37: =IF($C37>98,"",'Temp-减保'!E25) -> 2010000 | H37: =IF(C37<=98,ROUND('Temp-加保'!I25,2),"") -> 2917891.54 | I37: =IF($C37>98,"",'Temp-减保'!F25) -> 3398896.6 | J37: =IF(C37<=98,IF($C37=98,ROUND(120%*'Temp-加保'!I25,2),0),"") -> 0 | K37: =IF($C37>98,"",'Temp-减保'!I25) -> 3398896.6 | L37: =IF($C37>98,"",'Temp-定寿'!G26) -> 0 | M37: =IF($C37>98,"",'Temp-定寿'!G26+'Temp-减保'!I25) -> 3398896.6 | N37: =IF(C37>98,"",减保取现!C21) -> 0 | O37: =IF($C37>98,"",'Temp-减保'!S25) -> 2008495.34 | P37: =IF($C37>98,"",ROUND('Temp-减保'!U25,2)) -> 2915707.25 | Q37: =IF($C37>98,"",'Temp-减保'!X25) -> 3396352.24 | R37: =IF(C37<=98,IF($C37=98,ROUND(120%*'Temp-减保'!U25,2),0),"") -> 0 | S37: =IF($C37>98,"",'Temp-减保'!V25) -> 3396352.24 | T37: =IF(IFERROR(O37-'Temp-减保'!W25,1)>=0,1,0) -> 1 | U37: =IFERROR(IF(AND(B37<=5,N37>0),0,IF(AND(B37>5,N37>'Temp-减保'!P25*20%,B37<106-年龄1),0,1)),1) -> 1 | V37: 0 | W37: 0 | X37: 0 | Y37: 0 | Z37: 0
A38: 18 | B38: 18 | C38: 57 | D38: 58 | E38: =IF($C38>98,"",'Temp-减保'!D26) -> 0 | F38: =IF($C38>98,"",'Temp-定寿'!D27) -> 0 | G38: =IF($C38>98,"",'Temp-减保'!E26) -> 2010000 | H38: =IF(C38<=98,ROUND('Temp-加保'!I26,2),"") -> 3020017.74 | I38: =IF($C38>98,"",'Temp-减保'!F26) -> 3517855.1 | J38: =IF(C38<=98,IF($C38=98,ROUND(120%*'Temp-加保'!I26,2),0),"") -> 0 | K38: =IF($C38>98,"",'Temp-减保'!I26) -> 3517855.1 | L38: =IF($C38>98,"",'Temp-定寿'!G27) -> 0 | M38: =IF($C38>98,"",'Temp-定寿'!G27+'Temp-减保'!I26) -> 3517855.1 | N38: =IF(C38>98,"",减保取现!C22) -> 0 | O38: =IF($C38>98,"",'Temp-减保'!S26) -> 2008495.34 | P38: =IF($C38>98,"",ROUND('Temp-减保'!U26,2)) -> 3017757 | Q38: =IF($C38>98,"",'Temp-减保'!X26) -> 3515221.68 | R38: =IF(C38<=98,IF($C38=98,ROUND(120%*'Temp-减保'!U26,2),0),"") -> 0 | S38: =IF($C38>98,"",'Temp-减保'!V26) -> 3515221.68 | T38: =IF(IFERROR(O38-'Temp-减保'!W26,1)>=0,1,0) -> 1 | U38: =IFERROR(IF(AND(B38<=5,N38>0),0,IF(AND(B38>5,N38>'Temp-减保'!P26*20%,B38<106-年龄1),0,1)),1) -> 1 | V38: 0 | W38: 0 | X38: 0 | Y38: 0 | Z38: 0
A39: 19 | B39: 19 | C39: 58 | D39: 59 | E39: =IF($C39>98,"",'Temp-减保'!D27) -> 0 | F39: =IF($C39>98,"",'Temp-定寿'!D28) -> 0 | G39: =IF($C39>98,"",'Temp-减保'!E27) -> 2010000 | H39: =IF(C39<=98,ROUND('Temp-加保'!I27,2),"") -> 3125718.36 | I39: =IF($C39>98,"",'Temp-减保'!F27) -> 3640974.3 | J39: =IF(C39<=98,IF($C39=98,ROUND(120%*'Temp-加保'!I27,2),0),"") -> 0 | K39: =IF($C39>98,"",'Temp-减保'!I27) -> 3640974.3 | L39: =IF($C39>98,"",'Temp-定寿'!G28) -> 0 | M39: =IF($C39>98,"",'Temp-定寿'!G28+'Temp-减保'!I27) -> 3640974.3 | N39: =IF(C39>98,"",减保取现!C23) -> 0 | O39: =IF($C39>98,"",'Temp-减保'!S27) -> 2008495.34 | P39: =IF($C39>98,"",ROUND('Temp-减保'!U27,2)) -> 3123378.5 | Q39: =IF($C39>98,"",'Temp-减保'!X27) -> 3638248.72 | R39: =IF(C39<=98,IF($C39=98,ROUND(120%*'Temp-减保'!U27,2),0),"") -> 0 | S39: =IF($C39>98,"",'Temp-减保'!V27) -> 3638248.72 | T39: =IF(IFERROR(O39-'Temp-减保'!W27,1)>=0,1,0) -> 1 | U39: =IFERROR(IF(AND(B39<=5,N39>0),0,IF(AND(B39>5,N39>'Temp-减保'!P27*20%,B39<106-年龄1),0,1)),1) -> 1 | V39: 0 | W39: 0 | X39: 0 | Y39: 0 | Z39: 0
A40: 20 | B40: 20 | C40: 59 | D40: 60 | E40: =IF($C40>98,"",'Temp-减保'!D28) -> 0 | F40: =IF($C40>98,"",'Temp-定寿'!D29) -> 0 | G40: =IF($C40>98,"",'Temp-减保'!E28) -> 2010000 | H40: =IF(C40<=98,ROUND('Temp-加保'!I28,2),"") -> 3235118.51 | I40: =IF($C40>98,"",'Temp-减保'!F28) -> 3768408.3 | J40: =IF(C40<=98,IF($C40=98,ROUND(120%*'Temp-加保'!I28,2),0),"") -> 0 | K40: =IF($C40>98,"",'Temp-减保'!I28) -> 3768408.3 | L40: =IF($C40>98,"",'Temp-定寿'!G29) -> 0 | M40: =IF($C40>98,"",'Temp-定寿'!G29+'Temp-减保'!I28) -> 3768408.3 | N40: =IF(C40>98,"",减保取现!C24) -> 0 | O40: =IF($C40>98,"",'Temp-减保'!S28) -> 2008495.34 | P40: =IF($C40>98,"",ROUND('Temp-减保'!U28,2)) -> 3232696.74 | Q40: =IF($C40>98,"",'Temp-减保'!X28) -> 3765587.32 | R40: =IF(C40<=98,IF($C40=98,ROUND(120%*'Temp-减保'!U28,2),0),"") -> 0 | S40: =IF($C40>98,"",'Temp-减保'!V28) -> 3765587.32 | T40: =IF(IFERROR(O40-'Temp-减保'!W28,1)>=0,1,0) -> 1 | U40: =IFERROR(IF(AND(B40<=5,N40>0),0,IF(AND(B40>5,N40>'Temp-减保'!P28*20%,B40<106-年龄1),0,1)),1) -> 1 | V40: 0 | W40: 0 | X40: 0 | Y40: 0 | Z40: 0
A41: 21 | B41: 21 | C41: 60 | D41: 61 | E41: =IF($C41>98,"",'Temp-减保'!D29) -> 0 | F41: =IF($C41>98,"",'Temp-定寿'!D30) -> 0 | G41: =IF($C41>98,"",'Temp-减保'!E29) -> 2010000 | H41: =IF(C41<=98,ROUND('Temp-加保'!I29,2),"") -> 3348347.65 | I41: =IF($C41>98,"",'Temp-减保'!F29) -> 3900297.8 | J41: =IF(C41<=98,IF($C41=98,ROUND(120%*'Temp-加保'!I29,2),0),"") -> 0 | K41: =IF($C41>98,"",'Temp-减保'!I29) -> 3900297.8 | L41: =IF($C41>98,"",'Temp-定寿'!G30) -> 0 | M41: =IF($C41>98,"",'Temp-定寿'!G30+'Temp-减保'!I29) -> 3900297.8 | N41: =IF(C41>98,"",减保取现!C25) -> 0 | O41: =IF($C41>98,"",'Temp-减保'!S29) -> 2008495.34 | P41: =IF($C41>98,"",ROUND('Temp-减保'!U29,2)) -> 3345841.13 | Q41: =IF($C41>98,"",'Temp-减保'!X29) -> 3897378.09 | R41: =IF(C41<=98,IF($C41=98,ROUND(120%*'Temp-减保'!U29,2),0),"") -> 0 | S41: =IF($C41>98,"",'Temp-减保'!V29) -> 3897378.09 | T41: =IF(IFERROR(O41-'Temp-减保'!W29,1)>=0,1,0) -> 1 | U41: =IFERROR(IF(AND(B41<=5,N41>0),0,IF(AND(B41>5,N41>'Temp-减保'!P29*20%,B41<106-年龄1),0,1)),1) -> 1 | V41: 0 | W41: 0 | X41: 0 | Y41: 0 | Z41: 0
A42: 22 | B42: 22 | C42: 61 | D42: 62 | E42: =IF($C42>98,"",'Temp-减保'!D30) -> 0 | F42: =IF($C42>98,"",'Temp-定寿'!D31) -> 0 | G42: =IF($C42>98,"",'Temp-减保'!E30) -> 2010000 | H42: =IF(C42<=98,ROUND('Temp-加保'!I30,2),"") -> 3465539.82 | I42: =IF($C42>98,"",'Temp-减保'!F30) -> 4036810.3 | J42: =IF(C42<=98,IF($C42=98,ROUND(120%*'Temp-加保'!I30,2),0),"") -> 0 | K42: =IF($C42>98,"",'Temp-减保'!I30) -> 4036810.3 | L42: =IF($C42>98,"",'Temp-定寿'!G31) -> 0 | M42: =IF($C42>98,"",'Temp-定寿'!G31+'Temp-减保'!I30) -> 4036810.3 | N42: =IF(C42>98,"",减保取现!C26) -> 0 | O42: =IF($C42>98,"",'Temp-减保'!S30) -> 2008495.34 | P42: =IF($C42>98,"",ROUND('Temp-减保'!U30,2)) -> 3462945.57 | Q42: =IF($C42>98,"",'Temp-减保'!X30) -> 4033788.4 | R42: =IF(C42<=98,IF($C42=98,ROUND(120%*'Temp-减保'!U30,2),0),"") -> 0 | S42: =IF($C42>98,"",'Temp-减保'!V30) -> 4033788.4 | T42: =IF(IFERROR(O42-'Temp-减保'!W30,1)>=0,1,0) -> 1 | U42: =IFERROR(IF(AND(B42<=5,N42>0),0,IF(AND(B42>5,N42>'Temp-减保'!P30*20%,B42<106-年龄1),0,1)),1) -> 1 | V42: 0 | W42: 0 | X42: 0 | Y42: 0 | Z42: 0
A43: 23 | B43: 23 | C43: 62 | D43: 63 | E43: =IF($C43>98,"",'Temp-减保'!D31) -> 0 | F43: =IF($C43>98,"",'Temp-定寿'!D32) -> 0 | G43: =IF($C43>98,"",'Temp-减保'!E31) -> 2010000 | H43: =IF(C43<=98,ROUND('Temp-加保'!I31,2),"") -> 3586833.72 | I43: =IF($C43>98,"",'Temp-减保'!F31) -> 4044307.6 | J43: =IF(C43<=98,IF($C43=98,ROUND(120%*'Temp-加保'!I31,2),0),"") -> 0 | K43: =IF($C43>98,"",'Temp-减保'!I31) -> 4044307.6 | L43: =IF($C43>98,"",'Temp-定寿'!G32) -> 0 | M43: =IF($C43>98,"",'Temp-定寿'!G32+'Temp-减保'!I31) -> 4044307.6 | N43: =IF(C43>98,"",减保取现!C27) -> 0 | O43: =IF($C43>98,"",'Temp-减保'!S31) -> 2008495.34 | P43: =IF($C43>98,"",ROUND('Temp-减保'!U31,2)) -> 3584148.66 | Q43: =IF($C43>98,"",'Temp-减保'!X31) -> 4041280.09 | R43: =IF(C43<=98,IF($C43=98,ROUND(120%*'Temp-减保'!U31,2),0),"") -> 0 | S43: =IF($C43>98,"",'Temp-减保'!V31) -> 4041280.09 | T43: =IF(IFERROR(O43-'Temp-减保'!W31,1)>=0,1,0) -> 1 | U43: =IFERROR(IF(AND(B43<=5,N43>0),0,IF(AND(B43>5,N43>'Temp-减保'!P31*20%,B43<106-年龄1),0,1)),1) -> 1 | V43: 0 | W43: 0 | X43: 0 | Y43: 0 | Z43: 0
A44: 24 | B44: 24 | C44: 63 | D44: 64 | E44: =IF($C44>98,"",'Temp-减保'!D32) -> 0 | F44: =IF($C44>98,"",'Temp-定寿'!D33) -> 0 | G44: =IF($C44>98,"",'Temp-减保'!E32) -> 2010000 | H44: =IF(C44<=98,ROUND('Temp-加保'!I32,2),"") -> 3712372.9 | I44: =IF($C44>98,"",'Temp-减保'!F32) -> 4186247.1 | J44: =IF(C44<=98,IF($C44=98,ROUND(120%*'Temp-加保'!I32,2),0),"") -> 0 | K44: =IF($C44>98,"",'Temp-减保'!I32) -> 4186247.1 | L44: =IF($C44>98,"",'Temp-定寿'!G33) -> 0 | M44: =IF($C44>98,"",'Temp-定寿'!G33+'Temp-减保'!I32) -> 4186247.1 | N44: =IF(C44>98,"",减保取现!C28) -> 0 | O44: =IF($C44>98,"",'Temp-减保'!S32) -> 2008495.34 | P44: =IF($C44>98,"",ROUND('Temp-减保'!U32,2)) -> 3709593.87 | Q44: =IF($C44>98,"",'Temp-减保'!X32) -> 4183113.34 | R44: =IF(C44<=98,IF($C44=98,ROUND(120%*'Temp-减保'!U32,2),0),"") -> 0 | S44: =IF($C44>98,"",'Temp-减保'!V32) -> 4183113.34 | T44: =IF(IFERROR(O44-'Temp-减保'!W32,1)>=0,1,0) -> 1 | U44: =IFERROR(IF(AND(B44<=5,N44>0),0,IF(AND(B44>5,N44>'Temp-减保'!P32*20%,B44<106-年龄1),0,1)),1) -> 1 | V44: 0 | W44: 0 | X44: 0 | Y44: 0 | Z44: 0
A45: 25 | B45: 25 | C45: 64 | D45: 65 | E45: =IF($C45>98,"",'Temp-减保'!D33) -> 0 | F45: =IF($C45>98,"",'Temp-定寿'!D34) -> 0 | G45: =IF($C45>98,"",'Temp-减保'!E33) -> 2010000 | H45: =IF(C45<=98,ROUND('Temp-加保'!I33,2),"") -> 3842305.95 | I45: =IF($C45>98,"",'Temp-减保'!F33) -> 4333600.2 | J45: =IF(C45<=98,IF($C45=98,ROUND(120%*'Temp-加保'!I33,2),0),"") -> 0 | K45: =IF($C45>98,"",'Temp-减保'!I33) -> 4333600.2 | L45: =IF($C45>98,"",'Temp-定寿'!G34) -> 0 | M45: =IF($C45>98,"",'Temp-定寿'!G34+'Temp-减保'!I33) -> 4333600.2 | N45: =IF(C45>98,"",减保取现!C29) -> 0 | O45: =IF($C45>98,"",'Temp-减保'!S33) -> 2008495.34 | P45: =IF($C45>98,"",ROUND('Temp-减保'!U33,2)) -> 3839429.65 | Q45: =IF($C45>98,"",'Temp-减保'!X33) -> 4330356.13 | R45: =IF(C45<=98,IF($C45=98,ROUND(120%*'Temp-减保'!U33,2),0),"") -> 0 | S45: =IF($C45>98,"",'Temp-减保'!V33) -> 4330356.13 | T45: =IF(IFERROR(O45-'Temp-减保'!W33,1)>=0,1,0) -> 1 | U45: =IFERROR(IF(AND(B45<=5,N45>0),0,IF(AND(B45>5,N45>'Temp-减保'!P33*20%,B45<106-年龄1),0,1)),1) -> 1 | V45: 0 | W45: 0 | X45: 0 | Y45: 0 | Z45: 0
A46: 26 | B46: 26 | C46: 65 | D46: 66 | E46: =IF($C46>98,"",'Temp-减保'!D34) -> 0 | F46: =IF($C46>98,"",'Temp-定寿'!D35) -> 0 | G46: =IF($C46>98,"",'Temp-减保'!E34) -> 2010000 | H46: =IF(C46<=98,ROUND('Temp-加保'!I34,2),"") -> 3976786.65 | I46: =IF($C46>98,"",'Temp-减保'!F34) -> 4486212.8 | J46: =IF(C46<=98,IF($C46=98,ROUND(120%*'Temp-加保'!I34,2),0),"") -> 0 | K46: =IF($C46>98,"",'Temp-减保'!I34) -> 4486212.8 | L46: =IF($C46>98,"",'Temp-定寿'!G35) -> 0 | M46: =IF($C46>98,"",'Temp-定寿'!G35+'Temp-减保'!I34) -> 4486212.8 | N46: =IF(C46>98,"",减保取现!C30) -> 0 | O46: =IF($C46>98,"",'Temp-减保'!S34) -> 2008495.34 | P46: =IF($C46>98,"",ROUND('Temp-减保'!U34,2)) -> 3973809.69 | Q46: =IF($C46>98,"",'Temp-减保'!X34) -> 4482854.49 | R46: =IF(C46<=98,IF($C46=98,ROUND(120%*'Temp-减保'!U34,2),0),"") -> 0 | S46: =IF($C46>98,"",'Temp-减保'!V34) -> 4482854.49 | T46: =IF(IFERROR(O46-'Temp-减保'!W34,1)>=0,1,0) -> 1 | U46: =IFERROR(IF(AND(B46<=5,N46>0),0,IF(AND(B46>5,N46>'Temp-减保'!P34*20%,B46<106-年龄1),0,1)),1) -> 1 | V46: 0 | W46: 0 | X46: 0 | Y46: 0 | Z46: 0
A47: 27 | B47: 27 | C47: 66 | D47: 67 | E47: =IF($C47>98,"",'Temp-减保'!D35) -> 0 | F47: =IF($C47>98,"",'Temp-定寿'!D36) -> 0 | G47: =IF($C47>98,"",'Temp-减保'!E35) -> 2010000 | H47: =IF(C47<=98,ROUND('Temp-加保'!I35,2),"") -> 4115974.19 | I47: =IF($C47>98,"",'Temp-减保'!F35) -> 4644285.9 | J47: =IF(C47<=98,IF($C47=98,ROUND(120%*'Temp-加保'!I35,2),0),"") -> 0 | K47: =IF($C47>98,"",'Temp-减保'!I35) -> 4644285.9 | L47: =IF($C47>98,"",'Temp-定寿'!G36) -> 0 | M47: =IF($C47>98,"",'Temp-定寿'!G36+'Temp-减保'!I35) -> 4644285.9 | N47: =IF(C47>98,"",减保取现!C31) -> 0 | O47: =IF($C47>98,"",'Temp-减保'!S35) -> 2008495.34 | P47: =IF($C47>98,"",ROUND('Temp-减保'!U35,2)) -> 4112893.03 | Q47: =IF($C47>98,"",'Temp-减保'!X35) -> 4640809.25 | R47: =IF(C47<=98,IF($C47=98,ROUND(120%*'Temp-减保'!U35,2),0),"") -> 0 | S47: =IF($C47>98,"",'Temp-减保'!V35) -> 4640809.25 | T47: =IF(IFERROR(O47-'Temp-减保'!W35,1)>=0,1,0) -> 1 | U47: =IFERROR(IF(AND(B47<=5,N47>0),0,IF(AND(B47>5,N47>'Temp-减保'!P35*20%,B47<106-年龄1),0,1)),1) -> 1 | V47: 0 | W47: 0 | X47: 0 | Y47: 0 | Z47: 0
A48: 28 | B48: 28 | C48: 67 | D48: 68 | E48: =IF($C48>98,"",'Temp-减保'!D36) -> 0 | F48: =IF($C48>98,"",'Temp-定寿'!D37) -> 0 | G48: =IF($C48>98,"",'Temp-减保'!E36) -> 2010000 | H48: =IF(C48<=98,ROUND('Temp-加保'!I36,2),"") -> 4260033.28 | I48: =IF($C48>98,"",'Temp-减保'!F36) -> 4808027.2 | J48: =IF(C48<=98,IF($C48=98,ROUND(120%*'Temp-加保'!I36,2),0),"") -> 0 | K48: =IF($C48>98,"",'Temp-减保'!I36) -> 4808027.2 | L48: =IF($C48>98,"",'Temp-定寿'!G37) -> 0 | M48: =IF($C48>98,"",'Temp-定寿'!G37+'Temp-减保'!I36) -> 4808027.2 | N48: =IF(C48>98,"",减保取现!C32) -> 0 | O48: =IF($C48>98,"",'Temp-减保'!S36) -> 2008495.34 | P48: =IF($C48>98,"",ROUND('Temp-减保'!U36,2)) -> 4256844.29 | Q48: =IF($C48>98,"",'Temp-减保'!X36) -> 4804427.98 | R48: =IF(C48<=98,IF($C48=98,ROUND(120%*'Temp-减保'!U36,2),0),"") -> 0 | S48: =IF($C48>98,"",'Temp-减保'!V36) -> 4804427.98 | T48: =IF(IFERROR(O48-'Temp-减保'!W36,1)>=0,1,0) -> 1 | U48: =IFERROR(IF(AND(B48<=5,N48>0),0,IF(AND(B48>5,N48>'Temp-减保'!P36*20%,B48<106-年龄1),0,1)),1) -> 1 | V48: 0 | W48: 0 | X48: 0 | Y48: 0 | Z48: 0
A49: 29 | B49: 29 | C49: 68 | D49: 69 | E49: =IF($C49>98,"",'Temp-减保'!D37) -> 0 | F49: =IF($C49>98,"",'Temp-定寿'!D38) -> 0 | G49: =IF($C49>98,"",'Temp-减保'!E37) -> 2010000 | H49: =IF(C49<=98,ROUND('Temp-加保'!I37,2),"") -> 4409134.45 | I49: =IF($C49>98,"",'Temp-减保'!F37) -> 4977671.2 | J49: =IF(C49<=98,IF($C49=98,ROUND(120%*'Temp-加保'!I37,2),0),"") -> 0 | K49: =IF($C49>98,"",'Temp-减保'!I37) -> 4977671.2 | L49: =IF($C49>98,"",'Temp-定寿'!G38) -> 0 | M49: =IF($C49>98,"",'Temp-定寿'!G38+'Temp-减保'!I37) -> 4977671.2 | N49: =IF(C49>98,"",减保取现!C33) -> 0 | O49: =IF($C49>98,"",'Temp-减保'!S37) -> 2008495.34 | P49: =IF($C49>98,"",ROUND('Temp-减保'!U37,2)) -> 4405833.84 | Q49: =IF($C49>98,"",'Temp-减保'!X37) -> 4973944.99 | R49: =IF(C49<=98,IF($C49=98,ROUND(120%*'Temp-减保'!U37,2),0),"") -> 0 | S49: =IF($C49>98,"",'Temp-减保'!V37) -> 4973944.99 | T49: =IF(IFERROR(O49-'Temp-减保'!W37,1)>=0,1,0) -> 1 | U49: =IFERROR(IF(AND(B49<=5,N49>0),0,IF(AND(B49>5,N49>'Temp-减保'!P37*20%,B49<106-年龄1),0,1)),1) -> 1 | V49: 0 | W49: 0 | X49: 0 | Y49: 0 | Z49: 0
A50: 30 | B50: 30 | C50: 69 | D50: 70 | E50: =IF($C50>98,"",'Temp-减保'!D38) -> 0 | F50: =IF($C50>98,"",'Temp-定寿'!D39) -> 0 | G50: =IF($C50>98,"",'Temp-减保'!E38) -> 2010000 | H50: =IF(C50<=98,ROUND('Temp-加保'!I38,2),"") -> 4563454.16 | I50: =IF($C50>98,"",'Temp-减保'!F38) -> 5153445.7 | J50: =IF(C50<=98,IF($C50=98,ROUND(120%*'Temp-加保'!I38,2),0),"") -> 0 | K50: =IF($C50>98,"",'Temp-减保'!I38) -> 5153445.7 | L50: =IF($C50>98,"",'Temp-定寿'!G39) -> 0 | M50: =IF($C50>98,"",'Temp-定寿'!G39+'Temp-减保'!I38) -> 5153445.7 | N50: =IF(C50>98,"",减保取现!C34) -> 0 | O50: =IF($C50>98,"",'Temp-减保'!S38) -> 2008495.34 | P50: =IF($C50>98,"",ROUND('Temp-减保'!U38,2)) -> 4560038.02 | Q50: =IF($C50>98,"",'Temp-减保'!X38) -> 5149587.91 | R50: =IF(C50<=98,IF($C50=98,ROUND(120%*'Temp-减保'!U38,2),0),"") -> 0 | S50: =IF($C50>98,"",'Temp-减保'!V38) -> 5149587.91 | T50: =IF(IFERROR(O50-'Temp-减保'!W38,1)>=0,1,0) -> 1 | U50: =IFERROR(IF(AND(B50<=5,N50>0),0,IF(AND(B50>5,N50>'Temp-减保'!P38*20%,B50<106-年龄1),0,1)),1) -> 1 | V50: 0 | W50: 0 | X50: 0 | Y50: 0 | Z50: 0
A51: 31 | B51: 31 | C51: 70 | D51: 71 | E51: =IF($C51>98,"",'Temp-减保'!D39) -> 0 | F51: =IF($C51>98,"",'Temp-定寿'!D40) -> 0 | G51: =IF($C51>98,"",'Temp-减保'!E39) -> 2010000 | H51: =IF(C51<=98,ROUND('Temp-加保'!I39,2),"") -> 4723175.05 | I51: =IF($C51>98,"",'Temp-减保'!F39) -> 5335618.7 | J51: =IF(C51<=98,IF($C51=98,ROUND(120%*'Temp-加保'!I39,2),0),"") -> 0 | K51: =IF($C51>98,"",'Temp-减保'!I39) -> 5335618.7 | L51: =IF($C51>98,"",'Temp-定寿'!G40) -> 0 | M51: =IF($C51>98,"",'Temp-定寿'!G40+'Temp-减保'!I39) -> 5335618.7 | N51: =IF(C51>98,"",减保取现!C35) -> 0 | O51: =IF($C51>98,"",'Temp-减保'!S39) -> 2008495.34 | P51: =IF($C51>98,"",ROUND('Temp-减保'!U39,2)) -> 4719639.35 | Q51: =IF($C51>98,"",'Temp-减保'!X39) -> 5331624.53 | R51: =IF(C51<=98,IF($C51=98,ROUND(120%*'Temp-减保'!U39,2),0),"") -> 0 | S51: =IF($C51>98,"",'Temp-减保'!V39) -> 5331624.53 | T51: =IF(IFERROR(O51-'Temp-减保'!W39,1)>=0,1,0) -> 1 | U51: =IFERROR(IF(AND(B51<=5,N51>0),0,IF(AND(B51>5,N51>'Temp-减保'!P39*20%,B51<106-年龄1),0,1)),1) -> 1 | V51: 0 | W51: 0 | X51: 0 | Y51: 0 | Z51: 0
A52: 32 | B52: 32 | C52: 71 | D52: 72 | E52: =IF($C52>98,"",'Temp-减保'!D40) -> 0 | F52: =IF($C52>98,"",'Temp-定寿'!D41) -> 0 | G52: =IF($C52>98,"",'Temp-减保'!E40) -> 2010000 | H52: =IF(C52<=98,ROUND('Temp-加保'!I40,2),"") -> 4888486.18 | I52: =IF($C52>98,"",'Temp-减保'!F40) -> 5524451.5 | J52: =IF(C52<=98,IF($C52=98,ROUND(120%*'Temp-加保'!I40,2),0),"") -> 0 | K52: =IF($C52>98,"",'Temp-减保'!I40) -> 5524451.5 | L52: =IF($C52>98,"",'Temp-定寿'!G41) -> 0 | M52: =IF($C52>98,"",'Temp-定寿'!G41+'Temp-减保'!I40) -> 5524451.5 | N52: =IF(C52>98,"",减保取现!C36) -> 0 | O52: =IF($C52>98,"",'Temp-减保'!S40) -> 2008495.34 | P52: =IF($C52>98,"",ROUND('Temp-减保'!U40,2)) -> 4884826.73 | Q52: =IF($C52>98,"",'Temp-减保'!X40) -> 5520315.98 | R52: =IF(C52<=98,IF($C52=98,ROUND(120%*'Temp-减保'!U40,2),0),"") -> 0 | S52: =IF($C52>98,"",'Temp-减保'!V40) -> 5520315.98 | T52: =IF(IFERROR(O52-'Temp-减保'!W40,1)>=0,1,0) -> 1 | U52: =IFERROR(IF(AND(B52<=5,N52>0),0,IF(AND(B52>5,N52>'Temp-减保'!P40*20%,B52<106-年龄1),0,1)),1) -> 1 | V52: 0 | W52: 0 | X52: 0 | Y52: 0 | Z52: 0
A53: 33 | B53: 33 | C53: =IF(年龄1+A53-1>=99,"",年龄1+A53-1) -> 72 | D53: 73 | E53: =IF($C53>98,"",'Temp-减保'!D41) -> 0 | F53: =IF($C53>98,"",'Temp-定寿'!D42) -> 0 | G53: =IF($C53>98,"",'Temp-减保'!E41) -> 2010000 | H53: =IF(C53<=98,ROUND('Temp-加保'!I41,2),"") -> 5059583.19 | I53: =IF($C53>98,"",'Temp-减保'!F41) -> 5720272.4 | J53: =IF(C53<=98,IF($C53=98,ROUND(120%*'Temp-加保'!I41,2),0),"") -> 0 | K53: =IF($C53>98,"",'Temp-减保'!I41) -> 5720272.4 | L53: =IF($C53>98,"",'Temp-定寿'!G42) -> 0 | M53: =IF($C53>98,"",'Temp-定寿'!G42+'Temp-减保'!I41) -> 5720272.4 | N53: =IF(C53>98,"",减保取现!C37) -> 0 | O53: =IF($C53>98,"",'Temp-减保'!S41) -> 2008495.34 | P53: =IF($C53>98,"",ROUND('Temp-减保'!U41,2)) -> 5055795.66 | Q53: =IF($C53>98,"",'Temp-减保'!X41) -> 5715990.29 | R53: =IF(C53<=98,IF($C53=98,ROUND(120%*'Temp-减保'!U41,2),0),"") -> 0 | S53: =IF($C53>98,"",'Temp-减保'!V41) -> 5715990.29 | T53: =IF(IFERROR(O53-'Temp-减保'!W41,1)>=0,1,0) -> 1 | U53: =IFERROR(IF(AND(B53<=5,N53>0),0,IF(AND(B53>5,N53>'Temp-减保'!P41*20%,B53<106-年龄1),0,1)),1) -> 1 | V53: =IF($C53=$G$10,K52,IF($C53<$G$10,-E53,0)) -> 0 | W53: =IF($C53=$G$12,I52,IF($C53<$G$12,-E53,0)) -> 0 | X53: =IF($C53=$O$10,S52,IF($C53<$G$12,-E53+N52,0)) -> 0 | Y53: =IF($C53=$O$12,Q52,IF($C53<$G$12,-E53+N52,0)) -> 0 | Z53: 0
A54: 34 | B54: 34 | C54: 73 | D54: 74 | E54: =IF($C54>98,"",'Temp-减保'!D42) -> 0 | F54: =IF($C54>98,"",'Temp-定寿'!D43) -> 0 | G54: =IF($C54>98,"",'Temp-减保'!E42) -> 2010000 | H54: =IF(C54<=98,ROUND('Temp-加保'!I42,2),"") -> 5236668.61 | I54: =IF($C54>98,"",'Temp-减保'!F42) -> 5923409.7 | J54: =IF(C54<=98,IF($C54=98,ROUND(120%*'Temp-加保'!I42,2),0),"") -> 0 | K54: =IF($C54>98,"",'Temp-减保'!I42) -> 5923409.7 | L54: =IF($C54>98,"",'Temp-定寿'!G43) -> 0 | M54: =IF($C54>98,"",'Temp-定寿'!G43+'Temp-减保'!I42) -> 5923409.7 | N54: =IF(C54>98,"",减保取现!C38) -> 0 | O54: =IF($C54>98,"",'Temp-减保'!S42) -> 2008495.34 | P54: =IF($C54>98,"",ROUND('Temp-减保'!U42,2)) -> 5232748.51 | Q54: =IF($C54>98,"",'Temp-减保'!X42) -> 5918975.52 | R54: =IF(C54<=98,IF($C54=98,ROUND(120%*'Temp-减保'!U42,2),0),"") -> 0 | S54: =IF($C54>98,"",'Temp-减保'!V42) -> 5918975.52 | T54: =IF(IFERROR(O54-'Temp-减保'!W42,1)>=0,1,0) -> 1 | U54: =IFERROR(IF(AND(B54<=5,N54>0),0,IF(AND(B54>5,N54>'Temp-减保'!P42*20%,B54<106-年龄1),0,1)),1) -> 1 | V54: 0 | W54: 0 | X54: 0 | Y54: 0 | Z54: 0
A55: 35 | B55: 35 | C55: 74 | D55: 75 | E55: =IF($C55>98,"",'Temp-减保'!D43) -> 0 | F55: =IF($C55>98,"",'Temp-定寿'!D44) -> 0 | G55: =IF($C55>98,"",'Temp-减保'!E43) -> 2010000 | H55: =IF(C55<=98,ROUND('Temp-加保'!I43,2),"") -> 5419952.01 | I55: =IF($C55>98,"",'Temp-减保'!F43) -> 6134252 | J55: =IF(C55<=98,IF($C55=98,ROUND(120%*'Temp-加保'!I43,2),0),"") -> 0 | K55: =IF($C55>98,"",'Temp-减保'!I43) -> 6134252 | L55: =IF($C55>98,"",'Temp-定寿'!G44) -> 0 | M55: =IF($C55>98,"",'Temp-定寿'!G44+'Temp-减保'!I43) -> 6134252 | N55: =IF(C55>98,"",减保取现!C39) -> 0 | O55: =IF($C55>98,"",'Temp-减保'!S43) -> 2008495.34 | P55: =IF($C55>98,"",ROUND('Temp-减保'!U43,2)) -> 5415894.71 | Q55: =IF($C55>98,"",'Temp-减保'!X43) -> 6129659.99 | R55: =IF(C55<=98,IF($C55=98,ROUND(120%*'Temp-减保'!U43,2),0),"") -> 0 | S55: =IF($C55>98,"",'Temp-减保'!V43) -> 6129659.99 | T55: =IF(IFERROR(O55-'Temp-减保'!W43,1)>=0,1,0) -> 1 | U55: =IFERROR(IF(AND(B55<=5,N55>0),0,IF(AND(B55>5,N55>'Temp-减保'!P43*20%,B55<106-年龄1),0,1)),1) -> 1 | V55: 0 | W55: 0 | X55: 0 | Y55: 0 | Z55: 0
A56: 36 | B56: 36 | C56: 75 | D56: 76 | E56: =IF($C56>98,"",'Temp-减保'!D44) -> 0 | F56: =IF($C56>98,"",'Temp-定寿'!D45) -> 0 | G56: =IF($C56>98,"",'Temp-减保'!E44) -> 2010000 | H56: =IF(C56<=98,ROUND('Temp-加保'!I44,2),"") -> 5609650.33 | I56: =IF($C56>98,"",'Temp-减保'!F44) -> 6353221.4 | J56: =IF(C56<=98,IF($C56=98,ROUND(120%*'Temp-加保'!I44,2),0),"") -> 0 | K56: =IF($C56>98,"",'Temp-减保'!I44) -> 6353221.4 | L56: =IF($C56>98,"",'Temp-定寿'!G45) -> 0 | M56: =IF($C56>98,"",'Temp-定寿'!G45+'Temp-减保'!I44) -> 6353221.4 | N56: =IF(C56>98,"",减保取现!C40) -> 0 | O56: =IF($C56>98,"",'Temp-减保'!S44) -> 2008495.34 | P56: =IF($C56>98,"",ROUND('Temp-减保'!U44,2)) -> 5605451.02 | Q56: =IF($C56>98,"",'Temp-减保'!X44) -> 6348465.47 | R56: =IF(C56<=98,IF($C56=98,ROUND(120%*'Temp-减保'!U44,2),0),"") -> 0 | S56: =IF($C56>98,"",'Temp-减保'!V44) -> 6348465.47 | T56: =IF(IFERROR(O56-'Temp-减保'!W44,1)>=0,1,0) -> 1 | U56: =IFERROR(IF(AND(B56<=5,N56>0),0,IF(AND(B56>5,N56>'Temp-减保'!P44*20%,B56<106-年龄1),0,1)),1) -> 1 | V56: 0 | W56: 6134252 | X56: 0 | Y56: 6129659.99 | Z56: 0
A57: 37 | B57: 37 | C57: 76 | D57: 77 | E57: =IF($C57>98,"",'Temp-减保'!D45) -> 0 | F57: =IF($C57>98,"",'Temp-定寿'!D46) -> 0 | G57: =IF($C57>98,"",'Temp-减保'!E45) -> 2010000 | H57: =IF(C57<=98,ROUND('Temp-加保'!I45,2),"") -> 5805988.09 | I57: =IF($C57>98,"",'Temp-减保'!F45) -> 6580793.6 | J57: =IF(C57<=98,IF($C57=98,ROUND(120%*'Temp-加保'!I45,2),0),"") -> 0 | K57: =IF($C57>98,"",'Temp-减保'!I45) -> 6580793.6 | L57: =IF($C57>98,"",'Temp-定寿'!G46) -> 0 | M57: =IF($C57>98,"",'Temp-定寿'!G46+'Temp-减保'!I45) -> 6580793.6 | N57: =IF(C57>98,"",减保取现!C41) -> 0 | O57: =IF($C57>98,"",'Temp-减保'!S45) -> 2008495.34 | P57: =IF($C57>98,"",ROUND('Temp-减保'!U45,2)) -> 5801641.81 | Q57: =IF($C57>98,"",'Temp-减保'!X45) -> 6575867.31 | R57: =IF(C57<=98,IF($C57=98,ROUND(120%*'Temp-减保'!U45,2),0),"") -> 0 | S57: =IF($C57>98,"",'Temp-减保'!V45) -> 6575867.31 | T57: =IF(IFERROR(O57-'Temp-减保'!W45,1)>=0,1,0) -> 1 | U57: =IFERROR(IF(AND(B57<=5,N57>0),0,IF(AND(B57>5,N57>'Temp-减保'!P45*20%,B57<106-年龄1),0,1)),1) -> 1 | V57: 0 | W57: 0 | X57: =IF($C57=$O$10,S56,IF($C57<$G$12,-E57+N56,0)) -> 0 | Y57: 0 | Z57: 0
A58: 38 | B58: 38 | C58: 77 | D58: 78 | E58: =IF($C58>98,"",'Temp-减保'!D46) -> 0 | F58: =IF($C58>98,"",'Temp-定寿'!D47) -> 0 | G58: =IF($C58>98,"",'Temp-减保'!E46) -> 2010000 | H58: =IF(C58<=98,ROUND('Temp-加保'!I46,2),"") -> 6009197.67 | I58: =IF($C58>98,"",'Temp-减保'!F46) -> 6817477.8 | J58: =IF(C58<=98,IF($C58=98,ROUND(120%*'Temp-加保'!I46,2),0),"") -> 0 | K58: =IF($C58>98,"",'Temp-减保'!I46) -> 6817477.8 | L58: =IF($C58>98,"",'Temp-定寿'!G47) -> 0 | M58: =IF($C58>98,"",'Temp-定寿'!G47+'Temp-减保'!I46) -> 6817477.8 | N58: =IF(C58>98,"",减保取现!C42) -> 0 | O58: =IF($C58>98,"",'Temp-减保'!S46) -> 2008495.34 | P58: =IF($C58>98,"",ROUND('Temp-减保'!U46,2)) -> 6004699.27 | Q58: =IF($C58>98,"",'Temp-减保'!X46) -> 6812374.33 | R58: =IF(C58<=98,IF($C58=98,ROUND(120%*'Temp-减保'!U46,2),0),"") -> 0 | S58: =IF($C58>98,"",'Temp-减保'!V46) -> 6812374.33 | T58: =IF(IFERROR(O58-'Temp-减保'!W46,1)>=0,1,0) -> 1 | U58: =IFERROR(IF(AND(B58<=5,N58>0),0,IF(AND(B58>5,N58>'Temp-减保'!P46*20%,B58<106-年龄1),0,1)),1) -> 1 | V58: 0 | W58: 0 | X58: 0 | Y58: 0 | Z58: 0
A59: 39 | B59: 39 | C59: 78 | D59: 79 | E59: =IF($C59>98,"",'Temp-减保'!D47) -> 0 | F59: =IF($C59>98,"",'Temp-定寿'!D48) -> 0 | G59: =IF($C59>98,"",'Temp-减保'!E47) -> 2010000 | H59: =IF(C59<=98,ROUND('Temp-加保'!I47,2),"") -> 6219519.59 | I59: =IF($C59>98,"",'Temp-减保'!F47) -> 7063836.8 | J59: =IF(C59<=98,IF($C59=98,ROUND(120%*'Temp-加保'!I47,2),0),"") -> 0 | K59: =IF($C59>98,"",'Temp-减保'!I47) -> 7063836.8 | L59: =IF($C59>98,"",'Temp-定寿'!G48) -> 0 | M59: =IF($C59>98,"",'Temp-定寿'!G48+'Temp-减保'!I47) -> 7063836.8 | N59: =IF(C59>98,"",减保取现!C43) -> 0 | O59: =IF($C59>98,"",'Temp-减保'!S47) -> 2008495.34 | P59: =IF($C59>98,"",ROUND('Temp-减保'!U47,2)) -> 6214863.75 | Q59: =IF($C59>98,"",'Temp-减保'!X47) -> 7058548.91 | R59: =IF(C59<=98,IF($C59=98,ROUND(120%*'Temp-减保'!U47,2),0),"") -> 0 | S59: =IF($C59>98,"",'Temp-减保'!V47) -> 7058548.91 | T59: =IF(IFERROR(O59-'Temp-减保'!W47,1)>=0,1,0) -> 1 | U59: =IFERROR(IF(AND(B59<=5,N59>0),0,IF(AND(B59>5,N59>'Temp-减保'!P47*20%,B59<106-年龄1),0,1)),1) -> 1 | V59: 0 | W59: 0 | X59: 0 | Y59: 0 | Z59: 0
A60: 40 | B60: 40 | C60: 79 | D60: 80 | E60: =IF($C60>98,"",'Temp-减保'!D48) -> 0 | F60: =IF($C60>98,"",'Temp-定寿'!D49) -> 0 | G60: =IF($C60>98,"",'Temp-减保'!E48) -> 2010000 | H60: =IF(C60<=98,ROUND('Temp-加保'!I48,2),"") -> 6437202.78 | I60: =IF($C60>98,"",'Temp-减保'!F48) -> 7320473.6 | J60: =IF(C60<=98,IF($C60=98,ROUND(120%*'Temp-加保'!I48,2),0),"") -> 0 | K60: =IF($C60>98,"",'Temp-减保'!I48) -> 7320473.6 | L60: =IF($C60>98,"",'Temp-定寿'!G49) -> 0 | M60: =IF($C60>98,"",'Temp-定寿'!G49+'Temp-减保'!I48) -> 7320473.6 | N60: =IF(C60>98,"",减保取现!C44) -> 0 | O60: =IF($C60>98,"",'Temp-减保'!S48) -> 2008495.34 | P60: =IF($C60>98,"",ROUND('Temp-减保'!U48,2)) -> 6432383.98 | Q60: =IF($C60>98,"",'Temp-减保'!X48) -> 7314993.6 | R60: =IF(C60<=98,IF($C60=98,ROUND(120%*'Temp-减保'!U48,2),0),"") -> 0 | S60: =IF($C60>98,"",'Temp-减保'!V48) -> 7314993.6 | T60: =IF(IFERROR(O60-'Temp-减保'!W48,1)>=0,1,0) -> 1 | U60: =IFERROR(IF(AND(B60<=5,N60>0),0,IF(AND(B60>5,N60>'Temp-减保'!P48*20%,B60<106-年龄1),0,1)),1) -> 1 | V60: 0 | W60: 0 | X60: 0 | Y60: 0 | Z60: 0
A61: 41 | B61: 41 | C61: 80 | D61: 81 | E61: =IF($C61>98,"",'Temp-减保'!D49) -> 0 | F61: =IF($C61>98,"",'Temp-定寿'!D50) -> 0 | G61: =IF($C61>98,"",'Temp-减保'!E49) -> 2010000 | H61: =IF(C61<=98,ROUND('Temp-加保'!I49,2),"") -> 6662504.87 | I61: =IF($C61>98,"",'Temp-减保'!F49) -> 7588018 | J61: =IF(C61<=98,IF($C61=98,ROUND(120%*'Temp-加保'!I49,2),0),"") -> 0 | K61: =IF($C61>98,"",'Temp-减保'!I49) -> 7588018 | L61: =IF($C61>98,"",'Temp-定寿'!G50) -> 0 | M61: =IF($C61>98,"",'Temp-定寿'!G50+'Temp-减保'!I49) -> 7588018 | N61: =IF(C61>98,"",减保取现!C45) -> 0 | O61: =IF($C61>98,"",'Temp-减保'!S49) -> 2008495.34 | P61: =IF($C61>98,"",ROUND('Temp-减保'!U49,2)) -> 6657517.42 | Q61: =IF($C61>98,"",'Temp-减保'!X49) -> 7582337.72 | R61: =IF(C61<=98,IF($C61=98,ROUND(120%*'Temp-减保'!U49,2),0),"") -> 0 | S61: =IF($C61>98,"",'Temp-减保'!V49) -> 7582337.72 | T61: =IF(IFERROR(O61-'Temp-减保'!W49,1)>=0,1,0) -> 1 | U61: =IFERROR(IF(AND(B61<=5,N61>0),0,IF(AND(B61>5,N61>'Temp-减保'!P49*20%,B61<106-年龄1),0,1)),1) -> 1 | V61: 0 | W61: 0 | X61: 0 | Y61: 0 | Z61: 0
A62: 42 | B62: 42 | C62: 81 | D62: 82 | E62: =IF($C62>98,"",'Temp-减保'!D50) -> 0 | F62: =IF($C62>98,"",'Temp-定寿'!D51) -> 0 | G62: =IF($C62>98,"",'Temp-减保'!E50) -> 2010000 | H62: =IF(C62<=98,ROUND('Temp-加保'!I50,2),"") -> 6895692.54 | I62: =IF($C62>98,"",'Temp-减保'!F50) -> 7867160.1 | J62: =IF(C62<=98,IF($C62=98,ROUND(120%*'Temp-加保'!I50,2),0),"") -> 0 | K62: =IF($C62>98,"",'Temp-减保'!I50) -> 7867160.1 | L62: =IF($C62>98,"",'Temp-定寿'!G51) -> 0 | M62: =IF($C62>98,"",'Temp-定寿'!G51+'Temp-减保'!I50) -> 7867160.1 | N62: =IF(C62>98,"",减保取现!C46) -> 0 | O62: =IF($C62>98,"",'Temp-减保'!S50) -> 2008495.34 | P62: =IF($C62>98,"",ROUND('Temp-减保'!U50,2)) -> 6890530.53 | Q62: =IF($C62>98,"",'Temp-减保'!X50) -> 7861270.86 | R62: =IF(C62<=98,IF($C62=98,ROUND(120%*'Temp-减保'!U50,2),0),"") -> 0 | S62: =IF($C62>98,"",'Temp-减保'!V50) -> 7861270.86 | T62: =IF(IFERROR(O62-'Temp-减保'!W50,1)>=0,1,0) -> 1 | U62: =IFERROR(IF(AND(B62<=5,N62>0),0,IF(AND(B62>5,N62>'Temp-减保'!P50*20%,B62<106-年龄1),0,1)),1) -> 1 | V62: 0 | W62: 0 | X62: 0 | Y62: 0 | Z62: 0
A63: 43 | B63: 43 | C63: 82 | D63: 83 | E63: =IF($C63>98,"",'Temp-减保'!D51) -> 0 | F63: =IF($C63>98,"",'Temp-定寿'!D52) -> 0 | G63: =IF($C63>98,"",'Temp-减保'!E51) -> 2010000 | H63: =IF(C63<=98,ROUND('Temp-加保'!I51,2),"") -> 7137041.78 | I63: =IF($C63>98,"",'Temp-减保'!F51) -> 8158623.5 | J63: =IF(C63<=98,IF($C63=98,ROUND(120%*'Temp-加保'!I51,2),0),"") -> 0 | K63: =IF($C63>98,"",'Temp-减保'!I51) -> 8158623.5 | L63: =IF($C63>98,"",'Temp-定寿'!G52) -> 0 | M63: =IF($C63>98,"",'Temp-定寿'!G52+'Temp-减保'!I51) -> 8158623.5 | N63: =IF(C63>98,"",减保取现!C47) -> 0 | O63: =IF($C63>98,"",'Temp-减保'!S51) -> 2008495.34 | P63: =IF($C63>98,"",ROUND('Temp-减保'!U51,2)) -> 7131699.1 | Q63: =IF($C63>98,"",'Temp-减保'!X51) -> 8152516.07 | R63: =IF(C63<=98,IF($C63=98,ROUND(120%*'Temp-减保'!U51,2),0),"") -> 0 | S63: =IF($C63>98,"",'Temp-减保'!V51) -> 8152516.07 | T63: =IF(IFERROR(O63-'Temp-减保'!W51,1)>=0,1,0) -> 1 | U63: =IFERROR(IF(AND(B63<=5,N63>0),0,IF(AND(B63>5,N63>'Temp-减保'!P51*20%,B63<106-年龄1),0,1)),1) -> 1 | V63: 0 | W63: 0 | X63: 0 | Y63: 0 | Z63: 0
A64: 44 | B64: 44 | C64: 83 | D64: 84 | E64: =IF($C64>98,"",'Temp-减保'!D52) -> 0 | F64: =IF($C64>98,"",'Temp-定寿'!D53) -> 0 | G64: =IF($C64>98,"",'Temp-减保'!E52) -> 2010000 | H64: =IF(C64<=98,ROUND('Temp-加保'!I52,2),"") -> 7386838.24 | I64: =IF($C64>98,"",'Temp-减保'!F52) -> 8463185.4 | J64: =IF(C64<=98,IF($C64=98,ROUND(120%*'Temp-加保'!I52,2),0),"") -> 0 | K64: =IF($C64>98,"",'Temp-减保'!I52) -> 8463185.4 | L64: =IF($C64>98,"",'Temp-定寿'!G53) -> 0 | M64: =IF($C64>98,"",'Temp-定寿'!G53+'Temp-减保'!I52) -> 8463185.4 | N64: =IF(C64>98,"",减保取现!C48) -> 0 | O64: =IF($C64>98,"",'Temp-减保'!S52) -> 2008495.34 | P64: =IF($C64>98,"",ROUND('Temp-减保'!U52,2)) -> 7381308.56 | Q64: =IF($C64>98,"",'Temp-减保'!X52) -> 8456849.98 | R64: =IF(C64<=98,IF($C64=98,ROUND(120%*'Temp-减保'!U52,2),0),"") -> 0 | S64: =IF($C64>98,"",'Temp-减保'!V52) -> 8456849.98 | T64: =IF(IFERROR(O64-'Temp-减保'!W52,1)>=0,1,0) -> 1 | U64: =IFERROR(IF(AND(B64<=5,N64>0),0,IF(AND(B64>5,N64>'Temp-减保'!P52*20%,B64<106-年龄1),0,1)),1) -> 1 | V64: 0 | W64: 0 | X64: 0 | Y64: 0 | Z64: 0
A65: 45 | B65: 45 | C65: 84 | D65: 85 | E65: =IF($C65>98,"",'Temp-减保'!D53) -> 0 | F65: =IF($C65>98,"",'Temp-定寿'!D54) -> 0 | G65: =IF($C65>98,"",'Temp-减保'!E53) -> 2010000 | H65: =IF(C65<=98,ROUND('Temp-加保'!I53,2),"") -> 7645377.58 | I65: =IF($C65>98,"",'Temp-减保'!F53) -> 8795706.4 | J65: =IF(C65<=98,IF($C65=98,ROUND(120%*'Temp-加保'!I53,2),0),"") -> 0 | K65: =IF($C65>98,"",'Temp-减保'!I53) -> 8795706.4 | L65: =IF($C65>98,"",'Temp-定寿'!G54) -> 0 | M65: =IF($C65>98,"",'Temp-定寿'!G54+'Temp-减保'!I53) -> 8795706.4 | N65: =IF(C65>98,"",减保取现!C49) -> 0 | O65: =IF($C65>98,"",'Temp-减保'!S53) -> 2008495.34 | P65: =IF($C65>98,"",ROUND('Temp-减保'!U53,2)) -> 7639654.36 | Q65: =IF($C65>98,"",'Temp-减保'!X53) -> 8789122.06 | R65: =IF(C65<=98,IF($C65=98,ROUND(120%*'Temp-减保'!U53,2),0),"") -> 0 | S65: =IF($C65>98,"",'Temp-减保'!V53) -> 8789122.06 | T65: =IF(IFERROR(O65-'Temp-减保'!W53,1)>=0,1,0) -> 1 | U65: =IFERROR(IF(AND(B65<=5,N65>0),0,IF(AND(B65>5,N65>'Temp-减保'!P53*20%,B65<106-年龄1),0,1)),1) -> 1 | V65: 0 | W65: 0 | X65: 0 | Y65: 0 | Z65: 0
A66: 46 | B66: 46 | C66: 85 | D66: 86 | E66: =IF($C66>98,"",'Temp-减保'!D54) -> 0 | F66: =IF($C66>98,"",'Temp-定寿'!D55) -> 0 | G66: =IF($C66>98,"",'Temp-减保'!E54) -> 2010000 | H66: =IF(C66<=98,ROUND('Temp-加保'!I54,2),"") -> 7912965.8 | I66: =IF($C66>98,"",'Temp-减保'!F54) -> 9155248.5 | J66: =IF(C66<=98,IF($C66=98,ROUND(120%*'Temp-加保'!I54,2),0),"") -> 0 | K66: =IF($C66>98,"",'Temp-减保'!I54) -> 9155248.5 | L66: =IF($C66>98,"",'Temp-定寿'!G55) -> 0 | M66: =IF($C66>98,"",'Temp-定寿'!G55+'Temp-减保'!I54) -> 9155248.5 | N66: =IF(C66>98,"",减保取现!C50) -> 0 | O66: =IF($C66>98,"",'Temp-减保'!S54) -> 2008495.34 | P66: =IF($C66>98,"",ROUND('Temp-减保'!U54,2)) -> 7907042.27 | Q66: =IF($C66>98,"",'Temp-减保'!X54) -> 9148395.01 | R66: =IF(C66<=98,IF($C66=98,ROUND(120%*'Temp-减保'!U54,2),0),"") -> 0 | S66: =IF($C66>98,"",'Temp-减保'!V54) -> 9148395.01 | T66: =IF(IFERROR(O66-'Temp-减保'!W54,1)>=0,1,0) -> 1 | U66: =IFERROR(IF(AND(B66<=5,N66>0),0,IF(AND(B66>5,N66>'Temp-减保'!P54*20%,B66<106-年龄1),0,1)),1) -> 1 | V66: 0 | W66: 0 | X66: 0 | Y66: 0 | Z66: 0
A67: 47 | B67: 47 | C67: 86 | D67: 87 | E67: =IF($C67>98,"",'Temp-减保'!D55) -> 0 | F67: =IF($C67>98,"",'Temp-定寿'!D56) -> 0 | G67: =IF($C67>98,"",'Temp-减保'!E55) -> 2010000 | H67: =IF(C67<=98,ROUND('Temp-加保'!I55,2),"") -> 8189919.6 | I67: =IF($C67>98,"",'Temp-减保'!F55) -> 9551995.7 | J67: =IF(C67<=98,IF($C67=98,ROUND(120%*'Temp-加保'!I55,2),0),"") -> 0 | K67: =IF($C67>98,"",'Temp-减保'!I55) -> 9551995.7 | L67: =IF($C67>98,"",'Temp-定寿'!G56) -> 0 | M67: =IF($C67>98,"",'Temp-定寿'!G56+'Temp-减保'!I55) -> 9551995.7 | N67: =IF(C67>98,"",减保取现!C51) -> 0 | O67: =IF($C67>98,"",'Temp-减保'!S55) -> 2008495.34 | P67: =IF($C67>98,"",ROUND('Temp-减保'!U55,2)) -> 8183788.75 | Q67: =IF($C67>98,"",'Temp-减保'!X55) -> 9544845.21 | R67: =IF(C67<=98,IF($C67=98,ROUND(120%*'Temp-减保'!U55,2),0),"") -> 0 | S67: =IF($C67>98,"",'Temp-减保'!V55) -> 9544845.21 | T67: =IF(IFERROR(O67-'Temp-减保'!W55,1)>=0,1,0) -> 1 | U67: =IFERROR(IF(AND(B67<=5,N67>0),0,IF(AND(B67>5,N67>'Temp-减保'!P55*20%,B67<106-年龄1),0,1)),1) -> 1 | V67: 9155248.5 | W67: 0 | X67: 9148395.01 | Y67: 0 | Z67: 0
A68: 48 | B68: 48 | C68: 87 | D68: 88 | E68: =IF($C68>98,"",'Temp-减保'!D56) -> 0 | F68: =IF($C68>98,"",'Temp-定寿'!D57) -> 0 | G68: =IF($C68>98,"",'Temp-减保'!E56) -> 2010000 | H68: =IF(C68<=98,ROUND('Temp-加保'!I56,2),"") -> 8476566.79 | I68: =IF($C68>98,"",'Temp-减保'!F56) -> 10002691.3 | J68: =IF(C68<=98,IF($C68=98,ROUND(120%*'Temp-加保'!I56,2),0),"") -> 0 | K68: =IF($C68>98,"",'Temp-减保'!I56) -> 10002691.3 | L68: =IF($C68>98,"",'Temp-定寿'!G57) -> 0 | M68: =IF($C68>98,"",'Temp-定寿'!G57+'Temp-减保'!I56) -> 10002691.3 | N68: =IF(C68>98,"",减保取现!C52) -> 0 | O68: =IF($C68>98,"",'Temp-减保'!S56) -> 2008495.34 | P68: =IF($C68>98,"",ROUND('Temp-减保'!U56,2)) -> 8470221.35 | Q68: =IF($C68>98,"",'Temp-减保'!X56) -> 9995203.43 | R68: =IF(C68<=98,IF($C68=98,ROUND(120%*'Temp-减保'!U56,2),0),"") -> 0 | S68: =IF($C68>98,"",'Temp-减保'!V56) -> 9995203.43 | T68: =IF(IFERROR(O68-'Temp-减保'!W56,1)>=0,1,0) -> 1 | U68: =IFERROR(IF(AND(B68<=5,N68>0),0,IF(AND(B68>5,N68>'Temp-减保'!P56*20%,B68<106-年龄1),0,1)),1) -> 1 | V68: 0 | W68: 0 | X68: 0 | Y68: 0 | Z68: 0
A69: 49 | B69: 49 | C69: 88 | D69: 89 | E69: =IF($C69>98,"",'Temp-减保'!D57) -> 0 | F69: =IF($C69>98,"",'Temp-定寿'!D58) -> 0 | G69: =IF($C69>98,"",'Temp-减保'!E57) -> 2010000 | H69: =IF(C69<=98,ROUND('Temp-加保'!I57,2),"") -> 8773246.62 | I69: =IF($C69>98,"",'Temp-减保'!F57) -> 10531073.4 | J69: =IF(C69<=98,IF($C69=98,ROUND(120%*'Temp-加保'!I57,2),0),"") -> 0 | K69: =IF($C69>98,"",'Temp-减保'!I57) -> 10531073.4 | L69: =IF($C69>98,"",'Temp-定寿'!G58) -> 0 | M69: =IF($C69>98,"",'Temp-定寿'!G58+'Temp-减保'!I57) -> 10531073.4 | N69: =IF(C69>98,"",减保取现!C53) -> 0 | O69: =IF($C69>98,"",'Temp-减保'!S57) -> 2008495.34 | P69: =IF($C69>98,"",ROUND('Temp-减保'!U57,2)) -> 8766679.1 | Q69: =IF($C69>98,"",'Temp-减保'!X57) -> 10523189.99 | R69: =IF(C69<=98,IF($C69=98,ROUND(120%*'Temp-减保'!U57,2),0),"") -> 0 | S69: =IF($C69>98,"",'Temp-减保'!V57) -> 10523189.99 | T69: =IF(IFERROR(O69-'Temp-减保'!W57,1)>=0,1,0) -> 1 | U69: =IFERROR(IF(AND(B69<=5,N69>0),0,IF(AND(B69>5,N69>'Temp-减保'!P57*20%,B69<106-年龄1),0,1)),1) -> 1 | V69: 0 | W69: 0 | X69: 0 | Y69: 0 | Z69: 0
A70: 50 | B70: 50 | C70: 89 | D70: 90 | E70: =IF($C70>98,"",'Temp-减保'!D58) -> 0 | F70: =IF($C70>98,"",'Temp-定寿'!D59) -> 0 | G70: =IF($C70>98,"",'Temp-减保'!E58) -> 2010000 | H70: =IF(C70<=98,ROUND('Temp-加保'!I58,2),"") -> 9080310.26 | I70: =IF($C70>98,"",'Temp-减保'!F58) -> 10899446.1 | J70: =IF(C70<=98,IF($C70=98,ROUND(120%*'Temp-加保'!I58,2),0),"") -> 0 | K70: =IF($C70>98,"",'Temp-减保'!I58) -> 10899446.1 | L70: =IF($C70>98,"",'Temp-定寿'!G59) -> 0 | M70: =IF($C70>98,"",'Temp-定寿'!G59+'Temp-减保'!I58) -> 10899446.1 | N70: =IF(C70>98,"",减保取现!C54) -> 0 | O70: =IF($C70>98,"",'Temp-减保'!S58) -> 2008495.34 | P70: =IF($C70>98,"",ROUND('Temp-减保'!U58,2)) -> 9073512.87 | Q70: =IF($C70>98,"",'Temp-减保'!X58) -> 10891286.93 | R70: =IF(C70<=98,IF($C70=98,ROUND(120%*'Temp-减保'!U58,2),0),"") -> 0 | S70: =IF($C70>98,"",'Temp-减保'!V58) -> 10891286.93 | T70: =IF(IFERROR(O70-'Temp-减保'!W58,1)>=0,1,0) -> 1 | U70: =IFERROR(IF(AND(B70<=5,N70>0),0,IF(AND(B70>5,N70>'Temp-减保'!P58*20%,B70<106-年龄1),0,1)),1) -> 1 | V70: 0 | W70: 0 | X70: 0 | Y70: 0 | Z70: 0
A71: 51 | B71: 51 | C71: 90 | D71: 91 | E71: =IF($C71>98,"",'Temp-减保'!D59) -> 0 | F71: =IF($C71>98,"",'Temp-定寿'!D60) -> 0 | G71: =IF($C71>98,"",'Temp-减保'!E59) -> 2010000 | H71: =IF(C71<=98,ROUND('Temp-加保'!I59,2),"") -> 9398121.12 | I71: =IF($C71>98,"",'Temp-减保'!F59) -> 11280682.8 | J71: =IF(C71<=98,IF($C71=98,ROUND(120%*'Temp-加保'!I59,2),0),"") -> 0 | K71: =IF($C71>98,"",'Temp-减保'!I59) -> 11280682.8 | L71: =IF($C71>98,"",'Temp-定寿'!G60) -> 0 | M71: =IF($C71>98,"",'Temp-定寿'!G60+'Temp-减保'!I59) -> 11280682.8 | N71: =IF(C71>98,"",减保取现!C55) -> 0 | O71: =IF($C71>98,"",'Temp-减保'!S59) -> 2008495.34 | P71: =IF($C71>98,"",ROUND('Temp-减保'!U59,2)) -> 9391085.82 | Q71: =IF($C71>98,"",'Temp-减保'!X59) -> 11272238.24 | R71: =IF(C71<=98,IF($C71=98,ROUND(120%*'Temp-减保'!U59,2),0),"") -> 0 | S71: =IF($C71>98,"",'Temp-减保'!V59) -> 11272238.24 | T71: =IF(IFERROR(O71-'Temp-减保'!W59,1)>=0,1,0) -> 1 | U71: =IFERROR(IF(AND(B71<=5,N71>0),0,IF(AND(B71>5,N71>'Temp-减保'!P59*20%,B71<106-年龄1),0,1)),1) -> 1 | V71: 0 | W71: 0 | X71: 0 | Y71: 0 | Z71: 0
A72: 52 | B72: 52 | C72: 91 | D72: 92 | E72: =IF($C72>98,"",'Temp-减保'!D60) -> 0 | F72: =IF($C72>98,"",'Temp-定寿'!D61) -> 0 | G72: =IF($C72>98,"",'Temp-减保'!E60) -> 2010000 | H72: =IF(C72<=98,ROUND('Temp-加保'!I60,2),"") -> 9727055.35 | I72: =IF($C72>98,"",'Temp-减保'!F60) -> 11675232.4 | J72: =IF(C72<=98,IF($C72=98,ROUND(120%*'Temp-加保'!I60,2),0),"") -> 0 | K72: =IF($C72>98,"",'Temp-减保'!I60) -> 11675232.4 | L72: =IF($C72>98,"",'Temp-定寿'!G61) -> 0 | M72: =IF($C72>98,"",'Temp-定寿'!G61+'Temp-减保'!I60) -> 11675232.4 | N72: =IF(C72>98,"",减保取现!C56) -> 0 | O72: =IF($C72>98,"",'Temp-减保'!S60) -> 2008495.34 | P72: =IF($C72>98,"",ROUND('Temp-减保'!U60,2)) -> 9719773.82 | Q72: =IF($C72>98,"",'Temp-减保'!X60) -> 11666492.49 | R72: =IF(C72<=98,IF($C72=98,ROUND(120%*'Temp-减保'!U60,2),0),"") -> 0 | S72: =IF($C72>98,"",'Temp-减保'!V60) -> 11666492.49 | T72: =IF(IFERROR(O72-'Temp-减保'!W60,1)>=0,1,0) -> 1 | U72: =IFERROR(IF(AND(B72<=5,N72>0),0,IF(AND(B72>5,N72>'Temp-减保'!P60*20%,B72<106-年龄1),0,1)),1) -> 1 | V72: 0 | W72: 0 | X72: 0 | Y72: 0 | Z72: 0
A73: 53 | B73: 53 | C73: 92 | D73: 93 | E73: =IF($C73>98,"",'Temp-减保'!D61) -> 0 | F73: =IF($C73>98,"",'Temp-定寿'!D62) -> 0 | G73: =IF($C73>98,"",'Temp-减保'!E61) -> 2010000 | H73: =IF(C73<=98,ROUND('Temp-加保'!I61,2),"") -> 10067502.29 | I73: =IF($C73>98,"",'Temp-减保'!F61) -> 12083550.5 | J73: =IF(C73<=98,IF($C73=98,ROUND(120%*'Temp-加保'!I61,2),0),"") -> 0 | K73: =IF($C73>98,"",'Temp-减保'!I61) -> 12083550.5 | L73: =IF($C73>98,"",'Temp-定寿'!G62) -> 0 | M73: =IF($C73>98,"",'Temp-定寿'!G62+'Temp-减保'!I61) -> 12083550.5 | N73: =IF(C73>98,"",减保取现!C57) -> 0 | O73: =IF($C73>98,"",'Temp-减保'!S61) -> 2008495.34 | P73: =IF($C73>98,"",ROUND('Temp-减保'!U61,2)) -> 10059965.91 | Q73: =IF($C73>98,"",'Temp-减保'!X61) -> 12074504.93 | R73: =IF(C73<=98,IF($C73=98,ROUND(120%*'Temp-减保'!U61,2),0),"") -> 0 | S73: =IF($C73>98,"",'Temp-减保'!V61) -> 12074504.93 | T73: =IF(IFERROR(O73-'Temp-减保'!W61,1)>=0,1,0) -> 1 | U73: =IFERROR(IF(AND(B73<=5,N73>0),0,IF(AND(B73>5,N73>'Temp-减保'!P61*20%,B73<106-年龄1),0,1)),1) -> 1 | V73: 0 | W73: 0 | X73: 0 | Y73: 0 | Z73: 0
A74: 54 | B74: 54 | C74: 93 | D74: 94 | E74: =IF($C74>98,"",'Temp-减保'!D62) -> 0 | F74: =IF($C74>98,"",'Temp-定寿'!D63) -> 0 | G74: =IF($C74>98,"",'Temp-减保'!E62) -> 2010000 | H74: =IF(C74<=98,ROUND('Temp-加保'!I62,2),"") -> 10419864.87 | I74: =IF($C74>98,"",'Temp-减保'!F62) -> 12506126.2 | J74: =IF(C74<=98,IF($C74=98,ROUND(120%*'Temp-加保'!I62,2),0),"") -> 0 | K74: =IF($C74>98,"",'Temp-减保'!I62) -> 12506126.2 | L74: =IF($C74>98,"",'Temp-定寿'!G63) -> 0 | M74: =IF($C74>98,"",'Temp-定寿'!G63+'Temp-减保'!I62) -> 12506126.2 | N74: =IF(C74>98,"",减保取现!C58) -> 0 | O74: =IF($C74>98,"",'Temp-减保'!S62) -> 2008495.34 | P74: =IF($C74>98,"",ROUND('Temp-减保'!U62,2)) -> 10412064.71 | Q74: =IF($C74>98,"",'Temp-减保'!X62) -> 12496764.29 | R74: =IF(C74<=98,IF($C74=98,ROUND(120%*'Temp-减保'!U62,2),0),"") -> 0 | S74: =IF($C74>98,"",'Temp-减保'!V62) -> 12496764.29 | T74: =IF(IFERROR(O74-'Temp-减保'!W62,1)>=0,1,0) -> 1 | U74: =IFERROR(IF(AND(B74<=5,N74>0),0,IF(AND(B74>5,N74>'Temp-减保'!P62*20%,B74<106-年龄1),0,1)),1) -> 1 | V74: 0 | W74: 0 | X74: 0 | Y74: 0 | Z74: 0
A75: 55 | B75: 55 | C75: 94 | D75: 95 | E75: =IF($C75>98,"",'Temp-减保'!D63) -> 0 | F75: =IF($C75>98,"",'Temp-定寿'!D64) -> 0 | G75: =IF($C75>98,"",'Temp-减保'!E63) -> 2010000 | H75: =IF(C75<=98,ROUND('Temp-加保'!I63,2),"") -> 10784560.14 | I75: =IF($C75>98,"",'Temp-减保'!F63) -> 12943441.9 | J75: =IF(C75<=98,IF($C75=98,ROUND(120%*'Temp-加保'!I63,2),0),"") -> 0 | K75: =IF($C75>98,"",'Temp-减保'!I63) -> 12943441.9 | L75: =IF($C75>98,"",'Temp-定寿'!G64) -> 0 | M75: =IF($C75>98,"",'Temp-定寿'!G64+'Temp-减保'!I63) -> 12943441.9 | N75: =IF(C75>98,"",减保取现!C59) -> 0 | O75: =IF($C75>98,"",'Temp-减保'!S63) -> 2008495.34 | P75: =IF($C75>98,"",ROUND('Temp-减保'!U63,2)) -> 10776486.98 | Q75: =IF($C75>98,"",'Temp-减保'!X63) -> 12933752.63 | R75: =IF(C75<=98,IF($C75=98,ROUND(120%*'Temp-减保'!U63,2),0),"") -> 0 | S75: =IF($C75>98,"",'Temp-减保'!V63) -> 12933752.63 | T75: =IF(IFERROR(O75-'Temp-减保'!W63,1)>=0,1,0) -> 1 | U75: =IFERROR(IF(AND(B75<=5,N75>0),0,IF(AND(B75>5,N75>'Temp-减保'!P63*20%,B75<106-年龄1),0,1)),1) -> 1 | V75: 0 | W75: 0 | X75: 0 | Y75: 0 | Z75: 0
A76: 56 | B76: 56 | C76: 95 | D76: 96 | E76: =IF($C76>98,"",'Temp-减保'!D64) -> 0 | F76: =IF($C76>98,"",'Temp-定寿'!D65) -> 0 | G76: =IF($C76>98,"",'Temp-减保'!E64) -> 2010000 | H76: =IF(C76<=98,ROUND('Temp-加保'!I64,2),"") -> 11162019.75 | I76: =IF($C76>98,"",'Temp-减保'!F64) -> 13396013.5 | J76: =IF(C76<=98,IF($C76=98,ROUND(120%*'Temp-加保'!I64,2),0),"") -> 0 | K76: =IF($C76>98,"",'Temp-减保'!I64) -> 13396013.5 | L76: =IF($C76>98,"",'Temp-定寿'!G65) -> 0 | M76: =IF($C76>98,"",'Temp-定寿'!G65+'Temp-减保'!I64) -> 13396013.5 | N76: =IF(C76>98,"",减保取现!C60) -> 0 | O76: =IF($C76>98,"",'Temp-减保'!S64) -> 2008495.34 | P76: =IF($C76>98,"",ROUND('Temp-减保'!U64,2)) -> 11153664.02 | Q76: =IF($C76>98,"",'Temp-减保'!X64) -> 13385985.44 | R76: =IF(C76<=98,IF($C76=98,ROUND(120%*'Temp-减保'!U64,2),0),"") -> 0 | S76: =IF($C76>98,"",'Temp-减保'!V64) -> 13385985.44 | T76: =IF(IFERROR(O76-'Temp-减保'!W64,1)>=0,1,0) -> 1 | U76: =IFERROR(IF(AND(B76<=5,N76>0),0,IF(AND(B76>5,N76>'Temp-减保'!P64*20%,B76<106-年龄1),0,1)),1) -> 1 | V76: 0 | W76: 0 | X76: 0 | Y76: 0 | Z76: 0
A77: 57 | B77: 57 | C77: 96 | D77: 97 | E77: =IF($C77>98,"",'Temp-减保'!D65) -> 0 | F77: =IF($C77>98,"",'Temp-定寿'!D66) -> 0 | G77: =IF($C77>98,"",'Temp-减保'!E65) -> 2010000 | H77: =IF(C77<=98,ROUND('Temp-加保'!I65,2),"") -> 11552690.44 | I77: =IF($C77>98,"",'Temp-减保'!F65) -> 13864370.3 | J77: =IF(C77<=98,IF($C77=98,ROUND(120%*'Temp-加保'!I65,2),0),"") -> 0 | K77: =IF($C77>98,"",'Temp-减保'!I65) -> 13864370.3 | L77: =IF($C77>98,"",'Temp-定寿'!G66) -> 0 | M77: =IF($C77>98,"",'Temp-定寿'!G66+'Temp-减保'!I65) -> 13864370.3 | N77: =IF(C77>98,"",减保取现!C61) -> 0 | O77: =IF($C77>98,"",'Temp-减保'!S65) -> 2008495.34 | P77: =IF($C77>98,"",ROUND('Temp-减保'!U65,2)) -> 11544042.26 | Q77: =IF($C77>98,"",'Temp-减保'!X65) -> 13853991.63 | R77: =IF(C77<=98,IF($C77=98,ROUND(120%*'Temp-减保'!U65,2),0),"") -> 0 | S77: =IF($C77>98,"",'Temp-减保'!V65) -> 13853991.63 | T77: =IF(IFERROR(O77-'Temp-减保'!W65,1)>=0,1,0) -> 1 | U77: =IFERROR(IF(AND(B77<=5,N77>0),0,IF(AND(B77>5,N77>'Temp-减保'!P65*20%,B77<106-年龄1),0,1)),1) -> 1 | V77: 0 | W77: 0 | X77: 0 | Y77: 0 | Z77: 0
A78: 58 | B78: 58 | C78: 97 | D78: 98 | E78: =IF($C78>98,"",'Temp-减保'!D66) -> 0 | F78: =IF($C78>98,"",'Temp-定寿'!D67) -> 0 | G78: =IF($C78>98,"",'Temp-减保'!E66) -> 2010000 | H78: =IF(C78<=98,ROUND('Temp-加保'!I66,2),"") -> 11957034.6 | I78: =IF($C78>98,"",'Temp-减保'!F66) -> 14349048.3 | J78: =IF(C78<=98,IF($C78=98,ROUND(120%*'Temp-加保'!I66,2),0),"") -> 0 | K78: =IF($C78>98,"",'Temp-减保'!I66) -> 14349048.3 | L78: =IF($C78>98,"",'Temp-定寿'!G67) -> 0 | M78: =IF($C78>98,"",'Temp-定寿'!G67+'Temp-减保'!I66) -> 14349048.3 | N78: =IF(C78>98,"",减保取现!C62) -> 0 | O78: =IF($C78>98,"",'Temp-减保'!S66) -> 2008495.34 | P78: =IF($C78>98,"",ROUND('Temp-减保'!U66,2)) -> 11948083.74 | Q78: =IF($C78>98,"",'Temp-减保'!X66) -> 14338306.81 | R78: =IF(C78<=98,IF($C78=98,ROUND(120%*'Temp-减保'!U66,2),0),"") -> 0 | S78: =IF($C78>98,"",'Temp-减保'!V66) -> 14338306.81 | T78: =IF(IFERROR(O78-'Temp-减保'!W66,1)>=0,1,0) -> 1 | U78: =IFERROR(IF(AND(B78<=5,N78>0),0,IF(AND(B78>5,N78>'Temp-减保'!P66*20%,B78<106-年龄1),0,1)),1) -> 1 | V78: 0 | W78: 0 | X78: 0 | Y78: 0 | Z78: 0
A79: 59 | B79: 59 | C79: 98 | D79: 99 | E79: =IF($C79>98,"",'Temp-减保'!D67) -> 0 | F79: =IF($C79>98,"",'Temp-定寿'!D68) -> 0 | G79: =IF($C79>98,"",'Temp-减保'!E67) -> 2010000 | H79: =IF(C79<=98,ROUND('Temp-加保'!I67,2),"") -> 12375530.82 | I79: =IF($C79>98,"",'Temp-减保'!F67) -> 14850623.7 | J79: =IF(C79<=98,IF($C79=98,ROUND(120%*'Temp-加保'!I67,2),0),"") -> 14850636.98 | K79: =IF($C79>98,"",'Temp-减保'!I67) -> 14850623.7 | L79: =IF($C79>98,"",'Temp-定寿'!G68) -> 0 | M79: =IF($C79>98,"",'Temp-定寿'!G68+'Temp-减保'!I67) -> 14850623.7 | N79: =IF(C79>98,"",减保取现!C63) -> 0 | O79: =IF($C79>98,"",'Temp-减保'!S67) -> 2008495.34 | P79: =IF($C79>98,"",ROUND('Temp-减保'!U67,2)) -> 12366266.67 | Q79: =IF($C79>98,"",'Temp-减保'!X67) -> 14839506.74 | R79: =IF(C79<=98,IF($C79=98,ROUND(120%*'Temp-减保'!U67,2),0),"") -> 14839520.01 | S79: =IF($C79>98,"",'Temp-减保'!V67) -> 14839506.74 | T79: =IF(IFERROR(O79-'Temp-减保'!W67,1)>=0,1,0) -> 1 | U79: =IFERROR(IF(AND(B79<=5,N79>0),0,IF(AND(B79>5,N79>'Temp-减保'!P67*20%,B79<106-年龄1),0,1)),1) -> 1 | V79: 0 | W79: 0 | X79: 0 | Y79: 0 | Z79: 0
A80: 60 | E80: =IF($C80>98,"",'Temp-减保'!D68) ->  | F80: =IF($C80>98,"",'Temp-定寿'!D69) ->  | G80: =IF($C80>98,"",'Temp-减保'!E68) ->  | H80: =IF(C80<=98,ROUND('Temp-加保'!I68,2),"") ->  | I80: =IF($C80>98,"",'Temp-减保'!F68) ->  | J80: =IF(C80<=98,IF($C80=98,ROUND(120%*'Temp-加保'!I68,2),0),"") ->  | K80: =IF($C80>98,"",'Temp-减保'!I68) ->  | L80: =IF($C80>98,"",'Temp-定寿'!G69) ->  | M80: =IF($C80>98,"",'Temp-定寿'!G69+'Temp-减保'!I68) ->  | N80: =IF(C80>98,"",减保取现!C64) ->  | O80: =IF($C80>98,"",'Temp-减保'!S68) ->  | P80: =IF($C80>98,"",ROUND('Temp-减保'!U68,2)) ->  | Q80: =IF($C80>98,"",'Temp-减保'!X68) ->  | R80: =IF(C80<=98,IF($C80=98,ROUND(120%*'Temp-减保'!U68,2),0),"") ->  | S80: =IF($C80>98,"",'Temp-减保'!V68) ->  | T80: =IF(IFERROR(O80-'Temp-减保'!W68,1)>=0,1,0) -> 1 | U80: =IFERROR(IF(AND(B80<=5,N80>0),0,IF(AND(B80>5,N80>'Temp-减保'!P68*20%,B80<106-年龄1),0,1)),1) -> 1 | V80: 0 | W80: 0 | X80: 0 | Y80: 0 | Z80: 0
A81: 61 | E81: =IF($C81>98,"",'Temp-减保'!D69) ->  | F81: =IF($C81>98,"",'Temp-定寿'!D70) ->  | G81: =IF($C81>98,"",'Temp-减保'!E69) ->  | H81: =IF(C81<=98,ROUND('Temp-加保'!I69,2),"") ->  | I81: =IF($C81>98,"",'Temp-减保'!F69) ->  | J81: =IF(C81<=98,IF($C81=98,ROUND(120%*'Temp-加保'!I69,2),0),"") ->  | K81: =IF($C81>98,"",'Temp-减保'!I69) ->  | L81: =IF($C81>98,"",'Temp-定寿'!G70) ->  | M81: =IF($C81>98,"",'Temp-定寿'!G70+'Temp-减保'!I69) ->  | N81: =IF(C81>98,"",减保取现!C65) ->  | O81: =IF($C81>98,"",'Temp-减保'!S69) ->  | P81: =IF($C81>98,"",ROUND('Temp-减保'!U69,2)) ->  | Q81: =IF($C81>98,"",'Temp-减保'!X69) ->  | R81: =IF(C81<=98,IF($C81=98,ROUND(120%*'Temp-减保'!U69,2),0),"") ->  | S81: =IF($C81>98,"",'Temp-减保'!V69) ->  | T81: =IF(IFERROR(O81-'Temp-减保'!W69,1)>=0,1,0) -> 1 | U81: =IFERROR(IF(AND(B81<=5,N81>0),0,IF(AND(B81>5,N81>'Temp-减保'!P69*20%,B81<106-年龄1),0,1)),1) -> 1 | V81: 0 | W81: 0 | X81: =IF($C81=$O$10,S80,IF($C81<$G$12,-E81+N80,0)) -> 0 | Y81: 0 | Z81: 0
A82: 62 | E82: =IF($C82>98,"",'Temp-减保'!D70) ->  | F82: =IF($C82>98,"",'Temp-定寿'!D71) ->  | G82: =IF($C82>98,"",'Temp-减保'!E70) ->  | H82: =IF(C82<=98,ROUND('Temp-加保'!I70,2),"") ->  | I82: =IF($C82>98,"",'Temp-减保'!F70) ->  | J82: =IF(C82<=98,IF($C82=98,ROUND(120%*'Temp-加保'!I70,2),0),"") ->  | K82: =IF($C82>98,"",'Temp-减保'!I70) ->  | L82: =IF($C82>98,"",'Temp-定寿'!G71) ->  | M82: =IF($C82>98,"",'Temp-定寿'!G71+'Temp-减保'!I70) ->  | N82: =IF(C82>98,"",减保取现!C66) ->  | O82: =IF($C82>98,"",'Temp-减保'!S70) ->  | P82: =IF($C82>98,"",ROUND('Temp-减保'!U70,2)) ->  | Q82: =IF($C82>98,"",'Temp-减保'!X70) ->  | R82: =IF(C82<=98,IF($C82=98,ROUND(120%*'Temp-减保'!U70,2),0),"") ->  | S82: =IF($C82>98,"",'Temp-减保'!V70) ->  | T82: =IF(IFERROR(O82-'Temp-减保'!W70,1)>=0,1,0) -> 1 | U82: =IFERROR(IF(AND(B82<=5,N82>0),0,IF(AND(B82>5,N82>'Temp-减保'!P70*20%,B82<106-年龄1),0,1)),1) -> 1 | V82: 0 | W82: 0 | X82: 0 | Y82: 0 | Z82: 0
A83: 63 | E83: =IF($C83>98,"",'Temp-减保'!D71) ->  | F83: =IF($C83>98,"",'Temp-定寿'!D72) ->  | G83: =IF($C83>98,"",'Temp-减保'!E71) ->  | H83: =IF(C83<=98,ROUND('Temp-加保'!I71,2),"") ->  | I83: =IF($C83>98,"",'Temp-减保'!F71) ->  | J83: =IF(C83<=98,IF($C83=98,ROUND(120%*'Temp-加保'!I71,2),0),"") ->  | K83: =IF($C83>98,"",'Temp-减保'!I71) ->  | L83: =IF($C83>98,"",'Temp-定寿'!G72) ->  | M83: =IF($C83>98,"",'Temp-定寿'!G72+'Temp-减保'!I71) ->  | N83: =IF(C83>98,"",减保取现!C67) ->  | O83: =IF($C83>98,"",'Temp-减保'!S71) ->  | P83: =IF($C83>98,"",ROUND('Temp-减保'!U71,2)) ->  | Q83: =IF($C83>98,"",'Temp-减保'!X71) ->  | R83: =IF(C83<=98,IF($C83=98,ROUND(120%*'Temp-减保'!U71,2),0),"") ->  | S83: =IF($C83>98,"",'Temp-减保'!V71) ->  | T83: =IF(IFERROR(O83-'Temp-减保'!W71,1)>=0,1,0) -> 1 | U83: =IFERROR(IF(AND(B83<=5,N83>0),0,IF(AND(B83>5,N83>'Temp-减保'!P71*20%,B83<106-年龄1),0,1)),1) -> 1 | V83: 0 | W83: 0 | X83: 0 | Y83: 0 | Z83: 0
A84: 64 | E84: =IF($C84>98,"",'Temp-减保'!D72) ->  | F84: =IF($C84>98,"",'Temp-定寿'!D73) ->  | G84: =IF($C84>98,"",'Temp-减保'!E72) ->  | H84: =IF(C84<=98,ROUND('Temp-加保'!I72,2),"") ->  | I84: =IF($C84>98,"",'Temp-减保'!F72) ->  | J84: =IF(C84<=98,IF($C84=98,ROUND(120%*'Temp-加保'!I72,2),0),"") ->  | K84: =IF($C84>98,"",'Temp-减保'!I72) ->  | L84: =IF($C84>98,"",'Temp-定寿'!G73) ->  | M84: =IF($C84>98,"",'Temp-定寿'!G73+'Temp-减保'!I72) ->  | N84: =IF(C84>98,"",减保取现!C68) ->  | O84: =IF($C84>98,"",'Temp-减保'!S72) ->  | P84: =IF($C84>98,"",ROUND('Temp-减保'!U72,2)) ->  | Q84: =IF($C84>98,"",'Temp-减保'!X72) ->  | R84: =IF(C84<=98,IF($C84=98,ROUND(120%*'Temp-减保'!U72,2),0),"") ->  | S84: =IF($C84>98,"",'Temp-减保'!V72) ->  | T84: =IF(IFERROR(O84-'Temp-减保'!W72,1)>=0,1,0) -> 1 | U84: =IFERROR(IF(AND(B84<=5,N84>0),0,IF(AND(B84>5,N84>'Temp-减保'!P72*20%,B84<106-年龄1),0,1)),1) -> 1 | V84: 0 | W84: 0 | X84: 0 | Y84: 0 | Z84: 0
A85: 65 | C85: =IF(年龄1+A85-1>=99,"",年龄1+A85-1) ->  | E85: =IF($C85>98,"",'Temp-减保'!D73) ->  | F85: =IF($C85>98,"",'Temp-定寿'!D74) ->  | G85: =IF($C85>98,"",'Temp-减保'!E73) ->  | H85: =IF(C85<=98,ROUND('Temp-加保'!I73,2),"") ->  | I85: =IF($C85>98,"",'Temp-减保'!F73) ->  | J85: =IF(C85<=98,IF($C85=98,ROUND(120%*'Temp-加保'!I73,2),0),"") ->  | K85: =IF($C85>98,"",'Temp-减保'!I73) ->  | L85: =IF($C85>98,"",'Temp-定寿'!G74) ->  | M85: =IF($C85>98,"",'Temp-定寿'!G74+'Temp-减保'!I73) ->  | N85: =IF(C85>98,"",减保取现!C69) ->  | O85: =IF($C85>98,"",'Temp-减保'!S73) ->  | P85: =IF($C85>98,"",ROUND('Temp-减保'!U73,2)) ->  | Q85: =IF($C85>98,"",'Temp-减保'!X73) ->  | R85: =IF(C85<=98,IF($C85=98,ROUND(120%*'Temp-减保'!U73,2),0),"") ->  | S85: =IF($C85>98,"",'Temp-减保'!V73) ->  | T85: =IF(IFERROR(O85-'Temp-减保'!W73,1)>=0,1,0) -> 1 | U85: =IFERROR(IF(AND(B85<=5,N85>0),0,IF(AND(B85>5,N85>'Temp-减保'!P73*20%,B85<106-年龄1),0,1)),1) -> 1 | V85: =IF($C85=$G$10,K84,IF($C85<$G$10,-E85,0)) -> 0 | W85: =IF($C85=$G$12,I84,IF($C85<$G$12,-E85,0)) -> 0 | X85: =IF($C85=$O$10,S84,IF($C85<$G$12,-E85+N84,0)) -> 0 | Y85: =IF($C85=$O$12,Q84,IF($C85<$G$12,-E85+N84,0)) -> 0 | Z85: 0
A86: 66 | D86: =IF(C86="","",C86+1) ->  | E86: =IF($C86>98,"",'Temp-减保'!D74) ->  | F86: =IF($C86>98,"",'Temp-定寿'!D75) ->  | G86: =IF($C86>98,"",'Temp-减保'!E74) ->  | H86: =IF(C86<=98,ROUND('Temp-加保'!I74,2),"") ->  | I86: =IF($C86>98,"",'Temp-减保'!F74) ->  | J86: =IF(C86<=98,IF($C86=98,ROUND(120%*'Temp-加保'!I74,2),0),"") ->  | K86: =IF($C86>98,"",'Temp-减保'!I74) ->  | L86: =IF($C86>98,"",'Temp-定寿'!G75) ->  | M86: =IF($C86>98,"",'Temp-定寿'!G75+'Temp-减保'!I74) ->  | N86: =IF(C86>98,"",减保取现!C70) ->  | O86: =IF($C86>98,"",'Temp-减保'!S74) ->  | P86: =IF($C86>98,"",ROUND('Temp-减保'!U74,2)) ->  | Q86: =IF($C86>98,"",'Temp-减保'!X74) ->  | R86: =IF(C86<=98,IF($C86=98,ROUND(120%*'Temp-减保'!U74,2),0),"") ->  | S86: =IF($C86>98,"",'Temp-减保'!V74) ->  | T86: =IF(IFERROR(O86-'Temp-减保'!W74,1)>=0,1,0) -> 1 | U86: =IFERROR(IF(AND(B86<=5,N86>0),0,IF(AND(B86>5,N86>'Temp-减保'!P74*20%,B86<106-年龄1),0,1)),1) -> 1 | V86: 0 | W86: 0 | X86: 0 | Y86: 0 | Z86: 0
A87: 67 | E87: =IF($C87>98,"",'Temp-减保'!D75) ->  | F87: =IF($C87>98,"",'Temp-定寿'!D76) ->  | G87: =IF($C87>98,"",'Temp-减保'!E75) ->  | H87: =IF(C87<=98,ROUND('Temp-加保'!I75,2),"") ->  | I87: =IF($C87>98,"",'Temp-减保'!F75) ->  | J87: =IF(C87<=98,IF($C87=98,ROUND(120%*'Temp-加保'!I75,2),0),"") ->  | K87: =IF($C87>98,"",'Temp-减保'!I75) ->  | L87: =IF($C87>98,"",'Temp-定寿'!G76) ->  | M87: =IF($C87>98,"",'Temp-定寿'!G76+'Temp-减保'!I75) ->  | N87: =IF(C87>98,"",减保取现!C71) ->  | O87: =IF($C87>98,"",'Temp-减保'!S75) ->  | P87: =IF($C87>98,"",ROUND('Temp-减保'!U75,2)) ->  | Q87: =IF($C87>98,"",'Temp-减保'!X75) ->  | R87: =IF(C87<=98,IF($C87=98,ROUND(120%*'Temp-减保'!U75,2),0),"") ->  | S87: =IF($C87>98,"",'Temp-减保'!V75) ->  | T87: =IF(IFERROR(O87-'Temp-减保'!W75,1)>=0,1,0) -> 1 | U87: =IFERROR(IF(AND(B87<=5,N87>0),0,IF(AND(B87>5,N87>'Temp-减保'!P75*20%,B87<106-年龄1),0,1)),1) -> 1 | V87: 0 | W87: 0 | X87: 0 | Y87: 0 | Z87: 0
A88: 68 | B88: =IF(C88="","",A88) ->  | E88: =IF($C88>98,"",'Temp-减保'!D76) ->  | F88: =IF($C88>98,"",'Temp-定寿'!D77) ->  | G88: =IF($C88>98,"",'Temp-减保'!E76) ->  | H88: =IF(C88<=98,ROUND('Temp-加保'!I76,2),"") ->  | I88: =IF($C88>98,"",'Temp-减保'!F76) ->  | J88: =IF(C88<=98,IF($C88=98,ROUND(120%*'Temp-加保'!I76,2),0),"") ->  | K88: =IF($C88>98,"",'Temp-减保'!I76) ->  | L88: =IF($C88>98,"",'Temp-定寿'!G77) ->  | M88: =IF($C88>98,"",'Temp-定寿'!G77+'Temp-减保'!I76) ->  | N88: =IF(C88>98,"",减保取现!C72) ->  | O88: =IF($C88>98,"",'Temp-减保'!S76) ->  | P88: =IF($C88>98,"",ROUND('Temp-减保'!U76,2)) ->  | Q88: =IF($C88>98,"",'Temp-减保'!X76) ->  | R88: =IF(C88<=98,IF($C88=98,ROUND(120%*'Temp-减保'!U76,2),0),"") ->  | S88: =IF($C88>98,"",'Temp-减保'!V76) ->  | T88: =IF(IFERROR(O88-'Temp-减保'!W76,1)>=0,1,0) -> 1 | U88: =IFERROR(IF(AND(B88<=5,N88>0),0,IF(AND(B88>5,N88>'Temp-减保'!P76*20%,B88<106-年龄1),0,1)),1) -> 1 | V88: 0 | W88: 0 | X88: 0 | Y88: 0 | Z88: 0
A89: 69 | E89: =IF($C89>98,"",'Temp-减保'!D77) ->  | F89: =IF($C89>98,"",'Temp-定寿'!D78) ->  | G89: =IF($C89>98,"",'Temp-减保'!E77) ->  | H89: =IF(C89<=98,ROUND('Temp-加保'!I77,2),"") ->  | I89: =IF($C89>98,"",'Temp-减保'!F77) ->  | J89: =IF(C89<=98,IF($C89=98,ROUND(120%*'Temp-加保'!I77,2),0),"") ->  | K89: =IF($C89>98,"",'Temp-减保'!I77) ->  | L89: =IF($C89>98,"",'Temp-定寿'!G78) ->  | M89: =IF($C89>98,"",'Temp-定寿'!G78+'Temp-减保'!I77) ->  | N89: =IF(C89>98,"",减保取现!C73) ->  | O89: =IF($C89>98,"",'Temp-减保'!S77) ->  | P89: =IF($C89>98,"",ROUND('Temp-减保'!U77,2)) ->  | Q89: =IF($C89>98,"",'Temp-减保'!X77) ->  | R89: =IF(C89<=98,IF($C89=98,ROUND(120%*'Temp-减保'!U77,2),0),"") ->  | S89: =IF($C89>98,"",'Temp-减保'!V77) ->  | T89: =IF(IFERROR(O89-'Temp-减保'!W77,1)>=0,1,0) -> 1 | U89: =IFERROR(IF(AND(B89<=5,N89>0),0,IF(AND(B89>5,N89>'Temp-减保'!P77*20%,B89<106-年龄1),0,1)),1) -> 1 | V89: 0 | W89: 0 | X89: 0 | Y89: 0 | Z89: =P89*1.2 -> 
A90: 70 | E90: =IF($C90>98,"",'Temp-减保'!D78) ->  | F90: =IF($C90>98,"",'Temp-定寿'!D79) ->  | G90: =IF($C90>98,"",'Temp-减保'!E78) ->  | H90: =IF(C90<=98,ROUND('Temp-加保'!I78,2),"") ->  | I90: =IF($C90>98,"",'Temp-减保'!F78) ->  | J90: =IF(C90<=98,IF($C90=98,ROUND(120%*'Temp-加保'!I78,2),0),"") ->  | K90: =IF($C90>98,"",'Temp-减保'!I78) ->  | L90: =IF($C90>98,"",'Temp-定寿'!G79) ->  | M90: =IF($C90>98,"",'Temp-定寿'!G79+'Temp-减保'!I78) ->  | N90: =IF(C90>98,"",减保取现!C74) ->  | O90: =IF($C90>98,"",'Temp-减保'!S78) ->  | P90: =IF($C90>98,"",ROUND('Temp-减保'!U78,2)) ->  | Q90: =IF($C90>98,"",'Temp-减保'!X78) ->  | R90: =IF(C90<=98,IF($C90=98,ROUND(120%*'Temp-减保'!U78,2),0),"") ->  | S90: =IF($C90>98,"",'Temp-减保'!V78) ->  | T90: =IF(IFERROR(O90-'Temp-减保'!W78,1)>=0,1,0) -> 1 | U90: =IFERROR(IF(AND(B90<=5,N90>0),0,IF(AND(B90>5,N90>'Temp-减保'!P78*20%,B90<106-年龄1),0,1)),1) -> 1 | V90: 0 | W90: 0 | X90: 0 | Y90: 0
A91: 71 | E91: =IF($C91>98,"",'Temp-减保'!D79) ->  | F91: =IF($C91>98,"",'Temp-定寿'!D80) ->  | G91: =IF($C91>98,"",'Temp-减保'!E79) ->  | H91: =IF(C91<=98,ROUND('Temp-加保'!I79,2),"") ->  | I91: =IF($C91>98,"",'Temp-减保'!F79) ->  | J91: =IF(C91<=98,IF($C91=98,ROUND(120%*'Temp-加保'!I79,2),0),"") ->  | K91: =IF($C91>98,"",'Temp-减保'!I79) ->  | L91: =IF($C91>98,"",'Temp-定寿'!G80) ->  | M91: =IF($C91>98,"",'Temp-定寿'!G80+'Temp-减保'!I79) ->  | N91: =IF(C91>98,"",减保取现!C75) ->  | O91: =IF($C91>98,"",'Temp-减保'!S79) ->  | P91: =IF($C91>98,"",ROUND('Temp-减保'!U79,2)) ->  | Q91: =IF($C91>98,"",'Temp-减保'!X79) ->  | R91: =IF(C91<=98,IF($C91=98,ROUND(120%*'Temp-减保'!U79,2),0),"") ->  | S91: =IF($C91>98,"",'Temp-减保'!V79) ->  | T91: =IF(IFERROR(O91-'Temp-减保'!W79,1)>=0,1,0) -> 1 | U91: =IFERROR(IF(AND(B91<=5,N91>0),0,IF(AND(B91>5,N91>'Temp-减保'!P79*20%,B91<106-年龄1),0,1)),1) -> 1 | V91: 0 | W91: 0 | X91: 0 | Y91: 0
A92: 72 | E92: =IF($C92>98,"",'Temp-减保'!D80) ->  | F92: =IF($C92>98,"",'Temp-定寿'!D81) ->  | G92: =IF($C92>98,"",'Temp-减保'!E80) ->  | H92: =IF(C92<=98,ROUND('Temp-加保'!I80,2),"") ->  | I92: =IF($C92>98,"",'Temp-减保'!F80) ->  | J92: =IF(C92<=98,IF($C92=98,ROUND(120%*'Temp-加保'!I80,2),0),"") ->  | K92: =IF($C92>98,"",'Temp-减保'!I80) ->  | L92: =IF($C92>98,"",'Temp-定寿'!G81) ->  | M92: =IF($C92>98,"",'Temp-定寿'!G81+'Temp-减保'!I80) ->  | N92: =IF(C92>98,"",减保取现!C76) ->  | O92: =IF($C92>98,"",'Temp-减保'!S80) ->  | P92: =IF($C92>98,"",ROUND('Temp-减保'!U80,2)) ->  | Q92: =IF($C92>98,"",'Temp-减保'!X80) ->  | R92: =IF(C92<=98,IF($C92=98,ROUND(120%*'Temp-减保'!U80,2),0),"") ->  | S92: =IF($C92>98,"",'Temp-减保'!V80) ->  | T92: =IF(IFERROR(O92-'Temp-减保'!W80,1)>=0,1,0) -> 1 | U92: =IFERROR(IF(AND(B92<=5,N92>0),0,IF(AND(B92>5,N92>'Temp-减保'!P80*20%,B92<106-年龄1),0,1)),1) -> 1 | V92: 0 | W92: 0 | X92: 0 | Y92: 0
A93: 73 | E93: =IF($C93>98,"",'Temp-减保'!D81) ->  | F93: =IF($C93>98,"",'Temp-定寿'!D82) ->  | G93: =IF($C93>98,"",'Temp-减保'!E81) ->  | H93: =IF(C93<=98,ROUND('Temp-加保'!I81,2),"") ->  | I93: =IF($C93>98,"",'Temp-减保'!F81) ->  | J93: =IF(C93<=98,IF($C93=98,ROUND(120%*'Temp-加保'!I81,2),0),"") ->  | K93: =IF($C93>98,"",'Temp-减保'!I81) ->  | L93: =IF($C93>98,"",'Temp-定寿'!G82) ->  | M93: =IF($C93>98,"",'Temp-定寿'!G82+'Temp-减保'!I81) ->  | N93: =IF(C93>98,"",减保取现!C77) ->  | O93: =IF($C93>98,"",'Temp-减保'!S81) ->  | P93: =IF($C93>98,"",ROUND('Temp-减保'!U81,2)) ->  | Q93: =IF($C93>98,"",'Temp-减保'!X81) ->  | R93: =IF(C93<=98,IF($C93=98,ROUND(120%*'Temp-减保'!U81,2),0),"") ->  | S93: =IF($C93>98,"",'Temp-减保'!V81) ->  | T93: =IF(IFERROR(O93-'Temp-减保'!W81,1)>=0,1,0) -> 1 | U93: =IFERROR(IF(AND(B93<=5,N93>0),0,IF(AND(B93>5,N93>'Temp-减保'!P81*20%,B93<106-年龄1),0,1)),1) -> 1 | V93: 0 | W93: 0 | X93: 0 | Y93: 0
A94: 74 | E94: =IF($C94>98,"",'Temp-减保'!D82) ->  | F94: =IF($C94>98,"",'Temp-定寿'!D83) ->  | G94: =IF($C94>98,"",'Temp-减保'!E82) ->  | H94: =IF(C94<=98,ROUND('Temp-加保'!I82,2),"") ->  | I94: =IF($C94>98,"",'Temp-减保'!F82) ->  | J94: =IF(C94<=98,IF($C94=98,ROUND(120%*'Temp-加保'!I82,2),0),"") ->  | K94: =IF($C94>98,"",'Temp-减保'!I82) ->  | L94: =IF($C94>98,"",'Temp-定寿'!G83) ->  | M94: =IF($C94>98,"",'Temp-定寿'!G83+'Temp-减保'!I82) ->  | N94: =IF(C94>98,"",减保取现!C78) ->  | O94: =IF($C94>98,"",'Temp-减保'!S82) ->  | P94: =IF($C94>98,"",ROUND('Temp-减保'!U82,2)) ->  | Q94: =IF($C94>98,"",'Temp-减保'!X82) ->  | R94: =IF(C94<=98,IF($C94=98,ROUND(120%*'Temp-减保'!U82,2),0),"") ->  | S94: =IF($C94>98,"",'Temp-减保'!V82) ->  | T94: =IF(IFERROR(O94-'Temp-减保'!W82,1)>=0,1,0) -> 1 | U94: =IFERROR(IF(AND(B94<=5,N94>0),0,IF(AND(B94>5,N94>'Temp-减保'!P82*20%,B94<106-年龄1),0,1)),1) -> 1 | V94: 0 | W94: 0 | X94: 0 | Y94: 0
A95: 75 | E95: =IF($C95>98,"",'Temp-减保'!D83) ->  | F95: =IF($C95>98,"",'Temp-定寿'!D84) ->  | G95: =IF($C95>98,"",'Temp-减保'!E83) ->  | H95: =IF(C95<=98,ROUND('Temp-加保'!I83,2),"") ->  | I95: =IF($C95>98,"",'Temp-减保'!F83) ->  | J95: =IF(C95<=98,IF($C95=98,ROUND(120%*'Temp-加保'!I83,2),0),"") ->  | K95: =IF($C95>98,"",'Temp-减保'!I83) ->  | L95: =IF($C95>98,"",'Temp-定寿'!G84) ->  | M95: =IF($C95>98,"",'Temp-定寿'!G84+'Temp-减保'!I83) ->  | N95: =IF(C95>98,"",减保取现!C79) ->  | O95: =IF($C95>98,"",'Temp-减保'!S83) ->  | P95: =IF($C95>98,"",ROUND('Temp-减保'!U83,2)) ->  | Q95: =IF($C95>98,"",'Temp-减保'!X83) ->  | R95: =IF(C95<=98,IF($C95=98,ROUND(120%*'Temp-减保'!U83,2),0),"") ->  | S95: =IF($C95>98,"",'Temp-减保'!V83) ->  | T95: =IF(IFERROR(O95-'Temp-减保'!W83,1)>=0,1,0) -> 1 | U95: =IFERROR(IF(AND(B95<=5,N95>0),0,IF(AND(B95>5,N95>'Temp-减保'!P83*20%,B95<106-年龄1),0,1)),1) -> 1 | V95: 0 | W95: 0 | X95: 0 | Y95: 0
A96: 76 | E96: =IF($C96>98,"",'Temp-减保'!D84) ->  | F96: =IF($C96>98,"",'Temp-定寿'!D85) ->  | G96: =IF($C96>98,"",'Temp-减保'!E84) ->  | H96: =IF(C96<=98,ROUND('Temp-加保'!I84,2),"") ->  | I96: =IF($C96>98,"",'Temp-减保'!F84) ->  | J96: =IF(C96<=98,IF($C96=98,ROUND(120%*'Temp-加保'!I84,2),0),"") ->  | K96: =IF($C96>98,"",'Temp-减保'!I84) ->  | L96: =IF($C96>98,"",'Temp-定寿'!G85) ->  | M96: =IF($C96>98,"",'Temp-定寿'!G85+'Temp-减保'!I84) ->  | N96: =IF(C96>98,"",减保取现!C80) ->  | O96: =IF($C96>98,"",'Temp-减保'!S84) ->  | P96: =IF($C96>98,"",ROUND('Temp-减保'!U84,2)) ->  | Q96: =IF($C96>98,"",'Temp-减保'!X84) ->  | R96: =IF(C96<=98,IF($C96=98,ROUND(120%*'Temp-减保'!U84,2),0),"") ->  | S96: =IF($C96>98,"",'Temp-减保'!V84) ->  | T96: =IF(IFERROR(O96-'Temp-减保'!W84,1)>=0,1,0) -> 1 | U96: =IFERROR(IF(AND(B96<=5,N96>0),0,IF(AND(B96>5,N96>'Temp-减保'!P84*20%,B96<106-年龄1),0,1)),1) -> 1 | V96: 0 | W96: 0 | X96: 0 | Y96: 0
A97: 77 | E97: =IF($C97>98,"",'Temp-减保'!D85) ->  | F97: =IF($C97>98,"",'Temp-定寿'!D86) ->  | G97: =IF($C97>98,"",'Temp-减保'!E85) ->  | H97: =IF(C97<=98,ROUND('Temp-加保'!I85,2),"") ->  | I97: =IF($C97>98,"",'Temp-减保'!F85) ->  | J97: =IF(C97<=98,IF($C97=98,ROUND(120%*'Temp-加保'!I85,2),0),"") ->  | K97: =IF($C97>98,"",'Temp-减保'!I85) ->  | L97: =IF($C97>98,"",'Temp-定寿'!G86) ->  | M97: =IF($C97>98,"",'Temp-定寿'!G86+'Temp-减保'!I85) ->  | N97: =IF(C97>98,"",减保取现!C81) ->  | O97: =IF($C97>98,"",'Temp-减保'!S85) ->  | P97: =IF($C97>98,"",ROUND('Temp-减保'!U85,2)) ->  | Q97: =IF($C97>98,"",'Temp-减保'!X85) ->  | R97: =IF(C97<=98,IF($C97=98,ROUND(120%*'Temp-减保'!U85,2),0),"") ->  | S97: =IF($C97>98,"",'Temp-减保'!V85) ->  | T97: =IF(IFERROR(O97-'Temp-减保'!W85,1)>=0,1,0) -> 1 | U97: =IFERROR(IF(AND(B97<=5,N97>0),0,IF(AND(B97>5,N97>'Temp-减保'!P85*20%,B97<106-年龄1),0,1)),1) -> 1 | V97: 0 | W97: 0 | X97: 0 | Y97: 0
A98: 78 | E98: =IF($C98>98,"",'Temp-减保'!D86) ->  | F98: =IF($C98>98,"",'Temp-定寿'!D87) ->  | G98: =IF($C98>98,"",'Temp-减保'!E86) ->  | H98: =IF(C98<=98,ROUND('Temp-加保'!I86,2),"") ->  | I98: =IF($C98>98,"",'Temp-减保'!F86) ->  | J98: =IF(C98<=98,IF($C98=98,ROUND(120%*'Temp-加保'!I86,2),0),"") ->  | K98: =IF($C98>98,"",'Temp-减保'!I86) ->  | L98: =IF($C98>98,"",'Temp-定寿'!G87) ->  | M98: =IF($C98>98,"",'Temp-定寿'!G87+'Temp-减保'!I86) ->  | N98: =IF(C98>98,"",减保取现!C82) ->  | O98: =IF($C98>98,"",'Temp-减保'!S86) ->  | P98: =IF($C98>98,"",ROUND('Temp-减保'!U86,2)) ->  | Q98: =IF($C98>98,"",'Temp-减保'!X86) ->  | R98: =IF(C98<=98,IF($C98=98,ROUND(120%*'Temp-减保'!U86,2),0),"") ->  | S98: =IF($C98>98,"",'Temp-减保'!V86) ->  | T98: =IF(IFERROR(O98-'Temp-减保'!W86,1)>=0,1,0) -> 1 | U98: =IFERROR(IF(AND(B98<=5,N98>0),0,IF(AND(B98>5,N98>'Temp-减保'!P86*20%,B98<106-年龄1),0,1)),1) -> 1 | V98: 0 | W98: 0 | X98: 0 | Y98: 0
A99: 79 | E99: =IF($C99>98,"",'Temp-减保'!D87) ->  | F99: =IF($C99>98,"",'Temp-定寿'!D88) ->  | G99: =IF($C99>98,"",'Temp-减保'!E87) ->  | H99: =IF(C99<=98,ROUND('Temp-加保'!I87,2),"") ->  | I99: =IF($C99>98,"",'Temp-减保'!F87) ->  | J99: =IF(C99<=98,IF($C99=98,ROUND(120%*'Temp-加保'!I87,2),0),"") ->  | K99: =IF($C99>98,"",'Temp-减保'!I87) ->  | L99: =IF($C99>98,"",'Temp-定寿'!G88) ->  | M99: =IF($C99>98,"",'Temp-定寿'!G88+'Temp-减保'!I87) ->  | N99: =IF(C99>98,"",减保取现!C83) ->  | O99: =IF($C99>98,"",'Temp-减保'!S87) ->  | P99: =IF($C99>98,"",ROUND('Temp-减保'!U87,2)) ->  | Q99: =IF($C99>98,"",'Temp-减保'!X87) ->  | R99: =IF(C99<=98,IF($C99=98,ROUND(120%*'Temp-减保'!U87,2),0),"") ->  | S99: =IF($C99>98,"",'Temp-减保'!V87) ->  | T99: =IF(IFERROR(O99-'Temp-减保'!W87,1)>=0,1,0) -> 1 | U99: =IFERROR(IF(AND(B99<=5,N99>0),0,IF(AND(B99>5,N99>'Temp-减保'!P87*20%,B99<106-年龄1),0,1)),1) -> 1 | V99: 0 | W99: 0 | X99: 0 | Y99: 0
A100: 80 | E100: =IF($C100>98,"",'Temp-减保'!D88) ->  | F100: =IF($C100>98,"",'Temp-定寿'!D89) ->  | G100: =IF($C100>98,"",'Temp-减保'!E88) ->  | H100: =IF(C100<=98,ROUND('Temp-加保'!I88,2),"") ->  | I100: =IF($C100>98,"",'Temp-减保'!F88) ->  | J100: =IF(C100<=98,IF($C100=98,ROUND(120%*'Temp-加保'!I88,2),0),"") ->  | K100: =IF($C100>98,"",'Temp-减保'!I88) ->  | L100: =IF($C100>98,"",'Temp-定寿'!G89) ->  | M100: =IF($C100>98,"",'Temp-定寿'!G89+'Temp-减保'!I88) ->  | N100: =IF(C100>98,"",减保取现!C84) ->  | O100: =IF($C100>98,"",'Temp-减保'!S88) ->  | P100: =IF($C100>98,"",ROUND('Temp-减保'!U88,2)) ->  | Q100: =IF($C100>98,"",'Temp-减保'!X88) ->  | R100: =IF(C100<=98,IF($C100=98,ROUND(120%*'Temp-减保'!U88,2),0),"") ->  | S100: =IF($C100>98,"",'Temp-减保'!V88) ->  | T100: =IF(IFERROR(O100-'Temp-减保'!W88,1)>=0,1,0) -> 1 | U100: =IFERROR(IF(AND(B100<=5,N100>0),0,IF(AND(B100>5,N100>'Temp-减保'!P88*20%,B100<106-年龄1),0,1)),1) -> 1 | V100: 0 | W100: 0 | X100: 0 | Y100: 0
A101: 81 | E101: =IF($C101>98,"",'Temp-减保'!D89) ->  | F101: =IF($C101>98,"",'Temp-定寿'!D90) ->  | G101: =IF($C101>98,"",'Temp-减保'!E89) ->  | H101: =IF(C101<=98,ROUND('Temp-加保'!I89,2),"") ->  | I101: =IF($C101>98,"",'Temp-减保'!F89) ->  | J101: =IF(C101<=98,IF($C101=98,ROUND(120%*'Temp-加保'!I89,2),0),"") ->  | K101: =IF($C101>98,"",'Temp-减保'!I89) ->  | L101: =IF($C101>98,"",'Temp-定寿'!G90) ->  | M101: =IF($C101>98,"",'Temp-定寿'!G90+'Temp-减保'!I89) ->  | N101: =IF(C101>98,"",减保取现!C85) ->  | O101: =IF($C101>98,"",'Temp-减保'!S89) ->  | P101: =IF($C101>98,"",ROUND('Temp-减保'!U89,2)) ->  | Q101: =IF($C101>98,"",'Temp-减保'!X89) ->  | R101: =IF(C101<=98,IF($C101=98,ROUND(120%*'Temp-减保'!U89,2),0),"") ->  | S101: =IF($C101>98,"",'Temp-减保'!V89) ->  | T101: =IF(IFERROR(O101-'Temp-减保'!W89,1)>=0,1,0) -> 1 | U101: =IFERROR(IF(AND(B101<=5,N101>0),0,IF(AND(B101>5,N101>'Temp-减保'!P89*20%,B101<106-年龄1),0,1)),1) -> 1 | V101: 0 | W101: 0 | X101: 0 | Y101: 0
A102: 82 | E102: =IF($C102>98,"",'Temp-减保'!D90) ->  | F102: =IF($C102>98,"",'Temp-定寿'!D91) ->  | G102: =IF($C102>98,"",'Temp-减保'!E90) ->  | H102: =IF(C102<=98,ROUND('Temp-加保'!I90,2),"") ->  | I102: =IF($C102>98,"",'Temp-减保'!F90) ->  | J102: =IF(C102<=98,IF($C102=98,ROUND(120%*'Temp-加保'!I90,2),0),"") ->  | K102: =IF($C102>98,"",'Temp-减保'!I90) ->  | L102: =IF($C102>98,"",'Temp-定寿'!G91) ->  | M102: =IF($C102>98,"",'Temp-定寿'!G91+'Temp-减保'!I90) ->  | N102: =IF(C102>98,"",减保取现!C86) ->  | O102: =IF($C102>98,"",'Temp-减保'!S90) ->  | P102: =IF($C102>98,"",ROUND('Temp-减保'!U90,2)) ->  | Q102: =IF($C102>98,"",'Temp-减保'!X90) ->  | R102: =IF(C102<=98,IF($C102=98,ROUND(120%*'Temp-减保'!U90,2),0),"") ->  | S102: =IF($C102>98,"",'Temp-减保'!V90) ->  | T102: =IF(IFERROR(O102-'Temp-减保'!W90,1)>=0,1,0) -> 1 | U102: =IFERROR(IF(AND(B102<=5,N102>0),0,IF(AND(B102>5,N102>'Temp-减保'!P90*20%,B102<106-年龄1),0,1)),1) -> 1 | V102: 0 | W102: 0 | X102: 0 | Y102: 0
A103: 83 | E103: =IF($C103>98,"",'Temp-减保'!D91) ->  | F103: =IF($C103>98,"",'Temp-定寿'!D92) ->  | G103: =IF($C103>98,"",'Temp-减保'!E91) ->  | H103: =IF(C103<=98,ROUND('Temp-加保'!I91,2),"") ->  | I103: =IF($C103>98,"",'Temp-减保'!F91) ->  | J103: =IF(C103<=98,IF($C103=98,ROUND(120%*'Temp-加保'!I91,2),0),"") ->  | K103: =IF($C103>98,"",'Temp-减保'!I91) ->  | L103: =IF($C103>98,"",'Temp-定寿'!G92) ->  | M103: =IF($C103>98,"",'Temp-定寿'!G92+'Temp-减保'!I91) ->  | N103: =IF(C103>98,"",减保取现!C87) ->  | O103: =IF($C103>98,"",'Temp-减保'!S91) ->  | P103: =IF($C103>98,"",ROUND('Temp-减保'!U91,2)) ->  | Q103: =IF($C103>98,"",'Temp-减保'!X91) ->  | R103: =IF(C103<=98,IF($C103=98,ROUND(120%*'Temp-减保'!U91,2),0),"") ->  | S103: =IF($C103>98,"",'Temp-减保'!V91) ->  | T103: =IF(IFERROR(O103-'Temp-减保'!W91,1)>=0,1,0) -> 1 | U103: =IFERROR(IF(AND(B103<=5,N103>0),0,IF(AND(B103>5,N103>'Temp-减保'!P91*20%,B103<106-年龄1),0,1)),1) -> 1 | V103: 0 | W103: 0 | X103: 0 | Y103: 0
A104: 84 | E104: =IF($C104>98,"",'Temp-减保'!D92) ->  | F104: =IF($C104>98,"",'Temp-定寿'!D93) ->  | G104: =IF($C104>98,"",'Temp-减保'!E92) ->  | H104: =IF(C104<=98,ROUND('Temp-加保'!I92,2),"") ->  | I104: =IF($C104>98,"",'Temp-减保'!F92) ->  | J104: =IF(C104<=98,IF($C104=98,ROUND(120%*'Temp-加保'!I92,2),0),"") ->  | K104: =IF($C104>98,"",'Temp-减保'!I92) ->  | L104: =IF($C104>98,"",'Temp-定寿'!G93) ->  | M104: =IF($C104>98,"",'Temp-定寿'!G93+'Temp-减保'!I92) ->  | N104: =IF(C104>98,"",减保取现!C88) ->  | O104: =IF($C104>98,"",'Temp-减保'!S92) ->  | P104: =IF($C104>98,"",ROUND('Temp-减保'!U92,2)) ->  | Q104: =IF($C104>98,"",'Temp-减保'!X92) ->  | R104: =IF(C104<=98,IF($C104=98,ROUND(120%*'Temp-减保'!U92,2),0),"") ->  | S104: =IF($C104>98,"",'Temp-减保'!V92) ->  | T104: =IF(IFERROR(O104-'Temp-减保'!W92,1)>=0,1,0) -> 1 | U104: =IFERROR(IF(AND(B104<=5,N104>0),0,IF(AND(B104>5,N104>'Temp-减保'!P92*20%,B104<106-年龄1),0,1)),1) -> 1 | V104: 0 | W104: 0 | X104: 0 | Y104: 0
A105: 85 | E105: =IF($C105>98,"",'Temp-减保'!D93) ->  | F105: =IF($C105>98,"",'Temp-定寿'!D94) ->  | G105: =IF($C105>98,"",'Temp-减保'!E93) ->  | H105: =IF(C105<=98,ROUND('Temp-加保'!I93,2),"") ->  | I105: =IF($C105>98,"",'Temp-减保'!F93) ->  | J105: =IF(C105<=98,IF($C105=98,ROUND(120%*'Temp-加保'!I93,2),0),"") ->  | K105: =IF($C105>98,"",'Temp-减保'!I93) ->  | L105: =IF($C105>98,"",'Temp-定寿'!G94) ->  | M105: =IF($C105>98,"",'Temp-定寿'!G94+'Temp-减保'!I93) ->  | N105: =IF(C105>98,"",减保取现!C89) ->  | O105: =IF($C105>98,"",'Temp-减保'!S93) ->  | P105: =IF($C105>98,"",ROUND('Temp-减保'!U93,2)) ->  | Q105: =IF($C105>98,"",'Temp-减保'!X93) ->  | R105: =IF(C105<=98,IF($C105=98,ROUND(120%*'Temp-减保'!U93,2),0),"") ->  | S105: =IF($C105>98,"",'Temp-减保'!V93) ->  | T105: =IF(IFERROR(O105-'Temp-减保'!W93,1)>=0,1,0) -> 1 | U105: =IFERROR(IF(AND(B105<=5,N105>0),0,IF(AND(B105>5,N105>'Temp-减保'!P93*20%,B105<106-年龄1),0,1)),1) -> 1 | V105: 0 | W105: 0 | X105: 0 | Y105: 0
A106: 86 | E106: =IF($C106>98,"",'Temp-减保'!D94) ->  | F106: =IF($C106>98,"",'Temp-定寿'!D95) ->  | G106: =IF($C106>98,"",'Temp-减保'!E94) ->  | H106: =IF(C106<=98,ROUND('Temp-加保'!I94,2),"") ->  | I106: =IF($C106>98,"",'Temp-减保'!F94) ->  | J106: =IF(C106<=98,IF($C106=98,ROUND(120%*'Temp-加保'!I94,2),0),"") ->  | K106: =IF($C106>98,"",'Temp-减保'!I94) ->  | L106: =IF($C106>98,"",'Temp-定寿'!G95) ->  | M106: =IF($C106>98,"",'Temp-定寿'!G95+'Temp-减保'!I94) ->  | N106: =IF(C106>98,"",减保取现!C90) ->  | O106: =IF($C106>98,"",'Temp-减保'!S94) ->  | P106: =IF($C106>98,"",ROUND('Temp-减保'!U94,2)) ->  | Q106: =IF($C106>98,"",'Temp-减保'!X94) ->  | R106: =IF(C106<=98,IF($C106=98,ROUND(120%*'Temp-减保'!U94,2),0),"") ->  | S106: =IF($C106>98,"",'Temp-减保'!V94) ->  | T106: =IF(IFERROR(O106-'Temp-减保'!W94,1)>=0,1,0) -> 1 | U106: =IFERROR(IF(AND(B106<=5,N106>0),0,IF(AND(B106>5,N106>'Temp-减保'!P94*20%,B106<106-年龄1),0,1)),1) -> 1 | V106: 0 | W106: 0 | X106: 0 | Y106: 0
A107: 87 | E107: =IF($C107>98,"",'Temp-减保'!D95) ->  | F107: =IF($C107>98,"",'Temp-定寿'!D96) ->  | G107: =IF($C107>98,"",'Temp-减保'!E95) ->  | H107: =IF(C107<=98,ROUND('Temp-加保'!I95,2),"") ->  | I107: =IF($C107>98,"",'Temp-减保'!F95) ->  | J107: =IF(C107<=98,IF($C107=98,ROUND(120%*'Temp-加保'!I95,2),0),"") ->  | K107: =IF($C107>98,"",'Temp-减保'!I95) ->  | L107: =IF($C107>98,"",'Temp-定寿'!G96) ->  | M107: =IF($C107>98,"",'Temp-定寿'!G96+'Temp-减保'!I95) ->  | N107: =IF(C107>98,"",减保取现!C91) ->  | O107: =IF($C107>98,"",'Temp-减保'!S95) ->  | P107: =IF($C107>98,"",ROUND('Temp-减保'!U95,2)) ->  | Q107: =IF($C107>98,"",'Temp-减保'!X95) ->  | R107: =IF(C107<=98,IF($C107=98,ROUND(120%*'Temp-减保'!U95,2),0),"") ->  | S107: =IF($C107>98,"",'Temp-减保'!V95) ->  | T107: =IF(IFERROR(O107-'Temp-减保'!W95,1)>=0,1,0) -> 1 | U107: =IFERROR(IF(AND(B107<=5,N107>0),0,IF(AND(B107>5,N107>'Temp-减保'!P95*20%,B107<106-年龄1),0,1)),1) -> 1 | V107: 0 | W107: 0 | X107: 0 | Y107: 0
A108: 88 | E108: =IF($C108>98,"",'Temp-减保'!D96) ->  | F108: =IF($C108>98,"",'Temp-定寿'!D97) ->  | G108: =IF($C108>98,"",'Temp-减保'!E96) ->  | H108: =IF(C108<=98,ROUND('Temp-加保'!I96,2),"") ->  | I108: =IF($C108>98,"",'Temp-减保'!F96) ->  | J108: =IF(C108<=98,IF($C108=98,ROUND(120%*'Temp-加保'!I96,2),0),"") ->  | K108: =IF($C108>98,"",'Temp-减保'!I96) ->  | L108: =IF($C108>98,"",'Temp-定寿'!G97) ->  | M108: =IF($C108>98,"",'Temp-定寿'!G97+'Temp-减保'!I96) ->  | N108: =IF(C108>98,"",减保取现!C92) ->  | O108: =IF($C108>98,"",'Temp-减保'!S96) ->  | P108: =IF($C108>98,"",ROUND('Temp-减保'!U96,2)) ->  | Q108: =IF($C108>98,"",'Temp-减保'!X96) ->  | R108: =IF(C108<=98,IF($C108=98,ROUND(120%*'Temp-减保'!U96,2),0),"") ->  | S108: =IF($C108>98,"",'Temp-减保'!V96) ->  | T108: =IF(IFERROR(O108-'Temp-减保'!W96,1)>=0,1,0) -> 1 | U108: =IFERROR(IF(AND(B108<=5,N108>0),0,IF(AND(B108>5,N108>'Temp-减保'!P96*20%,B108<106-年龄1),0,1)),1) -> 1 | V108: 0 | W108: 0 | X108: 0 | Y108: 0
A109: 89 | E109: =IF($C109>98,"",'Temp-减保'!D97) ->  | F109: =IF($C109>98,"",'Temp-定寿'!D98) ->  | G109: =IF($C109>98,"",'Temp-减保'!E97) ->  | H109: =IF(C109<=98,ROUND('Temp-加保'!I97,2),"") ->  | I109: =IF($C109>98,"",'Temp-减保'!F97) ->  | J109: =IF(C109<=98,IF($C109=98,ROUND(120%*'Temp-加保'!I97,2),0),"") ->  | K109: =IF($C109>98,"",'Temp-减保'!I97) ->  | L109: =IF($C109>98,"",'Temp-定寿'!G98) ->  | M109: =IF($C109>98,"",'Temp-定寿'!G98+'Temp-减保'!I97) ->  | N109: =IF(C109>98,"",减保取现!C93) ->  | O109: =IF($C109>98,"",'Temp-减保'!S97) ->  | P109: =IF($C109>98,"",ROUND('Temp-减保'!U97,2)) ->  | Q109: =IF($C109>98,"",'Temp-减保'!X97) ->  | R109: =IF(C109<=98,IF($C109=98,ROUND(120%*'Temp-减保'!U97,2),0),"") ->  | S109: =IF($C109>98,"",'Temp-减保'!V97) ->  | T109: =IF(IFERROR(O109-'Temp-减保'!W97,1)>=0,1,0) -> 1 | U109: =IFERROR(IF(AND(B109<=5,N109>0),0,IF(AND(B109>5,N109>'Temp-减保'!P97*20%,B109<106-年龄1),0,1)),1) -> 1 | V109: 0 | W109: 0 | X109: 0 | Y109: 0
A110: 90 | E110: =IF($C110>98,"",'Temp-减保'!D98) ->  | F110: =IF($C110>98,"",'Temp-定寿'!D99) ->  | G110: =IF($C110>98,"",'Temp-减保'!E98) ->  | H110: =IF(C110<=98,ROUND('Temp-加保'!I98,2),"") ->  | I110: =IF($C110>98,"",'Temp-减保'!F98) ->  | J110: =IF(C110<=98,IF($C110=98,ROUND(120%*'Temp-加保'!I98,2),0),"") ->  | K110: =IF($C110>98,"",'Temp-减保'!I98) ->  | L110: =IF($C110>98,"",'Temp-定寿'!G99) ->  | M110: =IF($C110>98,"",'Temp-定寿'!G99+'Temp-减保'!I98) ->  | N110: =IF(C110>98,"",减保取现!C94) ->  | O110: =IF($C110>98,"",'Temp-减保'!S98) ->  | P110: =IF($C110>98,"",ROUND('Temp-减保'!U98,2)) ->  | Q110: =IF($C110>98,"",'Temp-减保'!X98) ->  | R110: =IF(C110<=98,IF($C110=98,ROUND(120%*'Temp-减保'!U98,2),0),"") ->  | S110: =IF($C110>98,"",'Temp-减保'!V98) ->  | T110: =IF(IFERROR(O110-'Temp-减保'!W98,1)>=0,1,0) -> 1 | U110: =IFERROR(IF(AND(B110<=5,N110>0),0,IF(AND(B110>5,N110>'Temp-减保'!P98*20%,B110<106-年龄1),0,1)),1) -> 1 | V110: 0 | W110: 0 | X110: 0 | Y110: 0
A111: 91 | E111: =IF($C111>98,"",'Temp-减保'!D99) ->  | F111: =IF($C111>98,"",'Temp-定寿'!D100) ->  | G111: =IF($C111>98,"",'Temp-减保'!E99) ->  | H111: =IF(C111<=98,ROUND('Temp-加保'!I99,2),"") ->  | I111: =IF($C111>98,"",'Temp-减保'!F99) ->  | J111: =IF(C111<=98,IF($C111=98,ROUND(120%*'Temp-加保'!I99,2),0),"") ->  | K111: =IF($C111>98,"",'Temp-减保'!I99) ->  | L111: =IF($C111>98,"",'Temp-定寿'!G100) ->  | M111: =IF($C111>98,"",'Temp-定寿'!G100+'Temp-减保'!I99) ->  | N111: =IF(C111>98,"",减保取现!C95) ->  | O111: =IF($C111>98,"",'Temp-减保'!S99) ->  | P111: =IF($C111>98,"",ROUND('Temp-减保'!U99,2)) ->  | Q111: =IF($C111>98,"",'Temp-减保'!X99) ->  | R111: =IF(C111<=98,IF($C111=98,ROUND(120%*'Temp-减保'!U99,2),0),"") ->  | S111: =IF($C111>98,"",'Temp-减保'!V99) ->  | T111: =IF(IFERROR(O111-'Temp-减保'!W99,1)>=0,1,0) -> 1 | U111: =IFERROR(IF(AND(B111<=5,N111>0),0,IF(AND(B111>5,N111>'Temp-减保'!P99*20%,B111<106-年龄1),0,1)),1) -> 1 | V111: 0 | W111: 0 | X111: 0 | Y111: 0
A112: 92 | E112: =IF($C112>98,"",'Temp-减保'!D100) ->  | F112: =IF($C112>98,"",'Temp-定寿'!D101) ->  | G112: =IF($C112>98,"",'Temp-减保'!E100) ->  | H112: =IF(C112<=98,ROUND('Temp-加保'!I100,2),"") ->  | I112: =IF($C112>98,"",'Temp-减保'!F100) ->  | J112: =IF(C112<=98,IF($C112=98,ROUND(120%*'Temp-加保'!I100,2),0),"") ->  | K112: =IF($C112>98,"",'Temp-减保'!I100) ->  | L112: =IF($C112>98,"",'Temp-定寿'!G101) ->  | M112: =IF($C112>98,"",'Temp-定寿'!G101+'Temp-减保'!I100) ->  | N112: =IF(C112>98,"",减保取现!C96) ->  | O112: =IF($C112>98,"",'Temp-减保'!S100) ->  | P112: =IF($C112>98,"",ROUND('Temp-减保'!U100,2)) ->  | Q112: =IF($C112>98,"",'Temp-减保'!X100) ->  | R112: =IF(C112<=98,IF($C112=98,ROUND(120%*'Temp-减保'!U100,2),0),"") ->  | S112: =IF($C112>98,"",'Temp-减保'!V100) ->  | T112: =IF(IFERROR(O112-'Temp-减保'!W100,1)>=0,1,0) -> 1 | U112: =IFERROR(IF(AND(B112<=5,N112>0),0,IF(AND(B112>5,N112>'Temp-减保'!P100*20%,B112<106-年龄1),0,1)),1) -> 1 | V112: 0 | W112: 0 | X112: 0 | Y112: 0
A113: 93 | E113: =IF($C113>98,"",'Temp-减保'!D101) ->  | F113: =IF($C113>98,"",'Temp-定寿'!D102) ->  | G113: =IF($C113>98,"",'Temp-减保'!E101) ->  | H113: =IF(C113<=98,ROUND('Temp-加保'!I101,2),"") ->  | I113: =IF($C113>98,"",'Temp-减保'!F101) ->  | J113: =IF(C113<=98,IF($C113=98,ROUND(120%*'Temp-加保'!I101,2),0),"") ->  | K113: =IF($C113>98,"",'Temp-减保'!I101) ->  | L113: =IF($C113>98,"",'Temp-定寿'!G102) ->  | M113: =IF($C113>98,"",'Temp-定寿'!G102+'Temp-减保'!I101) ->  | N113: =IF(C113>98,"",减保取现!C97) ->  | O113: =IF($C113>98,"",'Temp-减保'!S101) ->  | P113: =IF($C113>98,"",ROUND('Temp-减保'!U101,2)) ->  | Q113: =IF($C113>98,"",'Temp-减保'!X101) ->  | R113: =IF(C113<=98,IF($C113=98,ROUND(120%*'Temp-减保'!U101,2),0),"") ->  | S113: =IF($C113>98,"",'Temp-减保'!V101) ->  | T113: =IF(IFERROR(O113-'Temp-减保'!W101,1)>=0,1,0) -> 1 | U113: =IFERROR(IF(AND(B113<=5,N113>0),0,IF(AND(B113>5,N113>'Temp-减保'!P101*20%,B113<106-年龄1),0,1)),1) -> 1 | V113: 0 | W113: 0 | X113: 0 | Y113: 0
A114: 94 | E114: =IF($C114>98,"",'Temp-减保'!D102) ->  | F114: =IF($C114>98,"",'Temp-定寿'!D103) ->  | G114: =IF($C114>98,"",'Temp-减保'!E102) ->  | H114: =IF(C114<=98,ROUND('Temp-加保'!I102,2),"") ->  | I114: =IF($C114>98,"",'Temp-减保'!F102) ->  | J114: =IF(C114<=98,IF($C114=98,ROUND(120%*'Temp-加保'!I102,2),0),"") ->  | K114: =IF($C114>98,"",'Temp-减保'!I102) ->  | L114: =IF($C114>98,"",'Temp-定寿'!G103) ->  | M114: =IF($C114>98,"",'Temp-定寿'!G103+'Temp-减保'!I102) ->  | N114: =IF(C114>98,"",减保取现!C98) ->  | O114: =IF($C114>98,"",'Temp-减保'!S102) ->  | P114: =IF($C114>98,"",ROUND('Temp-减保'!U102,2)) ->  | Q114: =IF($C114>98,"",'Temp-减保'!X102) ->  | R114: =IF(C114<=98,IF($C114=98,ROUND(120%*'Temp-减保'!U102,2),0),"") ->  | S114: =IF($C114>98,"",'Temp-减保'!V102) ->  | T114: =IF(IFERROR(O114-'Temp-减保'!W102,1)>=0,1,0) -> 1 | U114: =IFERROR(IF(AND(B114<=5,N114>0),0,IF(AND(B114>5,N114>'Temp-减保'!P102*20%,B114<106-年龄1),0,1)),1) -> 1 | V114: 0 | W114: 0 | X114: 0 | Y114: 0
A115: 95 | E115: =IF($C115>98,"",'Temp-减保'!D103) ->  | F115: =IF($C115>98,"",'Temp-定寿'!D104) ->  | G115: =IF($C115>98,"",'Temp-减保'!E103) ->  | H115: =IF(C115<=98,ROUND('Temp-加保'!I103,2),"") ->  | I115: =IF($C115>98,"",'Temp-减保'!F103) ->  | J115: =IF(C115<=98,IF($C115=98,ROUND(120%*'Temp-加保'!I103,2),0),"") ->  | K115: =IF($C115>98,"",'Temp-减保'!I103) ->  | L115: =IF($C115>98,"",'Temp-定寿'!G104) ->  | M115: =IF($C115>98,"",'Temp-定寿'!G104+'Temp-减保'!I103) ->  | N115: =IF(C115>98,"",减保取现!C99) ->  | O115: =IF($C115>98,"",'Temp-减保'!S103) ->  | P115: =IF($C115>98,"",ROUND('Temp-减保'!U103,2)) ->  | Q115: =IF($C115>98,"",'Temp-减保'!X103) ->  | R115: =IF(C115<=98,IF($C115=98,ROUND(120%*'Temp-减保'!U103,2),0),"") ->  | S115: =IF($C115>98,"",'Temp-减保'!V103) ->  | T115: =IF(IFERROR(O115-'Temp-减保'!W103,1)>=0,1,0) -> 1 | U115: =IFERROR(IF(AND(B115<=5,N115>0),0,IF(AND(B115>5,N115>'Temp-减保'!P103*20%,B115<106-年龄1),0,1)),1) -> 1 | V115: 0 | W115: 0 | X115: 0 | Y115: 0
A116: 96 | E116: =IF($C116>98,"",'Temp-减保'!D104) ->  | F116: =IF($C116>98,"",'Temp-定寿'!D105) ->  | G116: =IF($C116>98,"",'Temp-减保'!E104) ->  | H116: =IF(C116<=98,ROUND('Temp-加保'!I104,2),"") ->  | I116: =IF($C116>98,"",'Temp-减保'!F104) ->  | J116: =IF(C116<=98,IF($C116=98,ROUND(120%*'Temp-加保'!I104,2),0),"") ->  | K116: =IF($C116>98,"",'Temp-减保'!I104) ->  | L116: =IF($C116>98,"",'Temp-定寿'!G105) ->  | M116: =IF($C116>98,"",'Temp-定寿'!G105+'Temp-减保'!I104) ->  | N116: =IF(C116>98,"",减保取现!C100) ->  | O116: =IF($C116>98,"",'Temp-减保'!S104) ->  | P116: =IF($C116>98,"",ROUND('Temp-减保'!U104,2)) ->  | Q116: =IF($C116>98,"",'Temp-减保'!X104) ->  | R116: =IF(C116<=98,IF($C116=98,ROUND(120%*'Temp-减保'!U104,2),0),"") ->  | S116: =IF($C116>98,"",'Temp-减保'!V104) ->  | T116: =IF(IFERROR(O116-'Temp-减保'!W104,1)>=0,1,0) -> 1 | U116: =IFERROR(IF(AND(B116<=5,N116>0),0,IF(AND(B116>5,N116>'Temp-减保'!P104*20%,B116<106-年龄1),0,1)),1) -> 1 | V116: 0 | W116: 0 | X116: 0 | Y116: 0
A117: 97 | C117: =IF(年龄1+A117-1>=99,"",年龄1+A117-1) ->  | E117: =IF($C117>98,"",'Temp-减保'!D105) ->  | F117: =IF($C117>98,"",'Temp-定寿'!D106) ->  | G117: =IF($C117>98,"",'Temp-减保'!E105) ->  | H117: =IF(C117<=98,ROUND('Temp-加保'!I105,2),"") ->  | I117: =IF($C117>98,"",'Temp-减保'!F105) ->  | J117: =IF(C117<=98,IF($C117=98,ROUND(120%*'Temp-加保'!I105,2),0),"") ->  | K117: =IF($C117>98,"",'Temp-减保'!I105) ->  | L117: =IF($C117>98,"",'Temp-定寿'!G106) ->  | M117: =IF($C117>98,"",'Temp-定寿'!G106+'Temp-减保'!I105) ->  | N117: =IF(C117>98,"",减保取现!C101) ->  | O117: =IF($C117>98,"",'Temp-减保'!S105) ->  | P117: =IF($C117>98,"",ROUND('Temp-减保'!U105,2)) ->  | Q117: =IF($C117>98,"",'Temp-减保'!X105) ->  | R117: =IF(C117<=98,IF($C117=98,ROUND(120%*'Temp-减保'!U105,2),0),"") ->  | S117: =IF($C117>98,"",'Temp-减保'!V105) ->  | T117: =IF(IFERROR(O117-'Temp-减保'!W105,1)>=0,1,0) -> 1 | U117: =IFERROR(IF(AND(B117<=5,N117>0),0,IF(AND(B117>5,N117>'Temp-减保'!P105*20%,B117<106-年龄1),0,1)),1) -> 1 | V117: =IF($C117=$G$10,K116,IF($C117<$G$10,-E117,0)) -> 0 | W117: =IF($C117=$G$12,I116,IF($C117<$G$12,-E117,0)) -> 0 | X117: =IF($C117=$O$10,S116,IF($C117<$G$12,-E117+N116,0)) -> 0 | Y117: =IF($C117=$O$12,Q116,IF($C117<$G$12,-E117+N116,0)) -> 0
A118: 98 | E118: =IF($C118>98,"",'Temp-减保'!D106) ->  | F118: =IF($C118>98,"",'Temp-定寿'!D107) ->  | G118: =IF($C118>98,"",'Temp-减保'!E106) ->  | H118: =IF(C118<=98,ROUND('Temp-加保'!I106,2),"") ->  | I118: =IF($C118>98,"",'Temp-减保'!F106) ->  | J118: =IF(C118<=98,IF($C118=98,ROUND(120%*'Temp-加保'!I106,2),0),"") ->  | K118: =IF($C118>98,"",'Temp-减保'!I106) ->  | L118: =IF($C118>98,"",'Temp-定寿'!G107) ->  | M118: =IF($C118>98,"",'Temp-定寿'!G107+'Temp-减保'!I106) ->  | N118: =IF(C118>98,"",减保取现!C102) ->  | O118: =IF($C118>98,"",'Temp-减保'!S106) ->  | P118: =IF($C118>98,"",ROUND('Temp-减保'!U106,2)) ->  | Q118: =IF($C118>98,"",'Temp-减保'!X106) ->  | R118: =IF(C118<=98,IF($C118=98,ROUND(120%*'Temp-减保'!U106,2),0),"") ->  | S118: =IF($C118>98,"",'Temp-减保'!V106) ->  | T118: =IF(IFERROR(O118-'Temp-减保'!W106,1)>=0,1,0) -> 1 | U118: =IFERROR(IF(AND(B118<=5,N118>0),0,IF(AND(B118>5,N118>'Temp-减保'!P106*20%,B118<106-年龄1),0,1)),1) -> 1 | V118: 0 | W118: 0 | X118: 0 | Y118: 0
A119: 99 | E119: =IF($C119>98,"",'Temp-减保'!D107) ->  | F119: =IF($C119>98,"",'Temp-定寿'!D108) ->  | G119: =IF($C119>98,"",'Temp-减保'!E107) ->  | H119: =IF(C119<=98,ROUND('Temp-加保'!I107,2),"") ->  | I119: =IF($C119>98,"",'Temp-减保'!F107) ->  | J119: =IF(C119<=98,IF($C119=98,ROUND(120%*'Temp-加保'!I107,2),0),"") ->  | K119: =IF($C119>98,"",'Temp-减保'!I107) ->  | L119: =IF($C119>98,"",'Temp-定寿'!G108) ->  | M119: =IF($C119>98,"",'Temp-定寿'!G108+'Temp-减保'!I107) ->  | N119: =IF(C119>98,"",减保取现!C103) ->  | O119: =IF($C119>98,"",'Temp-减保'!S107) ->  | P119: =IF($C119>98,"",ROUND('Temp-减保'!U107,2)) ->  | Q119: =IF($C119>98,"",'Temp-减保'!X107) ->  | R119: =IF(C119<=98,IF($C119=98,ROUND(120%*'Temp-减保'!U107,2),0),"") ->  | S119: =IF($C119>98,"",'Temp-减保'!V107) ->  | T119: =IF(IFERROR(O119-'Temp-减保'!W107,1)>=0,1,0) -> 1 | U119: =IFERROR(IF(AND(B119<=5,N119>0),0,IF(AND(B119>5,N119>'Temp-减保'!P107*20%,B119<106-年龄1),0,1)),1) -> 1 | V119: 0 | W119: 0 | X119: 0 | Y119: 0
A120: 100 | E120: =IF($C120>98,"",'Temp-减保'!D108) ->  | F120: =IF($C120>98,"",'Temp-定寿'!D109) ->  | G120: =IF($C120>98,"",'Temp-减保'!E108) ->  | H120: =IF(C120<=98,ROUND('Temp-加保'!I108,2),"") ->  | I120: =IF($C120>98,"",'Temp-减保'!F108) ->  | J120: =IF(C120<=98,IF($C120=98,ROUND(120%*'Temp-加保'!I108,2),0),"") ->  | K120: =IF($C120>98,"",'Temp-减保'!I108) ->  | L120: =IF($C120>98,"",'Temp-定寿'!G109) ->  | M120: =IF($C120>98,"",'Temp-定寿'!G109+'Temp-减保'!I108) ->  | N120: =IF(C120>98,"",减保取现!C104) ->  | O120: =IF($C120>98,"",'Temp-减保'!S108) ->  | P120: =IF($C120>98,"",ROUND('Temp-减保'!U108,2)) ->  | Q120: =IF($C120>98,"",'Temp-减保'!X108) ->  | R120: =IF(C120<=98,IF($C120=98,ROUND(120%*'Temp-减保'!U108,2),0),"") ->  | S120: =IF($C120>98,"",'Temp-减保'!V108) ->  | T120: =IF(IFERROR(O120-'Temp-减保'!W108,1)>=0,1,0) -> 1 | U120: =IFERROR(IF(AND(B120<=5,N120>0),0,IF(AND(B120>5,N120>'Temp-减保'!P108*20%,B120<106-年龄1),0,1)),1) -> 1 | V120: 0 | W120: 0 | X120: 0 | Y120: 0
A121: 101 | E121: =IF($C121>98,"",'Temp-减保'!D109) ->  | F121: =IF($C121>98,"",'Temp-定寿'!D110) ->  | G121: =IF($C121>98,"",'Temp-减保'!E109) ->  | H121: =IF(C121<=98,ROUND('Temp-加保'!I109,2),"") ->  | I121: =IF($C121>98,"",'Temp-减保'!F109) ->  | J121: =IF(C121<=98,IF($C121=98,ROUND(120%*'Temp-加保'!I109,2),0),"") ->  | K121: =IF($C121>98,"",'Temp-减保'!I109) ->  | L121: =IF($C121>98,"",'Temp-定寿'!G110) ->  | M121: =IF($C121>98,"",'Temp-定寿'!G110+'Temp-减保'!I109) ->  | N121: =IF(C121>98,"",减保取现!C105) ->  | O121: =IF($C121>98,"",'Temp-减保'!S109) ->  | P121: =IF($C121>98,"",ROUND('Temp-减保'!U109,2)) ->  | Q121: =IF($C121>98,"",'Temp-减保'!X109) ->  | R121: =IF(C121<=98,IF($C121=98,ROUND(120%*'Temp-减保'!U109,2),0),"") ->  | S121: =IF($C121>98,"",'Temp-减保'!V109) ->  | T121: =IF(IFERROR(O121-'Temp-减保'!W109,1)>=0,1,0) -> 1 | U121: =IFERROR(IF(AND(B121<=5,N121>0),0,IF(AND(B121>5,N121>'Temp-减保'!P109*20%,B121<106-年龄1),0,1)),1) -> 1 | V121: 0 | W121: 0 | X121: 0 | Y121: 0
A122: 102 | E122: =IF($C122>98,"",'Temp-减保'!D110) ->  | F122: =IF($C122>98,"",'Temp-定寿'!D111) ->  | G122: =IF($C122>98,"",'Temp-减保'!E110) ->  | H122: =IF(C122<=98,ROUND('Temp-加保'!I110,2),"") ->  | I122: =IF($C122>98,"",'Temp-减保'!F110) ->  | J122: =IF(C122<=98,IF($C122=98,ROUND(120%*'Temp-加保'!I110,2),0),"") ->  | K122: =IF($C122>98,"",'Temp-减保'!I110) ->  | L122: =IF($C122>98,"",'Temp-定寿'!G111) ->  | M122: =IF($C122>98,"",'Temp-定寿'!G111+'Temp-减保'!I110) ->  | N122: =IF(C122>98,"",减保取现!C106) ->  | O122: =IF($C122>98,"",'Temp-减保'!S110) ->  | P122: =IF($C122>98,"",ROUND('Temp-减保'!U110,2)) ->  | Q122: =IF($C122>98,"",'Temp-减保'!X110) ->  | R122: =IF(C122<=98,IF($C122=98,ROUND(120%*'Temp-减保'!U110,2),0),"") ->  | S122: =IF($C122>98,"",'Temp-减保'!V110) ->  | T122: =IF(IFERROR(O122-'Temp-减保'!W110,1)>=0,1,0) -> 1 | U122: =IFERROR(IF(AND(B122<=5,N122>0),0,IF(AND(B122>5,N122>'Temp-减保'!P110*20%,B122<106-年龄1),0,1)),1) -> 1 | V122: 0 | W122: 0 | X122: 0 | Y122: 0
A123: 103 | E123: =IF($C123>98,"",'Temp-减保'!D111) ->  | F123: =IF($C123>98,"",'Temp-定寿'!D112) ->  | G123: =IF($C123>98,"",'Temp-减保'!E111) ->  | H123: =IF(C123<=98,ROUND('Temp-加保'!I111,2),"") ->  | I123: =IF($C123>98,"",'Temp-减保'!F111) ->  | J123: =IF(C123<=98,IF($C123=98,ROUND(120%*'Temp-加保'!I111,2),0),"") ->  | K123: =IF($C123>98,"",'Temp-减保'!I111) ->  | L123: =IF($C123>98,"",'Temp-定寿'!G112) ->  | M123: =IF($C123>98,"",'Temp-定寿'!G112+'Temp-减保'!I111) ->  | N123: =IF(C123>98,"",减保取现!C107) ->  | O123: =IF($C123>98,"",'Temp-减保'!S111) ->  | P123: =IF($C123>98,"",ROUND('Temp-减保'!U111,2)) ->  | Q123: =IF($C123>98,"",'Temp-减保'!X111) ->  | R123: =IF(C123<=98,IF($C123=98,ROUND(120%*'Temp-减保'!U111,2),0),"") ->  | S123: =IF($C123>98,"",'Temp-减保'!V111) ->  | T123: =IF(IFERROR(O123-'Temp-减保'!W111,1)>=0,1,0) -> 1 | U123: =IFERROR(IF(AND(B123<=5,N123>0),0,IF(AND(B123>5,N123>'Temp-减保'!P111*20%,B123<106-年龄1),0,1)),1) -> 1 | V123: 0 | W123: 0 | X123: 0 | Y123: 0
A124: 104 | E124: =IF($C124>98,"",'Temp-减保'!D112) ->  | F124: =IF($C124>98,"",'Temp-定寿'!D113) ->  | G124: =IF($C124>98,"",'Temp-减保'!E112) ->  | H124: =IF(C124<=98,ROUND('Temp-加保'!I112,2),"") ->  | I124: =IF($C124>98,"",'Temp-减保'!F112) ->  | J124: =IF(C124<=98,IF($C124=98,ROUND(120%*'Temp-加保'!I112,2),0),"") ->  | K124: =IF($C124>98,"",'Temp-减保'!I112) ->  | L124: =IF($C124>98,"",'Temp-定寿'!G113) ->  | M124: =IF($C124>98,"",'Temp-定寿'!G113+'Temp-减保'!I112) ->  | N124: =IF(C124>98,"",减保取现!C108) ->  | O124: =IF($C124>98,"",'Temp-减保'!S112) ->  | P124: =IF($C124>98,"",ROUND('Temp-减保'!U112,2)) ->  | Q124: =IF($C124>98,"",'Temp-减保'!X112) ->  | R124: =IF(C124<=98,IF($C124=98,ROUND(120%*'Temp-减保'!U112,2),0),"") ->  | S124: =IF($C124>98,"",'Temp-减保'!V112) ->  | T124: =IF(IFERROR(O124-'Temp-减保'!W112,1)>=0,1,0) -> 1 | U124: =IFERROR(IF(AND(B124<=5,N124>0),0,IF(AND(B124>5,N124>'Temp-减保'!P112*20%,B124<106-年龄1),0,1)),1) -> 1 | V124: 0 | W124: 0 | X124: 0 | Y124: 0
A125: 105 | E125: =IF($C125>98,"",'Temp-减保'!D113) ->  | F125: =IF($C125>98,"",'Temp-定寿'!D114) ->  | G125: =IF($C125>98,"",'Temp-减保'!E113) ->  | H125: =IF(C125<=98,ROUND('Temp-加保'!I113,2),"") ->  | I125: =IF($C125>98,"",'Temp-减保'!F113) ->  | J125: =IF(C125<=98,IF($C125=98,ROUND(120%*'Temp-加保'!I113,2),0),"") ->  | K125: =IF($C125>98,"",'Temp-减保'!I113) ->  | L125: =IF($C125>98,"",'Temp-定寿'!G114) ->  | M125: =IF($C125>98,"",'Temp-定寿'!G114+'Temp-减保'!I113) ->  | N125: =IF(C125>98,"",减保取现!C109) ->  | O125: =IF($C125>98,"",'Temp-减保'!S113) ->  | P125: =IF($C125>98,"",ROUND('Temp-减保'!U113,2)) ->  | Q125: =IF($C125>98,"",'Temp-减保'!X113) ->  | R125: =IF(C125<=98,IF($C125=98,ROUND(120%*'Temp-减保'!U113,2),0),"") ->  | S125: =IF($C125>98,"",'Temp-减保'!V113) ->  | T125: =IF(IFERROR(O125-'Temp-减保'!W113,1)>=0,1,0) -> 1 | U125: =IFERROR(IF(AND(B125<=5,N125>0),0,IF(AND(B125>5,N125>'Temp-减保'!P113*20%,B125<106-年龄1),0,1)),1) -> 1 | V125: 0 | W125: 0 | X125: 0 | Y125: 0
A126: 106 | E126: =IF($C126>98,"",'Temp-减保'!D114) ->  | F126: =IF($C126>98,"",'Temp-定寿'!D115) ->  | G126: =IF($C126>98,"",'Temp-减保'!E114) ->  | H126: =IF(C126<=98,ROUND('Temp-加保'!I114,2),"") ->  | I126: =IF($C126>98,"",'Temp-减保'!F114) ->  | J126: =IF(C126<=98,IF($C126=98,ROUND(120%*'Temp-加保'!I114,2),0),"") ->  | K126: =IF($C126>98,"",'Temp-减保'!I114) ->  | L126: =IF($C126>98,"",'Temp-定寿'!G115) ->  | M126: =IF($C126>98,"",'Temp-定寿'!G115+'Temp-减保'!I114) ->  | N126: =IF(C126>98,"",减保取现!C110) ->  | O126: =IF($C126>98,"",'Temp-减保'!S114) ->  | P126: =IF($C126>98,"",ROUND('Temp-减保'!U114,2)) ->  | Q126: =IF($C126>98,"",'Temp-减保'!X114) ->  | R126: =IF(C126<=98,IF($C126=98,ROUND(120%*'Temp-减保'!U114,2),0),"") ->  | S126: =IF($C126>98,"",'Temp-减保'!V114) ->  | T126: =IF(IFERROR(O126-'Temp-减保'!W114,1)>=0,1,0) -> 1 | U126: =IFERROR(IF(AND(B126<=5,N126>0),0,IF(AND(B126>5,N126>'Temp-减保'!P114*20%,B126<106-年龄1),0,1)),1) -> 1 | V126: 0 | W126: 0 | X126: 0 | Y126: 0
A127: 107 | E127: =IF($C127>98,"",'Temp-减保'!D115) ->  | F127: =IF($C127>98,"",'Temp-定寿'!D116) ->  | G127: =IF($C127>98,"",'Temp-减保'!E115) ->  | H127: =IF(C127<=98,ROUND('Temp-加保'!I115,2),"") ->  | I127: =IF($C127>98,"",'Temp-减保'!F115) ->  | J127: =IF(C127<=98,IF($C127=98,ROUND(120%*'Temp-加保'!I115,2),0),"") ->  | K127: =IF($C127>98,"",'Temp-减保'!I115) ->  | L127: =IF($C127>98,"",'Temp-定寿'!G116) ->  | M127: =IF($C127>98,"",'Temp-定寿'!G116+'Temp-减保'!I115) ->  | N127: =IF(C127>98,"",减保取现!C111) ->  | O127: =IF($C127>98,"",'Temp-减保'!S115) ->  | P127: =IF($C127>98,"",ROUND('Temp-减保'!U115,2)) ->  | Q127: =IF($C127>98,"",'Temp-减保'!X115) ->  | R127: =IF(C127<=98,IF($C127=98,ROUND(120%*'Temp-减保'!U115,2),0),"") ->  | S127: =IF($C127>98,"",'Temp-减保'!V115) ->  | T127: =IF(IFERROR(O127-'Temp-减保'!W115,1)>=0,1,0) -> 1 | U127: =IFERROR(IF(AND(B127<=5,N127>0),0,IF(AND(B127>5,N127>'Temp-减保'!P115*20%,B127<106-年龄1),0,1)),1) -> 1 | V127: 0 | W127: 0 | X127: 0 | Y127: 0
A128: 108 | E128: =IF($C128>98,"",'Temp-减保'!D116) ->  | F128: =IF($C128>98,"",'Temp-定寿'!D117) ->  | G128: =IF($C128>98,"",'Temp-减保'!E116) ->  | H128: =IF(C128<=98,ROUND('Temp-加保'!I116,2),"") ->  | I128: =IF($C128>98,"",'Temp-减保'!F116) ->  | J128: =IF(C128<=98,IF($C128=98,ROUND(120%*'Temp-加保'!I116,2),0),"") ->  | K128: =IF($C128>98,"",'Temp-减保'!I116) ->  | L128: =IF($C128>98,"",'Temp-定寿'!G117) ->  | M128: =IF($C128>98,"",'Temp-定寿'!G117+'Temp-减保'!I116) ->  | N128: =IF(C128>98,"",减保取现!C112) ->  | O128: =IF($C128>98,"",'Temp-减保'!S116) ->  | P128: =IF($C128>98,"",ROUND('Temp-减保'!U116,2)) ->  | Q128: =IF($C128>98,"",'Temp-减保'!X116) ->  | R128: =IF(C128<=98,IF($C128=98,ROUND(120%*'Temp-减保'!U116,2),0),"") ->  | S128: =IF($C128>98,"",'Temp-减保'!V116) ->  | T128: =IF(IFERROR(O128-'Temp-减保'!W116,1)>=0,1,0) -> 1 | U128: =IFERROR(IF(AND(B128<=5,N128>0),0,IF(AND(B128>5,N128>'Temp-减保'!P116*20%,B128<106-年龄1),0,1)),1) -> 1 | V128: 0 | W128: 0 | X128: 0 | Y128: 0
A129: 109 | E129: =IF($C129>98,"",'Temp-减保'!D117) ->  | F129: =IF($C129>98,"",'Temp-定寿'!D118) ->  | G129: =IF($C129>98,"",'Temp-减保'!E117) ->  | H129: =IF(C129<=98,ROUND('Temp-加保'!I117,2),"") ->  | I129: =IF($C129>98,"",'Temp-减保'!F117) ->  | J129: =IF(C129<=98,IF($C129=98,ROUND(120%*'Temp-加保'!I117,2),0),"") ->  | K129: =IF($C129>98,"",'Temp-减保'!I117) ->  | L129: =IF($C129>98,"",'Temp-定寿'!G118) ->  | M129: =IF($C129>98,"",'Temp-定寿'!G118+'Temp-减保'!I117) ->  | N129: =IF(C129>98,"",减保取现!C113) ->  | O129: =IF($C129>98,"",'Temp-减保'!S117) ->  | P129: =IF($C129>98,"",ROUND('Temp-减保'!U117,2)) ->  | Q129: =IF($C129>98,"",'Temp-减保'!X117) ->  | R129: =IF(C129<=98,IF($C129=98,ROUND(120%*'Temp-减保'!U117,2),0),"") ->  | S129: =IF($C129>98,"",'Temp-减保'!V117) ->  | T129: =IF(IFERROR(O129-'Temp-减保'!W117,1)>=0,1,0) -> 1 | U129: =IFERROR(IF(AND(B129<=5,N129>0),0,IF(AND(B129>5,N129>'Temp-减保'!P117*20%,B129<106-年龄1),0,1)),1) -> 1 | V129: 0 | W129: 0 | X129: 0 | Y129: 0
A130: 110 | E130: =IF($C130>98,"",'Temp-减保'!D118) ->  | F130: =IF($C130>98,"",'Temp-定寿'!D119) ->  | G130: =IF($C130>98,"",'Temp-减保'!E118) ->  | H130: =IF(C130<=98,ROUND('Temp-加保'!I118,2),"") ->  | I130: =IF($C130>98,"",'Temp-减保'!F118) ->  | J130: =IF(C130<=98,IF($C130=98,ROUND(120%*'Temp-加保'!I118,2),0),"") ->  | K130: =IF($C130>98,"",'Temp-减保'!I118) ->  | L130: =IF($C130>98,"",'Temp-定寿'!G119) ->  | M130: =IF($C130>98,"",'Temp-定寿'!G119+'Temp-减保'!I118) ->  | N130: =IF(C130>98,"",减保取现!C114) ->  | O130: =IF($C130>98,"",'Temp-减保'!S118) ->  | P130: =IF($C130>98,"",ROUND('Temp-减保'!U118,2)) ->  | Q130: =IF($C130>98,"",'Temp-减保'!X118) ->  | R130: =IF(C130<=98,IF($C130=98,ROUND(120%*'Temp-减保'!U118,2),0),"") ->  | S130: =IF($C130>98,"",'Temp-减保'!V118) ->  | T130: =IF(IFERROR(O130-'Temp-减保'!W118,1)>=0,1,0) -> 1 | U130: =IFERROR(IF(AND(B130<=5,N130>0),0,IF(AND(B130>5,N130>'Temp-减保'!P118*20%,B130<106-年龄1),0,1)),1) -> 1 | V130: 0 | W130: 0 | X130: 0 | Y130: 0

Sheet Temp-加保 (hidden)
B1: 交费期 | C1: =交费期间 -> 3 | K1: Intial | L1: =IF(C2="M",1,4)*C1 -> 3 | AC1: 交费期 | AD1: =交费期间 -> 3 | AF1: Intial | AG1: =IF(C2="M",1,4)*C1 -> 3
B2: 性别 | C2: =IF(性别="男","M","F") -> M | K2: Add | L2: =IF(C2="M",1,4) -> 1 | AC2: 性别 | AD2: =IF(性别="男","M","F") -> M | AF2: Add | AG2: =IF(C2="M",1,4) -> 1
B3: 年龄 | C3: =年龄 -> 40 | AC3: 年龄 | AD3: =年龄 -> 40
B4: Size | C4: =年交保费/1000 -> 670 | AC4: Size | AD4: =IF('利益演示-加保'!$O$15="是",(年交保费+'利益演示-加保'!$O$17)/1000,年交保费/1000) -> 1000
B5: SA | C5: =ROUND(IFERROR(HLOOKUP(L1,'Table_GC-加保-趸交全表'!A:I,4+'Temp-加保'!C3,0)*年交保费/1000,0),2) -> 1682765.3 | AC5: SA | AD5: =IF('利益演示-加保'!$O$15="是",ROUND(IFERROR(HLOOKUP(L1,'Table_GC-加保-趸交全表'!A:I,4+'Temp-加保'!C3,0)*(年交保费+'利益演示-加保'!$O$17)/1000,0),2),ROUND(IFERROR(HLOOKUP(L1,'Table_GC-加保-趸交全表'!A:I,4+'Temp-加保'!C3,0)*(年交保费)/1000,0),2)) -> 2511590
B6: 加保前 | K6: 加保后 | O6: 加保部分 | W6: 加保保额计算 | AB6: 期交加保后
M7: 现价 | O7: =PRODUCT(O9:O118) -> 1 | P7: =PRODUCT(P9:P118) -> 1 | Q7: AddGP
A8: Index | B8: Year | C8: Age | D8: GP | E8: Acc GP | F8: CSV | G8: ROP*Fac | H8: Death | I8: 保额次方 | K8: GP | L8: Acc GP | M8: CSV | N8: Death | Q8: AddGP-Pattern | R8: AccGP | S8: AddSA | T8: CSV | U8: ROP*Fac | V8: Death | W8: Index | Y8: 增加SA次方 | Z8: AccAddSA | AA8: 加保后保额次方 | AC8: Index | AD8: Year | AE8: Age | AF8: GP | AG8: Acc GP | AH8: CSV | AI8: ROP*Fac | AJ8: Death | AK8: 保额次方
A9: =$C$1&"_"&$C$2&"_"&$C$3&"_"&B9 -> 3_M_40_1 | B9: 1 | C9: =B9+年龄-1 -> 40 | D9: =IF($B9<=$C$1,年交保费,0) -> 670000 | E9: =SUM($D$9:D9) -> 670000 | F9: =ROUND(IFERROR(VLOOKUP(A9,Table_CV!A:G,7,FALSE)*Size,0),2) -> 245159.7 | G9: =IF(C9<105,E9*IF(C9<18,1,IF(C9<=40,1.6,IF(C9<=60,1.4,1.2))),0) -> 1072000 | H9: =ROUND(IF(OR(C9<18,B9<=$C$1),MAX(F9,G9),MAX(F9,G9,I9)),2) -> 1072000 | I9: =$C$5*(1+3.5%)^(B9-1) -> 1682765.3 | K9: =D9+Q9 -> 670000 | L9: =AG9+SUM($Q$9:Q9) -> 1000000 | M9: =ROUND(AH9+T9,2) -> 365910 | N9: =ROUND(IF(OR(C9<18,B9<=$C$1),MAX(AH9+T9,AI9+U9),MAX(AH9+T9,AI9+U9,AK9+Z9)),2) -> 1600000 | O9: =IF(OR(Q9=0,Q9>=40000),1,0) -> 1 | P9: =IF(Q9='利益演示-加保'!P20,1,0) -> 1 | Q9: =IF($C9<=60,'利益演示-加保'!P20,0) -> 0 | R9: =SUM($Q$9:Q9) -> 0 | S9: =ROUND(IFERROR(VLOOKUP(W9,新加保保额!$A:$F,6,FALSE)*Q9/1000,0),2) -> 0 | T9: =INDEX('Table_GC-加保-趸交全表'!$P$81:$DP$81,1,'Temp-加保'!B9) -> 0 | U9: =IF(C9<105,R9*IF(C9<18,1,IF(C9<=40,1.6,IF(C9<=60,1.4,1.2))),0) -> 0 | V9: =IF(C9<18,MAX(T9,U9),MAX(T9,U9,Z9)) -> 0 | W9: =$C$2&"_"&$C$3&"_"&X9 -> M_40_1 | X9: =B9 -> 1 | Y9: =IF(C9<105,$S9*(1+3.5%)^(B9-1),0) -> 0 | Z9: =IF(C9<105,IFERROR(Z8*1.035,0)+Y9,0) -> 0 | AA9: =Z9+AK9 -> 2511590 | AC9: =$C$1&"_"&$C$2&"_"&$C$3&"_"&AD9 -> 3_M_40_1 | AD9: 1 | AE9: =AD9+年龄-1 -> 40 | AF9: =IF('利益演示-加保'!$O$15="是",IF($B9<=$C$1,年交保费+'利益演示-加保'!$O$17,0),IF($B9<=$C$1,年交保费,0)) -> 1000000 | AG9: =SUM($AF$9:AF9) -> 1000000 | AH9: =ROUND(IFERROR(VLOOKUP(AC9,Table_CV!A:G,7,FALSE)*$AD$4,0),2) -> 365910 | AI9: =IF(AE9<105,AG9*IF(AE9<18,1,IF(AE9<=40,1.6,IF(AE9<=60,1.4,1.2))),0) -> 1600000 | AJ9: =ROUND(IF(OR(AD9<18,AD9<=$C$1),MAX(AH9,AI9),MAX(AH9,AI9,AK9)),2) -> 1600000 | AK9: =$AD$5*(1+3.5%)^(AD9-1) -> 2511590
A10: =$C$1&"_"&$C$2&"_"&$C$3&"_"&B10 -> 3_M_40_2 | B10: 2 | C10: 41 | D10: =IF($B10<=$C$1,年交保费,0) -> 670000 | E10: =SUM($D$9:D10) -> 1340000 | F10: =ROUND(IFERROR(VLOOKUP(A10,Table_CV!A:G,7,FALSE)*Size,0),2) -> 591161.1 | G10: =IF(C10<105,E10*IF(C10<18,1,IF(C10<=40,1.6,IF(C10<=60,1.4,1.2))),0) -> 1876000 | H10: =ROUND(IF(OR(C10<18,B10<=$C$1),MAX(F10,G10),MAX(F10,G10,I10)),2) -> 1876000 | I10: =$C$5*(1+3.5%)^(B10-1) -> 1741662.085 | K10: =D10+Q10 -> 670000 | L10: =AG10+SUM($Q$9:Q10) -> 2000000 | M10: =ROUND(AH10+T10,2) -> 882330 | N10: =ROUND(IF(OR(C10<18,B10<=$C$1),MAX(AH10+T10,AI10+U10),MAX(AH10+T10,AI10+U10,AK10+Z10)),2) -> 2800000 | O10: =IF(OR(Q10=0,Q10>=40000),1,0) -> 1 | P10: =IF(Q10='利益演示-加保'!P21,1,0) -> 1 | Q10: =IF($C10<=60,'利益演示-加保'!P21,0) -> 0 | R10: =SUM($Q$9:Q10) -> 0 | S10: =ROUND(IFERROR(VLOOKUP(W10,新加保保额!$A:$F,6,FALSE)*Q10/1000,0),2) -> 0 | T10: =INDEX('Table_GC-加保-趸交全表'!$P$81:$DP$81,1,'Temp-加保'!B10) -> 0 | U10: 0 | V10: 0 | W10: =$C$2&"_"&$C$3&"_"&X10 -> M_40_2 | X10: 2 | Y10: 0 | Z10: =IF(C10<105,IFERROR(Z9*1.035,0)+Y10,0) -> 0 | AA10: =Z10+AK10 -> 2599495.65 | AC10: =$C$1&"_"&$C$2&"_"&$C$3&"_"&AD10 -> 3_M_40_2 | AD10: 2 | AE10: 41 | AF10: =IF('利益演示-加保'!$O$15="是",IF($B10<=$C$1,年交保费+'利益演示-加保'!$O$17,0),IF($B10<=$C$1,年交保费,0)) -> 1000000 | AG10: =SUM($AF$9:AF10) -> 2000000 | AH10: =ROUND(IFERROR(VLOOKUP(AC10,Table_CV!A:G,7,FALSE)*$AD$4,0),2) -> 882330 | AI10: =IF(AE10<105,AG10*IF(AE10<18,1,IF(AE10<=40,1.6,IF(AE10<=60,1.4,1.2))),0) -> 2800000 | AJ10: =ROUND(IF(OR(AD10<18,AD10<=$C$1),MAX(AH10,AI10),MAX(AH10,AI10,AK10)),2) -> 2800000 | AK10: =$AD$5*(1+3.5%)^(AD10-1) -> 2599495.65
A11: 3_M_40_3 | B11: 3 | C11: 42 | D11: 670000 | E11: =SUM($D$9:D11) -> 2010000 | F11: =ROUND(IFERROR(VLOOKUP(A11,Table_CV!A:G,7,FALSE)*Size,0),2) -> 990635.2 | G11: 2814000 | H11: 2814000 | I11: 1802620.258 | K11: 670000 | L11: =AG11+SUM($Q$9:Q11) -> 3000000 | M11: 1478560 | N11: =ROUND(IF(OR(C11<18,B11<=$C$1),MAX(AH11+T11,AI11+U11),MAX(AH11+T11,AI11+U11,AK11+Z11)),2) -> 4200000 | O11: 1 | P11: =IF(Q11='利益演示-加保'!P22,1,0) -> 1 | Q11: =IF($C11<=60,'利益演示-加保'!P22,0) -> 0 | R11: =SUM($Q$9:Q11) -> 0 | S11: =ROUND(IFERROR(VLOOKUP(W11,新加保保额!$A:$F,6,FALSE)*Q11/1000,0),2) -> 0 | T11: =INDEX('Table_GC-加保-趸交全表'!$P$81:$DP$81,1,'Temp-加保'!B11) -> 0 | U11: 0 | V11: 0 | W11: M_40_3 | X11: 3 | Y11: 0 | Z11: 0 | AA11: 2690477.998 | AC11: 3_M_40_3 | AD11: 3 | AE11: 42 | AF11: =IF('利益演示-加保'!$O$15="是",IF($B11<=$C$1,年交保费+'利益演示-加保'!$O$17,0),IF($B11<=$C$1,年交保费,0)) -> 1000000 | AG11: =SUM($AF$9:AF11) -> 3000000 | AH11: =ROUND(IFERROR(VLOOKUP(AC11,Table_CV!A:G,7,FALSE)*$AD$4,0),2) -> 1478560 | AI11: 4200000 | AJ11: 4200000 | AK11: 2690477.998
A12: 3_M_40_4 | B12: 4 | C12: 43 | D12: 0 | E12: =SUM($D$9:D12) -> 2010000 | F12: =ROUND(IFERROR(VLOOKUP(A12,Table_CV!A:G,7,FALSE)*Size,0),2) -> 1042948.8 | G12: 2814000 | H12: 2814000 | I12: 1865711.968 | K12: 0 | L12: =AG12+SUM($Q$9:Q12) -> 3000000 | M12: 1556640 | N12: 4200000 | O12: 1 | P12: =IF(Q12='利益演示-加保'!P23,1,0) -> 1 | Q12: =IF($C12<=60,'利益演示-加保'!P23,0) -> 0 | R12: =SUM($Q$9:Q12) -> 0 | S12: =ROUND(IFERROR(VLOOKUP(W12,新加保保额!$A:$F,6,FALSE)*Q12/1000,0),2) -> 0 | T12: =INDEX('Table_GC-加保-趸交全表'!$P$81:$DP$81,1,'Temp-加保'!B12) -> 0 | U12: 0 | V12: 0 | W12: M_40_4 | X12: 4 | Y12: =IF(C12<105,$S12*(1+3.5%)^(B12-1),0) -> 0 | Z12: 0 | AA12: 2784644.728 | AC12: 3_M_40_4 | AD12: 4 | AE12: 43 | AF12: =IF('利益演示-加保'!$O$15="是",IF($B12<=$C$1,年交保费+'利益演示-加保'!$O$17,0),IF($B12<=$C$1,年交保费,0)) -> 0 | AG12: =SUM($AF$9:AF12) -> 3000000 | AH12: =ROUND(IFERROR(VLOOKUP(AC12,Table_CV!A:G,7,FALSE)*$AD$4,0),2) -> 1556640 | AI12: 4200000 | AJ12: 4200000 | AK12: 2784644.728
A13: 3_M_40_5 | B13: 5 | C13: 44 | D13: 0 | E13: =SUM($D$9:D13) -> 2010000 | F13: =ROUND(IFERROR(VLOOKUP(A13,Table_CV!A:G,7,FALSE)*Size,0),2) -> 1098022.8 | G13: 2814000 | H13: 2814000 | I13: 1931011.886 | K13: 0 | L13: =AG13+SUM($Q$9:Q13) -> 3000000 | M13: 1638840 | N13: 4200000 | O13: 1 | P13: =IF(Q13='利益演示-加保'!P24,1,0) -> 1 | Q13: =IF($C13<=60,'利益演示-加保'!P24,0) -> 0 | R13: =SUM($Q$9:Q13) -> 0 | S13: =ROUND(IFERROR(VLOOKUP(W13,新加保保额!$A:$F,6,FALSE)*Q13/1000,0),2) -> 0 | T13: =INDEX('Table_GC-加保-趸交全表'!$P$81:$DP$81,1,'Temp-加保'!B13) -> 0 | U13: 0 | V13: 0 | W13: M_40_5 | X13: 5 | Y13: 0 | Z13: 0 | AA13: 2882107.293 | AC13: 3_M_40_5 | AD13: 5 | AE13: 44 | AF13: =IF('利益演示-加保'!$O$15="是",IF($B13<=$C$1,年交保费+'利益演示-加保'!$O$17,0),IF($B13<=$C$1,年交保费,0)) -> 0 | AG13: =SUM($AF$9:AF13) -> 3000000 | AH13: =ROUND(IFERROR(VLOOKUP(AC13,Table_CV!A:G,7,FALSE)*$AD$4,0),2) -> 1638840 | AI13: 4200000 | AJ13: 4200000 | AK13: 2882107.293
A14: 3_M_40_6 | B14: 6 | C14: 45 | D14: 0 | E14: =SUM($D$9:D14) -> 2010000 | F14: =ROUND(IFERROR(VLOOKUP(A14,Table_CV!A:G,7,FALSE)*Size,0),2) -> 1743118.9 | G14: =IF(C14<105,E14*IF(C14<18,1,IF(C14<=40,1.6,IF(C14<=60,1.4,1.2))),0) -> 2814000 | H14: 2814000 | I14: 1998597.302 | K14: 0 | L14: =AG14+SUM($Q$9:Q14) -> 3000000 | M14: 2601670 | N14: 4200000 | O14: 1 | P14: =IF(Q14='利益演示-加保'!P25,1,0) -> 1 | Q14: =IF($C14<=60,'利益演示-加保'!P25,0) -> 0 | R14: =SUM($Q$9:Q14) -> 0 | S14: =ROUND(IFERROR(VLOOKUP(W14,新加保保额!$A:$F,6,FALSE)*Q14/1000,0),2) -> 0 | T14: =INDEX('Table_GC-加保-趸交全表'!$P$81:$DP$81,1,'Temp-加保'!B14) -> 0 | U14: 0 | V14: 0 | W14: M_40_6 | X14: 6 | Y14: 0 | Z14: 0 | AA14: 2982981.048 | AC14: 3_M_40_6 | AD14: 6 | AE14: 45 | AF14: =IF('利益演示-加保'!$O$15="是",IF($B14<=$C$1,年交保费+'利益演示-加保'!$O$17,0),IF($B14<=$C$1,年交保费,0)) -> 0 | AG14: =SUM($AF$9:AF14) -> 3000000 | AH14: =ROUND(IFERROR(VLOOKUP(AC14,Table_CV!A:G,7,FALSE)*$AD$4,0),2) -> 2601670 | AI14: 4200000 | AJ14: 4200000 | AK14: 2982981.048
A15: 3_M_40_7 | B15: 7 | C15: 46 | D15: 0 | E15: =SUM($D$9:D15) -> 2010000 | F15: =ROUND(IFERROR(VLOOKUP(A15,Table_CV!A:G,7,FALSE)*Size,0),2) -> 2411122.3 | G15: =IF(C15<105,E15*IF(C15<18,1,IF(C15<=40,1.6,IF(C15<=60,1.4,1.2))),0) -> 2814000 | H15: 2814000 | I15: 2068548.208 | K15: 0 | L15: =AG15+SUM($Q$9:Q15) -> 3000000 | M15: 3598690 | N15: 4200000 | O15: 1 | P15: =IF(Q15='利益演示-加保'!P26,1,0) -> 1 | Q15: =IF($C15<=60,'利益演示-加保'!P26,0) -> 0 | R15: =SUM($Q$9:Q15) -> 0 | S15: =ROUND(IFERROR(VLOOKUP(W15,新加保保额!$A:$F,6,FALSE)*Q15/1000,0),2) -> 0 | T15: =INDEX('Table_GC-加保-趸交全表'!$P$81:$DP$81,1,'Temp-加保'!B15) -> 0 | U15: 0 | V15: 0 | W15: M_40_7 | X15: 7 | Y15: 0 | Z15: 0 | AA15: 3087385.385 | AC15: 3_M_40_7 | AD15: 7 | AE15: 46 | AF15: =IF('利益演示-加保'!$O$15="是",IF($B15<=$C$1,年交保费+'利益演示-加保'!$O$17,0),IF($B15<=$C$1,年交保费,0)) -> 0 | AG15: =SUM($AF$9:AF15) -> 3000000 | AH15: =ROUND(IFERROR(VLOOKUP(AC15,Table_CV!A:G,7,FALSE)*$AD$4,0),2) -> 3598690 | AI15: 4200000 | AJ15: 4200000 | AK15: 3087385.385
A16: 3_M_40_8 | B16: 8 | C16: 47 | D16: 0 | E16: =SUM($D$9:D16) -> 2010000 | F16: =ROUND(IFERROR(VLOOKUP(A16,Table_CV!A:G,7,FALSE)*Size,0),2) -> 2494899.1 | G16: 2814000 | H16: 2814000 | I16: 2140947.395 | K16: 0 | L16: =AG16+SUM($Q$9:Q16) -> 3000000 | M16: 3723730 | N16: 4200000 | O16: 1 | P16: =IF(Q16='利益演示-加保'!P27,1,0) -> 1 | Q16: =IF($C16<=60,'利益演示-加保'!P27,0) -> 0 | R16: =SUM($Q$9:Q16) -> 0 | S16: =ROUND(IFERROR(VLOOKUP(W16,新加保保额!$A:$F,6,FALSE)*Q16/1000,0),2) -> 0 | T16: =INDEX('Table_GC-加保-趸交全表'!$P$81:$DP$81,1,'Temp-加保'!B16) -> 0 | U16: 0 | V16: 0 | W16: M_40_8 | X16: 8 | Y16: 0 | Z16: 0 | AA16: 3195443.874 | AC16: 3_M_40_8 | AD16: 8 | AE16: 47 | AF16: =IF('利益演示-加保'!$O$15="是",IF($B16<=$C$1,年交保费+'利益演示-加保'!$O$17,0),IF($B16<=$C$1,年交保费,0)) -> 0 | AG16: =SUM($AF$9:AF16) -> 3000000 | AH16: =ROUND(IFERROR(VLOOKUP(AC16,Table_CV!A:G,7,FALSE)*$AD$4,0),2) -> 3723730 | AI16: 4200000 | AJ16: 4200000 | AK16: 3195443.874
A17: 3_M_40_9 | B17: 9 | C17: 48 | D17: 0 | E17: =SUM($D$9:D17) -> 2010000 | F17: =ROUND(IFERROR(VLOOKUP(A17,Table_CV!A:G,7,FALSE)*Size,0),2) -> 2581717.7 | G17: 2814000 | H17: 2814000 | I17: 2215880.554 | K17: 0 | L17: =AG17+SUM($Q$9:Q17) -> 3000000 | M17: 3853310 | N17: 4200000 | O17: 1 | P17: =IF(Q17='利益演示-加保'!P28,1,0) -> 1 | Q17: =IF($C17<=60,'利益演示-加保'!P28,0) -> 0 | R17: =SUM($Q$9:Q17) -> 0 | S17: =ROUND(IFERROR(VLOOKUP(W17,新加保保额!$A:$F,6,FALSE)*Q17/1000,0),2) -> 0 | T17: =INDEX('Table_GC-加保-趸交全表'!$P$81:$DP$81,1,'Temp-加保'!B17) -> 0 | U17: 0 | V17: 0 | W17: M_40_9 | X17: 9 | Y17: 0 | Z17: 0 | AA17: 3307284.409 | AC17: 3_M_40_9 | AD17: 9 | AE17: 48 | AF17: =IF('利益演示-加保'!$O$15="是",IF($B17<=$C$1,年交保费+'利益演示-加保'!$O$17,0),IF($B17<=$C$1,年交保费,0)) -> 0 | AG17: =SUM($AF$9:AF17) -> 3000000 | AH17: =ROUND(IFERROR(VLOOKUP(AC17,Table_CV!A:G,7,FALSE)*$AD$4,0),2) -> 3853310 | AI17: 4200000 | AJ17: 4200000 | AK17: 3307284.409
A18: 3_M_40_10 | B18: 10 | C18: 49 | D18: 0 | E18: =SUM($D$9:D18) -> 2010000 | F18: =ROUND(IFERROR(VLOOKUP(A18,Table_CV!A:G,7,FALSE)*Size,0),2) -> 2671705.4 | G18: 2814000 | H18: 2814000 | I18: 2293436.374 | K18: 0 | L18: =AG18+SUM($Q$9:Q18) -> 3000000 | M18: 3987620 | N18: 4200000 | O18: 1 | P18: =IF(Q18='利益演示-加保'!P29,1,0) -> 1 | Q18: =IF($C18<=60,'利益演示-加保'!P29,0) -> 0 | R18: =SUM($Q$9:Q18) -> 0 | S18: =ROUND(IFERROR(VLOOKUP(W18,新加保保额!$A:$F,6,FALSE)*Q18/1000,0),2) -> 0 | T18: =INDEX('Table_GC-加保-趸交全表'!$P$81:$DP$81,1,'Temp-加保'!B18) -> 0 | U18: 0 | V18: 0 | W18: M_40_10 | X18: 10 | Y18: 0 | Z18: 0 | AA18: 3423039.363 | AC18: 3_M_40_10 | AD18: 10 | AE18: 49 | AF18: =IF('利益演示-加保'!$O$15="是",IF($B18<=$C$1,年交保费+'利益演示-加保'!$O$17,0),IF($B18<=$C$1,年交保费,0)) -> 0 | AG18: =SUM($AF$9:AF18) -> 3000000 | AH18: =ROUND(IFERROR(VLOOKUP(AC18,Table_CV!A:G,7,FALSE)*$AD$4,0),2) -> 3987620 | AI18: 4200000 | AJ18: 4200000 | AK18: 3423039.363
A19: 3_M_40_11 | B19: 11 | C19: 50 | D19: 0 | E19: =SUM($D$9:D19) -> 2010000 | F19: =ROUND(IFERROR(VLOOKUP(A19,Table_CV!A:G,7,FALSE)*Size,0),2) -> 2765009.6 | G19: =IF(C19<105,E19*IF(C19<18,1,IF(C19<=40,1.6,IF(C19<=60,1.4,1.2))),0) -> 2814000 | H19: 2814000 | I19: 2373706.647 | K19: 0 | L19: =AG19+SUM($Q$9:Q19) -> 3000000 | M19: 4126880 | N19: 4200000 | O19: 1 | P19: =IF(Q19='利益演示-加保'!P30,1,0) -> 1 | Q19: =IF($C19<=60,'利益演示-加保'!P30,0) -> 0 | R19: =SUM($Q$9:Q19) -> 0 | S19: =ROUND(IFERROR(VLOOKUP(W19,新加保保额!$A:$F,6,FALSE)*Q19/1000,0),2) -> 0 | T19: =INDEX('Table_GC-加保-趸交全表'!$P$81:$DP$81,1,'Temp-加保'!B19) -> 0 | U19: 0 | V19: 0 | W19: M_40_11 | X19: 11 | Y19: 0 | Z19: 0 | AA19: 3542845.741 | AC19: 3_M_40_11 | AD19: 11 | AE19: 50 | AF19: =IF('利益演示-加保'!$O$15="是",IF($B19<=$C$1,年交保费+'利益演示-加保'!$O$17,0),IF($B19<=$C$1,年交保费,0)) -> 0 | AG19: =SUM($AF$9:AF19) -> 3000000 | AH19: =ROUND(IFERROR(VLOOKUP(AC19,Table_CV!A:G,7,FALSE)*$AD$4,0),2) -> 4126880 | AI19: 4200000 | AJ19: 4200000 | AK19: 3542845.741
A20: 3_M_40_12 | B20: 12 | C20: 51 | D20: 0 | E20: =SUM($D$9:D20) -> 2010000 | F20: =ROUND(IFERROR(VLOOKUP(A20,Table_CV!A:G,7,FALSE)*Size,0),2) -> 2861784.4 | G20: 2814000 | H20: 2861784.4 | I20: 2456786.379 | K20: 0 | L20: =AG20+SUM($Q$9:Q20) -> 3000000 | M20: 4271320 | N20: 4271320 | O20: 1 | P20: =IF(Q20='利益演示-加保'!P31,1,0) -> 1 | Q20: =IF($C20<=60,'利益演示-加保'!P31,0) -> 0 | R20: =SUM($Q$9:Q20) -> 0 | S20: =ROUND(IFERROR(VLOOKUP(W20,新加保保额!$A:$F,6,FALSE)*Q20/1000,0),2) -> 0 | T20: =INDEX('Table_GC-加保-趸交全表'!$P$81:$DP$81,1,'Temp-加保'!B20) -> 0 | U20: 0 | V20: 0 | W20: M_40_12 | X20: 12 | Y20: 0 | Z20: 0 | AA20: 3666845.342 | AC20: 3_M_40_12 | AD20: 12 | AE20: 51 | AF20: =IF('利益演示-加保'!$O$15="是",IF($B20<=$C$1,年交保费+'利益演示-加保'!$O$17,0),IF($B20<=$C$1,年交保费,0)) -> 0 | AG20: =SUM($AF$9:AF20) -> 3000000 | AH20: =ROUND(IFERROR(VLOOKUP(AC20,Table_CV!A:G,7,FALSE)*$AD$4,0),2) -> 4271320 | AI20: 4200000 | AJ20: 4271320 | AK20: 3666845.342
A21: 3_M_40_13 | B21: 13 | C21: 52 | D21: 0 | E21: =SUM($D$9:D21) -> 2010000 | F21: =ROUND(IFERROR(VLOOKUP(A21,Table_CV!A:G,7,FALSE)*Size,0),2) -> 2961942.7 | G21: 2814000 | H21: 2961942.7 | I21: 2542773.903 | K21: 0 | L21: =AG21+SUM($Q$9:Q21) -> 3000000 | M21: 4420810 | N21: 4420810 | O21: 1 | P21: =IF(Q21='利益演示-加保'!P32,1,0) -> 1 | Q21: =IF($C21<=60,'利益演示-加保'!P32,0) -> 0 | R21: =SUM($Q$9:Q21) -> 0 | S21: =ROUND(IFERROR(VLOOKUP(W21,新加保保额!$A:$F,6,FALSE)*Q21/1000,0),2) -> 0 | T21: =INDEX('Table_GC-加保-趸交全表'!$P$81:$DP$81,1,'Temp-加保'!B21) -> 0 | U21: 0 | V21: 0 | W21: M_40_13 | X21: 13 | Y21: 0 | Z21: 0 | AA21: 3795184.929 | AC21: 3_M_40_13 | AD21: 13 | AE21: 52 | AF21: =IF('利益演示-加保'!$O$15="是",IF($B21<=$C$1,年交保费+'利益演示-加保'!$O$17,0),IF($B21<=$C$1,年交保费,0)) -> 0 | AG21: =SUM($AF$9:AF21) -> 3000000 | AH21: =ROUND(IFERROR(VLOOKUP(AC21,Table_CV!A:G,7,FALSE)*$AD$4,0),2) -> 4420810 | AI21: 4200000 | AJ21: 4420810 | AK21: 3795184.929
A22: 3_M_40_14 | B22: 14 | C22: 53 | D22: 0 | E22: =SUM($D$9:D22) -> 2010000 | F22: =ROUND(IFERROR(VLOOKUP(A22,Table_CV!A:G,7,FALSE)*Size,0),2) -> 3065611.8 | G22: 2814000 | H22: 3065611.8 | I22: 2631770.989 | K22: 0 | L22: =AG22+SUM($Q$9:Q22) -> 3000000 | M22: 4575540 | N22: 4575540 | O22: 1 | P22: =IF(Q22='利益演示-加保'!P33,1,0) -> 1 | Q22: =IF($C22<=60,'利益演示-加保'!P33,0) -> 0 | R22: =SUM($Q$9:Q22) -> 0 | S22: =ROUND(IFERROR(VLOOKUP(W22,新加保保额!$A:$F,6,FALSE)*Q22/1000,0),2) -> 0 | T22: =INDEX('Table_GC-加保-趸交全表'!$P$81:$DP$81,1,'Temp-加保'!B22) -> 0 | U22: 0 | V22: 0 | W22: M_40_14 | X22: 14 | Y22: 0 | Z22: 0 | AA22: 3928016.402 | AC22: 3_M_40_14 | AD22: 14 | AE22: 53 | AF22: =IF('利益演示-加保'!$O$15="是",IF($B22<=$C$1,年交保费+'利益演示-加保'!$O$17,0),IF($B22<=$C$1,年交保费,0)) -> 0 | AG22: =SUM($AF$9:AF22) -> 3000000 | AH22: =ROUND(IFERROR(VLOOKUP(AC22,Table_CV!A:G,7,FALSE)*$AD$4,0),2) -> 4575540 | AI22: 4200000 | AJ22: 4575540 | AK22: 3928016.402
A23: 3_M_40_15 | B23: 15 | C23: 54 | D23: 0 | E23: =SUM($D$9:D23) -> 2010000 | F23: =ROUND(IFERROR(VLOOKUP(A23,Table_CV!A:G,7,FALSE)*Size,0),2) -> 3172905.6 | G23: 2814000 | H23: 3172905.6 | I23: 2723882.974 | K23: 0 | L23: =AG23+SUM($Q$9:Q23) -> 3000000 | M23: 4735680 | N23: 4735680 | O23: 1 | P23: =IF(Q23='利益演示-加保'!P34,1,0) -> 1 | Q23: =IF($C23<=60,'利益演示-加保'!P34,0) -> 0 | R23: =SUM($Q$9:Q23) -> 0 | S23: =ROUND(IFERROR(VLOOKUP(W23,新加保保额!$A:$F,6,FALSE)*Q23/1000,0),2) -> 0 | T23: =INDEX('Table_GC-加保-趸交全表'!$P$81:$DP$81,1,'Temp-加保'!B23) -> 0 | U23: 0 | V23: 0 | W23: M_40_15 | X23: 15 | Y23: 0 | Z23: 0 | AA23: 4065496.976 | AC23: 3_M_40_15 | AD23: 15 | AE23: 54 | AF23: =IF('利益演示-加保'!$O$15="是",IF($B23<=$C$1,年交保费+'利益演示-加保'!$O$17,0),IF($B23<=$C$1,年交保费,0)) -> 0 | AG23: =SUM($AF$9:AF23) -> 3000000 | AH23: =ROUND(IFERROR(VLOOKUP(AC23,Table_CV!A:G,7,FALSE)*$AD$4,0),2) -> 4735680 | AI23: 4200000 | AJ23: 4735680 | AK23: 4065496.976
A24: 3_M_40_16 | B24: 16 | C24: 55 | D24: 0 | E24: =SUM($D$9:D24) -> 2010000 | F24: =ROUND(IFERROR(VLOOKUP(A24,Table_CV!A:G,7,FALSE)*Size,0),2) -> 3283958.1 | G24: 2814000 | H24: 3283958.1 | I24: 2819218.878 | K24: 0 | L24: =AG24+SUM($Q$9:Q24) -> 3000000 | M24: 4901430 | N24: 4901430 | O24: 1 | P24: =IF(Q24='利益演示-加保'!P35,1,0) -> 1 | Q24: =IF($C24<=60,'利益演示-加保'!P35,0) -> 0 | R24: =SUM($Q$9:Q24) -> 0 | S24: =ROUND(IFERROR(VLOOKUP(W24,新加保保额!$A:$F,6,FALSE)*Q24/1000,0),2) -> 0 | T24: =INDEX('Table_GC-加保-趸交全表'!$P$81:$DP$81,1,'Temp-加保'!B24) -> 0 | U24: 0 | V24: 0 | W24: M_40_16 | X24: 16 | Y24: 0 | Z24: 0 | AA24: 4207789.37 | AC24: 3_M_40_16 | AD24: 16 | AE24: 55 | AF24: =IF('利益演示-加保'!$O$15="是",IF($B24<=$C$1,年交保费+'利益演示-加保'!$O$17,0),IF($B24<=$C$1,年交保费,0)) -> 0 | AG24: =SUM($AF$9:AF24) -> 3000000 | AH24: =ROUND(IFERROR(VLOOKUP(AC24,Table_CV!A:G,7,FALSE)*$AD$4,0),2) -> 4901430 | AI24: 4200000 | AJ24: 4901430 | AK24: 4207789.37
A25: 3_M_40_17 | B25: 17 | C25: 56 | D25: 0 | E25: =SUM($D$9:D25) -> 2010000 | F25: =ROUND(IFERROR(VLOOKUP(A25,Table_CV!A:G,7,FALSE)*Size,0),2) -> 3398896.6 | G25: =IF(C25<105,E25*IF(C25<18,1,IF(C25<=40,1.6,IF(C25<=60,1.4,1.2))),0) -> 2814000 | H25: 3398896.6 | I25: 2917891.539 | K25: 0 | L25: =AG25+SUM($Q$9:Q25) -> 3000000 | M25: 5072980 | N25: 5072980 | O25: 1 | P25: =IF(Q25='利益演示-加保'!P36,1,0) -> 1 | Q25: =IF($C25<=60,'利益演示-加保'!P36,0) -> 0 | R25: =SUM($Q$9:Q25) -> 0 | S25: =ROUND(IFERROR(VLOOKUP(W25,新加保保额!$A:$F,6,FALSE)*Q25/1000,0),2) -> 0 | T25: =INDEX('Table_GC-加保-趸交全表'!$P$81:$DP$81,1,'Temp-加保'!B25) -> 0 | U25: 0 | V25: 0 | W25: M_40_17 | X25: 17 | Y25: 0 | Z25: 0 | AA25: 4355061.998 | AC25: 3_M_40_17 | AD25: 17 | AE25: 56 | AF25: =IF('利益演示-加保'!$O$15="是",IF($B25<=$C$1,年交保费+'利益演示-加保'!$O$17,0),IF($B25<=$C$1,年交保费,0)) -> 0 | AG25: =SUM($AF$9:AF25) -> 3000000 | AH25: =ROUND(IFERROR(VLOOKUP(AC25,Table_CV!A:G,7,FALSE)*$AD$4,0),2) -> 5072980 | AI25: 4200000 | AJ25: 5072980 | AK25: 4355061.998
A26: 3_M_40_18 | B26: 18 | C26: 57 | D26: 0 | E26: =SUM($D$9:D26) -> 2010000 | F26: =ROUND(IFERROR(VLOOKUP(A26,Table_CV!A:G,7,FALSE)*Size,0),2) -> 3517855.1 | G26: 2814000 | H26: 3517855.1 | I26: 3020017.742 | K26: 0 | L26: =AG26+SUM($Q$9:Q26) -> 3000000 | M26: 5250530 | N26: 5250530 | O26: 1 | P26: =IF(Q26='利益演示-加保'!P37,1,0) -> 1 | Q26: =IF($C26<=60,'利益演示-加保'!P37,0) -> 0 | R26: =SUM($Q$9:Q26) -> 0 | S26: =ROUND(IFERROR(VLOOKUP(W26,新加保保额!$A:$F,6,FALSE)*Q26/1000,0),2) -> 0 | T26: =INDEX('Table_GC-加保-趸交全表'!$P$81:$DP$81,1,'Temp-加保'!B26) -> 0 | U26: 0 | V26: 0 | W26: M_40_18 | X26: 18 | Y26: 0 | Z26: 0 | AA26: 4507489.168 | AC26: 3_M_40_18 | AD26: 18 | AE26: 57 | AF26: =IF('利益演示-加保'!$O$15="是",IF($B26<=$C$1,年交保费+'利益演示-加保'!$O$17,0),IF($B26<=$C$1,年交保费,0)) -> 0 | AG26: =SUM($AF$9:AF26) -> 3000000 | AH26: =ROUND(IFERROR(VLOOKUP(AC26,Table_CV!A:G,7,FALSE)*$AD$4,0),2) -> 5250530 | AI26: 4200000 | AJ26: 5250530 | AK26: 4507489.168
A27: 3_M_40_19 | B27: 19 | C27: 58 | D27: 0 | E27: =SUM($D$9:D27) -> 2010000 | F27: =ROUND(IFERROR(VLOOKUP(A27,Table_CV!A:G,7,FALSE)*Size,0),2) -> 3640974.3 | G27: 2814000 | H27: 3640974.3 | I27: 3125718.363 | K27: 0 | L27: =AG27+SUM($Q$9:Q27) -> 3000000 | M27: 5434290 | N27: 5434290 | O27: 1 | P27: =IF(Q27='利益演示-加保'!P38,1,0) -> 1 | Q27: =IF($C27<=60,'利益演示-加保'!P38,0) -> 0 | R27: =SUM($Q$9:Q27) -> 0 | S27: =ROUND(IFERROR(VLOOKUP(W27,新加保保额!$A:$F,6,FALSE)*Q27/1000,0),2) -> 0 | T27: =INDEX('Table_GC-加保-趸交全表'!$P$81:$DP$81,1,'Temp-加保'!B27) -> 0 | U27: 0 | V27: 0 | W27: M_40_19 | X27: 19 | Y27: 0 | Z27: 0 | AA27: 4665251.289 | AC27: 3_M_40_19 | AD27: 19 | AE27: 58 | AF27: =IF('利益演示-加保'!$O$15="是",IF($B27<=$C$1,年交保费+'利益演示-加保'!$O$17,0),IF($B27<=$C$1,年交保费,0)) -> 0 | AG27: =SUM($AF$9:AF27) -> 3000000 | AH27: =ROUND(IFERROR(VLOOKUP(AC27,Table_CV!A:G,7,FALSE)*$AD$4,0),2) -> 5434290 | AI27: 4200000 | AJ27: 5434290 | AK27: 4665251.289
A28: 3_M_40_20 | B28: 20 | C28: 59 | D28: 0 | E28: =SUM($D$9:D28) -> 2010000 | F28: =ROUND(IFERROR(VLOOKUP(A28,Table_CV!A:G,7,FALSE)*Size,0),2) -> 3768408.3 | G28: 2814000 | H28: 3768408.3 | I28: 3235118.506 | K28: 0 | L28: =AG28+SUM($Q$9:Q28) -> 3000000 | M28: 5624490 | N28: 5624490 | O28: 1 | P28: =IF(Q28='利益演示-加保'!P39,1,0) -> 1 | Q28: =IF($C28<=60,'利益演示-加保'!P39,0) -> 0 | R28: =SUM($Q$9:Q28) -> 0 | S28: =ROUND(IFERROR(VLOOKUP(W28,新加保保额!$A:$F,6,FALSE)*Q28/1000,0),2) -> 0 | T28: =INDEX('Table_GC-加保-趸交全表'!$P$81:$DP$81,1,'Temp-加保'!B28) -> 0 | U28: 0 | V28: 0 | W28: M_40_20 | X28: 20 | Y28: 0 | Z28: 0 | AA28: 4828535.084 | AC28: 3_M_40_20 | AD28: 20 | AE28: 59 | AF28: =IF('利益演示-加保'!$O$15="是",IF($B28<=$C$1,年交保费+'利益演示-加保'!$O$17,0),IF($B28<=$C$1,年交保费,0)) -> 0 | AG28: =SUM($AF$9:AF28) -> 3000000 | AH28: =ROUND(IFERROR(VLOOKUP(AC28,Table_CV!A:G,7,FALSE)*$AD$4,0),2) -> 5624490 | AI28: 4200000 | AJ28: 5624490 | AK28: 4828535.084
A29: 3_M_40_21 | B29: 21 | C29: 60 | D29: 0 | E29: =SUM($D$9:D29) -> 2010000 | F29: =ROUND(IFERROR(VLOOKUP(A29,Table_CV!A:G,7,FALSE)*Size,0),2) -> 3900297.8 | G29: 2814000 | H29: 3900297.8 | I29: 3348347.654 | K29: 0 | L29: =AG29+SUM($Q$9:Q29) -> 3000000 | M29: 5821340 | N29: 5821340 | O29: 1 | P29: =IF(Q29='利益演示-加保'!P40,1,0) -> 1 | Q29: =IF($C29<=60,'利益演示-加保'!P40,0) -> 0 | R29: =SUM($Q$9:Q29) -> 0 | S29: =ROUND(IFERROR(VLOOKUP(W29,新加保保额!$A:$F,6,FALSE)*Q29/1000,0),2) -> 0 | T29: =INDEX('Table_GC-加保-趸交全表'!$P$81:$DP$81,1,'Temp-加保'!B29) -> 0 | U29: 0 | V29: 0 | W29: M_40_21 | X29: 21 | Y29: 0 | Z29: 0 | AA29: 4997533.812 | AC29: 3_M_40_21 | AD29: 21 | AE29: 60 | AF29: =IF('利益演示-加保'!$O$15="是",IF($B29<=$C$1,年交保费+'利益演示-加保'!$O$17,0),IF($B29<=$C$1,年交保费,0)) -> 0 | AG29: =SUM($AF$9:AF29) -> 3000000 | AH29: =ROUND(IFERROR(VLOOKUP(AC29,Table_CV!A:G,7,FALSE)*$AD$4,0),2) -> 5821340 | AI29: 4200000 | AJ29: 5821340 | AK29: 4997533.812
A30: 3_M_40_22 | B30: 22 | C30: 61 | D30: 0 | E30: =SUM($D$9:D30) -> 2010000 | F30: =ROUND(IFERROR(VLOOKUP(A30,Table_CV!A:G,7,FALSE)*Size,0),2) -> 4036810.3 | G30: 2412000 | H30: 4036810.3 | I30: 3465539.822 | K30: 0 | L30: =AG30+SUM($Q$9:Q30) -> 3000000 | M30: 6025090 | N30: 6025090 | O30: 1 | P30: =IF(Q30='利益演示-加保'!P41,1,0) -> 1 | Q30: =IF($C30<=60,'利益演示-加保'!P41,0) -> 0 | R30: =SUM($Q$9:Q30) -> 0 | S30: =ROUND(IFERROR(VLOOKUP(W30,新加保保额!$A:$F,6,FALSE)*Q30/1000,0),2) -> 0 | T30: =INDEX('Table_GC-加保-趸交全表'!$P$81:$DP$81,1,'Temp-加保'!B30) -> 0 | U30: 0 | V30: 0 | W30: M_40_22 | X30: 22 | Y30: 0 | Z30: 0 | AA30: 5172447.495 | AC30: 3_M_40_22 | AD30: 22 | AE30: 61 | AF30: =IF('利益演示-加保'!$O$15="是",IF($B30<=$C$1,年交保费+'利益演示-加保'!$O$17,0),IF($B30<=$C$1,年交保费,0)) -> 0 | AG30: =SUM($AF$9:AF30) -> 3000000 | AH30: =ROUND(IFERROR(VLOOKUP(AC30,Table_CV!A:G,7,FALSE)*$AD$4,0),2) -> 6025090 | AI30: 3600000 | AJ30: 6025090 | AK30: 5172447.495
A31: 3_M_40_23 | B31: 23 | C31: 62 | D31: 0 | E31: =SUM($D$9:D31) -> 2010000 | F31: =ROUND(IFERROR(VLOOKUP(A31,Table_CV!A:G,7,FALSE)*Size,0),2) -> 4044307.6 | G31: 2412000 | H31: 4044307.6 | I31: 3586833.715 | K31: 0 | L31: =AG31+SUM($Q$9:Q31) -> 3000000 | M31: 6036280 | N31: 6036280 | O31: 1 | P31: =IF(Q31='利益演示-加保'!P42,1,0) -> 1 | Q31: =IF($C31<=60,'利益演示-加保'!P42,0) -> 0 | R31: =SUM($Q$9:Q31) -> 0 | S31: =ROUND(IFERROR(VLOOKUP(W31,新加保保额!$A:$F,6,FALSE)*Q31/1000,0),2) -> 0 | T31: =INDEX('Table_GC-加保-趸交全表'!$P$81:$DP$81,1,'Temp-加保'!B31) -> 0 | U31: 0 | V31: 0 | W31: M_40_23 | X31: 23 | Y31: 0 | Z31: 0 | AA31: 5353483.157 | AC31: 3_M_40_23 | AD31: 23 | AE31: 62 | AF31: =IF('利益演示-加保'!$O$15="是",IF($B31<=$C$1,年交保费+'利益演示-加保'!$O$17,0),IF($B31<=$C$1,年交保费,0)) -> 0 | AG31: =SUM($AF$9:AF31) -> 3000000 | AH31: =ROUND(IFERROR(VLOOKUP(AC31,Table_CV!A:G,7,FALSE)*$AD$4,0),2) -> 6036280 | AI31: 3600000 | AJ31: 6036280 | AK31: 5353483.157
A32: 3_M_40_24 | B32: 24 | C32: 63 | D32: 0 | E32: =SUM($D$9:D32) -> 2010000 | F32: =ROUND(IFERROR(VLOOKUP(A32,Table_CV!A:G,7,FALSE)*Size,0),2) -> 4186247.1 | G32: 2412000 | H32: 4186247.1 | I32: 3712372.895 | K32: 0 | L32: =AG32+SUM($Q$9:Q32) -> 3000000 | M32: 6248130 | N32: 6248130 | O32: 1 | P32: =IF(Q32='利益演示-加保'!P43,1,0) -> 1 | Q32: =IF($C32<=60,'利益演示-加保'!P43,0) -> 0 | R32: =SUM($Q$9:Q32) -> 0 | S32: =ROUND(IFERROR(VLOOKUP(W32,新加保保额!$A:$F,6,FALSE)*Q32/1000,0),2) -> 0 | T32: =INDEX('Table_GC-加保-趸交全表'!$P$81:$DP$81,1,'Temp-加保'!B32) -> 0 | U32: 0 | V32: 0 | W32: M_40_24 | X32: 24 | Y32: 0 | Z32: 0 | AA32: 5540855.068 | AC32: 3_M_40_24 | AD32: 24 | AE32: 63 | AF32: =IF('利益演示-加保'!$O$15="是",IF($B32<=$C$1,年交保费+'利益演示-加保'!$O$17,0),IF($B32<=$C$1,年交保费,0)) -> 0 | AG32: =SUM($AF$9:AF32) -> 3000000 | AH32: =ROUND(IFERROR(VLOOKUP(AC32,Table_CV!A:G,7,FALSE)*$AD$4,0),2) -> 6248130 | AI32: 3600000 | AJ32: 6248130 | AK32: 5540855.068
A33: 3_M_40_25 | B33: 25 | C33: 64 | D33: 0 | E33: =SUM($D$9:D33) -> 2010000 | F33: =ROUND(IFERROR(VLOOKUP(A33,Table_CV!A:G,7,FALSE)*Size,0),2) -> 4333600.2 | G33: 2412000 | H33: 4333600.2 | I33: 3842305.947 | K33: 0 | L33: =AG33+SUM($Q$9:Q33) -> 3000000 | M33: 6468060 | N33: 6468060 | O33: 1 | P33: =IF(Q33='利益演示-加保'!P44,1,0) -> 1 | Q33: =IF($C33<=60,'利益演示-加保'!P44,0) -> 0 | R33: =SUM($Q$9:Q33) -> 0 | S33: =ROUND(IFERROR(VLOOKUP(W33,新加保保额!$A:$F,6,FALSE)*Q33/1000,0),2) -> 0 | T33: =INDEX('Table_GC-加保-趸交全表'!$P$81:$DP$81,1,'Temp-加保'!B33) -> 0 | U33: 0 | V33: 0 | W33: M_40_25 | X33: 25 | Y33: 0 | Z33: 0 | AA33: 5734784.995 | AC33: 3_M_40_25 | AD33: 25 | AE33: 64 | AF33: =IF('利益演示-加保'!$O$15="是",IF($B33<=$C$1,年交保费+'利益演示-加保'!$O$17,0),IF($B33<=$C$1,年交保费,0)) -> 0 | AG33: =SUM($AF$9:AF33) -> 3000000 | AH33: =ROUND(IFERROR(VLOOKUP(AC33,Table_CV!A:G,7,FALSE)*$AD$4,0),2) -> 6468060 | AI33: 3600000 | AJ33: 6468060 | AK33: 5734784.995
